Workbook

Sheet Ark til TE inkl. brændstofpris
C1: Personbiler, varebiler og lastbiler
C13: Personbiler | D13: benzin
I14: 1 | J14: 2 | K14: 3 | L14: 4 | M14: 5
H15: Gennemsnitlige kørselsomkostninger [kr. per km.] | U15: Marginale kørselsomkostninger, [kr. per år]
C16: Benzinpris ekskl. afgifter og moms [2015-kr. per liter] | D16: Benzinpris inkl. afgifter og moms [2015-kr. per liter] | E16: Årlig vækst i reel invers brændstof-effektivitet | F16: Brændstof-effektivitet [liter/km] | G16: Trafikarbejde, i alt [mio. km] | H16: Gennemsnitlige omkostninger inkl.. afgifter og moms, i alt | I16: Brændstof, inkl. afgifter og moms [kr. per km.] | J16: Motorolie, inkl. afgifter og moms [kr. per km.] | K16: Afskrivninger, inkl. afgifter og moms [kr. per km.] | L16: Reparation og vedligeholdelse, inkl. afgifter og moms [kr. per km.] | M16: Ejerafgift [kr. per km.] | N16: Dæk, inkl. afgifter og moms [kr. per km.] | O16: Gennemsnitlige omkostninger ekskl.. afgifter og moms, i alt [kr. per km.] | P16: Brændstof, ekskl. afgifter og moms [kr. per km.] | Q16: Motorolie, ekskl. afgifter og moms [kr. per km.] | R16: Afskrivninger, ekskl. afgifter og moms [kr. per km.] | S16: Reparation og vedligeholdelse, ekskl. afgifter og moms [kr. per km.] | T16: Dæk, ekskl. afgifter og moms [kr. per km.] | U16: Marginale omkostninger inkl.. afgifter og moms, i alt | V16: Brændstof, inkl. afgifter og moms [kr. per km.] | W16: Motorolie, inkl. afgifter og moms [kr. per km.] | X16: Afskrivninger, inkl. afgifter og moms [kr. per km.] | Y16: Reparation og vedligeholdelse, inkl. afgifter og moms [kr. per km.] | Z16: Dæk, inkl. afgifter og moms [kr. per km.] | AA16: Marginale omkostninger ekskl.. afgifter og moms, i alt [kr. per km.] | AB16: Brændstof, ekskl. afgifter og moms [kr. per km.] | AC16: Motorolie, ekskl. afgifter og moms [kr. per km.] | AD16: Afskrivninger, ekskl. afgifter og moms [kr. per km.] | AE16: Reparation og vedligeholdelse, ekskl. afgifter og moms [kr. per km.] | AF16: Dæk, ekskl. afgifter og moms [kr. per km.]
B17: 2014 | C17: 5.652761071 | D17: 12.7140344 | E17: 0.010829727 | F17: =F18*(1+E17) -> 0.0821958201 | G17: =G18 -> 22094.23448 | H17: =SUM(I17:N17) -> 3.200398105 | I17: =F17*D17 -> 1.045040485 | J17: =J18 -> 0 | K17: =K18 -> 0.9059482241 | L17: =L18 -> 0.9599402722 | M17: 0.2065078932 | N17: =N18 -> 0.08296123111 | O17: =SUM(P17:T17) -> 1.649108401 | P17: =C17*F17 -> 0.464633332 | Q17: =Q18 -> 0 | R17: =R18 -> 0.3725214066 | S17: =S18 -> 0.7455846775 | T17: =T18 -> 0.06636898489 | U17: =SUM(V17:Z17) -> 1.518958185 | V17: =D17*F17 -> 1.045040485 | W17: =W18 -> 0 | X17: =X18 -> 0.1416333482 | Y17: =Y18 -> 0.2493231213 | Z17: =Z18 -> 0.08296123111 | AA17: =SUM(AB17:AF17) -> 0.7850554829 | AB17: =C17*F17 -> 0.464633332 | AC17: =AC18 -> 0 | AD17: =AD18 -> 0.06040413968 | AE17: =AE18 -> 0.1936490262 | AF17: =AF18 -> 0.06636898489
B18: 2015 | C18: 4.707880435 | D18: 11.59485054 | E18: 0.006976360111 | F18: 0.0813151987 | G18: 22094.23448 | H18: 3.098195197 | I18: 0.9428375759 | J18: 0 | K18: 0.9059482241 | L18: 0.9599402722 | M18: 0.2065078932 | N18: 0.08296123111 | O18: 1.567297302 | P18: 0.382822233 | Q18: 0 | R18: 0.3725214066 | S18: 0.7455846775 | T18: 0.06636898489 | U18: 1.416755276 | V18: 0.9428375759 | W18: 0 | X18: 0.1416333482 | Y18: 0.2493231213 | Z18: 0.08296123111 | AA18: 0.7032443838 | AB18: 0.382822233 | AC18: 0 | AD18: 0.06040413968 | AE18: 0.1936490262 | AF18: 0.06636898489
B19: 2016 | C19: 4.016883482 | D19: 10.6841212 | E19: 0.008966401801 | F19: 0.08075184475 | G19: 22094.23448 | H19: 3.018120117 | I19: 0.8627624968 | J19: 0 | K19: 0.9059482241 | L19: 0.9599402722 | M19: 0.2065078932 | N19: 0.08296123111 | O19: 1.50884582 | P19: 0.3243707514 | Q19: 0 | R19: 0.3725214066 | S19: 0.7455846775 | T19: 0.06636898489 | U19: 1.336680197 | V19: 0.8627624968 | W19: 0 | X19: 0.1416333482 | Y19: 0.2493231213 | Z19: 0.08296123111 | AA19: 0.6447929022 | AB19: 0.3243707514 | AC19: 0 | AD19: 0.06040413968 | AE19: 0.1936490262 | AF19: 0.06636898489
B20: 2017 | C20: 4.312162923 | D20: 10.95859403 | E20: 0.01011172525 | F20: 0.08003422573 | G20: 22094.23448 | H20: 3.032420209 | I20: 0.8770625886 | J20: 0 | K20: 0.9059482241 | L20: 0.9599402722 | M20: 0.2065078932 | N20: 0.08296123111 | O20: 1.52959569 | P20: 0.3451206207 | Q20: 0 | R20: 0.3725214066 | S20: 0.7455846775 | T20: 0.06636898489 | U20: 1.350980289 | V20: 0.8770625886 | W20: 0 | X20: 0.1416333482 | Y20: 0.2493231213 | Z20: 0.08296123111 | AA20: 0.6655427715 | AB20: 0.3451206207 | AC20: 0 | AD20: 0.06040413968 | AE20: 0.1936490262 | AF20: 0.06636898489
B21: 2018 | C21: 4.399773306 | D21: 11.06810701 | E21: 0.01306457642 | F21: =F22*(1+E21) -> 0.07923304297 | G21: =G22 -> 22094.23448 | H21: 3.032317419 | I21: =F21*D21 -> 0.8769597985 | J21: =J22 -> 0 | K21: =K22 -> 0.9059482241 | L21: =L22 -> 0.9599402722 | M21: 0.2065078932 | N21: 0.08296123111 | O21: =SUM(P21:T21) -> 1.533082496 | P21: 0.3486074274 | Q21: =Q22 -> 0 | R21: 0.3725214066 | S21: 0.7455846775 | T21: 0.06636898489 | U21: =SUM(V21:Z21) -> 1.350877499 | V21: 0.8769597985 | W21: =W22 -> 0 | X21: 0.1416333482 | Y21: 0.2493231213 | Z21: 0.08296123111 | AA21: =SUM(AB21:AF21) -> 0.6690295782 | AB21: 0.3486074274 | AC21: =AC22 -> 0 | AD21: 0.06040413968 | AE21: 0.1936490262 | AF21: 0.06636898489
B22: 2019 | C22: 4.441956083 | D22: 11.12083548 | F22: ='Resultat - niveau I'!$E$12 -> 0.07821124616 | G22: ='Resultat - niveau I'!$F$12 -> 22094.23448 | H22: 3.025132022 | I22: =F22*D22 -> 0.8697744016 | J22: ='Resultat - niveau I'!$I$12 -> 0 | K22: ='Resultat - niveau I'!$J$12 -> 0.9059482241 | L22: ='Resultat - niveau I'!$K$12 -> 0.9599402722 | M22: ='Resultat - niveau I'!$L$12 -> 0.2065078932 | N22: ='Resultat - niveau I'!$M$12 -> 0.08296123111 | O22: =SUM(P22:T22) -> 1.53188599 | P22: 0.3474109207 | Q22: ='Resultat - niveau I'!$P$12 -> 0 | R22: ='Resultat - niveau I'!$Q$12 -> 0.3725214066 | S22: ='Resultat - niveau I'!$R$12 -> 0.7455846775 | T22: ='Resultat - niveau I'!$S$12 -> 0.06636898489 | U22: =SUM(V22:Z22) -> 1.343692102 | V22: 0.8697744016 | W22: ='Resultat - niveau I'!$V$12 -> 0 | X22: ='Resultat - niveau I'!$W$12 -> 0.1416333482 | Y22: ='Resultat - niveau I'!$X$12 -> 0.2493231213 | Z22: ='Resultat - niveau I'!$Y$12 -> 0.08296123111 | AA22: =SUM(AB22:AF22) -> 0.6678330715 | AB22: 0.3474109207 | AC22: ='Resultat - niveau I'!$AB$12 -> 0 | AD22: ='Resultat - niveau I'!$AC$12 -> 0.06040413968 | AE22: ='Resultat - niveau I'!$AD$12 -> 0.1936490262 | AF22: ='Resultat - niveau I'!$AE$12 -> 0.06636898489
B23: 2020 | C23: 4.58472856 | D23: 11.29930108 | E23: -0.01428862198 | F23: =F22*(1+E23) -> 0.07709371523 | G23: =G22 -> 22094.23448 | H23: 3.026462721 | I23: =F23*D23 -> 0.8711050998 | J23: =J22 -> 0 | K23: =K22 -> 0.9059482241 | L23: =L22 -> 0.9599402722 | M23: =M22 -> 0.2065078932 | N23: =N22 -> 0.08296123111 | O23: =SUM(P23:T23) -> 1.537928827 | P23: 0.353453758 | Q23: =Q22 -> 0 | R23: =R22 -> 0.3725214066 | S23: =S22 -> 0.7455846775 | T23: =T22 -> 0.06636898489 | U23: =SUM(V23:Z23) -> 1.3450228 | V23: 0.8711050998 | W23: =W22 -> 0 | X23: =X22 -> 0.1416333482 | Y23: =Y22 -> 0.2493231213 | Z23: =Z22 -> 0.08296123111 | AA23: =SUM(AB23:AF23) -> 0.6738759088 | AB23: 0.353453758 | AC23: =AC22 -> 0 | AD23: =AD22 -> 0.06040413968 | AE23: =AE22 -> 0.1936490262 | AF23: =AF22 -> 0.06636898489
B24: 2021 | C24: 4.763194156 | D24: 11.52238308 | E24: -0.01703961908 | F24: =F23*(1+E24) -> 0.07578006769 | G24: =G23 -> 22094.23448 | H24: 3.02852459 | I24: 0.8731669694 | J24: =J23 -> 0 | K24: 0.9059482241 | L24: 0.9599402722 | M24: =M23 -> 0.2065078932 | N24: 0.08296123111 | O24: 1.545430245 | P24: 0.3609551756 | Q24: =Q23 -> 0 | R24: 0.3725214066 | S24: 0.7455846775 | T24: 0.06636898489 | U24: 1.34708467 | V24: 0.8731669694 | W24: =W23 -> 0 | X24: 0.1416333482 | Y24: 0.2493231213 | Z24: 0.08296123111 | AA24: 0.6813773264 | AB24: 0.3609551756 | AC24: =AC23 -> 0 | AD24: 0.06040413968 | AE24: 0.1936490262 | AF24: 0.06636898489
B25: 2022 | C25: 4.880008001 | D25: 11.66840038 | E25: -0.01838866309 | F25: 0.07438657356 | G25: 22094.23448 | H25: 3.023329944 | I25: 0.8679723233 | J25: 0 | K25: 0.9059482241 | L25: 0.9599402722 | M25: =M24 -> 0.2065078932 | N25: 0.08296123111 | O25: 1.547482143 | P25: 0.3630070741 | Q25: 0 | R25: 0.3725214066 | S25: 0.7455846775 | T25: 0.06636898489 | U25: 1.341890024 | V25: 0.8679723233 | W25: 0 | X25: 0.1416333482 | Y25: 0.2493231213 | Z25: 0.08296123111 | AA25: 0.6834292249 | AB25: 0.3630070741 | AC25: 0 | AD25: 0.06040413968 | AE25: 0.1936490262 | AF25: 0.06636898489
B26: 2023 | C26: 4.993577016 | D26: 11.81036165 | E26: -0.0150811707 | F26: 0.07326473694 | G26: 22094.23448 | H26: 3.02064066 | I26: 0.8652830396 | J26: 0 | K26: 0.9059482241 | L26: 0.9599402722 | M26: =M25 -> 0.2065078932 | N26: 0.08296123111 | O26: 1.550328175 | P26: 0.3658531065 | Q26: 0 | R26: 0.3725214066 | S26: 0.7455846775 | T26: 0.06636898489 | U26: 1.33920074 | V26: 0.8652830396 | W26: 0 | X26: 0.1416333482 | Y26: 0.2493231213 | Z26: 0.08296123111 | AA26: 0.6862752573 | AB26: 0.3658531065 | AC26: 0 | AD26: 0.06040413968 | AE26: 0.1936490262 | AF26: 0.06636898489
B27: 2024 | C27: 5.100656374 | D27: 11.94421085 | E27: -0.01248265855 | F27: 0.07235019825 | G27: 22094.23448 | H27: 3.019523643 | I27: 0.8641660228 | J27: 0 | K27: 0.9059482241 | L27: 0.9599402722 | M27: =M26 -> 0.2065078932 | N27: 0.08296123111 | O27: 1.553508569 | P27: 0.3690334999 | Q27: 0 | R27: 0.3725214066 | S27: 0.7455846775 | T27: 0.06636898489 | U27: 1.338083723 | V27: 0.8641660228 | W27: 0 | X27: 0.1416333482 | Y27: 0.2493231213 | Z27: 0.08296123111 | AA27: 0.6894556507 | AB27: 0.3690334999 | AC27: 0 | AD27: 0.06040413968 | AE27: 0.1936490262 | AF27: 0.06636898489
B28: 2025 | C28: 5.204490902 | D28: 12.07400401 | E28: -0.007940964525 | F28: 0.07177566789 | G28: 22094.23448 | H28: 3.021977322 | I28: 0.8666197018 | J28: 0 | K28: 0.9059482241 | L28: 0.9599402722 | M28: =M27 -> 0.2065078932 | N28: 0.08296123111 | O28: 1.55803088 | P28: 0.3735558106 | Q28: 0 | R28: 0.3725214066 | S28: 0.7455846775 | T28: 0.06636898489 | U28: 1.340537402 | V28: 0.8666197018 | W28: 0 | X28: 0.1416333482 | Y28: 0.2493231213 | Z28: 0.08296123111 | AA28: 0.6939779614 | AB28: 0.3735558106 | AC28: 0 | AD28: 0.06040413968 | AE28: 0.1936490262 | AF28: 0.06636898489
B29: 2026 | C29: 5.301835773 | D29: 12.1956851 | E29: -0.007629134112 | F29: 0.0712280817 | G29: 22094.23448 | H29: 3.024032875 | I29: 0.8686752544 | J29: 0 | K29: 0.9059482241 | L29: 0.9599402722 | M29: =M28 -> 0.2065078932 | N29: 0.08296123111 | O29: 1.562114661 | P29: 0.3776395916 | Q29: 0 | R29: 0.3725214066 | S29: 0.7455846775 | T29: 0.06636898489 | U29: 1.342592955 | V29: 0.8686752544 | W29: 0 | X29: 0.1416333482 | Y29: 0.2493231213 | Z29: 0.08296123111 | AA29: 0.6980617424 | AB29: 0.3776395916 | AC29: 0 | AD29: 0.06040413968 | AE29: 0.1936490262 | AF29: 0.06636898489
B30: 2027 | C30: 5.392690985 | D30: 12.30925411 | E30: -0.004206950886 | F30: 0.07092842865 | G30: 22094.23448 | H30: 3.028433673 | I30: 0.8730760521 | J30: 0 | K30: 0.9059482241 | L30: 0.9599402722 | M30: =M29 -> 0.2065078932 | N30: 0.08296123111 | O30: 1.566970167 | P30: 0.3824950978 | Q30: 0 | R30: 0.3725214066 | S30: 0.7455846775 | T30: 0.06636898489 | U30: 1.346993753 | V30: 0.8730760521 | W30: 0 | X30: 0.1416333482 | Y30: 0.2493231213 | Z30: 0.08296123111 | AA30: 0.7029172486 | AB30: 0.3824950978 | AC30: 0 | AD30: 0.06040413968 | AE30: 0.1936490262 | AF30: 0.06636898489
B31: 2028 | C31: 5.480301369 | D31: 12.41876709 | E31: -0.003677554979 | F31: 0.07066758546 | G31: 22094.23448 | H31: 3.032961905 | I31: 0.8776042847 | J31: 0 | K31: 0.9059482241 | L31: 0.9599402722 | M31: =M30 -> 0.2065078932 | N31: 0.08296123111 | O31: 1.571754734 | P31: 0.3872796653 | Q31: 0 | R31: 0.3725214066 | S31: 0.7455846775 | T31: 0.06636898489 | U31: 1.351521985 | V31: 0.8776042847 | W31: 0 | X31: 0.1416333482 | Y31: 0.2493231213 | Z31: 0.08296123111 | AA31: 0.7077018161 | AB31: 0.3872796653 | AC31: 0 | AD31: 0.06040413968 | AE31: 0.1936490262 | AF31: 0.06636898489
B32: 2029 | C32: 5.564666923 | D32: 12.52422403 | E32: -0.003984631125 | F32: 0.0703860012 | G32: 22094.23448 | H32: 3.036887669 | I32: 0.8815300479 | J32: 0 | K32: 0.9059482241 | L32: 0.9599402722 | M32: =M31 -> 0.2065078932 | N32: 0.08296123111 | O32: 1.576149722 | P32: 0.3916746527 | Q32: 0 | R32: 0.3725214066 | S32: 0.7455846775 | T32: 0.06636898489 | U32: 1.355447748 | V32: 0.8815300479 | W32: 0 | X32: 0.1416333482 | Y32: 0.2493231213 | Z32: 0.08296123111 | AA32: 0.7120968035 | AB32: 0.3916746527 | AC32: 0 | AD32: 0.06040413968 | AE32: 0.1936490262 | AF32: 0.06636898489
B33: 2030 | C33: 5.64254282 | D33: 12.6215689 | E33: -0.004209257978 | F33: 0.07008972836 | G33: 22094.23448 | H33: 3.039999957 | I33: 0.884642336 | J33: 0 | K33: 0.9059482241 | L33: 0.9599402722 | M33: =M32 -> 0.2065078932 | N33: 0.08296123111 | O33: 1.579959362 | P33: 0.3954842935 | Q33: 0 | R33: 0.3725214066 | S33: 0.7455846775 | T33: 0.06636898489 | U33: 1.358560037 | V33: 0.884642336 | W33: 0 | X33: 0.1416333482 | Y33: 0.2493231213 | Z33: 0.08296123111 | AA33: 0.7159064443 | AB33: 0.3954842935 | AC33: 0 | AD33: 0.06040413968 | AE33: 0.1936490262 | AF33: 0.06636898489
B34: 2031 | C34: 5.710684229 | D34: 12.70674567 | E34: 0 | F34: 0.07008972836 | G34: 22094.23448 | H34: 3.045969973 | I34: 0.8906123521 | J34: 0 | K34: 0.9059482241 | L34: 0.9599402722 | M34: =M33 -> 0.2065078932 | N34: 0.08296123111 | O34: 1.584735375 | P34: 0.4002603064 | Q34: 0 | R34: 0.3725214066 | S34: 0.7455846775 | T34: 0.06636898489 | U34: 1.364530053 | V34: 0.8906123521 | W34: 0 | X34: 0.1416333482 | Y34: 0.2493231213 | Z34: 0.08296123111 | AA34: 0.7206824572 | AB34: 0.4002603064 | AC34: 0 | AD34: 0.06040413968 | AE34: 0.1936490262 | AF34: 0.06636898489
B35: 2032 | C35: 5.769091151 | D35: 12.77975432 | E35: 0 | F35: 0.07008972836 | G35: 22094.23448 | H35: 3.051087129 | I35: 0.8957295088 | J35: 0 | K35: 0.9059482241 | L35: 0.9599402722 | M35: =M34 -> 0.2065078932 | N35: 0.08296123111 | O35: 1.588829101 | P35: 0.4043540317 | Q35: 0 | R35: 0.3725214066 | S35: 0.7455846775 | T35: 0.06636898489 | U35: 1.369647209 | V35: 0.8957295088 | W35: 0 | X35: 0.1416333482 | Y35: 0.2493231213 | Z35: 0.08296123111 | AA35: 0.7247761825 | AB35: 0.4043540317 | AC35: 0 | AD35: 0.06040413968 | AE35: 0.1936490262 | AF35: 0.06636898489
B36: 2033 | C36: 5.821008416 | D36: 12.8446509 | E36: 0 | F36: 0.07008972836 | G36: 22094.23448 | H36: 3.055635713 | I36: 0.9002780925 | J36: 0 | K36: 0.9059482241 | L36: 0.9599402722 | M36: =M35 -> 0.2065078932 | N36: 0.08296123111 | O36: 1.592467968 | P36: 0.4079928986 | Q36: 0 | R36: 0.3725214066 | S36: 0.7455846775 | T36: 0.06636898489 | U36: 1.374195793 | V36: 0.9002780925 | W36: 0 | X36: 0.1416333482 | Y36: 0.2493231213 | Z36: 0.08296123111 | AA36: 0.7284150494 | AB36: 0.4079928986 | AC36: 0 | AD36: 0.06040413968 | AE36: 0.1936490262 | AF36: 0.06636898489
B37: 2034 | C37: 5.869680851 | D37: 12.90549144 | E37: 0 | F37: 0.07008972836 | G37: 22094.23448 | H37: 3.05990001 | I37: 0.9045423897 | J37: 0 | K37: 0.9059482241 | L37: 0.9599402722 | M37: =M36 -> 0.2065078932 | N37: 0.08296123111 | O37: 1.595879405 | P37: 0.4114043364 | Q37: 0 | R37: 0.3725214066 | S37: 0.7455846775 | T37: 0.06636898489 | U37: 1.37846009 | V37: 0.9045423897 | W37: 0 | X37: 0.1416333482 | Y37: 0.2493231213 | Z37: 0.08296123111 | AA37: 0.7318264872 | AB37: 0.4114043364 | AC37: 0 | AD37: 0.06040413968 | AE37: 0.1936490262 | AF37: 0.06636898489
B38: 2035 | C38: 5.918353286 | D38: 12.96633199 | E38: 0 | F38: 0.07008972836 | G38: 22094.23448 | H38: 3.064164308 | I38: 0.9088066869 | J38: 0 | K38: 0.9059482241 | L38: 0.9599402722 | M38: =M37 -> 0.2065078932 | N38: 0.08296123111 | O38: 1.599290843 | P38: 0.4148157742 | Q38: 0 | R38: 0.3725214066 | S38: 0.7455846775 | T38: 0.06636898489 | U38: 1.382724387 | V38: 0.9088066869 | W38: 0 | X38: 0.1416333482 | Y38: 0.2493231213 | Z38: 0.08296123111 | AA38: 0.735237925 | AB38: 0.4148157742 | AC38: 0 | AD38: 0.06040413968 | AE38: 0.1936490262 | AF38: 0.06636898489
B39: 2036 | C39: 5.918353286 | D39: 12.96633199 | E39: 0 | F39: 0.07008972836 | G39: 22094.23448 | H39: 3.064164308 | I39: 0.9088066869 | J39: 0 | K39: 0.9059482241 | L39: 0.9599402722 | M39: =M38 -> 0.2065078932 | N39: 0.08296123111 | O39: 1.599290843 | P39: 0.4148157742 | Q39: 0 | R39: 0.3725214066 | S39: 0.7455846775 | T39: 0.06636898489 | U39: 1.382724387 | V39: 0.9088066869 | W39: 0 | X39: 0.1416333482 | Y39: 0.2493231213 | Z39: 0.08296123111 | AA39: 0.735237925 | AB39: 0.4148157742 | AC39: 0 | AD39: 0.06040413968 | AE39: 0.1936490262 | AF39: 0.06636898489
B40: 2037 | C40: 5.918353286 | D40: 12.96633199 | E40: 0 | F40: 0.07008972836 | G40: 22094.23448 | H40: 3.064164308 | I40: 0.9088066869 | J40: 0 | K40: 0.9059482241 | L40: 0.9599402722 | M40: =M39 -> 0.2065078932 | N40: 0.08296123111 | O40: 1.599290843 | P40: 0.4148157742 | Q40: 0 | R40: 0.3725214066 | S40: 0.7455846775 | T40: 0.06636898489 | U40: 1.382724387 | V40: 0.9088066869 | W40: 0 | X40: 0.1416333482 | Y40: 0.2493231213 | Z40: 0.08296123111 | AA40: 0.735237925 | AB40: 0.4148157742 | AC40: 0 | AD40: 0.06040413968 | AE40: 0.1936490262 | AF40: 0.06636898489
B41: 2038 | C41: 5.918353286 | D41: 12.96633199 | E41: 0 | F41: 0.07008972836 | G41: 22094.23448 | H41: 3.064164308 | I41: 0.9088066869 | J41: 0 | K41: 0.9059482241 | L41: 0.9599402722 | M41: =M40 -> 0.2065078932 | N41: 0.08296123111 | O41: 1.599290843 | P41: 0.4148157742 | Q41: 0 | R41: 0.3725214066 | S41: 0.7455846775 | T41: 0.06636898489 | U41: 1.382724387 | V41: 0.9088066869 | W41: 0 | X41: 0.1416333482 | Y41: 0.2493231213 | Z41: 0.08296123111 | AA41: 0.735237925 | AB41: 0.4148157742 | AC41: 0 | AD41: 0.06040413968 | AE41: 0.1936490262 | AF41: 0.06636898489
B42: 2039 | C42: 5.918353286 | D42: 12.96633199 | E42: 0 | F42: 0.07008972836 | G42: 22094.23448 | H42: 3.064164308 | I42: 0.9088066869 | J42: 0 | K42: 0.9059482241 | L42: 0.9599402722 | M42: =M41 -> 0.2065078932 | N42: 0.08296123111 | O42: 1.599290843 | P42: 0.4148157742 | Q42: 0 | R42: 0.3725214066 | S42: 0.7455846775 | T42: 0.06636898489 | U42: 1.382724387 | V42: 0.9088066869 | W42: 0 | X42: 0.1416333482 | Y42: 0.2493231213 | Z42: 0.08296123111 | AA42: 0.735237925 | AB42: 0.4148157742 | AC42: 0 | AD42: 0.06040413968 | AE42: 0.1936490262 | AF42: 0.06636898489
B43: 2040 | C43: 5.918353286 | D43: 12.96633199 | E43: 0 | F43: 0.07008972836 | G43: 22094.23448 | H43: 3.064164308 | I43: 0.9088066869 | J43: 0 | K43: 0.9059482241 | L43: 0.9599402722 | M43: =M42 -> 0.2065078932 | N43: 0.08296123111 | O43: 1.599290843 | P43: 0.4148157742 | Q43: 0 | R43: 0.3725214066 | S43: 0.7455846775 | T43: 0.06636898489 | U43: 1.382724387 | V43: 0.9088066869 | W43: 0 | X43: 0.1416333482 | Y43: 0.2493231213 | Z43: 0.08296123111 | AA43: 0.735237925 | AB43: 0.4148157742 | AC43: 0 | AD43: 0.06040413968 | AE43: 0.1936490262 | AF43: 0.06636898489
B44: 2041 | C44: 5.918353286 | D44: 12.96633199 | E44: 0 | F44: 0.07008972836 | G44: 22094.23448 | H44: 3.064164308 | I44: 0.9088066869 | J44: 0 | K44: 0.9059482241 | L44: 0.9599402722 | M44: =M43 -> 0.2065078932 | N44: 0.08296123111 | O44: 1.599290843 | P44: 0.4148157742 | Q44: 0 | R44: 0.3725214066 | S44: 0.7455846775 | T44: 0.06636898489 | U44: 1.382724387 | V44: 0.9088066869 | W44: 0 | X44: 0.1416333482 | Y44: 0.2493231213 | Z44: 0.08296123111 | AA44: 0.735237925 | AB44: 0.4148157742 | AC44: 0 | AD44: 0.06040413968 | AE44: 0.1936490262 | AF44: 0.06636898489
B45: 2042 | C45: 5.918353286 | D45: 12.96633199 | E45: 0 | F45: 0.07008972836 | G45: 22094.23448 | H45: 3.064164308 | I45: 0.9088066869 | J45: 0 | K45: 0.9059482241 | L45: 0.9599402722 | M45: =M44 -> 0.2065078932 | N45: 0.08296123111 | O45: 1.599290843 | P45: 0.4148157742 | Q45: 0 | R45: 0.3725214066 | S45: 0.7455846775 | T45: 0.06636898489 | U45: 1.382724387 | V45: 0.9088066869 | W45: 0 | X45: 0.1416333482 | Y45: 0.2493231213 | Z45: 0.08296123111 | AA45: 0.735237925 | AB45: 0.4148157742 | AC45: 0 | AD45: 0.06040413968 | AE45: 0.1936490262 | AF45: 0.06636898489
B46: 2043 | C46: 5.918353286 | D46: 12.96633199 | E46: 0 | F46: 0.07008972836 | G46: 22094.23448 | H46: 3.064164308 | I46: 0.9088066869 | J46: 0 | K46: 0.9059482241 | L46: 0.9599402722 | M46: =M45 -> 0.2065078932 | N46: 0.08296123111 | O46: 1.599290843 | P46: 0.4148157742 | Q46: 0 | R46: 0.3725214066 | S46: 0.7455846775 | T46: 0.06636898489 | U46: 1.382724387 | V46: 0.9088066869 | W46: 0 | X46: 0.1416333482 | Y46: 0.2493231213 | Z46: 0.08296123111 | AA46: 0.735237925 | AB46: 0.4148157742 | AC46: 0 | AD46: 0.06040413968 | AE46: 0.1936490262 | AF46: 0.06636898489
B47: 2044 | C47: 5.918353286 | D47: 12.96633199 | E47: 0 | F47: 0.07008972836 | G47: 22094.23448 | H47: 3.064164308 | I47: 0.9088066869 | J47: 0 | K47: 0.9059482241 | L47: 0.9599402722 | M47: =M46 -> 0.2065078932 | N47: 0.08296123111 | O47: 1.599290843 | P47: 0.4148157742 | Q47: 0 | R47: 0.3725214066 | S47: 0.7455846775 | T47: 0.06636898489 | U47: 1.382724387 | V47: 0.9088066869 | W47: 0 | X47: 0.1416333482 | Y47: 0.2493231213 | Z47: 0.08296123111 | AA47: 0.735237925 | AB47: 0.4148157742 | AC47: 0 | AD47: 0.06040413968 | AE47: 0.1936490262 | AF47: 0.06636898489
C48: Kilde: 2010-2015: Oliebranchens fællesråd | D48: Kilde: 2010-2015: Oliebranchens fællesråd | E48: Kilde til 2030: ENS, 2015
C50: Personbiler | D50: diesel
H52: Gennemsnitlige kørselsomkostninger [kr. per km.] | U52: Marginale kørselsomkostninger, [kr. per år]
C53: Dieselpris ekskl. afgifter og moms [2015-kr. per liter] | D53: Dieselpris inkl. afgifter og moms [2015-kr. per liter] | E53: Årlig vækst i invers brændstof-effektivitet | F53: Brændstof-effektivitet [liter/km] | G53: Trafikarbejde, i alt [mio. km] | H53: Gennemsnitlige omkostninger inkl.. afgifter og moms, i alt | I53: Brændstof, inkl. afgifter og moms [kr. per km.] | J53: Motorolie, inkl. afgifter og moms [kr. per km.] | K53: Afskrivninger, inkl. afgifter og moms [kr. per km.] | L53: Reparation og vedligeholdelse, inkl. afgifter og moms [kr. per km.] | M53: Ejerafgift [kr. per km.] | N53: Dæk, inkl. afgifter og moms [kr. per km.] | O53: Gennemsnitlige omkostninger ekskl.. afgifter og moms, i alt [kr. per km.] | P53: Brændstof, ekskl. afgifter og moms [kr. per km.] | Q53: Motorolie, ekskl. afgifter og moms [kr. per km.] | R53: Afskrivninger, ekskl. afgifter og moms [kr. per km.] | S53: Reparation og vedligeholdelse, ekskl. afgifter og moms [kr. per km.] | T53: Dæk, ekskl. afgifter og moms [kr. per km.] | U53: Marginale omkostninger inkl.. afgifter og moms, i alt | V53: Brændstof, inkl. afgifter og moms [kr. per km.] | W53: Motorolie, inkl. afgifter og moms [kr. per km.] | X53: Afskrivninger, inkl. afgifter og moms [kr. per km.] | Y53: Reparation og vedligeholdelse, inkl. afgifter og moms [kr. per km.] | Z53: Dæk, inkl. afgifter og moms [kr. per km.] | AA53: Marginale omkostninger ekskl.. afgifter og moms, i alt [kr. per km.] | AB53: Brændstof, ekskl. afgifter og moms [kr. per km.] | AC53: Motorolie, ekskl. afgifter og moms [kr. per km.] | AD53: Afskrivninger, ekskl. afgifter og moms [kr. per km.] | AE53: Reparation og vedligeholdelse, ekskl. afgifter og moms [kr. per km.] | AF53: Dæk, ekskl. afgifter og moms [kr. per km.]
B54: 2014 | C54: 5.973504783 | D54: 11.33169004 | E54: 0.010829727 | F54: =F55*(1+E54) -> 0.0628690255 | G54: =G55 -> 17291.69937 | H54: =SUM(I54:N54) -> 3.117592315 | I54: =F54*D54 -> 0.7124123104 | J54: =J55 -> 0 | K54: =K55 -> 0.8192644223 | L54: =L55 -> 1.304019832 | M54: 0.1846909111 | N54: =N55 -> 0.09720483965 | O54: =SUM(P54:T54) -> 1.796667207 | P54: =C54*F54 -> 0.3755484245 | Q54: =Q55 -> 0 | R54: =R55 -> 0.3305239731 | S54: =S55 -> 1.012830937 | T54: =T55 -> 0.07776387172 | U54: =SUM(V54:Z54) -> 1.840734721 | V54: =D54*F54 -> 0.7124123104 | W54: =W55 -> 0 | X54: =X55 -> 0.3278486011 | Y54: =Y55 -> 0.7032689703 | Z54: =Z55 -> 0.09720483965 | AA54: =SUM(AB54:AF54) -> 1.138209907 | AB54: =C54*F54 -> 0.3755484245 | AC54: =AC55 -> 0 | AD54: =AD55 -> 0.1386692841 | AE54: =AE55 -> 0.5462283264 | AF54: =AF55 -> 0.07776387172
B55: 2015 | C55: 4.829111111 | D55: 9.945138889 | E55: 0.006976360111 | F55: 0.06219546559 | G55: 17291.69937 | H55: 3.023722549 | I55: 0.6185425435 | J55: 0 | K55: 0.8192644223 | L55: 1.304019832 | M55: 0.1846909111 | N55: 0.09720483965 | O55: 1.721467596 | P55: 0.3003488139 | Q55: 0 | R55: 0.3305239731 | S55: 1.012830937 | T55: 0.07776387172 | U55: 1.746864955 | V55: 0.6185425435 | W55: 0 | X55: 0.3278486011 | Y55: 0.7032689703 | Z55: 0.09720483965 | AA55: 1.063010296 | AB55: 0.3003488139 | AC55: 0 | AD55: 0.1386692841 | AE55: 0.5462283264 | AF55: 0.07776387172
B56: 2016 | C56: 4.46568408 | D56: 9.449230093 | E56: 0.008966401801 | F56: 0.06176457368 | G56: 17291.69937 | H56: 2.988807673 | I56: 0.5836276683 | J56: 0 | K56: 0.8192644223 | L56: 1.304019832 | M56: 0.1846909111 | N56: 0.09720483965 | O56: 1.696939856 | P56: 0.2758210734 | Q56: 0 | R56: 0.3305239731 | S56: 1.012830937 | T56: 0.07776387172 | U56: 1.711950079 | V56: 0.5836276683 | W56: 0 | X56: 0.3278486011 | Y56: 0.7032689703 | Z56: 0.09720483965 | AA56: 1.038482556 | AB56: 0.2758210734 | AC56: 0 | AD56: 0.1386692841 | AE56: 0.5462283264 | AF56: 0.07776387172
B57: 2017 | C57: 4.788091477 | D57: 9.779761576 | E57: 0.01011172525 | F57: 0.06121568921 | G57: 17291.69937 | H57: 3.00385485 | I57: 0.5986748452 | J57: 0 | K57: 0.8192644223 | L57: 1.304019832 | M57: 0.1846909111 | N57: 0.09720483965 | O57: 1.714225102 | P57: 0.2931063198 | Q57: 0 | R57: 0.3305239731 | S57: 1.012830937 | T57: 0.07776387172 | U57: 1.726997256 | V57: 0.5986748452 | W57: 0 | X57: 0.3278486011 | Y57: 0.7032689703 | Z57: 0.09720483965 | AA57: 1.055767802 | AB57: 0.2931063198 | AC57: 0 | AD57: 0.1386692841 | AE57: 0.5462283264 | AF57: 0.07776387172
B58: 2018 | C58: 4.883750814 | D58: 9.899335748 | E58: 0.01306457642 | F58: =F59*(1+E58) -> 0.06060288945 | G58: =G59 -> 17291.69937 | H58: 3.005108355 | I58: 0.5999283499 | J58: =J59 -> 0 | K58: =K59 -> 0.8192644223 | L58: 1.304019832 | M58: 0.1846909111 | N58: 0.09720483965 | O58: 1.717088193 | P58: 0.2959694107 | Q58: 0 | R58: 0.3305239731 | S58: 1.012830937 | T58: 0.07776387172 | U58: 1.728250761 | V58: 0.5999283499 | W58: 0 | X58: 0.3278486011 | Y58: 0.7032689703 | Z58: 0.09720483965 | AA58: 1.058630893 | AB58: 0.2959694107 | AC58: 0 | AD58: 0.1386692841 | AE58: 0.5462283264 | AF58: 0.07776387172
B59: 2019 | C59: 4.929809014 | D59: 9.956908497 | F59: ='Resultat - niveau I'!$E$13 -> 0.05982134886 | G59: ='Resultat - niveau I'!$F$13 -> 17291.69937 | H59: 3.000815702 | I59: =F59*D59 -> 0.5956356968 | J59: ='Resultat - niveau I'!$I$13 -> 0 | K59: ='Resultat - niveau I'!$J$13 -> 0.8192644223 | L59: ='Resultat - niveau I'!$K$13 -> 1.304019832 | M59: ='Resultat - niveau I'!$L$13 -> 0.1846909111 | N59: ='Resultat - niveau I'!$M$13 -> 0.09720483965 | O59: =SUM(P59:T59) -> 1.716026607 | P59: 0.2949078248 | Q59: ='Resultat - niveau I'!$P$13 -> 0 | R59: ='Resultat - niveau I'!$Q$13 -> 0.3305239731 | S59: ='Resultat - niveau I'!$R$13 -> 1.012830937 | T59: ='Resultat - niveau I'!$S$13 -> 0.07776387172 | U59: =SUM(V59:Z59) -> 1.723958108 | V59: 0.5956356968 | W59: ='Resultat - niveau I'!$V$13 -> 0 | X59: ='Resultat - niveau I'!$W$13 -> 0.3278486011 | Y59: ='Resultat - niveau I'!$X$13 -> 0.7032689703 | Z59: ='Resultat - niveau I'!$Y$13 -> 0.09720483965 | AA59: =SUM(AB59:AF59) -> 1.057569307 | AB59: 0.2949078248 | AC59: ='Resultat - niveau I'!$AB$13 -> 0 | AD59: ='Resultat - niveau I'!$AC$13 -> 0.1386692841 | AE59: ='Resultat - niveau I'!$AD$13 -> 0.5462283264 | AF59: ='Resultat - niveau I'!$AE$13 -> 0.07776387172
B60: 2020 | C60: 5.085698304 | D60: 10.15177011 | E60: -0.01428862198 | F60: =F59*(1+E60) -> 0.05896658422 | G60: =G59 -> 17291.69937 | H60: 3.003795212 | I60: =F60*D60 -> 0.5986152072 | J60: =J59 -> 0 | K60: =K59 -> 0.8192644223 | L60: =L59 -> 1.304019832 | M60: =M59 -> 0.1846909111 | N60: =N59 -> 0.09720483965 | O60: =SUM(P60:T60) -> 1.72100504 | P60: 0.2998862574 | Q60: =Q59 -> 0 | R60: =R59 -> 0.3305239731 | S60: =S59 -> 1.012830937 | T60: =T59 -> 0.07776387172 | U60: =SUM(V60:Z60) -> 1.726937618 | V60: 0.5986152072 | W60: =W59 -> 0 | X60: =X59 -> 0.3278486011 | Y60: =Y59 -> 0.7032689703 | Z60: =Z59 -> 0.09720483965 | AA60: =SUM(AB60:AF60) -> 1.06254774 | AB60: 0.2998862574 | AC60: =AC59 -> 0 | AD60: =AD59 -> 0.1386692841 | AE60: =AE59 -> 0.5462283264 | AF60: =AF59 -> 0.07776387172
B61: 2021 | C61: 5.280559917 | D61: 10.39534713 | E61: -0.01703961908 | F61: =F60*(1+E61) -> 0.05796181609 | G61: =G60 -> 17291.69937 | H61: 3.007713203 | I61: 0.6025331984 | J61: =J60 -> 0 | K61: 0.8192644223 | L61: 1.304019832 | M61: =M60 -> 0.1846909111 | N61: 0.09720483965 | O61: 1.727189625 | P61: 0.3060708428 | Q61: =Q60 -> 0 | R61: 0.3305239731 | S61: 1.012830937 | T61: 0.07776387172 | U61: 1.730855609 | V61: 0.6025331984 | W61: =W60 -> 0 | X61: 0.3278486011 | Y61: 0.7032689703 | Z61: 0.09720483965 | AA61: 1.068732325 | AB61: 0.3060708428 | AC61: =AC60 -> 0 | AD61: 0.1386692841 | AE61: 0.5462283264 | AF61: 0.07776387172
B62: 2022 | C62: 5.408105701 | D62: 10.55477936 | E62: -0.01838866309 | F62: 0.05689597578 | G62: 17291.69937 | H62: 3.005704476 | I62: 0.6005244706 | J62: 0 | K62: 0.8192644223 | L62: 1.304019832 | M62: =M61 -> 0.1846909111 | N62: 0.09720483965 | O62: 1.728818233 | P62: 0.307699451 | Q62: 0 | R62: 0.3305239731 | S62: 1.012830937 | T62: 0.07776387172 | U62: 1.728846882 | V62: 0.6005244706 | W62: 0 | X62: 0.3278486011 | Y62: 0.7032689703 | Z62: 0.09720483965 | AA62: 1.070360933 | AB62: 0.307699451 | AC62: 0 | AD62: 0.1386692841 | AE62: 0.5462283264 | AF62: 0.07776387172
B63: 2023 | C63: 5.532108545 | D63: 10.70978291 | E63: -0.0150811707 | F63: 0.05603791786 | G63: 17291.69937 | H63: 3.00533394 | I63: 0.6001539351 | J63: 0 | K63: 0.8192644223 | L63: 1.304019832 | M63: =M62 -> 0.1846909111 | N63: 0.09720483965 | O63: 1.731126627 | P63: 0.3100078442 | Q63: 0 | R63: 0.3305239731 | S63: 1.012830937 | T63: 0.07776387172 | U63: 1.728476346 | V63: 0.6001539351 | W63: 0 | X63: 0.3278486011 | Y63: 0.7032689703 | Z63: 0.09720483965 | AA63: 1.072669327 | AB63: 0.3100078442 | AC63: 0 | AD63: 0.1386692841 | AE63: 0.5462283264 | AF63: 0.07776387172
B64: 2024 | C64: 5.649025513 | D64: 10.85592912 | E64: -0.01248265855 | F64: 0.05533841566 | G64: 17291.69937 | H64: 3.005929923 | I64: =F64*D64 -> 0.6007499182 | J64: 0 | K64: 0.8192644223 | L64: 1.304019832 | M64: =M63 -> 0.1846909111 | N64: 0.09720483965 | O64: 1.733726904 | P64: 0.3126081219 | Q64: 0 | R64: 0.3305239731 | S64: 1.012830937 | T64: 0.07776387172 | U64: 1.729072329 | V64: 0.6007499182 | W64: 0 | X64: 0.3278486011 | Y64: 0.7032689703 | Z64: 0.09720483965 | AA64: 1.075269604 | AB64: 0.3126081219 | AC64: 0 | AD64: 0.1386692841 | AE64: 0.5462283264 | AF64: 0.07776387172
B65: 2025 | C65: 5.758856604 | D65: 10.99321799 | E65: -0.007940964525 | F65: 0.05489897527 | G65: 17291.69937 | H65: 3.008696407 | I65: 0.6035164023 | J65: 0 | K65: 0.8192644223 | L65: 1.304019832 | M65: =M64 -> 0.1846909111 | N65: 0.09720483965 | O65: 1.737274109 | P65: 0.3161553263 | Q65: 0 | R65: 0.3305239731 | S65: 1.012830937 | T65: 0.07776387172 | U65: 1.731838813 | V65: 0.6035164023 | W65: 0 | X65: 0.3278486011 | Y65: 0.7032689703 | Z65: 0.09720483965 | AA65: 1.078816809 | AB65: 0.3161553263 | AC65: 0 | AD65: 0.1386692841 | AE65: 0.5462283264 | AF65: 0.07776387172
B66: 2026 | C66: 5.865144757 | D66: 11.12607818 | E66: -0.007629134112 | F66: 0.05448014362 | G66: 17291.69937 | H66: 3.011330342 | I66: 0.606150337 | J66: 0 | K66: 0.8192644223 | L66: 1.304019832 | M66: =M65 -> 0.1846909111 | N66: 0.09720483965 | O66: 1.740652711 | P66: 0.3195339287 | Q66: 0 | R66: 0.3305239731 | S66: 1.012830937 | T66: 0.07776387172 | U66: 1.734472748 | V66: 0.606150337 | W66: 0 | X66: 0.3278486011 | Y66: 0.7032689703 | Z66: 0.09720483965 | AA66: 1.082195411 | AB66: 0.3195339287 | AC66: 0 | AD66: 0.1386692841 | AE66: 0.5462283264 | AF66: 0.07776387172
B67: 2027 | C67: 5.967889971 | D67: 11.25450969 | E67: -0.004206950886 | F67: 0.05425094833 | G67: 17291.69937 | H67: 3.015747829 | I67: 0.610567824 | J67: 0 | K67: 0.8192644223 | L67: 1.304019832 | M67: =M66 -> 0.1846909111 | N67: 0.09720483965 | O67: 1.744882473 | P67: 0.3237636905 | Q67: 0 | R67: 0.3305239731 | S67: 1.012830937 | T67: 0.07776387172 | U67: 1.738890235 | V67: 0.610567824 | W67: 0 | X67: 0.3278486011 | Y67: 0.7032689703 | Z67: 0.09720483965 | AA67: 1.086425173 | AB67: 0.3237636905 | AC67: 0 | AD67: 0.1386692841 | AE67: 0.5462283264 | AF67: 0.07776387172
B68: 2028 | C68: 6.063549309 | D68: 11.37408387 | E68: -0.003677554979 | F68: 0.05405143749 | G68: 17291.69937 | H68: 3.019965588 | I68: 0.6147855831 | J68: 0 | K68: 0.8192644223 | L68: 1.304019832 | M68: =M67 -> 0.1846909111 | N68: 0.09720483965 | O68: 1.748862339 | P68: 0.3277435564 | Q68: 0 | R68: 0.3305239731 | S68: 1.012830937 | T68: 0.07776387172 | U68: 1.743107994 | V68: 0.6147855831 | W68: 0 | X68: 0.3278486011 | Y68: 0.7032689703 | Z68: 0.09720483965 | AA68: 1.090405039 | AB68: 0.3277435564 | AC68: 0 | AD68: 0.1386692841 | AE68: 0.5462283264 | AF68: 0.07776387172
B69: 2029 | C69: 6.152122769 | D69: 11.48480069 | E69: -0.003984631125 | F69: 0.05383606245 | G69: 17291.69937 | H69: 3.023476452 | I69: 0.6182964473 | J69: 0 | K69: 0.8192644223 | L69: 1.304019832 | M69: =M68 -> 0.1846909111 | N69: 0.09720483965 | O69: 1.752324848 | P69: 0.3312060656 | Q69: 0 | R69: 0.3305239731 | S69: 1.012830937 | T69: 0.07776387172 | U69: 1.746618858 | V69: 0.6182964473 | W69: 0 | X69: 0.3278486011 | Y69: 0.7032689703 | Z69: 0.09720483965 | AA69: 1.093867548 | AB69: 0.3312060656 | AC69: 0 | AD69: 0.1386692841 | AE69: 0.5462283264 | AF69: 0.07776387172
B70: 2030 | C70: 6.24069623 | D70: 11.59551752 | E70: -0.004209257978 | F70: 0.05360945257 | G70: 17291.69937 | H70: 3.026809351 | I70: 0.6216293464 | J70: 0 | K70: 0.8192644223 | L70: 1.304019832 | M70: =M69 -> 0.1846909111 | N70: 0.09720483965 | O70: 1.755679091 | P70: 0.3345603086 | Q70: 0 | R70: 0.3305239731 | S70: 1.012830937 | T70: 0.07776387172 | U70: 1.749951757 | V70: 0.6216293464 | W70: 0 | X70: 0.3278486011 | Y70: 0.7032689703 | Z70: 0.09720483965 | AA70: 1.097221791 | AB70: 0.3345603086 | AC70: 0 | AD70: 0.1386692841 | AE70: 0.5462283264 | AF70: 0.07776387172
B71: 2031 | C71: 6.315097937 | D71: 11.68851965 | E71: 0 | F71: 0.05360945257 | G71: 17291.69937 | H71: 3.031795145 | I71: 0.6266151399 | J71: 0 | K71: 0.8192644223 | L71: 1.304019832 | M71: =M70 -> 0.1846909111 | N71: 0.09720483965 | O71: 1.759667726 | P71: 0.3385489433 | Q71: 0 | R71: 0.3305239731 | S71: 1.012830937 | T71: 0.07776387172 | U71: 1.754937551 | V71: 0.6266151399 | W71: 0 | X71: 0.3278486011 | Y71: 0.7032689703 | Z71: 0.09720483965 | AA71: 1.101210426 | AB71: 0.3385489433 | AC71: 0 | AD71: 0.1386692841 | AE71: 0.5462283264 | AF71: 0.07776387172
B72: 2032 | C72: 6.37532789 | D72: 11.76380709 | E72: 0 | F72: 0.05360945257 | G72: 17291.69937 | H72: 3.035831263 | I72: 0.6306512584 | J72: 0 | K72: 0.8192644223 | L72: 1.304019832 | M72: =M71 -> 0.1846909111 | N72: 0.09720483965 | O72: 1.76289662 | P72: 0.3417778381 | Q72: 0 | R72: 0.3305239731 | S72: 1.012830937 | T72: 0.07776387172 | U72: 1.758973669 | V72: 0.6306512584 | W72: 0 | X72: 0.3278486011 | Y72: 0.7032689703 | Z72: 0.09720483965 | AA72: 1.10443932 | AB72: 0.3417778381 | AC72: 0 | AD72: 0.1386692841 | AE72: 0.5462283264 | AF72: 0.07776387172
B73: 2033 | C73: 6.435557843 | D73: 11.83909453 | E73: 0 | F73: 0.05360945257 | G73: 17291.69937 | H73: 3.039867382 | I73: 0.6346873769 | J73: 0 | K73: 0.8192644223 | L73: 1.304019832 | M73: =M72 -> 0.1846909111 | N73: 0.09720483965 | O73: 1.766125515 | P73: 0.345006733 | Q73: 0 | R73: 0.3305239731 | S73: 1.012830937 | T73: 0.07776387172 | U73: 1.763009788 | V73: 0.6346873769 | W73: 0 | X73: 0.3278486011 | Y73: 0.7032689703 | Z73: 0.09720483965 | AA73: 1.107668215 | AB73: 0.345006733 | AC73: 0 | AD73: 0.1386692841 | AE73: 0.5462283264 | AF73: 0.07776387172
B74: 2034 | C74: 6.488701919 | D74: 11.90552463 | E74: 0 | F74: 0.05360945257 | G74: 17291.69937 | H74: 3.043428663 | I74: 0.638248658 | J74: 0 | K74: 0.8192644223 | L74: 1.304019832 | M74: =M73 -> 0.1846909111 | N74: 0.09720483965 | O74: 1.76897454 | P74: 0.3478557578 | Q74: 0 | R74: 0.3305239731 | S74: 1.012830937 | T74: 0.07776387172 | U74: 1.766571069 | V74: 0.638248658 | W74: 0 | X74: 0.3278486011 | Y74: 0.7032689703 | Z74: 0.09720483965 | AA74: 1.11051724 | AB74: 0.3478557578 | AC74: 0 | AD74: 0.1386692841 | AE74: 0.5462283264 | AF74: 0.07776387172
B75: 2035 | C75: 6.541845996 | D75: 11.97195473 | E75: 0 | F75: 0.05360945257 | G75: 17291.69937 | H75: 3.046989944 | I75: 0.641809939 | J75: 0 | K75: 0.8192644223 | L75: 1.304019832 | M75: =M74 -> 0.1846909111 | N75: 0.09720483965 | O75: 1.771823565 | P75: 0.3507047826 | Q75: 0 | R75: 0.3305239731 | S75: 1.012830937 | T75: 0.07776387172 | U75: 1.77013235 | V75: 0.641809939 | W75: 0 | X75: 0.3278486011 | Y75: 0.7032689703 | Z75: 0.09720483965 | AA75: 1.113366265 | AB75: 0.3507047826 | AC75: 0 | AD75: 0.1386692841 | AE75: 0.5462283264 | AF75: 0.07776387172
B76: 2036 | C76: 6.541845996 | D76: 11.97195473 | E76: 0 | F76: 0.05360945257 | G76: 17291.69937 | H76: 3.046989944 | I76: 0.641809939 | J76: 0 | K76: 0.8192644223 | L76: 1.304019832 | M76: =M75 -> 0.1846909111 | N76: 0.09720483965 | O76: 1.771823565 | P76: 0.3507047826 | Q76: 0 | R76: 0.3305239731 | S76: 1.012830937 | T76: 0.07776387172 | U76: 1.77013235 | V76: 0.641809939 | W76: 0 | X76: 0.3278486011 | Y76: 0.7032689703 | Z76: 0.09720483965 | AA76: 1.113366265 | AB76: 0.3507047826 | AC76: 0 | AD76: 0.1386692841 | AE76: 0.5462283264 | AF76: 0.07776387172
B77: 2037 | C77: 6.541845996 | D77: 11.97195473 | E77: 0 | F77: 0.05360945257 | G77: 17291.69937 | H77: 3.046989944 | I77: 0.641809939 | J77: 0 | K77: 0.8192644223 | L77: 1.304019832 | M77: =M76 -> 0.1846909111 | N77: 0.09720483965 | O77: 1.771823565 | P77: 0.3507047826 | Q77: 0 | R77: 0.3305239731 | S77: 1.012830937 | T77: 0.07776387172 | U77: 1.77013235 | V77: 0.641809939 | W77: 0 | X77: 0.3278486011 | Y77: 0.7032689703 | Z77: 0.09720483965 | AA77: 1.113366265 | AB77: 0.3507047826 | AC77: 0 | AD77: 0.1386692841 | AE77: 0.5462283264 | AF77: 0.07776387172
B78: 2038 | C78: 6.541845996 | D78: 11.97195473 | E78: 0 | F78: 0.05360945257 | G78: 17291.69937 | H78: 3.046989944 | I78: 0.641809939 | J78: 0 | K78: 0.8192644223 | L78: 1.304019832 | M78: =M77 -> 0.1846909111 | N78: 0.09720483965 | O78: 1.771823565 | P78: 0.3507047826 | Q78: 0 | R78: 0.3305239731 | S78: 1.012830937 | T78: 0.07776387172 | U78: 1.77013235 | V78: 0.641809939 | W78: 0 | X78: 0.3278486011 | Y78: 0.7032689703 | Z78: 0.09720483965 | AA78: 1.113366265 | AB78: 0.3507047826 | AC78: 0 | AD78: 0.1386692841 | AE78: 0.5462283264 | AF78: 0.07776387172
B79: 2039 | C79: 6.541845996 | D79: 11.97195473 | E79: 0 | F79: 0.05360945257 | G79: 17291.69937 | H79: 3.046989944 | I79: 0.641809939 | J79: 0 | K79: 0.8192644223 | L79: 1.304019832 | M79: =M78 -> 0.1846909111 | N79: 0.09720483965 | O79: 1.771823565 | P79: 0.3507047826 | Q79: 0 | R79: 0.3305239731 | S79: 1.012830937 | T79: 0.07776387172 | U79: 1.77013235 | V79: 0.641809939 | W79: 0 | X79: 0.3278486011 | Y79: 0.7032689703 | Z79: 0.09720483965 | AA79: 1.113366265 | AB79: 0.3507047826 | AC79: 0 | AD79: 0.1386692841 | AE79: 0.5462283264 | AF79: 0.07776387172
B80: 2040 | C80: 6.541845996 | D80: 11.97195473 | E80: 0 | F80: 0.05360945257 | G80: 17291.69937 | H80: 3.046989944 | I80: 0.641809939 | J80: 0 | K80: 0.8192644223 | L80: 1.304019832 | M80: =M79 -> 0.1846909111 | N80: 0.09720483965 | O80: 1.771823565 | P80: 0.3507047826 | Q80: 0 | R80: 0.3305239731 | S80: 1.012830937 | T80: 0.07776387172 | U80: 1.77013235 | V80: 0.641809939 | W80: 0 | X80: 0.3278486011 | Y80: 0.7032689703 | Z80: 0.09720483965 | AA80: 1.113366265 | AB80: 0.3507047826 | AC80: 0 | AD80: 0.1386692841 | AE80: 0.5462283264 | AF80: 0.07776387172
B81: 2041 | C81: 6.541845996 | D81: 11.97195473 | E81: 0 | F81: 0.05360945257 | G81: 17291.69937 | H81: 3.046989944 | I81: 0.641809939 | J81: 0 | K81: 0.8192644223 | L81: 1.304019832 | M81: =M80 -> 0.1846909111 | N81: 0.09720483965 | O81: 1.771823565 | P81: 0.3507047826 | Q81: 0 | R81: 0.3305239731 | S81: 1.012830937 | T81: 0.07776387172 | U81: 1.77013235 | V81: 0.641809939 | W81: 0 | X81: 0.3278486011 | Y81: 0.7032689703 | Z81: 0.09720483965 | AA81: 1.113366265 | AB81: 0.3507047826 | AC81: 0 | AD81: 0.1386692841 | AE81: 0.5462283264 | AF81: 0.07776387172
B82: 2042 | C82: 6.541845996 | D82: 11.97195473 | E82: 0 | F82: 0.05360945257 | G82: 17291.69937 | H82: 3.046989944 | I82: 0.641809939 | J82: 0 | K82: 0.8192644223 | L82: 1.304019832 | M82: =M81 -> 0.1846909111 | N82: 0.09720483965 | O82: 1.771823565 | P82: 0.3507047826 | Q82: 0 | R82: 0.3305239731 | S82: 1.012830937 | T82: 0.07776387172 | U82: 1.77013235 | V82: 0.641809939 | W82: 0 | X82: 0.3278486011 | Y82: 0.7032689703 | Z82: 0.09720483965 | AA82: 1.113366265 | AB82: 0.3507047826 | AC82: 0 | AD82: 0.1386692841 | AE82: 0.5462283264 | AF82: 0.07776387172
B83: 2043 | C83: 6.541845996 | D83: 11.97195473 | E83: 0 | F83: 0.05360945257 | G83: 17291.69937 | H83: 3.046989944 | I83: 0.641809939 | J83: 0 | K83: 0.8192644223 | L83: 1.304019832 | M83: =M82 -> 0.1846909111 | N83: 0.09720483965 | O83: 1.771823565 | P83: 0.3507047826 | Q83: 0 | R83: 0.3305239731 | S83: 1.012830937 | T83: 0.07776387172 | U83: 1.77013235 | V83: 0.641809939 | W83: 0 | X83: 0.3278486011 | Y83: 0.7032689703 | Z83: 0.09720483965 | AA83: 1.113366265 | AB83: 0.3507047826 | AC83: 0 | AD83: 0.1386692841 | AE83: 0.5462283264 | AF83: 0.07776387172
B84: 2044 | C84: 6.541845996 | D84: 11.97195473 | E84: 0 | F84: 0.05360945257 | G84: 17291.69937 | H84: 3.046989944 | I84: 0.641809939 | J84: 0 | K84: 0.8192644223 | L84: 1.304019832 | M84: =M83 -> 0.1846909111 | N84: 0.09720483965 | O84: 1.771823565 | P84: 0.3507047826 | Q84: 0 | R84: 0.3305239731 | S84: 1.012830937 | T84: 0.07776387172 | U84: 1.77013235 | V84: 0.641809939 | W84: 0 | X84: 0.3278486011 | Y84: 0.7032689703 | Z84: 0.09720483965 | AA84: 1.113366265 | AB84: 0.3507047826 | AC84: 0 | AD84: 0.1386692841 | AE84: 0.5462283264 | AF84: 0.07776387172
C85: Kilde: 2010-2015: Oliebranchens fællesråd | D85: Kilde: 2010-2015: Oliebranchens fællesråd | E85: Kilde til 2030: ENS, 2015
C87: Personbiler | D87: hybrid
H89: Gennemsnitlige kørselsomkostninger [kr. per km.] | U89: Marginale kørselsomkostninger, [kr. per år]
C90: Benzinpris ekskl. afgifter og moms [2015-kr. per liter] | D90: Benzinpris inkl. afgifter og moms [2015-kr. per liter] | E90: Årlig vækst i invers brændstof-effektivitet | F90: Brændstof-effektivitet [liter/km] | G90: Trafikarbejde, i alt [mio. km] | H90: Gennemsnitlige omkostninger inkl.. afgifter og moms, i alt | I90: Brændstof, inkl. afgifter og moms [kr. per km.] | J90: Motorolie, inkl. afgifter og moms [kr. per km.] | K90: Afskrivninger, inkl. afgifter og moms [kr. per km.] | L90: Reparation og vedligeholdelse, inkl. afgifter og moms [kr. per km.] | M90: Ejerafgift [kr. per km.] | N90: Dæk, inkl. afgifter og moms [kr. per km.] | O90: Gennemsnitlige omkostninger ekskl.. afgifter og moms, i alt [kr. per km.] | P90: Brændstof, ekskl. afgifter og moms [kr. per km.] | Q90: Motorolie, ekskl. afgifter og moms [kr. per km.] | R90: Afskrivninger, ekskl. afgifter og moms [kr. per km.] | S90: Reparation og vedligeholdelse, ekskl. afgifter og moms [kr. per km.] | T90: Dæk, ekskl. afgifter og moms [kr. per km.] | U90: Marginale omkostninger inkl.. afgifter og moms, i alt | V90: Brændstof, inkl. afgifter og moms [kr. per km.] | W90: Motorolie, inkl. afgifter og moms [kr. per km.] | X90: Afskrivninger, inkl. afgifter og moms [kr. per km.] | Y90: Reparation og vedligeholdelse, inkl. afgifter og moms [kr. per km.] | Z90: Dæk, inkl. afgifter og moms [kr. per km.] | AA90: Marginale omkostninger ekskl.. afgifter og moms, i alt [kr. per km.] | AB90: Brændstof, ekskl. afgifter og moms [kr. per km.] | AC90: Motorolie, ekskl. afgifter og moms [kr. per km.] | AD90: Afskrivninger, ekskl. afgifter og moms [kr. per km.] | AE90: Reparation og vedligeholdelse, ekskl. afgifter og moms [kr. per km.] | AF90: Dæk, ekskl. afgifter og moms [kr. per km.]
B91: 2014 | C91: 5.652761071 | D91: 12.7140344 | E91: 0.010829727 | F91: =F92*(1+E91) -> 0.05275717396 | G91: =G92 -> 39.84838 | H91: =SUM(I91:N91) -> 3.475856185 | I91: =F91*D91 -> 0.6707565246 | J91: =J92 -> 0.08971506495 | K91: =K92 -> 1.390149063 | L91: =L92 -> 1.126162561 | M91: 0.1038583811 | N91: =N92 -> 0.0952145903 | O91: =SUM(P91:T91) -> 1.913298698 | P91: =C91*F91 -> 0.2982236991 | Q91: =Q92 -> 0.07177205196 | R91: =R92 -> 0.5924419072 | S91: =S92 -> 0.8746893678 | T91: =T92 -> 0.07617167224 | U91: =SUM(V91:Z91) -> 1.378130929 | V91: =D91*F91 -> 0.6707565246 | W91: =W92 -> 0.02948798341 | X91: =X92 -> 0.2125192487 | Y91: =Y92 -> 0.3701525818 | Z91: =Z92 -> 0.0952145903 | AA91: =SUM(AB91:AF91) -> 0.7767513345 | AB91: =C91*F91 -> 0.2982236991 | AC91: =AC92 -> 0.02359038673 | AD91: =AD92 -> 0.09126842553 | AE91: =AE92 -> 0.2874971509 | AF91: =AF92 -> 0.07617167224
B92: 2015 | C92: 4.707880435 | D92: 11.59485054 | E92: 0.006976360111 | F92: 0.05219194939 | G92: 39.84838 | H92: 3.410257513 | I92: 0.6051578528 | J92: 0.08971506495 | K92: 1.390149063 | L92: 1.126162561 | M92: 0.1038583811 | N92: 0.0952145903 | O92: 1.860788457 | P92: 0.2457134574 | Q92: 0.07177205196 | R92: 0.5924419072 | S92: 0.8746893678 | T92: 0.07617167224 | U92: 1.312532257 | V92: 0.6051578528 | W92: 0.02948798341 | X92: 0.2125192487 | Y92: 0.3701525818 | Z92: 0.0952145903 | AA92: 0.7242410928 | AB92: 0.2457134574 | AC92: 0.02359038673 | AD92: 0.09126842553 | AE92: 0.2874971509 | AF92: 0.07617167224
B93: 2016 | C93: 4.016883482 | D93: 10.6841212 | E93: 0.008966401801 | F93: 0.05183036212 | G93: 39.84838 | H93: 3.358861532 | I93: 0.553761871 | J93: 0.08971506495 | K93: 1.390149063 | L93: 1.126162561 | M93: 0.1038583811 | N93: 0.0952145903 | O93: 1.823271525 | P93: 0.2081965255 | Q93: 0.07177205196 | R93: 0.5924419072 | S93: 0.8746893678 | T93: 0.07617167224 | U93: 1.261136275 | V93: 0.553761871 | W93: 0.02948798341 | X93: 0.2125192487 | Y93: 0.3701525818 | Z93: 0.0952145903 | AA93: 0.6867241609 | AB93: 0.2081965255 | AC93: 0.02359038673 | AD93: 0.09126842553 | AE93: 0.2874971509 | AF93: 0.07617167224
B94: 2017 | C94: 4.312162923 | D94: 10.95859403 | E94: 0.01011172525 | F94: 0.05136976021 | G94: 39.84838 | H94: 3.368040008 | I94: 0.5629403478 | J94: 0.08971506495 | K94: 1.390149063 | L94: 1.126162561 | M94: 0.1038583811 | N94: 0.0952145903 | O94: 1.836589775 | P94: 0.2215147753 | Q94: 0.07177205196 | R94: 0.5924419072 | S94: 0.8746893678 | T94: 0.07617167224 | U94: 1.270314752 | V94: 0.5629403478 | W94: 0.02948798341 | X94: 0.2125192487 | Y94: 0.3701525818 | Z94: 0.0952145903 | AA94: 0.7000424107 | AB94: 0.2215147753 | AC94: 0.02359038673 | AD94: 0.09126842553 | AE94: 0.2874971509 | AF94: 0.07617167224
B95: 2018 | C95: 4.399773306 | D95: 11.06810701 | E95: 0.01306457642 | F95: =F96*(1+E95) -> 0.05085552313 | G95: =G96 -> 39.84838 | H95: 3.367974033 | I95: 0.5628743723 | J95: =J96 -> 0.08971506495 | K95: =K96 -> 1.390149063 | L95: 1.126162561 | M95: 0.1038583811 | N95: 0.0952145903 | O95: 1.838827772 | P95: 0.2237527732 | Q95: 0.07177205196 | R95: 0.5924419072 | S95: 0.8746893678 | T95: 0.07617167224 | U95: 1.270248776 | V95: 0.5628743723 | W95: 0.02948798341 | X95: 0.2125192487 | Y95: 0.3701525818 | Z95: 0.0952145903 | AA95: 0.7022804086 | AB95: 0.2237527732 | AC95: 0.02359038673 | AD95: 0.09126842553 | AE95: 0.2874971509 | AF95: 0.07617167224
B96: 2019 | C96: 4.441956083 | D96: 11.12083548 | F96: ='Resultat - niveau I'!$E$14 -> 0.05019968551 | G96: ='Resultat - niveau I'!$F$14 -> 39.84838 | H96: 3.363362105 | I96: =F96*D96 -> 0.5582624439 | J96: ='Resultat - niveau I'!$I$14 -> 0.08971506495 | K96: ='Resultat - niveau I'!$J$14 -> 1.390149063 | L96: ='Resultat - niveau I'!$K$14 -> 1.126162561 | M96: ='Resultat - niveau I'!$L$14 -> 0.1038583811 | N96: ='Resultat - niveau I'!$M$14 -> 0.0952145903 | O96: =SUM(P96:T96) -> 1.838059798 | P96: 0.2229847984 | Q96: ='Resultat - niveau I'!$P$14 -> 0.07177205196 | R96: ='Resultat - niveau I'!$Q$14 -> 0.5924419072 | S96: ='Resultat - niveau I'!$R$14 -> 0.8746893678 | T96: ='Resultat - niveau I'!$S$14 -> 0.07617167224 | U96: =SUM(V96:Z96) -> 1.265636848 | V96: 0.5582624439 | W96: ='Resultat - niveau I'!$V$14 -> 0.02948798341 | X96: ='Resultat - niveau I'!$W$14 -> 0.2125192487 | Y96: ='Resultat - niveau I'!$X$14 -> 0.3701525818 | Z96: ='Resultat - niveau I'!$Y$14 -> 0.0952145903 | AA96: =SUM(AB96:AF96) -> 0.7015124338 | AB96: 0.2229847984 | AC96: ='Resultat - niveau I'!$AB$14 -> 0.02359038673 | AD96: ='Resultat - niveau I'!$AC$14 -> 0.09126842553 | AE96: ='Resultat - niveau I'!$AD$14 -> 0.2874971509 | AF96: ='Resultat - niveau I'!$AE$14 -> 0.07617167224
B97: 2020 | C97: 4.58472856 | D97: 11.29930108 | E97: -0.01428862198 | F97: =F96*(1+E97) -> 0.04948240118 | G97: =G96 -> 39.84838 | H97: 3.36421621 | I97: =F97*D97 -> 0.5591165491 | J97: =J96 -> 0.08971506495 | K97: =K96 -> 1.390149063 | L97: =L96 -> 1.126162561 | M97: =M96 -> 0.1038583811 | N97: =N96 -> 0.0952145903 | O97: =SUM(P97:T97) -> 1.841938377 | P97: 0.2268633779 | Q97: =Q96 -> 0.07177205196 | R97: =R96 -> 0.5924419072 | S97: =S96 -> 0.8746893678 | T97: =T96 -> 0.07617167224 | U97: =SUM(V97:Z97) -> 1.266490953 | V97: 0.5591165491 | W97: =W96 -> 0.02948798341 | X97: =X96 -> 0.2125192487 | Y97: =Y96 -> 0.3701525818 | Z97: =Z96 -> 0.0952145903 | AA97: =SUM(AB97:AF97) -> 0.7053910133 | AB97: 0.2268633779 | AC97: =AC96 -> 0.02359038673 | AD97: =AD96 -> 0.09126842553 | AE97: =AE96 -> 0.2874971509 | AF97: =AF96 -> 0.07617167224
B98: 2021 | C98: 4.763194156 | D98: 11.52238308 | E98: -0.01703961908 | F98: =F97*(1+E98) -> 0.04863923991 | G98: =G97 -> 39.84838 | H98: 3.365539615 | I98: 0.5604399547 | J98: =J97 -> 0.08971506495 | K98: 1.390149063 | L98: 1.126162561 | M98: =M97 -> 0.1038583811 | N98: 0.0952145903 | O98: 1.846753142 | P98: 0.2316781433 | Q98: =Q97 -> 0.07177205196 | R98: 0.5924419072 | S98: 0.8746893678 | T98: 0.07617167224 | U98: 1.267814359 | V98: 0.5604399547 | W98: =W97 -> 0.02948798341 | X98: 0.2125192487 | Y98: 0.3701525818 | Z98: 0.0952145903 | AA98: 0.7102057787 | AB98: 0.2316781433 | AC98: =AC97 -> 0.02359038673 | AD98: 0.09126842553 | AE98: 0.2874971509 | AF98: 0.07617167224
B99: 2022 | C99: 4.880008001 | D99: 11.66840038 | E99: -0.01838866309 | F99: 0.04774482931 | G99: 39.84838 | H99: 3.362205445 | I99: 0.5571057846 | J99: 0.08971506495 | K99: 1.390149063 | L99: 1.126162561 | M99: =M98 -> 0.1038583811 | N99: 0.0952145903 | O99: 1.848070148 | P99: 0.232995149 | Q99: 0.07177205196 | R99: 0.5924419072 | S99: 0.8746893678 | T99: 0.07617167224 | U99: 1.264480189 | V99: 0.5571057846 | W99: 0.02948798341 | X99: 0.2125192487 | Y99: 0.3701525818 | Z99: 0.0952145903 | AA99: 0.7115227845 | AB99: 0.232995149 | AC99: 0.02359038673 | AD99: 0.09126842553 | AE99: 0.2874971509 | AF99: 0.07617167224
B100: 2023 | C100: 4.993577016 | D100: 11.81036165 | E100: -0.0150811707 | F100: 0.04702478139 | G100: 39.84838 | H100: 3.360479335 | I100: 0.5553796748 | J100: 0.08971506495 | K100: 1.390149063 | L100: 1.126162561 | M100: =M99 -> 0.1038583811 | N100: 0.0952145903 | O100: 1.849896867 | P100: 0.2348218676 | Q100: 0.07177205196 | R100: 0.5924419072 | S100: 0.8746893678 | T100: 0.07617167224 | U100: 1.262754079 | V100: 0.5553796748 | W100: 0.02948798341 | X100: 0.2125192487 | Y100: 0.3701525818 | Z100: 0.0952145903 | AA100: 0.713349503 | AB100: 0.2348218676 | AC100: 0.02359038673 | AD100: 0.09126842553 | AE100: 0.2874971509 | AF100: 0.07617167224
B101: 2024 | C101: 5.100656374 | D101: 11.94421085 | E101: -0.01248265855 | F101: 0.0464377871 | G101: 39.84838 | H101: 3.359762381 | I101: =F101*D101 -> 0.5546627205 | J101: 0.08971506495 | K101: 1.390149063 | L101: 1.126162561 | M101: =M100 -> 0.1038583811 | N101: 0.0952145903 | O101: 1.851938194 | P101: 0.2368631948 | Q101: 0.07177205196 | R101: 0.5924419072 | S101: 0.8746893678 | T101: 0.07617167224 | U101: 1.262037125 | V101: 0.5546627205 | W101: 0.02948798341 | X101: 0.2125192487 | Y101: 0.3701525818 | Z101: 0.0952145903 | AA101: 0.7153908302 | AB101: 0.2368631948 | AC101: 0.02359038673 | AD101: 0.09126842553 | AE101: 0.2874971509 | AF101: 0.07617167224
B102: 2025 | C102: 5.204490902 | D102: 12.07400401 | E102: -0.007940964525 | F102: 0.04606902628 | G102: 39.84838 | H102: 3.361337269 | I102: 0.556237608 | J102: 0.08971506495 | K102: 1.390149063 | L102: 1.126162561 | M102: =M101 -> 0.1038583811 | N102: 0.0952145903 | O102: 1.854840827 | P102: 0.2397658282 | Q102: 0.07177205196 | R102: 0.5924419072 | S102: 0.8746893678 | T102: 0.07617167224 | U102: 1.263612012 | V102: 0.556237608 | W102: 0.02948798341 | X102: 0.2125192487 | Y102: 0.3701525818 | Z102: 0.0952145903 | AA102: 0.7182934636 | AB102: 0.2397658282 | AC102: 0.02359038673 | AD102: 0.09126842553 | AE102: 0.2874971509 | AF102: 0.07617167224
B103: 2026 | C103: 5.301835773 | D103: 12.1956851 | E103: -0.007629134112 | F103: 0.0457175595 | G103: 39.84838 | H103: 3.36265662 | I103: 0.5575569591 | J103: 0.08971506495 | K103: 1.390149063 | L103: 1.126162561 | M103: =M102 -> 0.1038583811 | N103: 0.0952145903 | O103: 1.857461992 | P103: 0.2423869924 | Q103: 0.07177205196 | R103: 0.5924419072 | S103: 0.8746893678 | T103: 0.07617167224 | U103: 1.264931363 | V103: 0.5575569591 | W103: 0.02948798341 | X103: 0.2125192487 | Y103: 0.3701525818 | Z103: 0.0952145903 | AA103: 0.7209146278 | AB103: 0.2423869924 | AC103: 0.02359038673 | AD103: 0.09126842553 | AE103: 0.2874971509 | AF103: 0.07617167224
B104: 2027 | C104: 5.392690985 | D104: 12.30925411 | E104: -0.004206950886 | F104: 0.04552522798 | G104: 39.84838 | H104: 3.36548126 | I104: 0.5603815997 | J104: 0.08971506495 | K104: 1.390149063 | L104: 1.126162561 | M104: =M103 -> 0.1038583811 | N104: 0.0952145903 | O104: 1.860578486 | P104: 0.2455034865 | Q104: 0.07177205196 | R104: 0.5924419072 | S104: 0.8746893678 | T104: 0.07617167224 | U104: 1.267756004 | V104: 0.5603815997 | W104: 0.02948798341 | X104: 0.2125192487 | Y104: 0.3701525818 | Z104: 0.0952145903 | AA104: 0.7240311219 | AB104: 0.2455034865 | AC104: 0.02359038673 | AD104: 0.09126842553 | AE104: 0.2874971509 | AF104: 0.07617167224
B105: 2028 | C105: 5.480301369 | D105: 12.41876709 | E105: -0.003677554979 | F105: 0.04535780645 | G105: 39.84838 | H105: 3.368387695 | I105: 0.5632880341 | J105: 0.08971506495 | K105: 1.390149063 | L105: 1.126162561 | M105: =M104 -> 0.1038583811 | N105: 0.0952145903 | O105: 1.863649448 | P105: 0.2485744488 | Q105: 0.07177205196 | R105: 0.5924419072 | S105: 0.8746893678 | T105: 0.07617167224 | U105: 1.270662438 | V105: 0.5632880341 | W105: 0.02948798341 | X105: 0.2125192487 | Y105: 0.3701525818 | Z105: 0.0952145903 | AA105: 0.7271020842 | AB105: 0.2485744488 | AC105: 0.02359038673 | AD105: 0.09126842553 | AE105: 0.2874971509 | AF105: 0.07617167224
B106: 2029 | C106: 5.564666923 | D106: 12.52422403 | E106: -0.003984631125 | F106: 0.04517707232 | G106: 39.84838 | H106: 3.370907436 | I106: 0.565807775 | J106: 0.08971506495 | K106: 1.390149063 | L106: 1.126162561 | M106: =M105 -> 0.1038583811 | N106: 0.0952145903 | O106: 1.866470359 | P106: 0.25139536 | Q106: 0.07177205196 | R106: 0.5924419072 | S106: 0.8746893678 | T106: 0.07617167224 | U106: 1.273182179 | V106: 0.565807775 | W106: 0.02948798341 | X106: 0.2125192487 | Y106: 0.3701525818 | Z106: 0.0952145903 | AA106: 0.7299229954 | AB106: 0.25139536 | AC106: 0.02359038673 | AD106: 0.09126842553 | AE106: 0.2874971509 | AF106: 0.07617167224
B107: 2030 | C107: 5.64254282 | D107: 12.6215689 | E107: -0.004209257978 | F107: 0.04498691037 | G107: 39.84838 | H107: 3.37290505 | I107: 0.567805389 | J107: 0.08971506495 | K107: 1.390149063 | L107: 1.126162561 | M107: =M106 -> 0.1038583811 | N107: 0.0952145903 | O107: 1.868915567 | P107: 0.2538405681 | Q107: 0.07177205196 | R107: 0.5924419072 | S107: 0.8746893678 | T107: 0.07617167224 | U107: 1.275179793 | V107: 0.567805389 | W107: 0.02948798341 | X107: 0.2125192487 | Y107: 0.3701525818 | Z107: 0.0952145903 | AA107: 0.7323682035 | AB107: 0.2538405681 | AC107: 0.02359038673 | AD107: 0.09126842553 | AE107: 0.2874971509 | AF107: 0.07617167224
B108: 2031 | C108: 5.710684229 | D108: 12.70674567 | E108: 0 | F108: 0.04498691037 | G108: 39.84838 | H108: 3.376736889 | I108: 0.5716372284 | J108: 0.08971506495 | K108: 1.390149063 | L108: 1.126162561 | M108: =M107 -> 0.1038583811 | N108: 0.0952145903 | O108: 1.871981039 | P108: 0.2569060396 | Q108: 0.07177205196 | R108: 0.5924419072 | S108: 0.8746893678 | T108: 0.07617167224 | U108: 1.279011633 | V108: 0.5716372284 | W108: 0.02948798341 | X108: 0.2125192487 | Y108: 0.3701525818 | Z108: 0.0952145903 | AA108: 0.735433675 | AB108: 0.2569060396 | AC108: 0.02359038673 | AD108: 0.09126842553 | AE108: 0.2874971509 | AF108: 0.07617167224
B109: 2032 | C109: 5.769091151 | D109: 12.77975432 | E109: 0 | F109: 0.04498691037 | G109: 39.84838 | H109: 3.380021323 | I109: 0.5749216621 | J109: 0.08971506495 | K109: 1.390149063 | L109: 1.126162561 | M109: =M108 -> 0.1038583811 | N109: 0.0952145903 | O109: 1.874608586 | P109: 0.2595335865 | Q109: 0.07177205196 | R109: 0.5924419072 | S109: 0.8746893678 | T109: 0.07617167224 | U109: 1.282296066 | V109: 0.5749216621 | W109: 0.02948798341 | X109: 0.2125192487 | Y109: 0.3701525818 | Z109: 0.0952145903 | AA109: 0.7380612219 | AB109: 0.2595335865 | AC109: 0.02359038673 | AD109: 0.09126842553 | AE109: 0.2874971509 | AF109: 0.07617167224
B110: 2033 | C110: 5.821008416 | D110: 12.8446509 | E110: 0 | F110: 0.04498691037 | G110: 39.84838 | H110: 3.382940819 | I110: 0.5778411587 | J110: 0.08971506495 | K110: 1.390149063 | L110: 1.126162561 | M110: =M109 -> 0.1038583811 | N110: 0.0952145903 | O110: 1.876944183 | P110: 0.2618691838 | Q110: 0.07177205196 | R110: 0.5924419072 | S110: 0.8746893678 | T110: 0.07617167224 | U110: 1.285215563 | V110: 0.5778411587 | W110: 0.02948798341 | X110: 0.2125192487 | Y110: 0.3701525818 | Z110: 0.0952145903 | AA110: 0.7403968193 | AB110: 0.2618691838 | AC110: 0.02359038673 | AD110: 0.09126842553 | AE110: 0.2874971509 | AF110: 0.07617167224
B111: 2034 | C111: 5.869680851 | D111: 12.90549144 | E111: 0 | F111: 0.04498691037 | G111: 39.84838 | H111: 3.385677848 | I111: 0.5805781868 | J111: 0.08971506495 | K111: 1.390149063 | L111: 1.126162561 | M111: =M110 -> 0.1038583811 | N111: 0.0952145903 | O111: 1.879133806 | P111: 0.2640588063 | Q111: 0.07177205196 | R111: 0.5924419072 | S111: 0.8746893678 | T111: 0.07617167224 | U111: 1.287952591 | V111: 0.5805781868 | W111: 0.02948798341 | X111: 0.2125192487 | Y111: 0.3701525818 | Z111: 0.0952145903 | AA111: 0.7425864417 | AB111: 0.2640588063 | AC111: 0.02359038673 | AD111: 0.09126842553 | AE111: 0.2874971509 | AF111: 0.07617167224
B112: 2035 | C112: 5.918353286 | D112: 12.96633199 | E112: 0 | F112: 0.04498691037 | G112: 39.84838 | H112: 3.388414876 | I112: 0.5833152149 | J112: 0.08971506495 | K112: 1.390149063 | L112: 1.126162561 | M112: =M111 -> 0.1038583811 | N112: 0.0952145903 | O112: 1.881323428 | P112: 0.2662484288 | Q112: 0.07177205196 | R112: 0.5924419072 | S112: 0.8746893678 | T112: 0.07617167224 | U112: 1.290689619 | V112: 0.5833152149 | W112: 0.02948798341 | X112: 0.2125192487 | Y112: 0.3701525818 | Z112: 0.0952145903 | AA112: 0.7447760642 | AB112: 0.2662484288 | AC112: 0.02359038673 | AD112: 0.09126842553 | AE112: 0.2874971509 | AF112: 0.07617167224
B113: 2036 | C113: 5.918353286 | D113: 12.96633199 | E113: 0 | F113: 0.04498691037 | G113: 39.84838 | H113: 3.388414876 | I113: 0.5833152149 | J113: 0.08971506495 | K113: 1.390149063 | L113: 1.126162561 | M113: =M112 -> 0.1038583811 | N113: 0.0952145903 | O113: 1.881323428 | P113: 0.2662484288 | Q113: 0.07177205196 | R113: 0.5924419072 | S113: 0.8746893678 | T113: 0.07617167224 | U113: 1.290689619 | V113: 0.5833152149 | W113: 0.02948798341 | X113: 0.2125192487 | Y113: 0.3701525818 | Z113: 0.0952145903 | AA113: 0.7447760642 | AB113: 0.2662484288 | AC113: 0.02359038673 | AD113: 0.09126842553 | AE113: 0.2874971509 | AF113: 0.07617167224
B114: 2037 | C114: 5.918353286 | D114: 12.96633199 | E114: 0 | F114: 0.04498691037 | G114: 39.84838 | H114: 3.388414876 | I114: 0.5833152149 | J114: 0.08971506495 | K114: 1.390149063 | L114: 1.126162561 | M114: =M113 -> 0.1038583811 | N114: 0.0952145903 | O114: 1.881323428 | P114: 0.2662484288 | Q114: 0.07177205196 | R114: 0.5924419072 | S114: 0.8746893678 | T114: 0.07617167224 | U114: 1.290689619 | V114: 0.5833152149 | W114: 0.02948798341 | X114: 0.2125192487 | Y114: 0.3701525818 | Z114: 0.0952145903 | AA114: 0.7447760642 | AB114: 0.2662484288 | AC114: 0.02359038673 | AD114: 0.09126842553 | AE114: 0.2874971509 | AF114: 0.07617167224
B115: 2038 | C115: 5.918353286 | D115: 12.96633199 | E115: 0 | F115: 0.04498691037 | G115: 39.84838 | H115: 3.388414876 | I115: 0.5833152149 | J115: 0.08971506495 | K115: 1.390149063 | L115: 1.126162561 | M115: =M114 -> 0.1038583811 | N115: 0.0952145903 | O115: 1.881323428 | P115: 0.2662484288 | Q115: 0.07177205196 | R115: 0.5924419072 | S115: 0.8746893678 | T115: 0.07617167224 | U115: 1.290689619 | V115: 0.5833152149 | W115: 0.02948798341 | X115: 0.2125192487 | Y115: 0.3701525818 | Z115: 0.0952145903 | AA115: 0.7447760642 | AB115: 0.2662484288 | AC115: 0.02359038673 | AD115: 0.09126842553 | AE115: 0.2874971509 | AF115: 0.07617167224
B116: 2039 | C116: 5.918353286 | D116: 12.96633199 | E116: 0 | F116: 0.04498691037 | G116: 39.84838 | H116: 3.388414876 | I116: 0.5833152149 | J116: 0.08971506495 | K116: 1.390149063 | L116: 1.126162561 | M116: =M115 -> 0.1038583811 | N116: 0.0952145903 | O116: 1.881323428 | P116: 0.2662484288 | Q116: 0.07177205196 | R116: 0.5924419072 | S116: 0.8746893678 | T116: 0.07617167224 | U116: 1.290689619 | V116: 0.5833152149 | W116: 0.02948798341 | X116: 0.2125192487 | Y116: 0.3701525818 | Z116: 0.0952145903 | AA116: 0.7447760642 | AB116: 0.2662484288 | AC116: 0.02359038673 | AD116: 0.09126842553 | AE116: 0.2874971509 | AF116: 0.07617167224
B117: 2040 | C117: 5.918353286 | D117: 12.96633199 | E117: 0 | F117: 0.04498691037 | G117: 39.84838 | H117: 3.388414876 | I117: 0.5833152149 | J117: 0.08971506495 | K117: 1.390149063 | L117: 1.126162561 | M117: =M116 -> 0.1038583811 | N117: 0.0952145903 | O117: 1.881323428 | P117: 0.2662484288 | Q117: 0.07177205196 | R117: 0.5924419072 | S117: 0.8746893678 | T117: 0.07617167224 | U117: 1.290689619 | V117: 0.5833152149 | W117: 0.02948798341 | X117: 0.2125192487 | Y117: 0.3701525818 | Z117: 0.0952145903 | AA117: 0.7447760642 | AB117: 0.2662484288 | AC117: 0.02359038673 | AD117: 0.09126842553 | AE117: 0.2874971509 | AF117: 0.07617167224
B118: 2041 | C118: 5.918353286 | D118: 12.96633199 | E118: 0 | F118: 0.04498691037 | G118: 39.84838 | H118: 3.388414876 | I118: 0.5833152149 | J118: 0.08971506495 | K118: 1.390149063 | L118: 1.126162561 | M118: =M117 -> 0.1038583811 | N118: 0.0952145903 | O118: 1.881323428 | P118: 0.2662484288 | Q118: 0.07177205196 | R118: 0.5924419072 | S118: 0.8746893678 | T118: 0.07617167224 | U118: 1.290689619 | V118: 0.5833152149 | W118: 0.02948798341 | X118: 0.2125192487 | Y118: 0.3701525818 | Z118: 0.0952145903 | AA118: 0.7447760642 | AB118: 0.2662484288 | AC118: 0.02359038673 | AD118: 0.09126842553 | AE118: 0.2874971509 | AF118: 0.07617167224
B119: 2042 | C119: 5.918353286 | D119: 12.96633199 | E119: 0 | F119: 0.04498691037 | G119: 39.84838 | H119: 3.388414876 | I119: 0.5833152149 | J119: 0.08971506495 | K119: 1.390149063 | L119: 1.126162561 | M119: =M118 -> 0.1038583811 | N119: 0.0952145903 | O119: 1.881323428 | P119: 0.2662484288 | Q119: 0.07177205196 | R119: 0.5924419072 | S119: 0.8746893678 | T119: 0.07617167224 | U119: 1.290689619 | V119: 0.5833152149 | W119: 0.02948798341 | X119: 0.2125192487 | Y119: 0.3701525818 | Z119: 0.0952145903 | AA119: 0.7447760642 | AB119: 0.2662484288 | AC119: 0.02359038673 | AD119: 0.09126842553 | AE119: 0.2874971509 | AF119: 0.07617167224
B120: 2043 | C120: 5.918353286 | D120: 12.96633199 | E120: 0 | F120: 0.04498691037 | G120: 39.84838 | H120: 3.388414876 | I120: 0.5833152149 | J120: 0.08971506495 | K120: 1.390149063 | L120: 1.126162561 | M120: =M119 -> 0.1038583811 | N120: 0.0952145903 | O120: 1.881323428 | P120: 0.2662484288 | Q120: 0.07177205196 | R120: 0.5924419072 | S120: 0.8746893678 | T120: 0.07617167224 | U120: 1.290689619 | V120: 0.5833152149 | W120: 0.02948798341 | X120: 0.2125192487 | Y120: 0.3701525818 | Z120: 0.0952145903 | AA120: 0.7447760642 | AB120: 0.2662484288 | AC120: 0.02359038673 | AD120: 0.09126842553 | AE120: 0.2874971509 | AF120: 0.07617167224
B121: 2044 | C121: 5.918353286 | D121: 12.96633199 | E121: 0 | F121: 0.04498691037 | G121: 39.84838 | H121: 3.388414876 | I121: 0.5833152149 | J121: 0.08971506495 | K121: 1.390149063 | L121: 1.126162561 | M121: =M120 -> 0.1038583811 | N121: 0.0952145903 | O121: 1.881323428 | P121: 0.2662484288 | Q121: 0.07177205196 | R121: 0.5924419072 | S121: 0.8746893678 | T121: 0.07617167224 | U121: 1.290689619 | V121: 0.5833152149 | W121: 0.02948798341 | X121: 0.2125192487 | Y121: 0.3701525818 | Z121: 0.0952145903 | AA121: 0.7447760642 | AB121: 0.2662484288 | AC121: 0.02359038673 | AD121: 0.09126842553 | AE121: 0.2874971509 | AF121: 0.07617167224
C122: Kilde: 2010-2015: Oliebranchens fællesråd | D122: Kilde: 2010-2015: Oliebranchens fællesråd | E122: Kilde til 2030: ENS, 2015
C124: Personbiler | D124: elektricitet
H126: Gennemsnitlige kørselsomkostninger [kr. per km.] | U126: Marginale kørselsomkostninger, [kr. per år]
C127: Elpris ekskl. afgifter og moms [2015-kr. per liter] | D127: Elpris inkl. afgifter og moms [2015-kr. per liter] | E127: Årlig vækst i invers brændstof-effektivitet | F127: Brændstof-effektivitet [liter/km] | G127: Trafikarbejde, i alt [mio. km] | H127: Gennemsnitlige omkostninger inkl.. afgifter og moms, i alt | I127: Brændstof, inkl. afgifter og moms [kr. per km.] | J127: Motorolie, inkl. afgifter og moms [kr. per km.] | K127: Afskrivninger, inkl. afgifter og moms [kr. per km.] | L127: Reparation og vedligeholdelse, inkl. afgifter og moms [kr. per km.] | M127: Ejerafgift [kr. per km.] | N127: Dæk, inkl. afgifter og moms [kr. per km.] | O127: Gennemsnitlige omkostninger ekskl.. afgifter og moms, i alt [kr. per km.] | P127: Brændstof, ekskl. afgifter og moms [kr. per km.] | Q127: Motorolie, ekskl. afgifter og moms [kr. per km.] | R127: Afskrivninger, ekskl. afgifter og moms [kr. per km.] | S127: Reparation og vedligeholdelse, ekskl. afgifter og moms [kr. per km.] | T127: Dæk, ekskl. afgifter og moms [kr. per km.] | U127: Marginale omkostninger inkl.. afgifter og moms, i alt | V127: Brændstof, inkl. afgifter og moms [kr. per km.] | W127: Motorolie, inkl. afgifter og moms [kr. per km.] | X127: Afskrivninger, inkl. afgifter og moms [kr. per km.] | Y127: Reparation og vedligeholdelse, inkl. afgifter og moms [kr. per km.] | Z127: Dæk, inkl. afgifter og moms [kr. per km.] | AA127: Marginale omkostninger ekskl.. afgifter og moms, i alt [kr. per km.] | AB127: Brændstof, ekskl. afgifter og moms [kr. per km.] | AC127: Motorolie, ekskl. afgifter og moms [kr. per km.] | AD127: Afskrivninger, ekskl. afgifter og moms [kr. per km.] | AE127: Reparation og vedligeholdelse, ekskl. afgifter og moms [kr. per km.] | AF127: Dæk, ekskl. afgifter og moms [kr. per km.]
B128: 2014 | C128: 0.7785774734 | D128: 2.021540289 | E128: 0 | F128: =F129*(1+E128) -> 0.1844551539 | G128: =G129 -> 138.2850131 | H128: =SUM(I128:N128) -> 2.81480995 | I128: =F128*D128 -> 0.3728835253 | J128: =J129 -> 0.3479409861 | K128: =K129 -> 1.36771231 | L128: =L129 -> 0.59225 | M128: 0.05203660674 | N128: =N129 -> 0.08198652144 | O128: =SUM(P128:T128) -> 2.033335452 | P128: =C128*F128 -> 0.1436126277 | Q128: =Q129 -> 0.2783527889 | R128: =R129 -> 1.085780818 | S128: =S129 -> 0.46 | T128: =T129 -> 0.06558921715 | U128: =SUM(V128:Z128) -> 1.250702004 | V128: =D128*F128 -> 0.3728835253 | W128: =W129 -> 0.1510061113 | X128: =X129 -> 0.3831244595 | Y128: =Y129 -> 0.2617013865 | Z128: =Z129 -> 0.08198652144 | AA128: =SUM(AB128:AF128) -> 0.836192125 | AB128: =C128*F128 -> 0.1436126277 | AC128: =AC129 -> 0.1208048891 | AD128: =AD129 -> 0.3029221782 | AE128: =AE129 -> 0.2032632128 | AF128: =AF129 -> 0.06558921715
B129: 2015 | C129: 0.74012 | D129: 2.02265 | E129: 0 | F129: =F130*(1+E129) -> 0.1844551539 | G129: 138.2850131 | H129: 2.815014642 | I129: 0.3730882171 | J129: 0.3479409861 | K129: 1.36771231 | L129: 0.59225 | M129: 0.05203660674 | N129: 0.08198652144 | O129: 2.026241773 | P129: 0.1365189485 | Q129: 0.2783527889 | R129: 1.085780818 | S129: 0.46 | T129: 0.06558921715 | U129: 1.250906696 | V129: 0.3730882171 | W129: 0.1510061113 | X129: 0.3831244595 | Y129: 0.2617013865 | Z129: 0.08198652144 | AA129: 0.8290984458 | AB129: 0.1365189485 | AC129: 0.1208048891 | AD129: 0.3029221782 | AE129: 0.2032632128 | AF129: 0.06558921715
B130: 2016 | C130: 0.5324087793 | D130: 1.763010974 | E130: 0 | F130: 0.1844551539 | G130: 138.2850131 | H130: 2.767122885 | I130: 0.3251964606 | J130: 0.3479409861 | K130: 1.36771231 | L130: 0.59225 | M130: 0.05203660674 | N130: 0.08198652144 | O130: 1.987928368 | P130: 0.09820554335 | Q130: 0.2783527889 | R130: 1.085780818 | S130: 0.46 | T130: 0.06558921715 | U130: 1.203014939 | V130: 0.3251964606 | W130: 0.1510061113 | X130: 0.3831244595 | Y130: 0.2617013865 | Z130: 0.08198652144 | AA130: 0.7907850406 | AB130: 0.09820554335 | AC130: 0.1208048891 | AD130: 0.3029221782 | AE130: 0.2032632128 | AF130: 0.06558921715
B131: 2017 | C131: 0.5314210079 | D131: 1.78677626 | E131: 0 | F131: 0.1844551539 | G131: 138.2850131 | H131: 2.771506515 | I131: 0.3295800901 | J131: 0.3479409861 | K131: 1.36771231 | L131: 0.59225 | M131: 0.05203660674 | N131: 0.08198652144 | O131: 1.987746168 | P131: 0.09802334383 | Q131: 0.2783527889 | R131: 1.085780818 | S131: 0.46 | T131: 0.06558921715 | U131: 1.207398569 | V131: 0.3295800901 | W131: 0.1510061113 | X131: 0.3831244595 | Y131: 0.2617013865 | Z131: 0.08198652144 | AA131: 0.7906028411 | AB131: 0.09802334383 | AC131: 0.1208048891 | AD131: 0.3029221782 | AE131: 0.2032632128 | AF131: 0.06558921715
B132: 2018 | C132: 0.5383354077 | D132: 1.79541926 | E132: 0 | F132: 0.1844551539 | G132: =G133 -> 138.2850131 | H132: 2.773100761 | I132: 0.3311743359 | J132: =J133 -> 0.3479409861 | K132: =K133 -> 1.36771231 | L132: 0.59225 | M132: 0.05203660674 | N132: 0.08198652144 | O132: 1.989021565 | P132: 0.09929874049 | Q132: 0.2783527889 | R132: 1.085780818 | S132: 0.46 | T132: 0.06558921715 | U132: 1.208992815 | V132: 0.3311743359 | W132: 0.1510061113 | X132: 0.3831244595 | Y132: 0.2617013865 | Z132: 0.08198652144 | AA132: 0.7918782378 | AB132: 0.09929874049 | AC132: 0.1208048891 | AD132: 0.3029221782 | AE132: 0.2032632128 | AF132: 0.06558921715
B133: 2019 | C133: 0.5580908355 | D133: 1.820113544 | F133: ='Resultat - niveau I'!$E$15 -> 0.1844551539 | G133: ='Resultat - niveau I'!$F$15 -> 138.2850131 | H133: 2.777655749 | I133: =D133*F133 -> 0.335729324 | J133: ='Resultat - niveau I'!$I$15 -> 0.3479409861 | K133: ='Resultat - niveau I'!$J$15 -> 1.36771231 | L133: ='Resultat - niveau I'!$K$15 -> 0.59225 | M133: ='Resultat - niveau I'!$L$15 -> 0.05203660674 | N133: ='Resultat - niveau I'!$M$15 -> 0.08198652144 | O133: =SUM(P133:T133) -> 1.992665555 | P133: 0.102942731 | Q133: ='Resultat - niveau I'!$P$15 -> 0.2783527889 | R133: ='Resultat - niveau I'!$Q$15 -> 1.085780818 | S133: ='Resultat - niveau I'!$R$15 -> 0.46 | T133: ='Resultat - niveau I'!$S$15 -> 0.06558921715 | U133: =SUM(V133:Z133) -> 1.213547803 | V133: 0.335729324 | W133: ='Resultat - niveau I'!$V$15 -> 0.1510061113 | X133: ='Resultat - niveau I'!$W$15 -> 0.3831244595 | Y133: ='Resultat - niveau I'!$X$15 -> 0.2617013865 | Z133: ='Resultat - niveau I'!$Y$15 -> 0.08198652144 | AA133: =SUM(AB133:AF133) -> 0.7955222283 | AB133: 0.102942731 | AC133: ='Resultat - niveau I'!$AB$15 -> 0.1208048891 | AD133: ='Resultat - niveau I'!$AC$15 -> 0.3029221782 | AE133: ='Resultat - niveau I'!$AD$15 -> 0.2032632128 | AF133: ='Resultat - niveau I'!$AE$15 -> 0.06558921715
B134: 2020 | C134: 0.5768584919 | D134: 1.843573115 | E134: 0 | F134: =F133*(1+E134) -> 0.1844551539 | G134: =G133 -> 138.2850131 | H134: 2.781982987 | I134: =D134*F134 -> 0.3400565627 | J134: =J133 -> 0.3479409861 | K134: =K133 -> 1.36771231 | L134: =L133 -> 0.59225 | M134: =M133 -> 0.05203660674 | N134: =N133 -> 0.08198652144 | O134: =SUM(P134:T134) -> 1.996127346 | P134: 0.1064045219 | Q134: =Q133 -> 0.2783527889 | R134: =R133 -> 1.085780818 | S134: =S133 -> 0.46 | T134: =T133 -> 0.06558921715 | U134: =SUM(V134:Z134) -> 1.217875042 | V134: 0.3400565627 | W134: =W133 -> 0.1510061113 | X134: =X133 -> 0.3831244595 | Y134: =Y133 -> 0.2617013865 | Z134: =Z133 -> 0.08198652144 | AA134: =SUM(AB134:AF134) -> 0.7989840192 | AB134: 0.1064045219 | AC134: =AC133 -> 0.1208048891 | AD134: =AD133 -> 0.3029221782 | AE134: =AE133 -> 0.2032632128 | AF134: =AF133 -> 0.06558921715
B135: 2021 | C135: 0.6222959758 | D135: 1.90036997 | E135: 0 | F135: =F134*(1+E135) -> 0.1844551539 | G135: =G134 -> 138.2850131 | H135: 2.79245946 | I135: 0.3505330353 | J135: =J134 -> 0.3479409861 | K135: 1.36771231 | L135: 0.59225 | M135: =M134 -> 0.05203660674 | N135: 0.08198652144 | O135: 2.004508524 | P135: 0.1147857 | Q135: =Q134 -> 0.2783527889 | R135: 1.085780818 | S135: 0.46 | T135: 0.06558921715 | U135: 1.228351514 | V135: 0.3505330353 | W135: =W134 -> 0.1510061113 | X135: 0.3831244595 | Y135: 0.2617013865 | Z135: 0.08198652144 | AA135: 0.8073651973 | AB135: 0.1147857 | AC135: =AC134 -> 0.1208048891 | AD135: 0.3029221782 | AE135: 0.2032632128 | AF135: 0.06558921715
B136: 2022 | C136: 0.6469902606 | D136: 1.931237826 | E136: 0 | F136: 0.1844551539 | G136: 138.2850131 | H136: 2.798153195 | I136: 0.3562267705 | J136: 0.3479409861 | K136: 1.36771231 | L136: 0.59225 | M136: =M135 -> 0.05203660674 | N136: 0.08198652144 | O136: 2.009063512 | P136: 0.1193406881 | Q136: 0.2783527889 | R136: 1.085780818 | S136: 0.46 | T136: 0.06558921715 | U136: 1.234045249 | V136: 0.3562267705 | W136: 0.1510061113 | X136: 0.3831244595 | Y136: 0.2617013865 | Z136: 0.08198652144 | AA136: 0.8119201854 | AB136: 0.1193406881 | AC136: 0.1208048891 | AD136: 0.3029221782 | AE136: 0.2032632128 | AF136: 0.06558921715
B137: 2023 | C137: 0.6637823742 | D137: 1.952227968 | E137: 0 | F137: 0.1844551539 | G137: 138.2850131 | H137: 2.802024935 | I137: 0.3600985103 | J137: 0.3479409861 | K137: 1.36771231 | L137: 0.59225 | M137: =M136 -> 0.05203660674 | N137: 0.08198652144 | O137: 2.012160904 | P137: 0.12243808 | Q137: 0.2783527889 | R137: 1.085780818 | S137: 0.46 | T137: 0.06558921715 | U137: 1.237916989 | V137: 0.3600985103 | W137: 0.1510061113 | X137: 0.3831244595 | Y137: 0.2617013865 | Z137: 0.08198652144 | AA137: 0.8150175773 | AB137: 0.12243808 | AC137: 0.1208048891 | AD137: 0.3029221782 | AE137: 0.2032632128 | AF137: 0.06558921715
B138: 2024 | C138: 0.6716845453 | D138: 1.962105682 | E138: 0 | F138: 0.1844551539 | G138: 138.2850131 | H138: 2.80384693 | I138: 0.3619205056 | J138: 0.3479409861 | K138: 1.36771231 | L138: 0.59225 | M138: =M137 -> 0.05203660674 | N138: 0.08198652144 | O138: 2.0136185 | P138: 0.1238956762 | Q138: 0.2783527889 | R138: 1.085780818 | S138: 0.46 | T138: 0.06558921715 | U138: 1.239738984 | V138: 0.3619205056 | W138: 0.1510061113 | X138: 0.3831244595 | Y138: 0.2617013865 | Z138: 0.08198652144 | AA138: 0.8164751735 | AB138: 0.1238956762 | AC138: 0.1208048891 | AD138: 0.3029221782 | AE138: 0.2032632128 | AF138: 0.06558921715
B139: 2025 | C139: 0.6855133448 | D139: 1.979391681 | E139: 0 | F139: 0.1844551539 | G139: 138.2850131 | H139: 2.807035422 | I139: 0.3651089972 | J139: 0.3479409861 | K139: 1.36771231 | L139: 0.59225 | M139: =M138 -> 0.05203660674 | N139: 0.08198652144 | O139: 2.016169294 | P139: 0.1264464695 | Q139: 0.2783527889 | R139: 1.085780818 | S139: 0.46 | T139: 0.06558921715 | U139: 1.242927476 | V139: 0.3651089972 | W139: 0.1510061113 | X139: 0.3831244595 | Y139: 0.2617013865 | Z139: 0.08198652144 | AA139: 0.8190259668 | AB139: 0.1264464695 | AC139: 0.1208048891 | AD139: 0.3029221782 | AE139: 0.2032632128 | AF139: 0.06558921715
B140: 2026 | C140: 0.7072443154 | D140: 2.006555394 | E140: 0 | F140: 0.1844551539 | G140: 138.2850131 | H140: 2.812045909 | I140: 0.3701194841 | J140: 0.3479409861 | K140: 1.36771231 | L140: 0.59225 | M140: =M139 -> 0.05203660674 | N140: 0.08198652144 | O140: 2.020177683 | P140: 0.1304548591 | Q140: 0.2783527889 | R140: 1.085780818 | S140: 0.46 | T140: 0.06558921715 | U140: 1.247937963 | V140: 0.3701194841 | W140: 0.1510061113 | X140: 0.3831244595 | Y140: 0.2617013865 | Z140: 0.08198652144 | AA140: 0.8230343564 | AB140: 0.1304548591 | AC140: 0.1208048891 | AD140: 0.3029221782 | AE140: 0.2032632128 | AF140: 0.06558921715
B141: 2027 | C141: 0.728975286 | D141: 2.033719107 | E141: 0 | F141: 0.1844551539 | G141: 138.2850131 | H141: 2.817056396 | I141: 0.3751299711 | J141: 0.3479409861 | K141: 1.36771231 | L141: 0.59225 | M141: =M140 -> 0.05203660674 | N141: 0.08198652144 | O141: 2.024186073 | P141: 0.1344632486 | Q141: 0.2783527889 | R141: 1.085780818 | S141: 0.46 | T141: 0.06558921715 | U141: 1.25294845 | V141: 0.3751299711 | W141: 0.1510061113 | X141: 0.3831244595 | Y141: 0.2617013865 | Z141: 0.08198652144 | AA141: 0.8270427459 | AB141: 0.1344632486 | AC141: 0.1208048891 | AD141: 0.3029221782 | AE141: 0.2032632128 | AF141: 0.06558921715
B142: 2028 | C142: 0.7507062565 | D142: 2.060882821 | E142: 0 | F142: 0.1844551539 | G142: 138.2850131 | H142: 2.822066883 | I142: 0.380140458 | J142: 0.3479409861 | K142: 1.36771231 | L142: 0.59225 | M142: =M141 -> 0.05203660674 | N142: 0.08198652144 | O142: 2.028194462 | P142: 0.1384716381 | Q142: 0.2783527889 | R142: 1.085780818 | S142: 0.46 | T142: 0.06558921715 | U142: 1.257958937 | V142: 0.380140458 | W142: 0.1510061113 | X142: 0.3831244595 | Y142: 0.2617013865 | Z142: 0.08198652144 | AA142: 0.8310511354 | AB142: 0.1384716381 | AC142: 0.1208048891 | AD142: 0.3029221782 | AE142: 0.2032632128 | AF142: 0.06558921715
B143: 2029 | C143: 0.7724372271 | D143: 2.088046534 | E143: 0 | F143: 0.1844551539 | G143: 138.2850131 | H143: 2.827077369 | I143: 0.3851509449 | J143: 0.3479409861 | K143: 1.36771231 | L143: 0.59225 | M143: =M142 -> 0.05203660674 | N143: 0.08198652144 | O143: 2.032202852 | P143: 0.1424800276 | Q143: 0.2783527889 | R143: 1.085780818 | S143: 0.46 | T143: 0.06558921715 | U143: 1.262969424 | V143: 0.3851509449 | W143: 0.1510061113 | X143: 0.3831244595 | Y143: 0.2617013865 | Z143: 0.08198652144 | AA143: 0.8350595249 | AB143: 0.1424800276 | AC143: 0.1208048891 | AD143: 0.3029221782 | AE143: 0.2032632128 | AF143: 0.06558921715
B144: 2030 | C144: 0.7951559691 | D144: 2.116444961 | E144: 0 | F144: 0.1844551539 | G144: 138.2850131 | H144: 2.832315606 | I144: 0.3903891812 | J144: 0.3479409861 | K144: 1.36771231 | L144: 0.59225 | M144: =M143 -> 0.05203660674 | N144: 0.08198652144 | O144: 2.036393441 | P144: 0.1466706167 | Q144: 0.2783527889 | R144: 1.085780818 | S144: 0.46 | T144: 0.06558921715 | U144: 1.26820766 | V144: 0.3903891812 | W144: 0.1510061113 | X144: 0.3831244595 | Y144: 0.2617013865 | Z144: 0.08198652144 | AA144: 0.839250114 | AB144: 0.1466706167 | AC144: 0.1208048891 | AD144: 0.3029221782 | AE144: 0.2032632128 | AF144: 0.06558921715
B145: 2031 | C145: 0.8168869397 | D145: 2.143608675 | E145: 0 | F145: 0.1844551539 | G145: 138.2850131 | H145: 2.837326093 | I145: 0.3953996681 | J145: 0.3479409861 | K145: 1.36771231 | L145: 0.59225 | M145: =M144 -> 0.05203660674 | N145: 0.08198652144 | O145: 2.04040183 | P145: 0.1506790062 | Q145: 0.2783527889 | R145: 1.085780818 | S145: 0.46 | T145: 0.06558921715 | U145: 1.273218147 | V145: 0.3953996681 | W145: 0.1510061113 | X145: 0.3831244595 | Y145: 0.2617013865 | Z145: 0.08198652144 | AA145: 0.8432585035 | AB145: 0.1506790062 | AC145: 0.1208048891 | AD145: 0.3029221782 | AE145: 0.2032632128 | AF145: 0.06558921715
B146: 2032 | C146: 0.8386179103 | D146: 2.170772388 | E146: 0 | F146: 0.1844551539 | G146: 138.2850131 | H146: 2.84233658 | I146: 0.400410155 | J146: 0.3479409861 | K146: 1.36771231 | L146: 0.59225 | M146: =M145 -> 0.05203660674 | N146: 0.08198652144 | O146: 2.04441022 | P146: 0.1546873957 | Q146: 0.2783527889 | R146: 1.085780818 | S146: 0.46 | T146: 0.06558921715 | U146: 1.278228634 | V146: 0.400410155 | W146: 0.1510061113 | X146: 0.3831244595 | Y146: 0.2617013865 | Z146: 0.08198652144 | AA146: 0.847266893 | AB146: 0.1546873957 | AC146: 0.1208048891 | AD146: 0.3029221782 | AE146: 0.2032632128 | AF146: 0.06558921715
B147: 2033 | C147: 0.8603488809 | D147: 2.197936101 | E147: 0 | F147: 0.1844551539 | G147: 138.2850131 | H147: 2.847347066 | I147: 0.4054206419 | J147: 0.3479409861 | K147: 1.36771231 | L147: 0.59225 | M147: =M146 -> 0.05203660674 | N147: 0.08198652144 | O147: 2.048418609 | P147: 0.1586957853 | Q147: 0.2783527889 | R147: 1.085780818 | S147: 0.46 | T147: 0.06558921715 | U147: 1.283239121 | V147: 0.4054206419 | W147: 0.1510061113 | X147: 0.3831244595 | Y147: 0.2617013865 | Z147: 0.08198652144 | AA147: 0.8512752825 | AB147: 0.1586957853 | AC147: 0.1208048891 | AD147: 0.3029221782 | AE147: 0.2032632128 | AF147: 0.06558921715
B148: 2034 | C148: 0.8830676228 | D148: 2.226334529 | E148: 0 | F148: 0.1844551539 | G148: 138.2850131 | H148: 2.852585303 | I148: 0.4106588782 | J148: 0.3479409861 | K148: 1.36771231 | L148: 0.59225 | M148: =M147 -> 0.05203660674 | N148: 0.08198652144 | O148: 2.052609199 | P148: 0.1628863743 | Q148: 0.2783527889 | R148: 1.085780818 | S148: 0.46 | T148: 0.06558921715 | U148: 1.288477357 | V148: 0.4106588782 | W148: 0.1510061113 | X148: 0.3831244595 | Y148: 0.2617013865 | Z148: 0.08198652144 | AA148: 0.8554658716 | AB148: 0.1628863743 | AC148: 0.1208048891 | AD148: 0.3029221782 | AE148: 0.2032632128 | AF148: 0.06558921715
B149: 2035 | C149: 0.9047985934 | D149: 2.253498242 | E149: 0 | F149: 0.1844551539 | G149: 138.2850131 | H149: 2.85759579 | I149: 0.4156693651 | J149: 0.3479409861 | K149: 1.36771231 | L149: 0.59225 | M149: =M148 -> 0.05203660674 | N149: 0.08198652144 | O149: 2.056617588 | P149: 0.1668947638 | Q149: 0.2783527889 | R149: 1.085780818 | S149: 0.46 | T149: 0.06558921715 | U149: 1.293487844 | V149: 0.4156693651 | W149: 0.1510061113 | X149: 0.3831244595 | Y149: 0.2617013865 | Z149: 0.08198652144 | AA149: 0.8594742611 | AB149: 0.1668947638 | AC149: 0.1208048891 | AD149: 0.3029221782 | AE149: 0.2032632128 | AF149: 0.06558921715
B150: 2036 | C150: 0.9047985934 | D150: 2.253498242 | E150: 0 | F150: 0.1844551539 | G150: 138.2850131 | H150: 2.85759579 | I150: 0.4156693651 | J150: 0.3479409861 | K150: 1.36771231 | L150: 0.59225 | M150: =M149 -> 0.05203660674 | N150: 0.08198652144 | O150: 2.056617588 | P150: 0.1668947638 | Q150: 0.2783527889 | R150: 1.085780818 | S150: 0.46 | T150: 0.06558921715 | U150: 1.293487844 | V150: 0.4156693651 | W150: 0.1510061113 | X150: 0.3831244595 | Y150: 0.2617013865 | Z150: 0.08198652144 | AA150: 0.8594742611 | AB150: 0.1668947638 | AC150: 0.1208048891 | AD150: 0.3029221782 | AE150: 0.2032632128 | AF150: 0.06558921715
B151: 2037 | C151: 0.9047985934 | D151: 2.253498242 | E151: 0 | F151: 0.1844551539 | G151: 138.2850131 | H151: 2.85759579 | I151: 0.4156693651 | J151: 0.3479409861 | K151: 1.36771231 | L151: 0.59225 | M151: =M150 -> 0.05203660674 | N151: 0.08198652144 | O151: 2.056617588 | P151: 0.1668947638 | Q151: 0.2783527889 | R151: 1.085780818 | S151: 0.46 | T151: 0.06558921715 | U151: 1.293487844 | V151: 0.4156693651 | W151: 0.1510061113 | X151: 0.3831244595 | Y151: 0.2617013865 | Z151: 0.08198652144 | AA151: 0.8594742611 | AB151: 0.1668947638 | AC151: 0.1208048891 | AD151: 0.3029221782 | AE151: 0.2032632128 | AF151: 0.06558921715
B152: 2038 | C152: 0.9047985934 | D152: 2.253498242 | E152: 0 | F152: 0.1844551539 | G152: 138.2850131 | H152: 2.85759579 | I152: 0.4156693651 | J152: 0.3479409861 | K152: 1.36771231 | L152: 0.59225 | M152: =M151 -> 0.05203660674 | N152: 0.08198652144 | O152: 2.056617588 | P152: 0.1668947638 | Q152: 0.2783527889 | R152: 1.085780818 | S152: 0.46 | T152: 0.06558921715 | U152: 1.293487844 | V152: 0.4156693651 | W152: 0.1510061113 | X152: 0.3831244595 | Y152: 0.2617013865 | Z152: 0.08198652144 | AA152: 0.8594742611 | AB152: 0.1668947638 | AC152: 0.1208048891 | AD152: 0.3029221782 | AE152: 0.2032632128 | AF152: 0.06558921715
B153: 2039 | C153: 0.9047985934 | D153: 2.253498242 | E153: 0 | F153: 0.1844551539 | G153: 138.2850131 | H153: 2.85759579 | I153: 0.4156693651 | J153: 0.3479409861 | K153: 1.36771231 | L153: 0.59225 | M153: =M152 -> 0.05203660674 | N153: 0.08198652144 | O153: 2.056617588 | P153: 0.1668947638 | Q153: 0.2783527889 | R153: 1.085780818 | S153: 0.46 | T153: 0.06558921715 | U153: 1.293487844 | V153: 0.4156693651 | W153: 0.1510061113 | X153: 0.3831244595 | Y153: 0.2617013865 | Z153: 0.08198652144 | AA153: 0.8594742611 | AB153: 0.1668947638 | AC153: 0.1208048891 | AD153: 0.3029221782 | AE153: 0.2032632128 | AF153: 0.06558921715
B154: 2040 | C154: 0.9047985934 | D154: 2.253498242 | E154: 0 | F154: 0.1844551539 | G154: 138.2850131 | H154: 2.85759579 | I154: 0.4156693651 | J154: 0.3479409861 | K154: 1.36771231 | L154: 0.59225 | M154: =M153 -> 0.05203660674 | N154: 0.08198652144 | O154: 2.056617588 | P154: 0.1668947638 | Q154: 0.2783527889 | R154: 1.085780818 | S154: 0.46 | T154: 0.06558921715 | U154: 1.293487844 | V154: 0.4156693651 | W154: 0.1510061113 | X154: 0.3831244595 | Y154: 0.2617013865 | Z154: 0.08198652144 | AA154: 0.8594742611 | AB154: 0.1668947638 | AC154: 0.1208048891 | AD154: 0.3029221782 | AE154: 0.2032632128 | AF154: 0.06558921715
B155: 2041 | C155: 0.9047985934 | D155: 2.253498242 | E155: 0 | F155: 0.1844551539 | G155: 138.2850131 | H155: 2.85759579 | I155: 0.4156693651 | J155: 0.3479409861 | K155: 1.36771231 | L155: 0.59225 | M155: =M154 -> 0.05203660674 | N155: 0.08198652144 | O155: 2.056617588 | P155: 0.1668947638 | Q155: 0.2783527889 | R155: 1.085780818 | S155: 0.46 | T155: 0.06558921715 | U155: 1.293487844 | V155: 0.4156693651 | W155: 0.1510061113 | X155: 0.3831244595 | Y155: 0.2617013865 | Z155: 0.08198652144 | AA155: 0.8594742611 | AB155: 0.1668947638 | AC155: 0.1208048891 | AD155: 0.3029221782 | AE155: 0.2032632128 | AF155: 0.06558921715
B156: 2042 | C156: 0.9047985934 | D156: 2.253498242 | E156: 0 | F156: 0.1844551539 | G156: 138.2850131 | H156: 2.85759579 | I156: 0.4156693651 | J156: 0.3479409861 | K156: 1.36771231 | L156: 0.59225 | M156: =M155 -> 0.05203660674 | N156: 0.08198652144 | O156: 2.056617588 | P156: 0.1668947638 | Q156: 0.2783527889 | R156: 1.085780818 | S156: 0.46 | T156: 0.06558921715 | U156: 1.293487844 | V156: 0.4156693651 | W156: 0.1510061113 | X156: 0.3831244595 | Y156: 0.2617013865 | Z156: 0.08198652144 | AA156: 0.8594742611 | AB156: 0.1668947638 | AC156: 0.1208048891 | AD156: 0.3029221782 | AE156: 0.2032632128 | AF156: 0.06558921715
B157: 2043 | C157: 0.9047985934 | D157: 2.253498242 | E157: 0 | F157: 0.1844551539 | G157: 138.2850131 | H157: 2.85759579 | I157: 0.4156693651 | J157: 0.3479409861 | K157: 1.36771231 | L157: 0.59225 | M157: =M156 -> 0.05203660674 | N157: 0.08198652144 | O157: 2.056617588 | P157: 0.1668947638 | Q157: 0.2783527889 | R157: 1.085780818 | S157: 0.46 | T157: 0.06558921715 | U157: 1.293487844 | V157: 0.4156693651 | W157: 0.1510061113 | X157: 0.3831244595 | Y157: 0.2617013865 | Z157: 0.08198652144 | AA157: 0.8594742611 | AB157: 0.1668947638 | AC157: 0.1208048891 | AD157: 0.3029221782 | AE157: 0.2032632128 | AF157: 0.06558921715
B158: 2044 | C158: 0.9047985934 | D158: 2.253498242 | E158: 0 | F158: 0.1844551539 | G158: 138.2850131 | H158: 2.85759579 | I158: 0.4156693651 | J158: 0.3479409861 | K158: 1.36771231 | L158: 0.59225 | M158: =M157 -> 0.05203660674 | N158: 0.08198652144 | O158: 2.056617588 | P158: 0.1668947638 | Q158: 0.2783527889 | R158: 1.085780818 | S158: 0.46 | T158: 0.06558921715 | U158: 1.293487844 | V158: 0.4156693651 | W158: 0.1510061113 | X158: 0.3831244595 | Y158: 0.2617013865 | Z158: 0.08198652144 | AA158: 0.8594742611 | AB158: 0.1668947638 | AC158: 0.1208048891 | AD158: 0.3029221782 | AE158: 0.2032632128 | AF158: 0.06558921715
C159: Kilde: ENS … | D159: Kilde: ENS … | E159: Kilde til 2030: ENS, 2015
C161: Varebiler | D161: benzin
J162: 1 | K162: =J162+1 -> 2 | L162: =K162+1 -> 3 | M162: 4 | N162: 5 | O162: 6 | P162: 7 | Q162: 8 | R162: 9 | S162: 10 | T162: 11 | U162: 12 | V162: 13 | W162: 14 | X162: 15 | Y162: 16 | Z162: 17 | AA162: 18 | AB162: 19 | AC162: 20
C163: Benzinpris ekskl. afgifter og moms [2015-kr. per liter] | D163: Benzinpris inkl. afgifter og moms [2015-kr. per liter] | E163: Årlig ændring i real BNP per capita | F163: Årlig ændring i brændstofforbrug per km | G163: Brændstof-effektivitet [liter/km] | H163: Trafikarbejde, i alt [mio. km] | I163: Variable omkostninger i alt, opgjort i markedspriser [kr. per km.] | J163: Variable omkostninger inkl.. afgifter, opgjort i faktorpriser [kr. per km.] | K163: Ikke-refunderbare afgifter i alt, [kr. per km.] | L163: Registreringsafgift, [kr. per km.] | M163: Afgifter (brændstof) , [kr. per km.] | N163: Variable omkostninger ekskl. afgifter, opgjort i faktorpriser, [kr. per km.] | O163: Kapitalomkostninger/afskrivninger, [kr. per km.] | P163: Brændstof, [kr. per km.] | Q163: Olie, [kr. per km.] | R163: Dæk, [kr. per km.] | S163: Reparation, [kr. per km.] | T163: Faste omkostninger i alt, opgjort i markedspriser [kr. per time] | U163: Faste omkostninger inkl. afgifter, opgjort i faktorpriser [kr. per time] | V163: Ikke-refunderbare afgifter i alt, [kr. per time] | W163: Registreringsafgift, [kr. per time] | X163: Vægtafgift, vejafgift, udligningsafgift, [kr. per time] | Y163: Faste omkostninger ekskl. afgifter, opgjort i faktorpriser, [kr. per time] | Z163: Kapitalomkostninger/afskrivninger, [kr. per time] | AA163: Løn, [kr. per time] | AB163: Reparation, [kr. per time] | AC163: Kapacitets-omkostninger, [kr. per time]
B164: 2014 | C164: 5.319749459 | D164: 12.29776989 | E164: -0.005040520793 | F164: 0.00255970758 | G164: =G165*(1+F164) -> 0.0594743101 | H164: =H165 -> 796.7078595 | I164: =NAF*J164 -> 1.799090022 | J164: =K164+N164 -> 1.357803791 | K164: =SUM(L164:M164) -> 0.318663869 | L164: =L165 -> 0.04993119416 | M164: =(D164/(1+Moms)-C164)*G164 -> 0.2687326749 | N164: =SUM(O164:S164) -> 1.039139921 | O164: =O165 -> 0.1268858128 | P164: =C164*G164 -> 0.316388429 | Q164: =Q165 -> 0 | R164: =R165 -> 0.09662042024 | S164: =S165 -> 0.4992452595 | T164: =NAF*U164 -> 472.5672261 | U164: =V164+Y164 -> 356.6545103 | V164: =SUM(W164:X164) -> 3.165994355 | W164: =W165 -> 1.930935678 | X164: =X165 -> 1.235058677 | Y164: =SUM(Z164:AC164) -> 353.4885159 | Z164: =Z165 -> 4.772760842 | AA164: =AA165/(1+E164) -> 297.3519718 | AB164: =AB165 -> 11.36378325 | AC164: =AC165 -> 40
B165: 2015 | C165: 4.374868823 | D165: 11.17858603 | E165: -0.003324669904 | F165: 0.0001542207101 | G165: =G166*(1+F165) -> 0.05932246195 | H165: 796.7078595 | I165: 1.726734279 | J165: 1.303195682 | K165: 0.3209162003 | L165: 0.04993119416 | M165: 0.2709850062 | N165: 0.9822794818 | O165: 0.1268858128 | P165: 0.2595279893 | Q165: 0 | R165: 0.09662042024 | S165: 0.4992452595 | T165: 470.5813044 | U165: 355.1557015 | V165: 3.165994355 | W165: 1.930935678 | X165: 1.235058677 | Y165: 351.9897071 | Z165: 4.772760842 | AA165: 295.853163 | AB165: 11.36378325 | AC165: 40
B166: 2016 | C166: 3.68387187 | D166: 10.26785669 | E166: -0.009010500662 | F166: 0.001797112874 | G166: 0.0593133146 | H166: 796.7078595 | I166: 1.669366411 | J166: 1.259899178 | K166: 0.3186450343 | L166: 0.04993119416 | M166: 0.2687138401 | N166: 0.9412541437 | O166: 0.1268858128 | P166: 0.2185026512 | Q166: 0 | R166: 0.09662042024 | S166: 0.4992452595 | T166: 469.2780157 | U166: 354.1720874 | V166: 3.165994355 | W166: 1.930935678 | X166: 1.235058677 | Y166: 351.006093 | Z166: 4.772760842 | AA166: 294.8695489 | AB166: 11.36378325 | AC166: 40
B167: 2017 | C167: 3.979151311 | D167: 10.54232952 | E167: -0.01422350414 | F167: 0.002958183634 | G167: 0.0592069131 | H167: 796.7078595 | I167: 1.685434075 | J167: 1.272025717 | K167: 0.3136809584 | L167: 0.04993119416 | M167: 0.2637497643 | N167: 0.9583447584 | O167: 0.1268858128 | P167: 0.2355932659 | Q167: 0 | R167: 0.09662042024 | S167: 0.4992452595 | T167: 465.7575937 | U167: 351.5151651 | V167: 3.165994355 | W167: 1.930935678 | X167: 1.235058677 | Y167: 348.3491707 | Z167: 4.772760842 | AA167: =AA168/(1+E167) -> 292.2126266 | AB167: 11.36378325 | AC167: 40
B168: 2018 | C168: 4.066761694 | D168: 10.6518425 | E168: -0.01477606481 | F168: 0.004987036357 | G168: 0.05903228476 | H168: =H169 -> 796.7078595 | I168: =NAF*J168 -> 1.690335315 | J168: =K168+N168 -> 1.275724766 | K168: =SUM(L168:M168) -> 0.3129030394 | L168: =L169 -> 0.04993119416 | M168: =(D168/(1+Moms)-C168)*G168 -> 0.2629718453 | N168: =SUM(O168:S168) -> 0.9628217269 | O168: =O169 -> 0.1268858128 | P168: =C168*G168 -> 0.2400702344 | Q168: =Q169 -> 0 | R168: 0.09662042024 | S168: 0.4992452595 | T168: =NAF*U168 -> 460.2505128 | U168: =V168+Y168 -> 347.3588776 | V168: =SUM(W168:X168) -> 3.165994355 | W168: =W169 -> 1.930935678 | X168: 1.235058677 | Y168: =SUM(Z168:AC168) -> 344.1928832 | Z168: =Z169 -> 4.772760842 | AA168: =AA169/(1+E168) -> 288.0563391 | AB168: 11.36378325 | AC168: 40
B169: 2019 | C169: 4.108944471 | D169: 10.70457097 | G169: ='Resultat - niveau I'!$E$26 -> 0.05873934949 | H169: ='Resultat - niveau I'!$F$26 -> 796.7078595 | I169: =NAF*J169 -> 1.690310867 | J169: =K169+N169 -> 1.275706315 | K169: =SUM(L169:M169) -> 0.3115980971 | L169: ='Resultat - niveau I'!$J$26 -> 0.04993119416 | M169: =(D169/(1+Moms)-C169)*G169 -> 0.2616669029 | N169: =SUM(O169:S169) -> 0.9641082179 | O169: ='Resultat - niveau I'!$M$26 -> 0.1268858128 | P169: =C169*G169 -> 0.2413567253 | Q169: ='Resultat - niveau I'!$O$26 -> 0 | R169: ='Resultat - niveau I'!$P$26 -> 0.09662042024 | S169: ='Resultat - niveau I'!$Q$26 -> 0.4992452595 | T169: =NAF*U169 -> 454.6108634 | U169: =V169+Y169 -> 343.1025384 | V169: =SUM(W169:X169) -> 3.165994355 | W169: ='Resultat - niveau I'!$U$26 -> 1.930935678 | X169: ='Resultat - niveau I'!$V$26 -> 1.235058677 | Y169: =SUM(Z169:AC169) -> 339.9365441 | Z169: ='Resultat - niveau I'!$X$26 -> 4.772760842 | AA169: ='Resultat - niveau I'!$Y$26 -> 283.8 | AB169: ='Resultat - niveau I'!$Z$26 -> 11.36378325 | AC169: ='Resultat - niveau I'!$AA$26 -> 40
B170: 2020 | C170: 4.251716948 | D170: 10.88303657 | E170: 0.01249264004 | F170: -0.006256911138 | G170: =G169*(1+F170) -> 0.0583718226 | H170: =H169 -> 796.7078595 | I170: 1.697183 | J170: =K170+N170 -> 1.28089283 | K170: =SUM(L170:M170) -> 0.3099608705 | L170: =L169 -> 0.04993119416 | M170: 0.2600296764 | N170: =SUM(O170:S170) -> 0.97093196 | O170: =O169 -> 0.1268858128 | P170: 0.2481804674 | Q170: =Q169 -> 0 | R170: =R169 -> 0.09662042024 | S170: =S169 -> 0.4992452595 | T170: 459.3085333 | U170: =V170+Y170 -> 346.6479497 | V170: =SUM(W170:X170) -> 3.165994355 | W170: =W169 -> 1.930935678 | X170: =X169 -> 1.235058677 | Y170: =SUM(Z170:AC170) -> 343.4819553 | Z170: =Z169 -> 4.772760842 | AA170: =AA169*(1+E170) -> 287.3454112 | AB170: =AB169 -> 11.36378325 | AC170: =AC169 -> 40
B171: 2021 | C171: 4.430182544 | D171: 11.10611856 | E171: 0.01093258233 | F171: -0.008231259234 | G171: =G170*(1+F171) -> 0.057891349 | H171: =H170 -> 796.7078595 | I171: 1.705329637 | J171: =K171+N171 -> 1.287041235 | K171: =SUM(L171:M171) -> 0.3078204988 | L171: =L170 -> 0.04993119416 | M171: 0.2578893047 | N171: =SUM(O171:S171) -> 0.9792207363 | O171: =O170 -> 0.1268858128 | P171: 0.2564692438 | Q171: =Q170 -> 0 | R171: =R170 -> 0.09662042024 | S171: =S170 -> 0.4992452595 | T171: 463.4709246 | U171: =V171+Y171 -> 349.7893771 | V171: =SUM(W171:X171) -> 3.165994355 | W171: =W170 -> 1.930935678 | X171: =X170 -> 1.235058677 | Y171: =SUM(Z171:AC171) -> 346.6233827 | Z171: =Z170 -> 4.772760842 | AA171: =AA170*(1+E171) -> 290.4868386 | AB171: =AB170 -> 11.36378325 | AC171: =AC170 -> 40
B172: 2022 | C172: 4.546996389 | D172: 11.25213587 | E172: 0.01329732922 | F172: -0.009458928041 | G172: 0.05734375889 | H172: 796.7078595 | I172: 1.707758712 | J172: 1.2888745 | K172: 0.3053811425 | L172: 0.04993119416 | M172: 0.2554499483 | N172: 0.9834933571 | O172: 0.1268858128 | P172: 0.2607418646 | Q172: 0 | R172: 0.09662042024 | S172: 0.4992452595 | T172: 468.5890009 | U172: 353.6520762 | V172: 3.165994355 | W172: 1.930935678 | X172: 1.235058677 | Y172: 350.4860818 | Z172: 4.772760842 | AA172: 294.3495377 | AB172: 11.36378325 | AC172: 40
B173: 2023 | C173: 4.660565404 | D173: 11.39409714 | E173: 0.008330294194 | F173: -0.008204305351 | G173: 0.05687329318 | H173: 796.7078595 | I173: 1.710705576 | J173: 1.291098548 | K173: 0.3032853531 | L173: 0.04993119416 | M173: 0.2533541589 | N173: 0.9878131952 | O173: 0.1268858128 | P173: 0.2650617026 | Q173: 0 | R173: 0.09662042024 | S173: 0.4992452595 | T173: 471.8379251 | U173: 356.1040944 | V173: 3.165994355 | W173: 1.930935678 | X173: 1.235058677 | Y173: 352.9381001 | Z173: 4.772760842 | AA173: 296.801556 | AB173: 11.36378325 | AC173: 40
B174: 2024 | C174: 4.767644762 | D174: 11.52794633 | E174: 0.006323069976 | F174: -0.007227230901 | G174: 0.05646225676 | H174: 796.7078595 | I174: 1.713752058 | J174: 1.293397779 | K174: 0.3014543041 | L174: 0.04993119416 | M174: 0.2515231099 | N174: 0.9919434752 | O174: 0.1268858128 | P174: 0.2691919827 | Q174: 0 | R174: 0.09662042024 | S174: 0.4992452595 | T174: 474.3245486 | U174: 357.9807914 | V174: 3.165994355 | W174: 1.930935678 | X174: 1.235058677 | Y174: 354.8147971 | Z174: 4.772760842 | AA174: 298.678253 | AB174: 11.36378325 | AC174: 40
B175: 2025 | C175: 4.87147929 | D175: 11.65773949 | E175: 0.007233009529 | F175: -0.005103270648 | G175: 0.05617411458 | H175: 796.7078595 | I175: 1.717959546 | J175: 1.296573242 | K175: 0.3001707136 | L175: 0.04993119416 | M175: 0.2502395194 | N175: 0.9964025284 | O175: 0.1268858128 | P175: 0.2736510359 | Q175: 0 | R175: 0.09662042024 | S175: 0.4992452595 | T175: 477.1870027 | U175: 360.1411341 | V175: 3.165994355 | W175: 1.930935678 | X175: 1.235058677 | Y175: 356.9751397 | Z175: 4.772760842 | AA175: 300.8385956 | AB175: 11.36378325 | AC175: 40
B176: 2026 | C176: 4.968824161 | D176: 11.77942058 | E176: 0.006878860281 | F176: -0.005020592 | G176: 0.05589208727 | H176: 796.7078595 | I176: 1.721683547 | J176: 1.299383809 | K176: 0.298914363 | L176: 0.04993119416 | M176: 0.2489831689 | N176: 1.000469446 | O176: 0.1268858128 | P176: 0.2777179536 | Q176: 0 | R176: 0.09662042024 | S176: 0.4992452595 | T176: 479.928993 | U176: 362.2105607 | V176: 3.165994355 | W176: 1.930935678 | X176: 1.235058677 | Y176: 359.0445664 | Z176: 4.772760842 | AA176: 302.9080223 | AB176: 11.36378325 | AC176: 40
B177: 2027 | C177: 5.059679373 | D177: 11.8929896 | E177: 0.006697385341 | F177: -0.003244751498 | G177: 0.05571073134 | H177: 796.7078595 | I177: 1.726125737 | J177: 1.302736405 | K177: 0.2981064745 | L177: 0.04993119416 | M177: 0.2481752804 | N177: 1.004629931 | O177: 0.1268858128 | P177: 0.2818784382 | Q177: 0 | R177: 0.09662042024 | S177: 0.4992452595 | T177: 482.6170096 | U177: 364.2392525 | V177: 3.165994355 | W177: 1.930935678 | X177: 1.235058677 | Y177: 361.0732581 | Z177: 4.772760842 | AA177: 304.9367141 | AB177: 11.36378325 | AC177: 40
B178: 2028 | C178: 5.147289757 | D178: 12.00250258 | E178: 0.007974166783 | F178: -0.0028722607 | G178: 0.0555507156 | H178: 796.7078595 | I178: 1.730557023 | J178: 1.306080772 | K178: 0.2973936504 | L178: 0.04993119416 | M178: 0.2474624563 | N178: 1.008687122 | O178: 0.1268858128 | P178: 0.2859356294 | Q178: 0 | R178: 0.09662042024 | S178: 0.4992452595 | T178: 485.838901 | U178: 366.6708687 | V178: 3.165994355 | W178: 1.930935678 | X178: 1.235058677 | Y178: 363.5048744 | Z178: 4.772760842 | AA178: 307.3683303 | AB178: 11.36378325 | AC178: 40
B179: 2029 | C179: 5.231655311 | D179: 12.10795952 | E179: 0.008055299854 | F179: -0.002849307397 | G179: 0.05539243453 | H179: 796.7078595 | I179: 1.734735276 | J179: 1.309234171 | K179: 0.2966885538 | L179: 0.04993119416 | M179: 0.2467573597 | N179: 1.012545617 | O179: 0.1268858128 | P179: 0.2897941243 | Q179: 0 | R179: 0.09662042024 | S179: 0.4992452595 | T179: 489.1195269 | U179: 369.1468128 | V179: 3.165994355 | W179: 1.930935678 | X179: 1.235058677 | Y179: 365.9808184 | Z179: 4.772760842 | AA179: 309.8442743 | AB179: 11.36378325 | AC179: 40
B180: 2030 | C180: 5.309531208 | D180: 12.20530439 | E180: 0.007977335372 | F180: -0.002785472663 | G180: 0.05523814042 | H180: 796.7078595 | I180: 1.738454777 | J180: 1.312041341 | K180: 0.2960012179 | L180: 0.04993119416 | M180: 0.2460700238 | N180: 1.016040123 | O180: 0.1268858128 | P180: 0.2932886304 | Q180: 0 | R180: 0.09662042024 | S180: 0.4992452595 | T180: 492.3945714 | U180: 371.6185445 | V180: 3.165994355 | W180: 1.930935678 | X180: 1.235058677 | Y180: 368.4525501 | Z180: 4.772760842 | AA180: 312.316006 | AB180: 11.36378325 | AC180: 40
B181: 2031 | C181: 5.377672617 | D181: 12.29048115 | E181: 0.007754125162 | F181: 0 | G181: 0.05523814042 | H181: 796.7078595 | I181: 1.743442083 | J181: 1.315805346 | K181: 0.2960012179 | L181: 0.04993119416 | M181: 0.2460700238 | N181: 1.019804128 | O181: 0.1268858128 | P181: 0.2970526351 | Q181: 0 | R181: 0.09662042024 | S181: 0.4992452595 | T181: 495.6033735 | U181: 374.0402819 | V181: 3.165994355 | W181: 1.930935678 | X181: 1.235058677 | Y181: 370.8742875 | Z181: 4.772760842 | AA181: 314.7377434 | AB181: 11.36378325 | AC181: 40
B182: 2032 | C182: 5.436079539 | D182: 12.3634898 | E182: 0.007493112711 | F182: 0 | G182: 0.05523814042 | H182: 796.7078595 | I182: 1.747716917 | J182: 1.319031635 | K182: 0.2960012179 | L182: 0.04993119416 | M182: 0.2460700238 | N182: 1.023030417 | O182: 0.1268858128 | P182: 0.3002789249 | Q182: 0 | R182: 0.09662042024 | S182: 0.4992452595 | T182: 498.7282076 | U182: 376.3986473 | V182: 3.165994355 | W182: 1.930935678 | X182: 1.235058677 | Y182: 373.2326529 | Z182: 4.772760842 | AA182: 317.0961088 | AB182: 11.36378325 | AC182: 40
B183: 2033 | C183: 5.487996804 | D183: 12.42838638 | E183: 0.007396856473 | F183: 0 | G183: 0.05523814042 | H183: 796.7078595 | I183: 1.751516769 | J183: 1.321899449 | K183: 0.2960012179 | L183: 0.04993119416 | M183: 0.2460700238 | N183: 1.025898231 | O183: 0.1268858128 | P183: 0.3031467381 | Q183: 0 | R183: 0.09662042024 | S183: 0.4992452595 | T183: 501.8360142 | U183: 378.7441617 | V183: 3.165994355 | W183: 1.930935678 | X183: 1.235058677 | Y183: 375.5781673 | Z183: 4.772760842 | AA183: 319.4416232 | AB183: 11.36378325 | AC183: 40
B184: 2034 | C184: 5.536669239 | D184: 12.48922693 | E184: 0.007004728018 | F184: 0 | G184: 0.05523814042 | H184: 796.7078595 | I184: 1.755079131 | J184: 1.324588023 | K184: 0.2960012179 | L184: 0.04993119416 | M184: 0.2460700238 | N184: 1.028586805 | O184: 0.1268858128 | P184: 0.3058353129 | Q184: 0 | R184: 0.09662042024 | S184: 0.4992452595 | T184: 504.8008364 | U184: 380.9817633 | V184: 3.165994355 | W184: 1.930935678 | X184: 1.235058677 | Y184: 377.815769 | Z184: 4.772760842 | AA184: 321.6792249 | AB184: 11.36378325 | AC184: 40
B185: 2035 | C185: 5.585341674 | D185: 12.55006747 | E185: 0.006846984715 | F185: 0 | G185: 0.05523814042 | H185: 796.7078595 | I185: 1.758641493 | J185: 1.327276598 | K185: 0.2960012179 | L185: 0.04993119416 | M185: 0.2460700238 | N185: 1.03127538 | O185: 0.1268858128 | P185: 0.3085238877 | Q185: 0 | R185: 0.09662042024 | S185: 0.4992452595 | T185: 507.7191923 | U185: 383.1842961 | V185: 3.165994355 | W185: 1.930935678 | X185: 1.235058677 | Y185: 380.0183017 | Z185: 4.772760842 | AA185: 323.8817576 | AB185: 11.36378325 | AC185: 40
B186: 2036 | C186: 5.585341674 | D186: 12.55006747 | E186: 0.007007743419 | F186: 0 | G186: 0.05523814042 | H186: 796.7078595 | I186: 1.758641493 | J186: 1.327276598 | K186: 0.2960012179 | L186: 0.04993119416 | M186: 0.2460700238 | N186: 1.03127538 | O186: 0.1268858128 | P186: 0.3085238877 | Q186: 0 | R186: 0.09662042024 | S186: 0.4992452595 | T186: 510.7265187 | U186: 385.4539763 | V186: 3.165994355 | W186: 1.930935678 | X186: 1.235058677 | Y186: 382.287982 | Z186: 4.772760842 | AA186: 326.1514379 | AB186: 11.36378325 | AC186: 40
B187: 2037 | C187: 5.585341674 | D187: 12.55006747 | E187: 0.00743960982 | F187: 0 | G187: 0.05523814042 | H187: 796.7078595 | I187: 1.758641493 | J187: 1.327276598 | K187: 0.2960012179 | L187: 0.04993119416 | M187: 0.2460700238 | N187: 1.03127538 | O187: 0.1268858128 | P187: 0.3085238877 | Q187: 0 | R187: 0.09662042024 | S187: 0.4992452595 | T187: 513.9415509 | U187: 387.8804158 | V187: 3.165994355 | W187: 1.930935678 | X187: 1.235058677 | Y187: 384.7144214 | Z187: 4.772760842 | AA187: 328.5778773 | AB187: 11.36378325 | AC187: 40
B188: 2038 | C188: 5.585341674 | D188: 12.55006747 | E188: 0.007348526758 | F188: 0 | G188: 0.05523814042 | H188: 796.7078595 | I188: 1.758641493 | J188: 1.327276598 | K188: 0.2960012179 | L188: 0.04993119416 | M188: 0.2460700238 | N188: 1.03127538 | O188: 0.1268858128 | P188: 0.3085238877 | Q188: 0 | R188: 0.09662042024 | S188: 0.4992452595 | T188: 517.1408473 | U188: 390.2949791 | V188: 3.165994355 | W188: 1.930935678 | X188: 1.235058677 | Y188: 387.1289847 | Z188: 4.772760842 | AA188: 330.9924407 | AB188: 11.36378325 | AC188: 40
B189: 2039 | C189: 5.585341674 | D189: 12.55006747 | E189: 0.007762402114 | F189: 0 | G189: 0.05523814042 | H189: 796.7078595 | I189: 1.758641493 | J189: 1.327276598 | K189: 0.2960012179 | L189: 0.04993119416 | M189: 0.2460700238 | N189: 1.03127538 | O189: 0.1268858128 | P189: 0.3085238877 | Q189: 0 | R189: 0.09662042024 | S189: 0.4992452595 | T189: 520.5451651 | U189: 392.8642755 | V189: 3.165994355 | W189: 1.930935678 | X189: 1.235058677 | Y189: 389.6982812 | Z189: 4.772760842 | AA189: 333.5617371 | AB189: 11.36378325 | AC189: 40
B190: 2040 | C190: 5.585341674 | D190: 12.55006747 | E190: 0.007937987085 | F190: 0 | G190: 0.05523814042 | H190: 796.7078595 | I190: 1.758641493 | J190: 1.327276598 | K190: 0.2960012179 | L190: 0.04993119416 | M190: 0.2460700238 | N190: 1.03127538 | O190: 0.1268858128 | P190: 0.3085238877 | Q190: 0 | R190: 0.09662042024 | S190: 0.4992452595 | T190: 524.0535117 | U190: 395.5120843 | V190: 3.165994355 | W190: 1.930935678 | X190: 1.235058677 | Y190: 392.3460899 | Z190: 4.772760842 | AA190: 336.2095458 | AB190: 11.36378325 | AC190: 40
B191: 2041 | C191: 5.585341674 | D191: 12.55006747 | E191: 0.007937987085 | F191: 0 | G191: 0.05523814042 | H191: 796.7078595 | I191: 1.758641493 | J191: 1.327276598 | K191: 0.2960012179 | L191: 0.04993119416 | M191: 0.2460700238 | N191: 1.03127538 | O191: 0.1268858128 | P191: 0.3085238877 | Q191: 0 | R191: 0.09662042024 | S191: 0.4992452595 | T191: 527.5897075 | U191: 398.1809113 | V191: 3.165994355 | W191: 1.930935678 | X191: 1.235058677 | Y191: 395.014917 | Z191: 4.772760842 | AA191: 338.8783729 | AB191: 11.36378325 | AC191: 40
B192: 2042 | C192: 5.585341674 | D192: 12.55006747 | E192: 0.007937987085 | F192: 0 | G192: 0.05523814042 | H192: 796.7078595 | I192: 1.758641493 | J192: 1.327276598 | K192: 0.2960012179 | L192: 0.04993119416 | M192: 0.2460700238 | N192: 1.03127538 | O192: 0.1268858128 | P192: 0.3085238877 | Q192: 0 | R192: 0.09662042024 | S192: 0.4992452595 | T192: 531.1539736 | U192: 400.8709235 | V192: 3.165994355 | W192: 1.930935678 | X192: 1.235058677 | Y192: 397.7049291 | Z192: 4.772760842 | AA192: 341.568385 | AB192: 11.36378325 | AC192: 40
B193: 2043 | C193: 5.585341674 | D193: 12.55006747 | E193: 0.007937987085 | F193: 0 | G193: 0.05523814042 | H193: 796.7078595 | I193: 1.758641493 | J193: 1.327276598 | K193: 0.2960012179 | L193: 0.04993119416 | M193: 0.2460700238 | N193: 1.03127538 | O193: 0.1268858128 | P193: 0.3085238877 | Q193: 0 | R193: 0.09662042024 | S193: 0.4992452595 | T193: 534.7465328 | U193: 403.5822889 | V193: 3.165994355 | W193: 1.930935678 | X193: 1.235058677 | Y193: 400.4162945 | Z193: 4.772760842 | AA193: 344.2797504 | AB193: 11.36378325 | AC193: 40
B194: 2044 | C194: 5.585341674 | D194: 12.55006747 | E194: 0.007937987085 | F194: 0 | G194: 0.05523814042 | H194: 796.7078595 | I194: 1.758641493 | J194: 1.327276598 | K194: 0.2960012179 | L194: 0.04993119416 | M194: 0.2460700238 | N194: 1.03127538 | O194: 0.1268858128 | P194: 0.3085238877 | Q194: 0 | R194: 0.09662042024 | S194: 0.4992452595 | T194: 538.3676097 | U194: 406.3151771 | V194: 3.165994355 | W194: 1.930935678 | X194: 1.235058677 | Y194: 403.1491828 | Z194: 4.772760842 | AA194: 347.0126387 | AB194: 11.36378325 | AC194: 40
C195: Kilde: 2010-2015: Oliebranchens fællesråd | D195: Kilde: 2010-2015: Oliebranchens fællesråd | E195: Kilde: FM, KP15 | F195: Kilde til 2030: ENS, 2015
C197: Varebiler | D197: diesel
C199: Benzinpris ekskl. afgifter og moms [2015-kr. per liter] | D199: Benzinpris inkl. afgifter og moms [2015-kr. per liter] | E199: Årlig ændring i real BNP per capita | F199: Årlig ændring i brændstofforbrug per km | G199: Brændstof-effektivitet [km per liter] | H199: Trafikarbejde, i alt [mio. km] | I199: Variable omkostninger i alt, opgjort i markedspriser [kr. per km.] | J199: Variable omkostninger inkl.. afgifter, opgjort i faktorpriser [kr. per km.] | K199: Ikke-refunderbare afgifter i alt, [kr. per km.] | L199: Registreringsafgift, [kr. per km.] | M199: Afgifter (brændstof) , [kr. per km.] | N199: Variable omkostninger ekskl. afgifter, opgjort i faktorpriser, [kr. per km.] | O199: Kapitalomkostninger/afskrivninger, [kr. per km.] | P199: Brændstof, [kr. per km.] | Q199: Olie, [kr. per km.] | R199: Dæk, [kr. per km.] | S199: Reparation, [kr. per km.] | T199: Faste omkostninger i alt, opgjort i markedspriser [kr. per time] | U199: Faste omkostninger inkl. afgifter, opgjort i faktorpriser [kr. per time] | V199: Ikke-refunderbare afgifter i alt, [kr. per time] | W199: Registreringsafgift, [kr. per time] | X199: Vægtafgift, vejafgift, udligningsafgift, [kr. per time] | Y199: Faste omkostninger ekskl. afgifter, opgjort i faktorpriser, [kr. per time] | Z199: Kapitalomkostninger/afskrivninger, [kr. per time] | AA199: Løn, [kr. per time] | AB199: Reparation, [kr. per time] | AC199: Kapacitets-omkostninger, [kr. per time]
B200: 2014 | C200: 5.640493171 | D200: 10.91542553 | E200: -0.005040520793 | F200: 0.00255970758 | G200: =G201*(1+F200) -> 0.07330773329 | H200: =H201 -> 7340.072031 | I200: =NAF*J200 -> 2.156047297 | J200: =K200+N200 -> 1.627205507 | K200: =SUM(L200:M200) -> 0.2800599951 | L200: =L201 -> 0.05340368136 | M200: =(D200/(1+Moms)-C200)*G200 -> 0.2266563138 | N200: =SUM(O200:S200) -> 1.347145512 | O200: =O201 -> 0.1451961716 | P200: =C200*G200 -> 0.413491769 | Q200: =Q201 -> 0 | R200: =R201 -> 0.09364998653 | S200: =S201 -> 0.6948075853 | T200: =NAF*U200 -> 481.4218608 | U200: =V200+Y200 -> 363.3372534 | V200: =SUM(W200:X200) -> 7.018609693 | W200: =W201 -> 2.371103612 | X200: =X201 -> 4.647506081 | Y200: =SUM(Z200:AC200) -> 356.3186437 | Z200: =Z201 -> 7.585600931 | AA200: =AA201/(1+E200) -> 297.3519718 | AB200: =AB201 -> 11.38107101 | AC200: =AC201 -> 40
B201: 2015 | C201: 4.496099499 | D201: 9.528874374 | E201: -0.003324669904 | F201: 0.0001542207101 | G201: =G202*(1+F201) -> 0.07312056602 | H201: 7340.072031 | I201: 2.046413177 | J201: 1.544462775 | K201: 0.2820516913 | L201: 0.05340368136 | M201: 0.2286480099 | N201: 1.262411084 | O201: 0.1451961716 | P201: 0.3287573403 | Q201: 0 | R201: 0.09364998653 | S201: 0.6948075853 | T201: 479.4359392 | U201: 361.8384446 | V201: 7.018609693 | W201: 2.371103612 | X201: 4.647506081 | Y201: 354.8198349 | Z201: 7.585600931 | AA201: 295.853163 | AB201: 11.38107101 | AC201: 40
B202: 2016 | C202: 4.132672468 | D202: 9.032965578 | E202: -0.009010500662 | F202: 0.001797112874 | G202: 0.07310929105 | H202: 7340.072031 | I202: 2.00786842 | J202: 1.515372392 | K202: 0.2795818947 | L202: 0.05340368136 | M202: 0.2261782133 | N202: 1.235790498 | O202: 0.1451961716 | P202: 0.3021367543 | Q202: 0 | R202: 0.09364998653 | S202: 0.6948075853 | T202: 478.1326505 | U202: 360.8548305 | V202: 7.018609693 | W202: 2.371103612 | X202: 4.647506081 | Y202: 353.8362208 | Z202: 7.585600931 | AA202: 294.8695489 | AB202: 11.38107101 | AC202: 40
B203: 2017 | C203: 4.455079865 | D203: 9.363497061 | E203: -0.01422350414 | F203: 0.002958183634 | G203: 0.0729781411 | H203: 7340.072031 | I203: 2.032181534 | J203: 1.533721913 | K203: 0.2749447222 | L203: 0.05340368136 | M203: 0.2215410408 | N203: 1.25877719 | O203: 0.1451961716 | P203: 0.325123447 | Q203: 0 | R203: 0.09364998653 | S203: 0.6948075853 | T203: 474.6122285 | U203: 358.1979083 | V203: 7.018609693 | W203: 2.371103612 | X203: 4.647506081 | Y203: 351.1792986 | Z203: 7.585600931 | AA203: =AA204/(1+E203) -> 292.2126266 | AB203: 11.38107101 | AC203: 40
B204: 2018 | C204: 4.550739202 | D204: 9.483071233 | E204: -0.01477606481 | F204: 0.004987036357 | G204: 0.07276289509 | H204: =H205 -> 7340.072031 | I204: 2.039267748 | J204: =K204+N204 -> 1.539069999 | K204: =SUM(L204:M204) -> 0.274291296 | L204: =L205 -> 0.05340368136 | M204: 0.2208876147 | N204: =SUM(O204:S204) -> 1.264778703 | O204: =O205 -> 0.1451961716 | P204: 0.3311249591 | Q204: 0 | R204: 0.09364998653 | S204: 0.6948075853 | T204: 469.1051475 | U204: =V204+Y204 -> 354.0416208 | V204: =SUM(W204:X204) -> 7.018609693 | W204: 2.371103612 | X204: 4.647506081 | Y204: =SUM(Z204:AC204) -> 347.0230111 | Z204: 7.585600931 | AA204: =AA205/(1+E204) -> 288.0563391 | AB204: 11.38107101 | AC204: 40
B205: 2019 | C205: 4.596797402 | D205: 9.540643982 | G205: ='Resultat - niveau I'!$E$27 -> 0.07240182456 | H205: ='Resultat - niveau I'!$F$27 -> 7340.072031 | I205: =NAF*J205 -> 2.040056721 | J205: =K205+N205 -> 1.53966545 | K205: =SUM(L205:M205) -> 0.2731951878 | L205: ='Resultat - niveau I'!$J$27 -> 0.05340368136 | M205: =(D205/(1+Moms)-C205)*G205 -> 0.2197915064 | N205: =SUM(O205:S205) -> 1.266470262 | O205: ='Resultat - niveau I'!$M$27 -> 0.1451961716 | P205: =C205*G205 -> 0.332816519 | Q205: ='Resultat - niveau I'!$O$27 -> 0 | R205: ='Resultat - niveau I'!$P$27 -> 0.09364998653 | S205: ='Resultat - niveau I'!$Q$27 -> 0.6948075853 | T205: =NAF*U205 -> 463.4654982 | U205: =V205+Y205 -> 349.7852816 | V205: =SUM(W205:X205) -> 7.018609693 | W205: ='Resultat - niveau I'!$U$27 -> 2.371103612 | X205: ='Resultat - niveau I'!$V$27 -> 4.647506081 | Y205: =SUM(Z205:AC205) -> 342.7666719 | Z205: ='Resultat - niveau I'!$X$27 -> 7.585600931 | AA205: ='Resultat - niveau I'!$Y$27 -> 283.8 | AB205: ='Resultat - niveau I'!$Z$27 -> 11.38107101 | AC205: ='Resultat - niveau I'!$AA$27 -> 40
B206: 2020 | C206: 4.752686692 | D206: 9.735505596 | E206: 0.01249264004 | F206: -0.006256911138 | G206: =G205*(1+F206) -> 0.07194881278 | H206: =H205 -> 7340.072031 | I206: 2.050336641 | J206: =K206+N206 -> 1.54742388 | K206: =SUM(L206:M206) -> 0.2718199719 | L206: =L205 -> 0.05340368136 | M206: 0.2184162905 | N206: =SUM(O206:S206) -> 1.275603908 | O206: =O205 -> 0.1451961716 | P206: =C206*G206 -> 0.341950165 | Q206: =Q205 -> 0 | R206: =R205 -> 0.09364998653 | S206: =S205 -> 0.6948075853 | T206: 468.1631681 | U206: =V206+Y206 -> 353.3306929 | V206: =SUM(W206:X206) -> 7.018609693 | W206: =W205 -> 2.371103612 | X206: =X205 -> 4.647506081 | Y206: =SUM(Z206:AC206) -> 346.3120832 | Z206: =Z205 -> 7.585600931 | AA206: =AA205*(1+E206) -> 287.3454112 | AB206: =AB205 -> 11.38107101 | AC206: =AC205 -> 40
B207: 2021 | C207: 4.947548305 | D207: 9.979082612 | E207: 0.01093258233 | F207: -0.008231259234 | G207: =G206*(1+F207) -> 0.07135658345 | H207: =H206 -> 7340.072031 | I207: 2.062648723 | J207: 1.556716018 | K207: 0.2700221308 | L207: =L206 -> 0.05340368136 | M207: 0.2166184494 | N207: 1.286693887 | O207: =O206 -> 0.1451961716 | P207: 0.3530401435 | Q207: =Q206 -> 0 | R207: =R206 -> 0.09364998653 | S207: =S206 -> 0.6948075853 | T207: 472.3255593 | U207: 356.4721202 | V207: 7.018609693 | W207: =W206 -> 2.371103612 | X207: =X206 -> 4.647506081 | Y207: 349.4535105 | Z207: =Z206 -> 7.585600931 | AA207: =AA206*(1+E207) -> 290.4868386 | AB207: =AB206 -> 11.38107101 | AC207: =AC206 -> 40
B208: 2022 | C208: 5.075094089 | D208: 10.13851484 | E208: 0.01329732922 | F208: -0.009458928041 | G208: 0.07068162666 | H208: 7340.072031 | I208: 2.067454212 | J208: 1.560342801 | K208: 0.2679731524 | L208: 0.05340368136 | M208: 0.2145694711 | N208: 1.292369649 | O208: 0.1451961716 | P208: 0.3587159056 | Q208: 0 | R208: 0.09364998653 | S208: 0.6948075853 | T208: 477.4436357 | U208: 360.3348194 | V208: 7.018609693 | W208: 2.371103612 | X208: 4.647506081 | Y208: 353.3162097 | Z208: 7.585600931 | AA208: 294.3495377 | AB208: 11.38107101 | AC208: 40
B209: 2023 | C209: 5.199096933 | D209: 10.2935184 | E209: 0.008330294194 | F209: -0.008204305351 | G209: 0.07010173301 | H209: 7340.072031 | I209: 2.072740175 | J209: 1.564332207 | K209: 0.266212759 | L209: 0.05340368136 | M209: 0.2128090776 | N209: 1.298119449 | O209: 0.1451961716 | P209: 0.3644657051 | Q209: 0 | R209: 0.09364998653 | S209: 0.6948075853 | T209: 480.6925598 | U209: 362.7868376 | V209: 7.018609693 | W209: 2.371103612 | X209: 4.647506081 | Y209: 355.7682279 | Z209: 7.585600931 | AA209: 296.801556 | AB209: 11.38107101 | AC209: 40
B210: 2024 | C210: 5.316013901 | D210: 10.43966461 | E210: 0.006323069976 | F210: -0.007227230901 | G210: 0.0695950916 | H210: 7340.072031 | I210: 2.077993467 | J210: 1.568296956 | K210: 0.2646747386 | L210: 0.05340368136 | M210: 0.2112710573 | N210: 1.303622218 | O210: 0.1451961716 | P210: 0.3699684744 | Q210: 0 | R210: 0.09364998653 | S210: 0.6948075853 | T210: 483.1791834 | U210: 364.6635346 | V210: 7.018609693 | W210: 2.371103612 | X210: 4.647506081 | Y210: 357.6449249 | Z210: 7.585600931 | AA210: 298.678253 | AB210: 11.38107101 | AC210: 40
B211: 2025 | C211: 5.425844992 | D211: 10.57695347 | E211: 0.007233009529 | F211: -0.005103270648 | G211: 0.06923992901 | H211: 7340.072031 | I211: 2.084139446 | J211: 1.572935431 | K211: 0.2635965653 | L211: 0.05340368136 | M211: 0.2101928839 | N211: 1.309338865 | O211: 0.1451961716 | P211: 0.3756851221 | Q211: 0 | R211: 0.09364998653 | S211: 0.6948075853 | T211: 486.0416374 | U211: 366.8238773 | V211: 7.018609693 | W211: 2.371103612 | X211: 4.647506081 | Y211: 359.8052676 | Z211: 7.585600931 | AA211: 300.8385956 | AB211: 11.38107101 | AC211: 40
B212: 2026 | C212: 5.532133145 | D212: 10.70981366 | E212: 0.006878860281 | F212: -0.005020592 | G212: 0.06889230358 | H212: 7340.072031 | I212: 2.089944246 | J212: 1.577316412 | K212: 0.2625412725 | L212: 0.05340368136 | M212: 0.2091375912 | N212: 1.314775139 | O212: 0.1451961716 | P212: 0.3811213961 | Q212: 0 | R212: 0.09364998653 | S212: 0.6948075853 | T212: 488.7836277 | U212: 368.8933039 | V212: 7.018609693 | W212: 2.371103612 | X212: 4.647506081 | Y212: 361.8746942 | Z212: 7.585600931 | AA212: 302.9080223 | AB212: 11.38107101 | AC212: 40
B213: 2027 | C213: 5.634878359 | D213: 10.83824518 | E213: 0.006697385341 | F213: -0.003244751498 | G213: 0.06866876517 | H213: 7340.072031 | I213: 2.096754936 | J213: 1.582456555 | K213: 0.261862673 | L213: 0.05340368136 | M213: 0.2084589917 | N213: 1.320593882 | O213: 0.1451961716 | P213: 0.3869401388 | Q213: 0 | R213: 0.09364998653 | S213: 0.6948075853 | T213: 491.4716443 | U213: 370.9219957 | V213: 7.018609693 | W213: 2.371103612 | X213: 4.647506081 | Y213: 363.903386 | Z213: 7.585600931 | AA213: 304.9367141 | AB213: 11.38107101 | AC213: 40
B214: 2028 | C214: 5.730537697 | D214: 10.95781935 | E214: 0.007974166783 | F214: -0.0028722607 | G214: 0.06847153058 | H214: 7340.072031 | I214: 2.10316767 | J214: 1.587296355 | K214: 0.2612639245 | L214: 0.05340368136 | M214: 0.2078602431 | N214: 1.326032431 | O214: 0.1451961716 | P214: 0.3923786871 | Q214: 0 | R214: 0.09364998653 | S214: 0.6948075853 | T214: 494.6935358 | U214: 373.3536119 | V214: 7.018609693 | W214: 2.371103612 | X214: 4.647506081 | Y214: 366.3350022 | Z214: 7.585600931 | AA214: 307.3683303 | AB214: 11.38107101 | AC214: 40
B215: 2029 | C215: 5.819111157 | D215: 11.06853618 | E215: 0.008055299854 | F215: -0.002849307397 | G215: 0.06827643414 | H215: 7340.072031 | I215: 2.10891448 | J215: 1.59163357 | K215: 0.2606716667 | L215: 0.05340368136 | M215: 0.2072679854 | N215: 1.330961903 | O215: 0.1451961716 | P215: 0.3973081597 | Q215: 0 | R215: 0.09364998653 | S215: 0.6948075853 | T215: 497.9741617 | U215: 375.829556 | V215: 7.018609693 | W215: 2.371103612 | X215: 4.647506081 | Y215: 368.8109463 | Z215: 7.585600931 | AA215: 309.8442743 | AB215: 11.38107101 | AC215: 40
B216: 2030 | C216: 5.907684618 | D216: 11.179253 | E216: 0.007977335372 | F216: -0.002785472663 | G216: 0.068086252 | H216: 7340.072031 | I216: 2.114673731 | J216: 1.595980174 | K216: 0.2600943274 | L216: 0.05340368136 | M216: 0.2066906461 | N216: 1.335885847 | O216: 0.1451961716 | P216: 0.4022321036 | Q216: 0 | R216: 0.09364998653 | S216: 0.6948075853 | T216: 501.2492061 | U216: 378.3012877 | V216: 7.018609693 | W216: 2.371103612 | X216: 4.647506081 | Y216: 371.282678 | Z216: 7.585600931 | AA216: 312.316006 | AB216: 11.38107101 | AC216: 40
B217: 2031 | C217: 5.982086325 | D217: 11.27225514 | E217: 0.007754125162 | F217: 0 | G217: 0.068086252 | H217: 7340.072031 | I217: 2.121385828 | J217: 1.601045908 | K217: 0.2600943274 | L217: 0.05340368136 | M217: 0.2066906461 | N217: 1.34095158 | O217: 0.1451961716 | P217: 0.407297837 | Q217: 0 | R217: 0.09364998653 | S217: 0.6948075853 | T217: 504.4580082 | U217: 380.7230251 | V217: 7.018609693 | W217: 2.371103612 | X217: 4.647506081 | Y217: 373.7044154 | Z217: 7.585600931 | AA217: 314.7377434 | AB217: 11.38107101 | AC217: 40
B218: 2032 | C218: 6.042316278 | D218: 11.34754258 | E218: 0.007493112711 | F218: 0 | G218: 0.068086252 | H218: 7340.072031 | I218: 2.12681943 | J218: 1.60514674 | K218: 0.2600943274 | L218: 0.05340368136 | M218: 0.2066906461 | N218: 1.345052412 | O218: 0.1451961716 | P218: 0.4113986688 | Q218: 0 | R218: 0.09364998653 | S218: 0.6948075853 | T218: 507.5828423 | U218: 383.0813904 | V218: 7.018609693 | W218: 2.371103612 | X218: 4.647506081 | Y218: 376.0627807 | Z218: 7.585600931 | AA218: 317.0961088 | AB218: 11.38107101 | AC218: 40
B219: 2033 | C219: 6.102546231 | D219: 11.42283002 | E219: 0.007396856473 | F219: 0 | G219: 0.068086252 | H219: 7340.072031 | I219: 2.132253032 | J219: 1.609247571 | K219: 0.2600943274 | L219: 0.05340368136 | M219: 0.2066906461 | N219: 1.349153244 | O219: 0.1451961716 | P219: 0.4154995005 | Q219: 0 | R219: 0.09364998653 | S219: 0.6948075853 | T219: 510.6906489 | U219: 385.4269048 | V219: 7.018609693 | W219: 2.371103612 | X219: 4.647506081 | Y219: 378.4082952 | Z219: 7.585600931 | AA219: 319.4416232 | AB219: 11.38107101 | AC219: 40
B220: 2034 | C220: 6.155690307 | D220: 11.48926011 | E220: 0.007004728018 | F220: 0 | G220: 0.068086252 | H220: 7340.072031 | I220: 2.137047387 | J220: 1.612865952 | K220: 0.2600943274 | L220: 0.05340368136 | M220: 0.2066906461 | N220: 1.352771625 | O220: 0.1451961716 | P220: 0.4191178815 | Q220: 0 | R220: 0.09364998653 | S220: 0.6948075853 | T220: 513.6554712 | U220: 387.6645065 | V220: 7.018609693 | W220: 2.371103612 | X220: 4.647506081 | Y220: 380.6458968 | Z220: 7.585600931 | AA220: 321.6792249 | AB220: 11.38107101 | AC220: 40
... 46 more rows

Sheet Resultat - niveau I
C1: Personbiler, varebiler og lastbiler
C5: Personbiler
C8: Gennemsnitlige og marginale kørselsomkostninger for sammenvægtede køretøjskategorier, inkl. og ekskl. afgifter [kr. per km.]
G9: Gennemsnitlige kørselsomkostninger [kr. per km.] - dog EKSKLUSIV brændstof | T9: Marginale kørselsomkostninger, [kr. per km.] - dog EKSKLUSIV brændstof
C10: Køretøjskategori | D10: Drivmiddel | E10: Brændstof-effektivitet [liter/km] / [kWh/km] | F10: Trafikarbejde, i alt for kategori [mio. km. per år] | G10: Gennemsnitlige omkostninger inkl.. afgifter og moms, i alt | H10: Brændstof, inkl. afgifter og moms [kr. per km.] | I10: Batteri, inkl. afgifter og moms [kr. per km.] | J10: Afskrivninger, inkl. afgifter og moms [kr. per km.] | K10: Reparation og vedligeholdelse, inkl. afgifter og moms [kr. per km.] | L10: Ejerafgift [kr. per km.] | M10: Dæk, inkl. afgifter og moms [kr. per km.] | N10: Gennemsnitlige omkostninger ekskl.. afgifter og moms, i alt [kr. per km.] | O10: Brændstof, ekskl. afgifter og moms [kr. per km.] | P10: Batteri, ekskl. afgifter og moms [kr. per km.] | Q10: Afskrivninger, ekskl. afgifter og moms [kr. per km.] | R10: Reparation og vedligeholdelse, ekskl. afgifter og moms [kr. per km.] | S10: Dæk, ekskl. afgifter og moms [kr. per km.] | T10: Marginale omkostninger inkl.. afgifter og moms, i alt | U10: Brændstof, inkl. afgifter og moms [kr. per km.] | V10: Batteri, inkl. afgifter og moms [kr. per km.] | W10: Afskrivninger, inkl. afgifter og moms [kr. per km.] | X10: Reparation og vedligeholdelse, inkl. afgifter og moms [kr. per km.] | Y10: Dæk, inkl. afgifter og moms [kr. per km.] | Z10: Marginale omkostninger ekskl.. afgifter og moms, i alt [kr. per km.] | AA10: Brændstof, ekskl. afgifter og moms [kr. per km.] | AB10: Batteri, ekskl. afgifter og moms [kr. per km.] | AC10: Afskrivninger, ekskl. afgifter og moms [kr. per km.] | AD10: Reparation og vedligeholdelse, ekskl. afgifter og moms [kr. per km.] | AE10: Dæk, ekskl. afgifter og moms [kr. per km.]
C11: Personbil | D11: Vægtet gnst. | F11: =SUM(F12:F15) -> 39564.06725 | G11: =SUM(H11:M11) -> 2.995799162 | H11: =SUMPRODUCT($F$12:$F$15,H12:H15)/$F$11 -> 0.7295992238 | I11: 0.00130648913 | J11: 0.8701642244 | K11: 1.109204449 | L11: 0.1963293599 | M11: 0.08919541538 | N11: =SUM(O11:S11) -> 1.599739825 | O11: =SUMPRODUCT($F$12:$F$15,O12:O15)/$F$11 -> 0.3089395942 | P11: =SUMPRODUCT($F$12:$F$15,P12:P15)/$F$11 -> 0.001045191304 | Q11: =SUMPRODUCT($F$12:$F$15,Q12:Q15)/$F$11 -> 0.3568806883 | R11: =SUMPRODUCT($F$12:$F$15,R12:R15)/$F$11 -> 0.861518019 | S11: =SUMPRODUCT($F$12:$F$15,S12:S15)/$F$11 -> 0.07135633231 | T11: =SUM(U11:Y11) -> 1.49117506 | U11: =SUMPRODUCT($F$12:$F$15,U12:U15)/$F$11 -> 0.7295992238 | V11: =SUMPRODUCT($F$12:$F$15,V12:V15)/$F$11 -> 0.0005574990637 | W11: =SUMPRODUCT($F$12:$F$15,W12:W15)/$F$11 -> 0.223935237 | X11: =SUMPRODUCT($F$12:$F$15,X12:X15)/$F$11 -> 0.4478876847 | Y11: =SUMPRODUCT($F$12:$F$15,Y12:Y15)/$F$11 -> 0.08919541538 | Z11: =SUM(AA11:AE11) -> 0.8241049587 | AA11: =SUMPRODUCT($F$12:$F$15,AA12:AA15)/$F$11 -> 0.3089395942 | AB11: =SUMPRODUCT($F$12:$F$15,AB12:AB15)/$F$11 -> 0.000445999251 | AC11: =SUMPRODUCT($F$12:$F$15,AC12:AC15)/$F$11 -> 0.09548910308 | AD11: =SUMPRODUCT($F$12:$F$15,AD12:AD15)/$F$11 -> 0.3478739299 | AE11: =SUMPRODUCT($F$12:$F$15,AE12:AE15)/$F$11 -> 0.07135633231
C12: ='Personbiler - Benzin'!C11 -> Personbil | D12: ='Personbiler - Benzin'!D11 -> Benzin | E12: ='Personbiler - Benzin'!E11 -> 0.07821124616 | F12: ='Personbiler - Benzin'!F11 -> 22094.23448 | G12: ='Personbiler - Benzin'!G11 -> 2.992575456 | H12: ='Personbiler - Benzin'!H11 -> 0.8372178352 | I12: ='Personbiler - Benzin'!I11 -> 0 | J12: ='Personbiler - Benzin'!J11 -> 0.9059482241 | K12: ='Personbiler - Benzin'!K11 -> 0.9599402722 | L12: ='Personbiler - Benzin'!L11 -> 0.2065078932 | M12: ='Personbiler - Benzin'!M11 -> 0.08296123111 | N12: ='Personbiler - Benzin'!N11 -> 1.505840737 | O12: ='Personbiler - Benzin'!O11 -> 0.3213656675 | P12: ='Personbiler - Benzin'!P11 -> 0 | Q12: ='Personbiler - Benzin'!Q11 -> 0.3725214066 | R12: ='Personbiler - Benzin'!R11 -> 0.7455846775 | S12: ='Personbiler - Benzin'!S11 -> 0.06636898489 | T12: ='Personbiler - Benzin'!T11 -> 1.311135536 | U12: ='Personbiler - Benzin'!U11 -> 0.8372178352 | V12: ='Personbiler - Benzin'!V11 -> 0 | W12: ='Personbiler - Benzin'!W11 -> 0.1416333482 | X12: ='Personbiler - Benzin'!X11 -> 0.2493231213 | Y12: ='Personbiler - Benzin'!Y11 -> 0.08296123111 | Z12: ='Personbiler - Benzin'!Z11 -> 0.6417878183 | AA12: ='Personbiler - Benzin'!AA11 -> 0.3213656675 | AB12: ='Personbiler - Benzin'!AB11 -> 0 | AC12: ='Personbiler - Benzin'!AC11 -> 0.06040413968 | AD12: ='Personbiler - Benzin'!AD11 -> 0.1936490262 | AE12: ='Personbiler - Benzin'!AE11 -> 0.06636898489
C13: ='Personbiler - Diesel'!C11 -> Personbil | D13: ='Personbiler - Diesel'!D11 -> Diesel | E13: ='Personbiler - Diesel'!E11 -> 0.05982134886 | F13: ='Personbiler - Diesel'!F11 -> 17291.69937 | G13: ='Personbiler - Diesel'!G11 -> 3.000815702 | H13: ='Personbiler - Diesel'!H11 -> 0.5956356968 | I13: ='Personbiler - Diesel'!I11 -> 0 | J13: ='Personbiler - Diesel'!J11 -> 0.8192644223 | K13: ='Personbiler - Diesel'!K11 -> 1.304019832 | L13: ='Personbiler - Diesel'!L11 -> 0.1846909111 | M13: ='Personbiler - Diesel'!M11 -> 0.09720483965 | N13: ='Personbiler - Diesel'!N11 -> 1.716026607 | O13: ='Personbiler - Diesel'!O11 -> 0.2949078248 | P13: ='Personbiler - Diesel'!P11 -> 0 | Q13: ='Personbiler - Diesel'!Q11 -> 0.3305239731 | R13: ='Personbiler - Diesel'!R11 -> 1.012830937 | S13: ='Personbiler - Diesel'!S11 -> 0.07776387172 | T13: ='Personbiler - Diesel'!T11 -> 1.723958108 | U13: ='Personbiler - Diesel'!U11 -> 0.5956356968 | V13: ='Personbiler - Diesel'!V11 -> 0 | W13: ='Personbiler - Diesel'!W11 -> 0.3278486011 | X13: ='Personbiler - Diesel'!X11 -> 0.7032689703 | Y13: ='Personbiler - Diesel'!Y11 -> 0.09720483965 | Z13: ='Personbiler - Diesel'!Z11 -> 1.057569307 | AA13: ='Personbiler - Diesel'!AA11 -> 0.2949078248 | AB13: ='Personbiler - Diesel'!AB11 -> 0 | AC13: ='Personbiler - Diesel'!AC11 -> 0.1386692841 | AD13: ='Personbiler - Diesel'!AD11 -> 0.5462283264 | AE13: ='Personbiler - Diesel'!AE11 -> 0.07776387172
C14: ='Personbiler - Hybrid'!C11 -> Personbil | D14: ='Personbiler - Hybrid'!D11 -> Hybrid | E14: ='Personbiler - Hybrid'!E11 -> 0.05019968551 | F14: ='Personbiler - Hybrid'!F11 -> 39.84838 | G14: ='Personbiler - Hybrid'!G11 -> 3.363362105 | H14: ='Personbiler - Hybrid'!H11 -> 0.5582624439 | I14: ='Personbiler - Hybrid'!I11 -> 0.08971506495 | J14: ='Personbiler - Hybrid'!J11 -> 1.390149063 | K14: ='Personbiler - Hybrid'!K11 -> 1.126162561 | L14: ='Personbiler - Hybrid'!L11 -> 0.1038583811 | M14: ='Personbiler - Hybrid'!M11 -> 0.0952145903 | N14: ='Personbiler - Hybrid'!N11 -> 1.838059798 | O14: ='Personbiler - Hybrid'!O11 -> 0.2229847984 | P14: ='Personbiler - Hybrid'!P11 -> 0.07177205196 | Q14: ='Personbiler - Hybrid'!Q11 -> 0.5924419072 | R14: ='Personbiler - Hybrid'!R11 -> 0.8746893678 | S14: ='Personbiler - Hybrid'!S11 -> 0.07617167224 | T14: ='Personbiler - Hybrid'!T11 -> 1.265636848 | U14: ='Personbiler - Hybrid'!U11 -> 0.5582624439 | V14: ='Personbiler - Hybrid'!V11 -> 0.02948798341 | W14: ='Personbiler - Hybrid'!W11 -> 0.2125192487 | X14: ='Personbiler - Hybrid'!X11 -> 0.3701525818 | Y14: ='Personbiler - Hybrid'!Y11 -> 0.0952145903 | Z14: ='Personbiler - Hybrid'!Z11 -> 0.7015124338 | AA14: ='Personbiler - Hybrid'!AA11 -> 0.2229847984 | AB14: ='Personbiler - Hybrid'!AB11 -> 0.02359038673 | AC14: ='Personbiler - Hybrid'!AC11 -> 0.09126842553 | AD14: ='Personbiler - Hybrid'!AD11 -> 0.2874971509 | AE14: ='Personbiler - Hybrid'!AE11 -> 0.07617167224
C15: ='Personbiler - El'!C11 -> Personbil | D15: ='Personbiler - El'!D11 -> Elektricitet | E15: ='Personbiler - El'!E11 -> 0.1844551539 | F15: ='Personbiler - El'!F11 -> 138.2850131 | G15: ='Personbiler - El'!G11 -> 2.777655749 | H15: ='Personbiler - El'!H11 -> 0.335729324 | I15: ='Personbiler - El'!I11 -> 0.3479409861 | J15: ='Personbiler - El'!J11 -> 1.36771231 | K15: ='Personbiler - El'!K11 -> 0.59225 | L15: ='Personbiler - El'!L11 -> 0.05203660674 | M15: ='Personbiler - El'!M11 -> 0.08198652144 | N15: ='Personbiler - El'!N11 -> 1.992665555 | O15: ='Personbiler - El'!O11 -> 0.102942731 | P15: ='Personbiler - El'!P11 -> 0.2783527889 | Q15: ='Personbiler - El'!Q11 -> 1.085780818 | R15: ='Personbiler - El'!R11 -> 0.46 | S15: ='Personbiler - El'!S11 -> 0.06558921715 | T15: ='Personbiler - El'!T11 -> 1.213547803 | U15: ='Personbiler - El'!U11 -> 0.335729324 | V15: ='Personbiler - El'!V11 -> 0.1510061113 | W15: ='Personbiler - El'!W11 -> 0.3831244595 | X15: ='Personbiler - El'!X11 -> 0.2617013865 | Y15: ='Personbiler - El'!Y11 -> 0.08198652144 | Z15: ='Personbiler - El'!Z11 -> 0.7955222283 | AA15: ='Personbiler - El'!AA11 -> 0.102942731 | AB15: ='Personbiler - El'!AB11 -> 0.1208048891 | AC15: ='Personbiler - El'!AC11 -> 0.3029221782 | AD15: ='Personbiler - El'!AD11 -> 0.2032632128 | AE15: ='Personbiler - El'!AE11 -> 0.06558921715
C16: Kilde:
C19: Varebiler
C22: Variable og faste kørselsomkostninger for sammenvægtede køretøjskategorier, [kr. per km.] hhv. [kr. per time]
H23: Variable/afstands-afhængige omkostninger, opgjort i faktorpriser [kr. per km.] | S23: Faste/tids-afhængige omkostninger, opgjort i faktorpriser [kr. per time]
C24: Køretøjskategori | D24: Drivmiddel | E24: Brændstof-effektivitet [liter/km] / [kWh/km] | F24: Trafikarbejde, i alt for kategori [mio. km. per år] | G24: Variable omkostninger i alt, opgjort i markedspriser [kr. per km.] | H24: Variable omkostninger inkl.. afgifter, opgjort i faktorpriser [kr. per km.] | I24: Ikke-refunderbare afgifter i alt, [kr. per km.] | J24: Registreringsafgift, [kr. per km.] | K24: Afgifter (brændstof) , [kr. per km.] | L24: Variable omkostninger ekskl. afgifter, opgjort i faktorpriser, [kr. per km.] | M24: Kapitalomkostninger/afskrivninger, [kr. per km.] | N24: Brændstof, [kr. per km.] | O24: Olie, [kr. per km.} | P24: Dæk, [kr. per km.] | Q24: Reparation, [kr. per km.] | R24: Faste omkostninger i alt, opgjort i markedspriser [kr. per time] | S24: Faste omkostninger inkl. afgifter, opgjort i faktorpriser [kr. per time] | T24: Ikke-refunderbare afgifter i alt, [kr. per time] | U24: Registreringsafgift, [kr. per time] | V24: Vægtafgift, vejafgift, udligningsafgift, [kr. per time] | W24: Faste omkostninger ekskl. afgifter, opgjort i faktorpriser, [kr. per time] | X24: Kapitalomkostninger/afskrivninger, [kr. per time] | Y24: Løn, [kr. per time] | Z24: Reparation, [kr. per time] | AA24: Kapacitets-omkostninger, [kr. per time]
C25: Varebil | D25: Vægtet gnst. | F25: =SUM(F26:F27) -> 8136.779891 | G25: =NAF*H25 -> 2.005811569 | H25: =I25+L25 -> 1.513820052 | I25: =SUMPRODUCT($F$26:$F$27,I26:I27)/$F$25 -> 0.2769553853 | J25: =SUMPRODUCT($F$26:$F$27,J26:J27)/$F$25 -> 0.05306367489 | K25: =SUMPRODUCT($F$26:$F$27,K26:K27)/$F$25 -> 0.2238917104 | L25: =SUM(M25:Q25) -> 1.236864666 | M25: =SUMPRODUCT($F$26:$F$27,M26:M27)/$F$25 -> 0.1434033239 | N25: =SUMPRODUCT($F$26:$F$27,N26:N27)/$F$25 -> 0.3238612889 | O25: =SUMPRODUCT($F$26:$F$27,O26:O27)/$F$25 -> 0 | P25: =SUMPRODUCT($F$26:$F$27,P26:P27)/$F$25 -> 0.09394083474 | Q25: =SUMPRODUCT($F$26:$F$27,Q26:Q27)/$F$25 -> 0.675659219 | R25: =NAF*S25 -> 462.598502 | S25: =T25+W25 -> 349.1309449 | T25: =U25+V25 -> 6.641383203 | U25: =SUMPRODUCT($F$26:$F$27,U26:U27)/$F$25 -> 2.328004836 | V25: =SUMPRODUCT($F$26:$F$27,V26:V27)/$F$25 -> 4.313378367 | W25: =SUM(X25:AA25) -> 342.4895617 | X25: =SUMPRODUCT($F$26:$F$27,X26:X27)/$F$25 -> 7.310183403 | Y25: =SUMPRODUCT($F$26:$F$27,Y26:Y27)/$F$25 -> 283.8 | Z25: =SUMPRODUCT($F$26:$F$27,Z26:Z27)/$F$25 -> 11.37937828 | AA25: =SUMPRODUCT($F$26:$F$27,AA26:AA27)/$F$25 -> 40
C26: ='Varebiler - Benzin'!C11 -> Varebil | D26: ='Varebiler - Benzin'!D11 -> Benzin | E26: ='Varebiler - Benzin'!E11 -> 0.05873934949 | F26: ='Varebiler - Benzin'!F11 -> 796.7078595 | G26: ='Varebiler - Benzin'!G11 -> 1.690310867 | H26: ='Varebiler - Benzin'!H11 -> 1.275706315 | I26: ='Varebiler - Benzin'!I11 -> 0.3115980971 | J26: ='Varebiler - Benzin'!J11 -> 0.04993119416 | K26: ='Varebiler - Benzin'!K11 -> 0.2616669029 | L26: ='Varebiler - Benzin'!L11 -> 0.9641082179 | M26: ='Varebiler - Benzin'!M11 -> 0.1268858128 | N26: ='Varebiler - Benzin'!N11 -> 0.2413567253 | O26: ='Varebiler - Benzin'!O11 -> 0 | P26: ='Varebiler - Benzin'!P11 -> 0.09662042024 | Q26: ='Varebiler - Benzin'!Q11 -> 0.4992452595 | R26: ='Varebiler - Benzin'!R11 -> 454.6108634 | S26: ='Varebiler - Benzin'!S11 -> 343.1025384 | T26: ='Varebiler - Benzin'!T11 -> 3.165994355 | U26: ='Varebiler - Benzin'!U11 -> 1.930935678 | V26: ='Varebiler - Benzin'!V11 -> 1.235058677 | W26: ='Varebiler - Benzin'!W11 -> 339.9365441 | X26: ='Varebiler - Benzin'!X11 -> 4.772760842 | Y26: ='Varebiler - Benzin'!Y11 -> 283.8 | Z26: ='Varebiler - Benzin'!Z11 -> 11.36378325 | AA26: ='Varebiler - Benzin'!AA11 -> 40
C27: ='Varebiler - Diesel'!C11 -> Varebil | D27: ='Varebiler - Diesel'!D11 -> Diesel | E27: ='Varebiler - Diesel'!E11 -> 0.07240182456 | F27: ='Varebiler - Diesel'!F11 -> 7340.072031 | G27: ='Varebiler - Diesel'!G11 -> 2.040056721 | H27: ='Varebiler - Diesel'!H11 -> 1.53966545 | I27: ='Varebiler - Diesel'!I11 -> 0.2731951878 | J27: ='Varebiler - Diesel'!J11 -> 0.05340368136 | K27: ='Varebiler - Diesel'!K11 -> 0.2197915064 | L27: ='Varebiler - Diesel'!L11 -> 1.266470262 | M27: ='Varebiler - Diesel'!M11 -> 0.1451961716 | N27: ='Varebiler - Diesel'!N11 -> 0.332816519 | O27: ='Varebiler - Diesel'!O11 -> 0 | P27: ='Varebiler - Diesel'!P11 -> 0.09364998653 | Q27: ='Varebiler - Diesel'!Q11 -> 0.6948075853 | R27: ='Varebiler - Diesel'!R11 -> 463.4654982 | S27: ='Varebiler - Diesel'!S11 -> 349.7852816 | T27: ='Varebiler - Diesel'!T11 -> 7.018609693 | U27: ='Varebiler - Diesel'!U11 -> 2.371103612 | V27: ='Varebiler - Diesel'!V11 -> 4.647506081 | W27: ='Varebiler - Diesel'!W11 -> 342.7666719 | X27: ='Varebiler - Diesel'!X11 -> 7.585600931 | Y27: ='Varebiler - Diesel'!Y11 -> 283.8 | Z27: ='Varebiler - Diesel'!Z11 -> 11.38107101 | AA27: ='Varebiler - Diesel'!AA11 -> 40
C28: Kilde:
C31: Lastbiler
C34: Variable og faste kørselsomkostninger for sammenvægtede køretøjskategorier, [kr. per km.] hhv. [kr. per time]
I35: Variable/afstands-afhængige omkostninger, opgjort i faktorpriser [kr. per km.] | T35: Faste/tids-afhængige omkostninger, opgjort i faktorpriser [kr. per time]
C36: Køretøjskategori | D36: Drivmiddel | E36: Størrelse | F36: Brændstof-effektivitet [km per liter] | G36: Trafikarbejde, i alt for kategori [mio. km. per år] | H36: Variable omkostninger i alt, opgjort i markedspriser [kr. per km.] | I36: Variable omkostninger inkl.. afgifter, opgjort i faktorpriser [kr. per km.] | J36: Ikke-refunderbare afgifter i alt, [kr. per km.] | K36: Registreringsafgift, [kr. per km.] | L36: Afgifter (brændstof) , [kr. per km.] | M36: Variable omkostninger ekskl. afgifter, opgjort i faktorpriser, [kr. per km.] | N36: Kapitalomkostninger/afskrivninger, [kr. per km.] | O36: Brændstof, [kr. per km.] | P36: Olie, [kr. per km.} | Q36: Dæk, [kr. per km.] | R36: Reparation, [kr. per km.] | S36: Faste omkostninger i alt, opgjort i markedspriser [kr. per time] | T36: Faste omkostninger inkl. afgifter, opgjort i faktorpriser [kr. per time] | U36: Ikke-refunderbare afgifter i alt, [kr. per time] | V36: Registreringsafgift, [kr. per time] | W36: Vægtafgift, vejafgift, udligningsafgift, [kr. per time] | X36: Faste omkostninger ekskl. afgifter, opgjort i faktorpriser, [kr. per time] | Y36: Kapitalomkostninger/afskrivninger, [kr. per time] | Z36: Løn, [kr. per time] | AA36: Reparation, [kr. per time] | AB36: Kapacitets-omkostninger, [kr. per time]
C37: Lastbil | D37: Vægtet gnst. | E37: Vægtet gnst. | F37: =SUMPRODUCT($G$38:$G$42,F38:F42)/$G$37 -> 0.3352778456 | G37: =SUM(G38:G42) -> 2798.350032 | H37: =NAF*I37 -> 4.854078341 | I37: =J37+M37 -> 3.663455352 | J37: =SUM(K37:L37) -> 1.017808919 | K37: =SUMPRODUCT($G$38:$G$42,K38:K42)/$G$37 -> 0 | L37: =SUMPRODUCT($G$38:$G$42,L38:L42)/$G$37 -> 1.017808919 | M37: =SUM(N37:R37) -> 2.645646433 | N37: =SUMPRODUCT($G$38:$G$42,N38:N42)/$G$37 -> 0.3256183035 | O37: =SUMPRODUCT($G$38:$G$42,O38:O42)/$G$37 -> 1.429552914 | P37: =SUMPRODUCT($G$38:$G$42,P38:P42)/$G$37 -> 0 | Q37: =SUMPRODUCT($G$38:$G$42,Q38:Q42)/$G$37 -> 0.2591193892 | R37: =SUMPRODUCT($G$38:$G$42,R38:R42)/$G$37 -> 0.6313558267 | S37: =NAF*T37 -> 513.4936043 | T37: =U37+X37 -> 387.5423429 | U37: =SUM(V37:W37) -> 5.055871201 | V37: =SUMPRODUCT($G$38:$G$42,V38:V42)/$G$37 -> 0 | W37: =SUMPRODUCT($G$38:$G$42,W38:W42)/$G$37 -> 5.055871201 | X37: =SUM(Y37:AB37) -> 382.4864717 | Y37: =SUMPRODUCT($G$38:$G$42,Y38:Y42)/$G$37 -> 57.6167774 | Z37: =SUMPRODUCT($G$38:$G$42,Z38:Z42)/$G$37 -> 255.8 | AA37: =SUMPRODUCT($G$38:$G$42,AA38:AA42)/$G$37 -> 15.9068256 | AB37: =SUMPRODUCT($G$38:$G$42,AB38:AB42)/$G$37 -> 53.16286866
C38: ='Lastbiler - Diesel'!C24 -> Lastbil, uden anhænger | D38: ='Lastbiler - Diesel'!D24 -> Diesel | E38: ='Lastbiler - Diesel'!E24 -> Under 12 ton | F38: ='Lastbiler - Diesel'!F24 -> 0.2 | G38: ='Lastbiler - Diesel'!G24 -> 127.8574452 | H38: ='Lastbiler - Diesel'!H24 -> 2.763505498 | I38: ='Lastbiler - Diesel'!I24 -> 2.085664527 | J38: ='Lastbiler - Diesel'!J24 -> 0.6071435569 | K38: ='Lastbiler - Diesel'!K24 -> 0 | L38: ='Lastbiler - Diesel'!L24 -> 0.6071435569 | M38: ='Lastbiler - Diesel'!M24 -> 1.47852097 | N38: ='Lastbiler - Diesel'!N24 -> 0.1157271491 | O38: ='Lastbiler - Diesel'!O24 -> 0.8527571579 | P38: ='Lastbiler - Diesel'!P24 -> 0 | Q38: ='Lastbiler - Diesel'!Q24 -> 0.075904 | R38: ='Lastbiler - Diesel'!R24 -> 0.4341326631 | S38: ='Lastbiler - Diesel'!S24 -> 453.3773538 | T38: ='Lastbiler - Diesel'!T24 -> 342.1715877 | U38: ='Lastbiler - Diesel'!U24 -> 2.727777778 | V38: ='Lastbiler - Diesel'!V24 -> 0 | W38: ='Lastbiler - Diesel'!W24 -> 2.727777778 | X38: ='Lastbiler - Diesel'!X24 -> 339.44381 | Y38: ='Lastbiler - Diesel'!Y24 -> 25.57975936 | Z38: ='Lastbiler - Diesel'!Z24 -> 255.8 | AA38: ='Lastbiler - Diesel'!AA24 -> 6.286272818 | AB38: ='Lastbiler - Diesel'!AB24 -> 51.77777778
C39: ='Lastbiler - Diesel'!C25 -> Lastbil, uden anhænger | D39: ='Lastbiler - Diesel'!D25 -> Diesel | E39: ='Lastbiler - Diesel'!E25 -> Over 12 ton | F39: ='Lastbiler - Diesel'!F25 -> 0.4 | G39: ='Lastbiler - Diesel'!G25 -> 407.5514691 | H39: ='Lastbiler - Diesel'!H25 -> 5.617990929 | I39: ='Lastbiler - Diesel'!I25 -> 4.239993154 | J39: ='Lastbiler - Diesel'!J25 -> 1.214287114 | K39: ='Lastbiler - Diesel'!K25 -> 0 | L39: ='Lastbiler - Diesel'!L25 -> 1.214287114 | M39: ='Lastbiler - Diesel'!M25 -> 3.02570604 | N39: ='Lastbiler - Diesel'!N25 -> 0.2612251017 | O39: ='Lastbiler - Diesel'!O25 -> 1.705514316 | P39: ='Lastbiler - Diesel'!P25 -> 0 | Q39: ='Lastbiler - Diesel'!Q25 -> 0.315832 | R39: ='Lastbiler - Diesel'!R25 -> 0.7431346229 | S39: ='Lastbiler - Diesel'!S25 -> 523.9289567 | T39: ='Lastbiler - Diesel'!T25 -> 395.4180805 | U39: ='Lastbiler - Diesel'!U25 -> 3.970991717 | V39: ='Lastbiler - Diesel'!V25 -> 0 | W39: ='Lastbiler - Diesel'!W25 -> 3.970991717 | X39: ='Lastbiler - Diesel'!X25 -> 391.4470888 | Y39: ='Lastbiler - Diesel'!Y25 -> 64.25598196 | Z39: ='Lastbiler - Diesel'!Z25 -> 255.8 | AA39: ='Lastbiler - Diesel'!AA25 -> 12.22444017 | AB39: ='Lastbiler - Diesel'!AB25 -> 59.16666667
C40: ='Lastbiler - Diesel'!C26 -> Lastbil, med anhænger | D40: ='Lastbiler - Diesel'!D26 -> Diesel | F40: ='Lastbiler - Diesel'!F26 -> 0.4 | G40: ='Lastbiler - Diesel'!G26 -> 901.9332713 | H40: ='Lastbiler - Diesel'!H26 -> 5.858362307 | I40: ='Lastbiler - Diesel'!I26 -> 4.421405515 | J40: ='Lastbiler - Diesel'!J26 -> 1.214287114 | K40: ='Lastbiler - Diesel'!K26 -> 0 | L40: ='Lastbiler - Diesel'!L26 -> 1.214287114 | M40: ='Lastbiler - Diesel'!M26 -> 3.207118401 | N40: ='Lastbiler - Diesel'!N26 -> 0.3635600104 | O40: ='Lastbiler - Diesel'!O26 -> 1.705514316 | P40: ='Lastbiler - Diesel'!P26 -> 0 | Q40: ='Lastbiler - Diesel'!Q26 -> 0.3062613333 | R40: ='Lastbiler - Diesel'!R26 -> 0.8317827417 | S40: ='Lastbiler - Diesel'!S26 -> 537.601883 | T40: ='Lastbiler - Diesel'!T26 -> 405.7372702 | U40: ='Lastbiler - Diesel'!U26 -> 5.869437122 | V40: ='Lastbiler - Diesel'!V26 -> 0 | W40: ='Lastbiler - Diesel'!W26 -> 5.869437122 | X40: ='Lastbiler - Diesel'!X26 -> 399.8678331 | Y40: ='Lastbiler - Diesel'!Y26 -> 67.67592996 | Z40: ='Lastbiler - Diesel'!Z26 -> 255.8 | AA40: ='Lastbiler - Diesel'!AA26 -> 19.79190311 | AB40: ='Lastbiler - Diesel'!AB26 -> 56.6
C41: ='Lastbiler - Diesel'!C27 -> Sættevogntog | D41: ='Lastbiler - Diesel'!D27 -> Diesel | F41: ='Lastbiler - Diesel'!F27 -> 0.2857142857 | G41: ='Lastbiler - Diesel'!G27 -> 1020.755885 | H41: ='Lastbiler - Diesel'!H27 -> 4.036630712 | I41: ='Lastbiler - Diesel'!I27 -> 3.046513745 | J41: ='Lastbiler - Diesel'!J27 -> 0.8673479384 | K41: ='Lastbiler - Diesel'!K27 -> 0 | L41: ='Lastbiler - Diesel'!L27 -> 0.8673479384 | M41: ='Lastbiler - Diesel'!M27 -> 2.179165806 | N41: ='Lastbiler - Diesel'!N27 -> 0.3195056959 | O41: ='Lastbiler - Diesel'!O27 -> 1.218224511 | P41: ='Lastbiler - Diesel'!P27 -> 0 | Q41: ='Lastbiler - Diesel'!Q27 -> 0.180336 | R41: ='Lastbiler - Diesel'!R27 -> 0.4610995989 | S41: ='Lastbiler - Diesel'!S27 -> 495.0086983 | T41: ='Lastbiler - Diesel'!T27 -> 373.5914704 | U41: ='Lastbiler - Diesel'!U27 -> 5.032282591 | V41: ='Lastbiler - Diesel'!V27 -> 0 | W41: ='Lastbiler - Diesel'!W27 -> 5.032282591 | X41: ='Lastbiler - Diesel'!X27 -> 368.5591878 | Y41: ='Lastbiler - Diesel'!Y27 -> 48.91500033 | Z41: ='Lastbiler - Diesel'!Z27 -> 255.8 | AA41: ='Lastbiler - Diesel'!AA27 -> 14.62679617 | AB41: ='Lastbiler - Diesel'!AB27 -> 49.2173913
C42: ='Lastbiler - Diesel'!C28 -> Modulvogntog | D42: ='Lastbiler - Diesel'!D28 -> Diesel | F42: ='Lastbiler - Diesel'!F28 -> 0.2857142857 | G42: ='Lastbiler - Diesel'!G28 -> 340.2519617 | H42: ='Lastbiler - Diesel'!H28 -> 4.514856078 | I42: ='Lastbiler - Diesel'!I28 -> 3.40743855 | J42: ='Lastbiler - Diesel'!J28 -> 0.8673479384 | K42: ='Lastbiler - Diesel'!K28 -> 0 | L42: ='Lastbiler - Diesel'!L28 -> 0.8673479384 | M42: ='Lastbiler - Diesel'!M28 -> 2.540090611 | N42: ='Lastbiler - Diesel'!N28 -> 0.3993821199 | O42: ='Lastbiler - Diesel'!O28 -> 1.218224511 | P42: ='Lastbiler - Diesel'!P28 -> 0 | Q42: ='Lastbiler - Diesel'!Q28 -> 0.371424 | R42: ='Lastbiler - Diesel'!R28 -> 0.55105998 | S42: ='Lastbiler - Diesel'!S28 -> 515.1332273 | T42: ='Lastbiler - Diesel'!T28 -> 388.7797942 | U42: ='Lastbiler - Diesel'!U28 -> 5.144347826 | V42: ='Lastbiler - Diesel'!V28 -> 0 | W42: ='Lastbiler - Diesel'!W28 -> 5.144347826 | X42: ='Lastbiler - Diesel'!X28 -> 383.6354463 | Y42: ='Lastbiler - Diesel'!Y28 -> 61.14375041 | Z42: ='Lastbiler - Diesel'!Z28 -> 255.8 | AA42: ='Lastbiler - Diesel'!AA28 -> 17.47430461 | AB42: ='Lastbiler - Diesel'!AB28 -> 49.2173913
C43: Kilde:

Sheet Personbiler - Benzin
C1: Personbiler - Benzin
C5: Niveu I-A - Vægtede gennemsnitsomkostninger
C8: Gennemsnitlige og marginale kørselsomkostninger for sammenvægtet køretøjskategorier, inkl. og ekskl. afgifter [kr. per km.]
G9: Gennemsnitlige kørselsomkostninger [kr. per km.] | T9: Marginale kørselsomkostninger, [kr. per km.]
C10: Køretøjskategori | D10: Drivmiddel | E10: Brændstof-effektivitet [liter per km] | F10: Trafikarbejde, i alt | G10: Gennemsnitlige omkostninger inkl.. afgifter og moms, i alt | H10: Brændstof, inkl. afgifter og moms [kr. per km.] | I10: Batteri, inkl. afgifter og moms [kr. per km.] | J10: Afskrivninger, inkl. afgifter og moms [kr. per km.] | K10: Reparation og vedligeholdelse, inkl. afgifter og moms [kr. per km.] | L10: Ejerafgift [kr. per km.] | M10: Dæk, inkl. afgifter og moms [kr. per km.] | N10: Gennemsnitlige omkostninger ekskl.. afgifter og moms, i alt [kr. per km.] | O10: Brændstof, ekskl. afgifter og moms [kr. per km.] | P10: Batteri, ekskl. afgifter og moms [kr. per km.] | Q10: Afskrivninger, ekskl. afgifter og moms [kr. per km.] | R10: Reparation og vedligeholdelse, ekskl. afgifter og moms [kr. per km.] | S10: Dæk, ekskl. afgifter og moms [kr. per km.] | T10: Marginale omkostninger inkl.. afgifter og moms, i alt | U10: Brændstof, inkl. afgifter og moms [kr. per km.] | V10: Batteri, inkl. afgifter og moms [kr. per km.] | W10: Afskrivninger, inkl. afgifter og moms [kr. per km.] | X10: Reparation og vedligeholdelse, inkl. afgifter og moms [kr. per km.] | Y10: Dæk, inkl. afgifter og moms [kr. per km.] | Z10: Marginale omkostninger ekskl.. afgifter og moms, i alt [kr. per km.] | AA10: Brændstof, ekskl. afgifter og moms [kr. per km.] | AB10: Batteri, ekskl. afgifter og moms [kr. per km.] | AC10: Afskrivninger, ekskl. afgifter og moms [kr. per km.] | AD10: Reparation og vedligeholdelse, ekskl. afgifter og moms [kr. per km.] | AE10: Dæk, ekskl. afgifter og moms [kr. per km.]
C11: Personbil | D11: Benzin | E11: =SUMPRODUCT($G$21:$G$24,F21:F24)/SUM($G$21:$G$24) -> 0.07821124616 | F11: =SUM(G21:G24) -> 22094.23448 | G11: =SUM(H11:M11) -> 2.992575456 | H11: =SUMPRODUCT($G$21:$G$24,I21:I24)/SUM($G$21:$G$24) -> 0.8372178352 | I11: 0 | J11: 0.9059482241 | K11: 0.9599402722 | L11: 0.2065078932 | M11: 0.08296123111 | N11: =SUM(O11:S11) -> 1.505840737 | O11: =SUMPRODUCT($G$21:$G$24,P21:P24)/SUM($G$21:$G$24) -> 0.3213656675 | P11: =SUMPRODUCT($G$21:$G$24,Q21:Q24)/SUM($G$21:$G$24) -> 0 | Q11: =SUMPRODUCT($G$21:$G$24,R21:R24)/SUM($G$21:$G$24) -> 0.3725214066 | R11: =SUMPRODUCT($G$21:$G$24,S21:S24)/SUM($G$21:$G$24) -> 0.7455846775 | S11: =SUMPRODUCT($G$21:$G$24,T21:T24)/SUM($G$21:$G$24) -> 0.06636898489 | T11: =SUM(U11:Y11) -> 1.311135536 | U11: =SUMPRODUCT($G$21:$G$24,V21:V24)/SUM($G$21:$G$24) -> 0.8372178352 | V11: =SUMPRODUCT($G$21:$G$24,W21:W24)/SUM($G$21:$G$24) -> 0 | W11: =SUMPRODUCT($G$21:$G$24,X21:X24)/SUM($G$21:$G$24) -> 0.1416333482 | X11: =SUMPRODUCT($G$21:$G$24,Y21:Y24)/SUM($G$21:$G$24) -> 0.2493231213 | Y11: =SUMPRODUCT($G$21:$G$24,Z21:Z24)/SUM($G$21:$G$24) -> 0.08296123111 | Z11: =SUM(AA11:AE11) -> 0.6417878183 | AA11: =SUMPRODUCT($G$21:$G$24,AB21:AB24)/SUM($G$21:$G$24) -> 0.3213656675 | AB11: =SUMPRODUCT($G$21:$G$24,AC21:AC24)/SUM($G$21:$G$24) -> 0 | AC11: =SUMPRODUCT($G$21:$G$24,AD21:AD24)/SUM($G$21:$G$24) -> 0.06040413968 | AD11: =SUMPRODUCT($G$21:$G$24,AE21:AE24)/SUM($G$21:$G$24) -> 0.1936490262 | AE11: =SUMPRODUCT($G$21:$G$24,AF21:AF24)/SUM($G$21:$G$24) -> 0.06636898489
C12: Kilde:
E13: =1/E11 -> 12.78588501
C15: Niveu II - Vægtede gennemsnitsomkostninger
C18: Gennemsnitlige og marginale kørselsomkostninger for sammenvægtede køretøjskategorier, inkl. og ekskl. afgifter [kr. per km.]
H19: Gennemsnitlige kørselsomkostninger [kr. per km.] | U19: Marginale kørselsomkostninger, [kr. per km.]
C20: Køretøjskategori | D20: Drivmiddel | E20: Størrelse | F20: Brændstof-effektivitet [liter per km] | G20: Trafikarbejde, i alt for kategori [km. per år] | H20: Gennemsnitlige omkostninger inkl.. afgifter og moms, i alt | I20: Brændstof, inkl. afgifter og moms [kr. per km.] | J20: Batteri, inkl. afgifter og moms [kr. per km.] | K20: Afskrivninger, inkl. afgifter og moms [kr. per km.] | L20: Reparation og vedligeholdelse, inkl. afgifter og moms [kr. per km.] | M20: Ejerafgift [kr. per km.] | N20: Dæk, inkl. afgifter og moms [kr. per km.] | O20: Gennemsnitlige omkostninger ekskl.. afgifter og moms, i alt [kr. per km.] | P20: Brændstof, ekskl. afgifter og moms [kr. per km.] | Q20: Batteri, ekskl. afgifter og moms [kr. per km.] | R20: Afskrivninger, ekskl. afgifter og moms [kr. per km.] | S20: Reparation og vedligeholdelse, ekskl. afgifter og moms [kr. per km.] | T20: Dæk, ekskl. afgifter og moms [kr. per km.] | U20: Marginale omkostninger inkl.. afgifter og moms, i alt | V20: Brændstof, inkl. afgifter og moms [kr. per km.] | W20: Batteri, inkl. afgifter og moms [kr. per km.] | X20: Afskrivninger, inkl. afgifter og moms [kr. per km.] | Y20: Reparation og vedligeholdelse, inkl. afgifter og moms [kr. per km.] | Z20: Dæk, inkl. afgifter og moms [kr. per km.] | AA20: Marginale omkostninger ekskl.. afgifter og moms, i alt [kr. per km.] | AB20: Brændstof, ekskl. afgifter og moms [kr. per km.] | AC20: Batteri, ekskl. afgifter og moms [kr. per km.] | AD20: Afskrivninger, ekskl. afgifter og moms [kr. per km.] | AE20: Reparation og vedligeholdelse, ekskl. afgifter og moms [kr. per km.] | AF20: Dæk, ekskl. afgifter og moms [kr. per km.]
B21: =B34 -> Mini personbil, benzin | C21: Personbil | D21: Benzin | E21: Mini | F21: =SUMPRODUCT($I$34:$I$45,G34:G45)/SUM($I$34:$I$45) -> 0.05756528357 | G21: =H34 -> 3297.146156 | H21: =SUM(I21:N21) -> 1.784457301 | I21: =SUMPRODUCT($I$34:$I$45,K34:K45)/SUM($I$34:$I$45) -> 0.6162116634 | J21: 0 | K21: 0.508775414 | L21: 0.5061667873 | M21: 0.09967058124 | N21: 0.05363285488 | O21: =SUM(P21:T21) -> 0.9315456167 | P21: =SUMPRODUCT($I$34:$I$45,R34:R45)/SUM($I$34:$I$45) -> 0.2365325537 | Q21: =SUMPRODUCT($I$34:$I$45,S34:S45)/SUM($I$34:$I$45) -> 0 | R21: =SUMPRODUCT($I$34:$I$45,T34:T45)/SUM($I$34:$I$45) -> 0.2589675268 | S21: =SUMPRODUCT($I$34:$I$45,U34:U45)/SUM($I$34:$I$45) -> 0.3931392523 | T21: =SUMPRODUCT($I$34:$I$45,V34:V45)/SUM($I$34:$I$45) -> 0.04290628391 | U21: =SUM(V21:Z21) -> 0.9779791778 | V21: =SUMPRODUCT($I$34:$I$45,X34:X45)/SUM($I$34:$I$45) -> 0.6162116634 | W21: =SUMPRODUCT($I$34:$I$45,Y34:Y45)/SUM($I$34:$I$45) -> 0 | X21: =SUMPRODUCT($I$34:$I$45,Z34:Z45)/SUM($I$34:$I$45) -> 0.09869853157 | Y21: =SUMPRODUCT($I$34:$I$45,AA34:AA45)/SUM($I$34:$I$45) -> 0.2094361279 | Z21: =SUMPRODUCT($I$34:$I$45,AB34:AB45)/SUM($I$34:$I$45) -> 0.05363285488 | AA21: =SUM(AB21:AF21) -> 0.4908058309 | AB21: =SUMPRODUCT($I$34:$I$45,AD34:AD45)/SUM($I$34:$I$45) -> 0.2365325537 | AC21: =SUMPRODUCT($I$34:$I$45,AE34:AE45)/SUM($I$34:$I$45) -> 0 | AD21: =SUMPRODUCT($I$34:$I$45,AF34:AF45)/SUM($I$34:$I$45) -> 0.0486981561 | AE21: =SUMPRODUCT($I$34:$I$45,AG34:AG45)/SUM($I$34:$I$45) -> 0.1626688372 | AF21: =SUMPRODUCT($I$34:$I$45,AH34:AH45)/SUM($I$34:$I$45) -> 0.04290628391
B22: =B48 -> Lille personbil, benzin | C22: Personbil | D22: Benzin | E22: Lille | F22: =SUMPRODUCT($I$46:$I$57,G46:G57)/SUM($I$46:$I$57) -> 0.06776963715 | G22: =H46 -> 9275.60546 | H22: =SUM(I22:N22) -> 2.320400749 | I22: =SUMPRODUCT($I$46:$I$57,K46:K57)/SUM($I$46:$I$57) -> 0.7254448904 | J22: 0 | K22: 0.6899851685 | L22: 0.6801079591 | M22: 0.1583674355 | N22: 0.06649529585 | O22: =SUM(P22:T22) -> 1.175642703 | P22: =SUMPRODUCT($I$46:$I$57,R46:R57)/SUM($I$46:$I$57) -> 0.2784616759 | Q22: =SUMPRODUCT($I$46:$I$57,S46:S57)/SUM($I$46:$I$57) -> 0 | R22: =SUMPRODUCT($I$46:$I$57,T46:T57)/SUM($I$46:$I$57) -> 0.3157455993 | S22: =SUMPRODUCT($I$46:$I$57,U46:U57)/SUM($I$46:$I$57) -> 0.5282391915 | T22: =SUMPRODUCT($I$46:$I$57,V46:V57)/SUM($I$46:$I$57) -> 0.05319623668 | U22: =SUM(V22:Z22) -> 1.102530821 | V22: =SUMPRODUCT($I$46:$I$57,X46:X57)/SUM($I$46:$I$57) -> 0.7254448904 | W22: =SUMPRODUCT($I$46:$I$57,Y46:Y57)/SUM($I$46:$I$57) -> 0 | X22: =SUMPRODUCT($I$46:$I$57,Z46:Z57)/SUM($I$46:$I$57) -> 0.1274008628 | Y22: =SUMPRODUCT($I$46:$I$57,AA46:AA57)/SUM($I$46:$I$57) -> 0.1831897721 | Z22: =SUMPRODUCT($I$46:$I$57,AB46:AB57)/SUM($I$46:$I$57) -> 0.06649529585 | AA22: =SUM(AB22:AF22) -> 0.5312614802 | AB22: =SUMPRODUCT($I$46:$I$57,AD46:AD57)/SUM($I$46:$I$57) -> 0.2784616759 | AC22: =SUMPRODUCT($I$46:$I$57,AE46:AE57)/SUM($I$46:$I$57) -> 0 | AD22: =SUMPRODUCT($I$46:$I$57,AF46:AF57)/SUM($I$46:$I$57) -> 0.05732024944 | AE22: =SUMPRODUCT($I$46:$I$57,AG46:AG57)/SUM($I$46:$I$57) -> 0.1422833182 | AF22: =SUMPRODUCT($I$46:$I$57,AH46:AH57)/SUM($I$46:$I$57) -> 0.05319623668
B23: =B60 -> Mellem personbil, benzin | C23: Personbil | D23: Benzin | E23: Mellem | F23: =SUMPRODUCT($I$58:$I$69,G58:G69)/SUM($I$58:$I$69) -> 0.09124019331 | G23: =H58 -> 8409.352709 | H23: =SUM(I23:N23) -> 3.810061526 | I23: =SUMPRODUCT($I$58:$I$69,K58:K69)/SUM($I$58:$I$69) -> 0.9766871246 | J23: 0 | K23: 1.14166737 | L23: 1.316432986 | M23: 0.2686626641 | N23: 0.1066113805 | O23: =SUM(P23:T23) -> 1.919905969 | P23: =SUMPRODUCT($I$58:$I$69,R58:R69)/SUM($I$58:$I$69) -> 0.3749008879 | Q23: =SUMPRODUCT($I$58:$I$69,S58:S69)/SUM($I$58:$I$69) -> 0 | R23: =SUMPRODUCT($I$58:$I$69,T58:T69)/SUM($I$58:$I$69) -> 0.4372437548 | S23: =SUMPRODUCT($I$58:$I$69,U58:U69)/SUM($I$58:$I$69) -> 1.022472222 | T23: =SUMPRODUCT($I$58:$I$69,V58:V69)/SUM($I$58:$I$69) -> 0.08528910442 | U23: =SUM(V23:Z23) -> 1.579803219 | V23: =SUMPRODUCT($I$58:$I$69,X58:X69)/SUM($I$58:$I$69) -> 0.9766871246 | W23: =SUMPRODUCT($I$58:$I$69,Y58:Y69)/SUM($I$58:$I$69) -> 0 | X23: =SUMPRODUCT($I$58:$I$69,Z58:Z69)/SUM($I$58:$I$69) -> 0.1694519301 | Y23: =SUMPRODUCT($I$58:$I$69,AA58:AA69)/SUM($I$58:$I$69) -> 0.3270527842 | Z23: =SUMPRODUCT($I$58:$I$69,AB58:AB69)/SUM($I$58:$I$69) -> 0.1066113805 | AA23: =SUM(AB23:AF23) -> 0.7825213249 | AB23: =SUMPRODUCT($I$58:$I$69,AD58:AD69)/SUM($I$58:$I$69) -> 0.3749008879 | AC23: =SUMPRODUCT($I$58:$I$69,AE58:AE69)/SUM($I$58:$I$69) -> 0 | AD23: =SUMPRODUCT($I$58:$I$69,AF58:AF69)/SUM($I$58:$I$69) -> 0.06830975259 | AE23: =SUMPRODUCT($I$58:$I$69,AG58:AG69)/SUM($I$58:$I$69) -> 0.25402158 | AF23: =SUMPRODUCT($I$58:$I$69,AH58:AH69)/SUM($I$58:$I$69) -> 0.08528910442
B24: =B70 -> Stor personbil, benzin | C24: Personbil | D24: Benzin | E24: Stor | F24: =SUMPRODUCT($I$70:$I$81,G70:G81)/SUM($I$70:$I$81) -> 0.1279895834 | G24: =H70 -> 1112.130154 | H24: =SUM(I24:N24) -> 5.999094794 | I24: =SUMPRODUCT($I$70:$I$81,K70:K81)/SUM($I$70:$I$81) -> 1.370073579 | J24: 0 | K24: 2.102282538 | L24: 1.943546964 | M24: 0.4547780559 | N24: 0.1284136575 | O24: =SUM(P24:T24) -> 2.83149586 | P24: =SUMPRODUCT($I$70:$I$81,R70:R81)/SUM($I$70:$I$81) -> 0.525902091 | Q24: =SUMPRODUCT($I$70:$I$81,S70:S81)/SUM($I$70:$I$81) -> 0 | R24: =SUMPRODUCT($I$70:$I$81,T70:T81)/SUM($I$70:$I$81) -> 0.6933118032 | S24: =SUMPRODUCT($I$70:$I$81,U70:U81)/SUM($I$70:$I$81) -> 1.50955104 | T24: =SUMPRODUCT($I$70:$I$81,V70:V81)/SUM($I$70:$I$81) -> 0.102730926 | U24: =SUM(V24:Z24) -> 2.007168206 | V24: =SUMPRODUCT($I$70:$I$81,X70:X81)/SUM($I$70:$I$81) -> 1.370073579 | W24: =SUMPRODUCT($I$70:$I$81,Y70:Y81)/SUM($I$70:$I$81) -> 0 | X24: =SUMPRODUCT($I$70:$I$81,Z70:Z81)/SUM($I$70:$I$81) -> 0.1772775731 | Y24: =SUMPRODUCT($I$70:$I$81,AA70:AA81)/SUM($I$70:$I$81) -> 0.3314033968 | Z24: =SUMPRODUCT($I$70:$I$81,AB70:AB81)/SUM($I$70:$I$81) -> 0.1284136575 | AA24: =SUM(AB24:AF24) -> 0.9470854398 | AB24: =SUMPRODUCT($I$70:$I$81,AD70:AD81)/SUM($I$70:$I$81) -> 0.525902091 | AC24: =SUMPRODUCT($I$70:$I$81,AE70:AE81)/SUM($I$70:$I$81) -> 0 | AD24: =SUMPRODUCT($I$70:$I$81,AF70:AF81)/SUM($I$70:$I$81) -> 0.06105172628 | AE24: =SUMPRODUCT($I$70:$I$81,AG70:AG81)/SUM($I$70:$I$81) -> 0.2574006965 | AF24: =SUMPRODUCT($I$70:$I$81,AH70:AH81)/SUM($I$70:$I$81) -> 0.102730926
C25: Kilde:
C28: Niveu III - Omkostninger
C31: Gennemsnitlige og marginale kørselsomkostninger for konkrete køretøjer, inkl. og ekskl. afgifter [kr. per km.]
J32: Gennemsnitlige kørselsomkostninger [kr. per km.] | W32: Marginale kørselsomkostninger, [kr. per km.]
B33: Kategori | C33: Mærke | D33: Model | E33: Variant | F33: Årgang | G33: Brændstof-effektivitet [liter per km] | H33: Trafikarbejde, i alt for kategori [km. per år] | I33: Det repræsentative køretøjs andel af det samlede trafikarbejde indenfor den relevante køretøjskategori [%] | J33: Gennemsnitlige omkostninger inkl.. afgifter og moms, i alt | K33: Brændstof, inkl. afgifter og moms [kr. per km.] | L33: Batteri, inkl. afgifter og moms [kr. per km.] | M33: Afskrivninger, inkl. afgifter og moms [kr. per km.] | N33: Reparation og vedligeholdelse, inkl. afgifter og moms [kr. per km.] | O33: Ejerafgift [kr. per km.] | P33: Dæk, inkl. afgifter og moms [kr. per km.] | Q33: Gennemsnitlige omkostninger ekskl.. afgifter og moms, i alt [kr. per km.] | R33: Brændstof, ekskl. afgifter og moms [kr. per km.] | S33: Batteri, ekskl. afgifter og moms [kr. per km.] | T33: Afskrivninger, ekskl. afgifter og moms [kr. per km.] | U33: Reparation og vedligeholdelse, ekskl. afgifter og moms [kr. per km.] | V33: Dæk, ekskl. afgifter og moms [kr. per km.] | W33: Marginale omkostninger inkl.. afgifter og moms, i alt | X33: Brændstof, inkl. afgifter og moms [kr. per km.] | Y33: Batteri, inkl. afgifter og moms [kr. per km.] | Z33: Afskrivninger, inkl. afgifter og moms [kr. per km.] | AA33: Reparation og vedligeholdelse, inkl. afgifter og moms [kr. per km.] | AB33: Dæk, inkl. afgifter og moms [kr. per km.] | AC33: Marginale omkostninger ekskl.. afgifter og moms, i alt [kr. per km.] | AD33: Brændstof, ekskl. afgifter og moms [kr. per km.] | AE33: Batteri, ekskl. afgifter og moms [kr. per km.] | AF33: Afskrivninger, ekskl. afgifter og moms [kr. per km.] | AG33: Reparation og vedligeholdelse, ekskl. afgifter og moms [kr. per km.] | AH33: Dæk, ekskl. afgifter og moms [kr. per km.]
B34: =B95 -> Mini personbil, benzin | C34: Peugeot | D34: 107 | E34: 1,0i 5d man. | F34: 2007 | G34: =P95 -> 0.06731846408 | H34: =G95 -> 3297.146156 | I34: =H95 -> 0.008117362611 | J34: =SUM(K34:P34) -> 1.918458089 | K34: =G34*R95 -> 0.7206152763 | L34: =(1+Moms)*U95/T95 -> 0 | M34: =(L95/J95)*(SUM(L95:N95)/L95) -> 0.5176042903 | N34: =Z95*(1+AA95)*(1+Moms) -> 0.5061667873 | O34: =O95/I95 -> 0.1204388799 | P34: =(1+Moms)*(AC95*(1-AD95)*AE95*(J95-AF95)/AF95)/J95 -> 0.05363285488 | Q34: =SUM(R34:V34) -> 0.9437823645 | R34: =P95*Q95 -> 0.2766078308 | S34: =U95/T95 -> 0 | T34: =L95/J95 -> 0.2311289975 | U34: =Z95 -> 0.3931392523 | V34: =(AC95*(1-AD95)*AE95*(J95-AF95)/AF95)/J95 -> 0.04290628391 | W34: =SUM(X34:AB34) -> 0.8698863113 | X34: =P95*R95 -> 0.7206152763 | Y34: =L34 -> 0 | Z34: =IF(L95=0,0,W95*SUM(L95:N95)/L95) -> 0.008957842519 | AA34: =N34*AB95 -> 0.08668033757 | AB34: =P34 -> 0.05363285488 | AC34: =SUM(AD34:AH34) -> 0.3908386488 | AD34: =P95*Q95 -> 0.2766078308 | AE34: =S34 -> 0 | AF34: =W95 -> 0.004 | AG34: =U34*AB95 -> 0.06732453404 | AH34: =V34 -> 0.04290628391
B35: Mini personbil, benzin | C35: Citroën | D35: C 1 | E35: 1,0 i | F35: 2007 | G35: =P96 -> 0.06731846408 | I35: =H96 -> 0.007794679043 | J35: 1.940122703 | K35: =G35*R96 -> 0.7206152763 | L35: 0 | M35: 0.5517992237 | N35: 0.5061667873 | O35: =O96/I96 -> 0.1079085605 | P35: 0.05363285488 | Q35: =SUM(R35:V35) -> 0.9571267287 | R35: =P96*Q96 -> 0.2766078308 | S35: =U96/T96 -> 0 | T35: =L96/J96 -> 0.2444733618 | U35: =Z96 -> 0.3931392523 | V35: =(AC96*(1-AD96)*AE96*(J96-AF96)/AF96)/J96 -> 0.04290628391 | W35: =SUM(X35:AB35) -> 0.8699568426 | X35: =P96*R96 -> 0.7206152763 | Y35: 0 | Z35: =W96*SUM(L96:N96)/L96 -> 0.009028373803 | AA35: 0.08668033757 | AB35: =P35 -> 0.05363285488 | AC35: =SUM(AD35:AH35) -> 0.3908386488 | AD35: =P96*Q96 -> 0.2766078308 | AE35: =S35 -> 0 | AF35: =W96 -> 0.004 | AG35: 0.06732453404 | AH35: =V35 -> 0.04290628391
B36: Mini personbil, benzin | C36: Toyota | D36: Aygo | E36: 1,0 5-dørs hb | F36: 2007 | G36: 0.06731846408 | I36: 0.005386088284 | J36: 2.025463898 | K36: 0.7206152763 | L36: 0 | M36: 0.5961249011 | N36: 0.5061667873 | O36: 0.1489240788 | P36: 0.05363285488 | Q36: 0.9744245541 | R36: =P97*Q97 -> 0.2766078308 | S36: 0 | T36: 0.2617711871 | U36: 0.3931392523 | V36: 0.04290628391 | W36: 0.8700375676 | X36: 0.7206152763 | Y36: 0 | Z36: 0.009109098793 | AA36: 0.08668033757 | AB36: 0.05363285488 | AC36: 0.3908386488 | AD36: 0.2766078308 | AE36: 0 | AF36: 0.004 | AG36: 0.06732453404 | AH36: 0.04290628391
B37: Mini personbil, benzin | C37: Toyota | D37: Aygo 3/5-dørs | E37: 1.0 hb 5-dørs | F37: 2011 | G37: 0.06580228246 | I37: 0.0677154121 | J37: 1.87797442 | K37: 0.7043852025 | L37: 0 | M37: 0.5129104035 | N37: 0.5061667873 | O37: 0.1008791714 | P37: 0.05363285488 | Q37: 0.9810828851 | R37: 0.2703779247 | S37: 0 | T37: 0.2746594242 | U37: 0.3931392523 | V37: 0.04290628391 | W37: 0.9438071995 | X37: 0.7043852025 | Y37: 0 | Z37: 0.0280116223 | AA37: 0.1577775198 | AB37: 0.05363285488 | AC37: 0.4508298551 | AD37: 0.2703779247 | AE37: 0 | AF37: 0.015 | AG37: 0.1225456465 | AH37: 0.04290628391
B38: Mini personbil, benzin | C38: Peugeot | D38: 107 | E38: 1,0 5-d 68 hk | F38: 2011 | G38: 0.06580228246 | I38: 0.05548330036 | J38: 1.838663239 | K38: 0.7043852025 | L38: 0 | M38: 0.4771064082 | N38: 0.5061667873 | O38: 0.0973719864 | P38: 0.05363285488 | Q38: 0.9671105943 | R38: 0.2703779247 | S38: 0 | T38: 0.2606871334 | U38: 0.3931392523 | V38: 0.04290628391 | W38: 0.9432483941 | X38: 0.7043852025 | Y38: 0 | Z38: 0.02745281683 | AA38: 0.1577775198 | AB38: 0.05363285488 | AC38: 0.4508298551 | AD38: 0.2703779247 | AE38: 0 | AF38: 0.015 | AG38: 0.1225456465 | AH38: 0.04290628391
B39: Mini personbil, benzin | C39: Citroën | D39: C 1 | E39: 1,0 i | F39: 2011 | G39: 0.06580228246 | I39: 0.04478789144 | J39: 1.781650556 | K39: 0.7043852025 | L39: 0 | M39: 0.4202432753 | N39: 0.5061667873 | O39: 0.09722243637 | P39: 0.05363285488 | Q39: 0.9449201034 | R39: 0.2703779247 | S39: 0 | T39: 0.2384966425 | U39: 0.3931392523 | V39: 0.04290628391 | W39: 0.942226344 | X39: 0.7043852025 | Y39: 0 | Z39: 0.02643076676 | AA39: 0.1577775198 | AB39: 0.05363285488 | AC39: 0.4508298551 | AD39: 0.2703779247 | AE39: 0 | AF39: 0.015 | AG39: 0.1225456465 | AH39: 0.04290628391
B40: Mini personbil, benzin | C40: Volkswagen | D40: Up! | E40: 1.0 mpi bmt 60 hk 5 dørs | F40: 2015 | G40: 0.05986928978 | I40: 0.1156420452 | J40: 1.726053197 | K40: 0.6408750613 | L40: 0 | M40: 0.4944422468 | N40: 0.4912734432 | O40: 0.0458295905 | P40: 0.05363285488 | Q40: 0.9569364541 | R40: 0.2459995872 | S40: 0 | T40: 0.2864589765 | U40: 0.3815716064 | V40: 0.04290628391 | W40: 0.9582342265 | X40: 0.6408750613 | Y40: 0 | Z40: 0.06904196235 | AA40: 0.194684348 | AB40: 0.05363285488 | AC40: 0.4801170152 | AD40: 0.2459995872 | AE40: 0 | AF40: 0.04 | AG40: 0.1512111441 | AH40: 0.04290628391
B41: Mini personbil, benzin | C41: Peugeot | D41: 108 | E41: 1.0 e-vti 69 hk 5d | F41: 2015 | G41: 0.05554413196 | I41: 0.08251213662 | J41: 1.551858504 | K41: 0.5945761025 | L41: 0 | M41: 0.4202432753 | N41: 0.4359194739 | O41: 0.04748679738 | P41: 0.05363285488 | Q41: 0.8691663839 | R41: 0.2282277539 | S41: 0 | T41: 0.2594541139 | U41: 0.3385782321 | V41: 0.04290628391 | W41: 0.8857461916 | X41: 0.5945761025 | Y41: 0 | Z41: 0.06478883976 | AA41: 0.1727483944 | AB41: 0.05363285488 | AC41: 0.4453075481 | AD41: 0.2282277539 | AE41: 0 | AF41: 0.04 | AG41: 0.1341735102 | AH41: 0.04290628391
B42: Mini personbil, benzin | C42: Toyota | D42: Aygo | E42: 1.0 vvt-i | F42: 2015 | G42: 0.05554413196 | I42: 0.08167504337 | J42: 1.508038699 | K42: 0.5945761025 | L42: 0 | M42: 0.3954954509 | N42: 0.4174570844 | O42: 0.0468772065 | P42: 0.05363285488 | Q42: 0.8350284044 | R42: 0.2282277539 | S42: 0 | T42: 0.2396558544 | U42: 0.3242385121 | V42: 0.04290628391 | W42: 0.8796515455 | X42: 0.5945761025 | Y42: 0 | Z42: 0.06601056367 | AA42: 0.1654320245 | AB42: 0.05363285488 | AC42: 0.4396249306 | AD42: 0.2282277539 | AE42: 0 | AF42: 0.04 | AG42: 0.1284908928 | AH42: 0.04290628391
B43: Mini personbil, benzin | C43: CITROEN | D43: C1 | E43: Gnsn variant | F43: 2019 | G43: 0.05381370434 | I43: 0.2485938798 | J43: 1.77307955 | K43: 0.5760526172 | L43: 0 | M43: 0.5196850816 | N43: 0.5101051208 | O43: 0.1136038757 | P43: 0.05363285488 | Q43: 0.9037706694 | R43: 0.2211175229 | S43: 0 | T43: 0.2435487105 | U43: 0.3961981521 | V43: 0.04290628391 | W43: 1.005337228 | X43: 0.5760526172 | Y43: 0 | Z43: 0.1402744196 | AA43: 0.2353773362 | AB43: 0.05363285488 | AC43: 0.5125803024 | AD43: 0.2211175229 | AE43: 0 | AF43: 0.06573914704 | AG43: 0.1828173485 | AH43: 0.04290628391
B44: =B105 -> Mini personbil, benzin | C44: SKODA | D44: CITIGO | E44: Gnsn variant | F44: 2019 | G44: 0.05682402469 | I44: 0.1546806363 | J44: 1.926086986 | K44: 0.6082768051 | L44: 0 | M44: 0.5637837397 | N44: 0.543003633 | O44: 0.1573899534 | P44: 0.05363285488 | Q44: 0.956109087 | R44: 0.2334867621 | S44: 0 | T44: 0.2579656464 | U44: 0.4217503945 | V44: 0.04290628391 | W44: 1.056140186 | X44: 0.6082768051 | Y44: 0 | Z44: 0.1436728598 | AA44: 0.2505576664 | AB44: 0.05363285488 | AC44: 0.5367400893 | AD44: 0.2334867621 | AE44: 0 | AF44: 0.06573914704 | AG44: 0.1946078962 | AH44: 0.04290628391
B45: Mini personbil, benzin | C45: TOYOTA | D45: AYGO | E45: Gnsn variant | F45: 2019 | G45: 0.05381370434 | I45: 0.1276115249 | J45: 1.91477641 | K45: 0.5760526172 | L45: 0 | M45: 0.5993519462 | N45: 0.5695382516 | O45: 0.1162007403 | P45: 0.05363285488 | Q45: 0.9843828603 | R45: 0.2211175229 | S45: 0 | T45: 0.2779992465 | U45: 0.442359807 | V45: 0.04290628391 | W45: 1.034217172 | X45: 0.5760526172 | Y45: 0 | Z45: 0.1417301889 | AA45: 0.262801511 | AB45: 0.05363285488 | AC45: 0.5338806323 | AD45: 0.2211175229 | AE45: 0 | AF45: 0.06573914704 | AG45: 0.2041176785 | AH45: 0.04290628391
B46: Lille personbil, benzin | C46: Suzuki | D46: Swift | E46: 1,3 | F46: 2007 | G46: 0.09073358202 | H46: =G107 -> 9275.60546 | I46: 0.03740667008 | J46: 2.725414266 | K46: 0.9712640681 | L46: 0 | M46: 0.7021363344 | N46: 0.6801079591 | O46: 0.3054106087 | P46: 0.06649529585 | Q46: 1.25617857 | R46: 0.3728192502 | S46: 0 | T46: 0.3019238912 | U46: 0.5282391915 | V46: 0.05319623668 | W46: 1.154389272 | X46: 0.9712640681 | Y46: 0 | Z46: 0.01627878576 | AA46: 0.100351122 | AB46: 0.06649529585 | AC46: 0.5109581059 | AD46: 0.3728192502 | AE46: 0 | AF46: 0.007 | AG46: 0.07794261899 | AH46: 0.05319623668
B47: Lille personbil, benzin | C47: Opel | D47: Corsa | E47: 1,2 | F47: 2007 | G47: 0.08493085294 | I47: 0.03517867232 | J47: 2.655872627 | K47: 0.9091483428 | L47: 0 | M47: 0.7282668436 | N47: 0.6801079591 | O47: 0.2718541856 | P47: 0.06649529585 | Q47: 1.240050011 | R47: 0.3489761586 | S47: 0 | T47: 0.3096384237 | U47: 0.5282391915 | V47: 0.05319623668 | W47: 1.092458699 | X47: 0.9091483428 | Y47: 0 | Z47: 0.0164639383 | AA47: 0.100351122 | AB47: 0.06649529585 | AC47: 0.4871150143 | AD47: 0.3489761586 | AE47: 0 | AF47: 0.007 | AG47: 0.07794261899 | AH47: 0.05319623668
B48: Lille personbil, benzin | C48: Skoda | D48: Fabia | E48: 1,4 combi | F48: 2007 | G48: 0.09610596517 | I48: 0.02869478405 | J48: 3.090269156 | K48: 1.028773125 | L48: 0 | M48: 0.9302659105 | N48: 0.6801079591 | O48: 0.3846268657 | P48: 0.06649529585 | Q48: 1.343681945 | R48: 0.3948940742 | S48: 0 | T48: 0.3673524429 | U48: 0.5282391915 | V48: 0.05319623668 | W48: 1.213346011 | X48: 1.028773125 | Y48: 0 | Z48: 0.01772646814 | AA48: 0.100351122 | AB48: 0.06649529585 | AC48: 0.5330329299 | AD48: 0.3948940742 | AE48: 0 | AF48: 0.007 | AG48: 0.07794261899 | AH48: 0.05319623668
B49: Lille personbil, benzin | C49: Chevrolet | D49: Spark | E49: 1.0 esp 5d | F49: 2011 | G49: 0.07304053353 | I49: 0.09523958916 | J49: 2.19284221 | K49: 0.7818675748 | L49: 0 | M49: 0.5211551218 | N49: 0.6801079591 | O49: 0.143216259 | P49: 0.06649529585 | Q49: 1.140047597 | R49: 0.3001194964 | S49: 0 | T49: 0.2584926723 | U49: 0.5282391915 | V49: 0.05319623668 | W49: 1.040657236 | X49: 0.7818675748 | Y49: 0 | Z49: 0.05443554033 | AA49: 0.1378588248 | AB49: 0.06649529585 | AC49: 0.4873905485 | AD49: 0.3001194964 | AE49: 0 | AF49: 0.027 | AG49: 0.1070748154 | AH49: 0.05319623668
B50: Lille personbil, benzin | C50: Suzuki | D50: Swift | E50: 1,2 eco+ | F50: 2011 | G50: 0.0716083662 | I50: 0.05970080529 | J50: 2.422183788 | K50: 0.766536838 | L50: 0 | M50: 0.7580308917 | N50: 0.6801079591 | O50: 0.1510128029 | P50: 0.06649529585 | Q50: 1.227941079 | R50: 0.2942348004 | S50: 0 | T50: 0.3522708505 | U50: 0.5282391915 | V50: 0.05319623668 | W50: 1.028990668 | X50: 0.766536838 | Y50: 0 | Z50: 0.05809970948 | AA50: 0.1378588248 | AB50: 0.06649529585 | AC50: 0.4815058525 | AD50: 0.2942348004 | AE50: 0 | AF50: 0.027 | AG50: 0.1070748154 | AH50: 0.05319623668
B51: Lille personbil, benzin | C51: Opel | D51: Corsa | E51: 1 | F51: 2011 | G51: 0.07304053353 | I51: 0.04213845579 | J51: 2.269706795 | K51: 0.7818675748 | L51: 0 | M51: 0.599118734 | N51: 0.6801079591 | O51: 0.1421172314 | P51: 0.06649529585 | Q51: 1.170472421 | R51: 0.3001194964 | S51: 0 | T51: 0.2889174966 | U51: 0.5282391915 | V51: 0.05319623668 | W51: 1.04221071 | X51: 0.7818675748 | Y51: 0 | Z51: 0.0559890142 | AA51: 0.1378588248 | AB51: 0.06649529585 | AC51: 0.4873905485 | AD51: 0.3001194964 | AE51: 0 | AF51: 0.027 | AG51: 0.1070748154 | AH51: 0.05319623668
B52: Lille personbil, benzin | C52: Peugeot | D52: 208 | E52: 1.2 vti 5d | F52: 2015 | G52: 0.06580228246 | I52: 0.116388945 | J52: 1.972707712 | K52: 0.7043852025 | L52: 0 | M52: 0.5542973562 | N52: 0.5638708113 | O52: 0.0836590464 | P52: 0.06649529585 | Q52: 1.051170669 | R52: 0.2703779247 | S52: 0 | T52: 0.2896385954 | U52: 0.4379579117 | V52: 0.05319623668 | W52: 1.013767809 | X52: 0.7043852025 | Y52: 0 | Z52: 0.09377400278 | AA52: 0.1491133075 | AB52: 0.06649529585 | AC52: 0.4883903226 | AD52: 0.2703779247 | AE52: 0 | AF52: 0.049 | AG52: 0.1158161612 | AH52: 0.05319623668
B53: Lille personbil, benzin | C53: Kia | D53: Picanto | E53: 1.0 5-dørs man. 5 | F53: 2015 | G53: 0.05986928978 | I53: 0.1132875238 | J53: 1.721298294 | K53: 0.6408750613 | L53: 0 | M53: 0.4737941817 | N53: 0.4997250226 | O53: 0.04040873204 | P53: 0.06649529585 | Q53: 0.9618254345 | R53: 0.2459995872 | S53: 0 | T53: 0.2744936707 | U53: 0.3881359399 | V53: 0.05319623668 | W53: 0.9240978079 | X53: 0.6408750613 | Y53: 0 | Z53: 0.08457723212 | AA53: 0.1321502186 | AB53: 0.06649529585 | AC53: 0.4508367704 | AD53: 0.2459995872 | AE53: 0 | AF53: 0.049 | AG53: 0.1026409465 | AH53: 0.05319623668
B54: =B115 -> Lille personbil, benzin | C54: Ford | D54: Fiesta | E54: 1.0 ecoboost (100 hk) hatchback, 5 dørs forhjulstræk manuel | F54: 2015 | G54: 0.06269573693 | I54: 0.07190826561 | J54: 2.213332858 | K54: 0.6711309655 | L54: 0 | M54: 0.6986165072 | N54: 0.6788658513 | O54: 0.09822423835 | P54: 0.06649529585 | Q54: 1.192177724 | R54: 0.2576133017 | S54: 0 | T54: 0.3540937382 | U54: 0.5272744476 | V54: 0.05319623668 | W54: 1.013825088 | X54: 0.6711309655 | Y54: 0 | Z54: 0.09667555552 | AA54: 0.179523271 | AB54: 0.06649529585 | AC54: 0.4992450886 | AD54: 0.2576133017 | AE54: 0 | AF54: 0.049 | AG54: 0.1394355503 | AH54: 0.05319623668
B55: Lille personbil, benzin | C55: CITROEN | D55: C3 | E55: Gnsn variant | F55: 2019 | G55: 0.06149917187 | I55: 0.1998454703 | J55: 2.158110495 | K55: 0.6583222499 | L55: 0 | M55: 0.6287106082 | N55: 0.6231640848 | O55: 0.1814182561 | P55: 0.06649529585 | Q55: 1.054619157 | R55: 0.2526966823 | S55: 0 | T55: 0.2647152983 | U55: 0.4840109397 | V55: 0.05319623668 | W55: 1.146408715 | X55: 0.6583222499 | Y55: 0 | Z55: 0.2167665704 | AA55: 0.2048245989 | AB55: 0.06649529585 | AC55: 0.5562484116 | AD55: 0.2526966823 | AE55: 0 | AF55: 0.09126842553 | AG55: 0.1590870671 | AH55: 0.05319623668
B56: Lille personbil, benzin | C56: PEUGEOT | D56: 208 | E56: Gnsn variant | F56: 2019 | G56: 0.06454989239 | I56: 0.1306119847 | J56: 2.691465161 | K56: 0.6909789041 | L56: 0 | M56: 0.9137550518 | N56: 0.8502905402 | O56: 0.1699453693 | P56: 0.06649529585 | Q56: 1.359523663 | R56: 0.2652319235 | S56: 0 | T56: 0.3806756657 | U56: 0.6604198371 | V56: 0.05319623668 | W56: 1.256028043 | X56: 0.6909789041 | Y56: 0 | Z56: 0.2190762174 | AA56: 0.2794776257 | AB56: 0.06649529585 | AC56: 0.6267665862 | AD56: 0.2652319235 | AE56: 0 | AF56: 0.09126842553 | AG56: 0.2170700006 | AH56: 0.05319623668
B57: Lille personbil, benzin | C57: VOLKSWAGEN | D57: POLO | E57: Gnsn variant | F57: 2019 | G57: 0.06681282316 | I57: 0.06959883382 | J57: 3.170564812 | K57: 0.7152026073 | L57: 0 | M57: 1.118611702 | N57: 1.013522506 | O57: 0.2567327002 | P57: 0.06649529585 | Q57: 1.579032042 | R57: 0.2745301804 | S57: 0 | T57: 0.4641036788 | U57: 0.7872019466 | V57: 0.05319623668 | W57: 1.33480827 | X57: 0.7152026073 | Y57: 0 | Z57: 0.2199808653 | AA57: 0.3331295013 | AB57: 0.06649529585 | AC57: 0.6777362028 | AD57: 0.2745301804 | AE57: 0 | AF57: 0.09126842553 | AG57: 0.2587413603 | AH57: 0.05319623668
B58: Mellem personbil, benzin | C58: Toyota | D58: Avensis | E58: 1,8 stw man. | F58: 2007 | G58: 0.1050942928 | H58: =G119 -> 8409.352709 | I58: 0.1371872858 | J58: 4.21002228 | K58: 1.124989316 | L58: 0 | M58: 1.313175691 | N58: 1.316432986 | O58: 0.3488129064 | P58: 0.1066113805 | Q58: 1.998227407 | R58: 0.4318266136 | S58: 0 | T58: 0.4586394664 | U58: 1.022472222 | V58: 0.08528910442 | W58: 1.463361575 | X58: 1.124989316 | Y58: 0 | Z58: 0.02863198192 | AA58: 0.2031288966 | AB58: 0.1066113805 | AC58: 0.6848857347 | AD58: 0.4318266136 | AE58: 0 | AF58: 0.01 | AG58: 0.1577700168 | AH58: 0.08528910442
B59: Mellem personbil, benzin | C59: Peugeot | D59: 307 | E59: 1,6 i st. car | F59: 2007 | G59: 0.1123700516 | I59: 0.09389673414 | J59: 3.884236756 | K59: 1.202873192 | L59: 0 | M59: 0.9105696935 | N59: 1.316432986 | O59: 0.347749504 | P59: 0.1066113805 | Q59: 1.913092811 | R59: 0.4617223022 | S59: 0 | T59: 0.3436091814 | U59: 1.022472222 | V59: 0.08528910442 | W59: 1.539113625 | X59: 1.202873192 | Y59: 0 | Z59: 0.02650015607 | AA59: 0.2031288966 | AB59: 0.1066113805 | AC59: 0.7147814234 | AD59: 0.4617223022 | AE59: 0 | AF59: 0.01 | AG59: 0.1577700168 | AH59: 0.08528910442
B60: Mellem personbil, benzin | C60: Citroën | D60: C 4 picasso | E60: 1,8 i | F60: 2007 | G60: 0.1168648536 | I60: 0.09377042017 | J60: 4.35928096 | K60: 1.25098812 | L60: 0 | M60: 1.290804707 | N60: 1.316432986 | O60: 0.3944437663 | P60: 0.1066113805 | Q60: 2.040200278 | R60: 0.4801911943 | S60: 0 | T60: 0.4522477566 | U60: 1.022472222 | V60: 0.08528910442 | W60: 1.589270378 | X60: 1.25098812 | Y60: 0 | Z60: 0.02854198142 | AA60: 0.2031288966 | AB60: 0.1066113805 | AC60: 0.7332503155 | AD60: 0.4801911943 | AE60: 0 | AF60: 0.01 | AG60: 0.1577700168 | AH60: 0.08528910442
B61: Mellem personbil, benzin | C61: Toyota | D61: Avensis stw | E61: 1.8 stw man.6 | F61: 2011 | G61: 0.0980409846 | I61: 0.1106032902 | J61: 4.007515855 | K61: 1.049486678 | L61: 0 | M61: 1.270094986 | N61: 1.316432986 | O61: 0.2648898245 | P61: 0.1066113805 | Q61: 1.964178829 | R61: 0.4028449616 | S61: 0 | T61: 0.4535725408 | U61: 1.022472222 | V61: 0.08528910442 | W61: 1.535334357 | X61: 1.049486678 | Y61: 0 | Z61: 0.1092078995 | AA61: 0.2700283995 | AB61: 0.1066113805 | AC61: 0.7368648618 | AD61: 0.4028449616 | AE61: 0 | AF61: 0.039 | AG61: 0.2097307957 | AH61: 0.08528910442
B62: Mellem personbil, benzin | C62: Suzuki | D62: Sx4 combiback | E62: 1,6 | F62: 2011 | G62: 0.09073358202 | I62: 0.107011908 | J62: 3.26920392 | K62: 0.9712640681 | L62: 0 | M62: 0.6500700716 | N62: 1.316432986 | O62: 0.2248254129 | P62: 0.1066113805 | Q62: 1.755851559 | R62: 0.3728192502 | S62: 0 | T62: 0.2752709816 | U62: 1.022472222 | V62: 0.08528910442 | W62: 1.440004848 | X62: 0.9712640681 | Y62: 0 | Z62: 0.09210100042 | AA62: 0.2700283995 | AB62: 0.1066113805 | AC62: 0.7068391503 | AD62: 0.3728192502 | AE62: 0 | AF62: 0.039 | AG62: 0.2097307957 | AH62: 0.08528910442
B63: Mellem personbil, benzin | C63: Toyota | D63: Avensis sedan | E63: 1.8 sd man.6 | F63: 2011 | G63: 0.09610596517 | I63: 0.06347167753 | J63: 3.932559216 | K63: 1.028773125 | L63: 0 | M63: 1.19233105 | N63: 1.316432986 | O63: 0.2884106748 | P63: 0.1066113805 | Q63: 1.934343349 | R63: 0.3948940742 | S63: 0 | T63: 0.4316879477 | U63: 1.022472222 | V63: 0.08528910442 | W63: 1.513131712 | X63: 1.028773125 | Y63: 0 | Z63: 0.1077188075 | AA63: 0.2700283995 | AB63: 0.1066113805 | AC63: 0.7289139744 | AD63: 0.3948940742 | AE63: 0 | AF63: 0.039 | AG63: 0.2097307957 | AH63: 0.08528910442
B64: =B125 -> Mellem personbil, benzin | C64: Suzuki | D64: Vitara | E64: 1,6 5-dørs | F64: 2015 | G64: 0.07729156987 | I64: 0.06399311365 | J64: 3.076301983 | K64: 0.827373095 | L64: 0 | M64: 0.9375910297 | N64: 1.062405066 | O64: 0.1423214119 | P64: 0.1066113805 | Q64: 1.615168349 | R64: 0.3175867687 | S64: 0 | T64: 0.3871234926 | U64: 0.8251689833 | V64: 0.08528910442 | W64: 1.395765389 | X64: 0.827373095 | Y64: 0 | Z64: 0.2179748692 | AA64: 0.2438060445 | AB64: 0.1066113805 | AC64: 0.6822397912 | AD64: 0.3175867687 | AE64: 0 | AF64: 0.09 | AG64: 0.189363918 | AH64: 0.08528910442
B65: Mellem personbil, benzin | C65: Toyota | D65: Avensis | E65: 1.8 vvt-i touring sports | F65: 2015 | G65: 0.09485783575 | I65: 0.04301030224 | J65: 4.159820574 | K65: 1.015412435 | L65: 0 | M65: 1.304108014 | N65: 1.430065889 | O65: 0.3036228559 | P65: 0.1066113805 | Q65: 2.074996642 | R65: 0.3897655798 | S65: 0 | T65: 0.48921117 | U65: 1.110730787 | V65: 0.08528910442 | W65: 1.690118784 | X65: 1.015412435 | Y65: 0 | Z65: 0.2399162744 | AA65: 0.3281786946 | AB65: 0.1066113805 | AC65: 0.8199507577 | AD65: 0.3897655798 | AE65: 0 | AF65: 0.09 | AG65: 0.2548960735 | AH65: 0.08528910442
B66: Mellem personbil, benzin | C66: Toyota | D66: Auris | E66: 1.8 hybrid touring sports | F66: 2015 | G66: 0.05430522939 | I66: 0.04557439455 | J66: 2.832211019 | K66: 0.581314182 | L66: 0 | M66: 0.9896720247 | N66: 1.114648597 | O66: 0.03996483436 | P66: 0.1066113805 | Q66: 1.617825142 | R66: 0.2231371721 | S66: 0 | T66: 0.4436523821 | U66: 0.8657464831 | V66: 0.08528910442 | W66: 1.144487093 | X66: 0.581314182 | Y66: 0 | Z66: 0.2007663789 | AA66: 0.2557951521 | AB66: 0.1066113805 | AC66: 0.5971021228 | AD66: 0.2231371721 | AE66: 0 | AF66: 0.09 | AG66: 0.1986758463 | AH66: 0.08528910442
B67: Mellem personbil, benzin | C67: VOLKSWAGEN | D67: GOLF | E67: Gnsn variant | F67: 2019 | G67: 0.06445575068 | I67: 0.08908724996 | J67: 3.49654527 | K67: 0.6899711576 | L67: 0 | M67: 1.208768942 | N67: 1.33442928 | O67: 0.1567645103 | P67: 0.1066113805 | Q67: 1.896896003 | R67: 0.2648451004 | S67: 0 | T67: 0.5103118728 | U67: 1.036449926 | V67: 0.08528910442 | W67: 1.759454748 | X67: 0.6899711576 | Y67: 0 | Z67: 0.3959582432 | AA67: 0.5669139671 | AB67: 0.1066113805 | AC67: 0.957619353 | AD67: 0.2648451004 | AE67: 0 | AF67: 0.1671636204 | AG67: 0.4403215278 | AH67: 0.08528910442
B68: Mellem personbil, benzin | C68: NISSAN | D68: QASHQAI | E68: Gnsn variant | F68: 2019 | G68: 0.07859995809 | I68: 0.07447808678 | J68: 4.116981402 | K68: 0.8413788295 | L68: 0 | M68: 1.365886256 | N68: 1.49203693 | O68: 0.3110680062 | P68: 0.1066113805 | Q68: 2.113110101 | R68: 0.3229628632 | S68: 0 | T68: 0.5459944989 | U68: 1.158863635 | V68: 0.08528910442 | W68: 2.000046225 | X68: 0.8413788295 | Y68: 0 | Z68: 0.4181846008 | AA68: 0.6338714145 | AB68: 0.1066113805 | AC68: 1.0677429 | AD68: 0.3229628632 | AE68: 0 | AF68: 0.1671636204 | AG68: 0.4923273122 | AH68: 0.08528910442
B69: Mellem personbil, benzin | C69: SKODA | D69: OCTAVIA | E69: Gnsn variant | F69: 2019 | G69: 0.07139306219 | I69: 0.07791553694 | J69: 3.764856787 | K69: 0.764232101 | L69: 0 | M69: 1.266098155 | N69: 1.391937407 | O69: 0.235977743 | P69: 0.1066113805 | Q69: 1.979147695 | R69: 0.2933501282 | S69: 0 | T69: 0.5193920293 | U69: 1.081116433 | V69: 0.08528910442 | W69: 1.869676087 | X69: 0.764232101 | Y69: 0 | Z69: 0.4074870993 | AA69: 0.591345506 | AB69: 0.1066113805 | AC69: 1.005100333 | AD69: 0.2933501282 | AE69: 0 | AF69: 0.1671636204 | AG69: 0.4592974804 | AH69: 0.08528910442
B70: Stor personbil, benzin | C70: Volvo | D70: V 70 | E70: 2,4 | F70: 2007 | G70: 0.1316045649 | H70: =G131 -> 1112.130154 | I70: 0.2117103533 | J70: 6.228989708 | K70: 1.408770405 | L70: 0 | M70: 2.282272091 | N70: 1.943546964 | O70: 0.46598659 | P70: 0.1284136575 | Q70: 2.886167147 | R70: 0.5407558494 | S70: 0 | T70: 0.7331293314 | U70: 1.50955104 | V70: 0.102730926 | W70: 1.820164555 | X70: 1.408770405 | Y70: 0 | Z70: 0.07160027003 | AA70: 0.2113802222 | AB70: 0.1284136575 | AC70: 0.8306655888 | AD70: 0.5407558494 | AE70: 0 | AF70: 0.023 | AG70: 0.1641788134 | AH70: 0.102730926
B71: Stor personbil, benzin | C71: Volvo | D71: V70 | E71: 2,5 t aut. | F71: 2007 | G71: 0.1490623133 | I71: 0.05967589715 | J71: 6.705806264 | K71: 1.595648112 | L71: 0 | M71: 2.418403789 | N71: 1.943546964 | O71: 0.6197937416 | P71: 0.1284136575 | Q71: 2.996794836 | R71: 0.6124887682 | S71: 0 | T71: 0.7720241021 | U71: 1.50955104 | V71: 0.102730926 | W71: 2.007490632 | X71: 1.595648112 | Y71: 0 | Z71: 0.07204864069 | AA71: 0.2113802222 | AB71: 0.1284136575 | AC71: 0.9023985076 | AD71: 0.6124887682 | AE71: 0 | AF71: 0.023 | AG71: 0.1641788134 | AH71: 0.102730926
B72: Stor personbil, benzin | C72: Volvo | D72: S 80 | E72: S80 2,5t aut. | F72: 2007 | G72: 0.1446347199 | I72: 0.04513451287 | J72: 6.621885544 | K72: 1.548252623 | L72: 0 | M72: 2.345552321 | N72: 1.943546964 | O72: 0.6561199782 | P72: 0.1284136575 | Q72: 2.957787395 | R72: 0.5942960325 | S72: 0 | T72: 0.7512093969 | U72: 1.50955104 | V72: 0.102730926 | W72: 1.959860971 | X72: 1.548252623 | Y72: 0 | Z72: 0.07181446823 | AA72: 0.2113802222 | AB72: 0.1284136575 | AC72: 0.8842057719 | AD72: 0.5942960325 | AE72: 0 | AF72: 0.023 | AG72: 0.1641788134 | AH72: 0.102730926
B73: Stor personbil, benzin | C73: Volvo | D73: V70 | E73: 2,5 t aut. | F73: 2011 | G73: 0.1418262787 | I73: 0.2088941264 | J73: 6.464946937 | K73: 1.518189466 | L73: 0 | M73: 2.347714297 | N73: 1.943546964 | O73: 0.5270825538 | P73: 0.1284136575 | Q73: 2.94892988 | R73: 0.5827563037 | S73: 0 | T73: 0.7538916107 | U73: 1.50955104 | V73: 0.102730926 | W73: 2.173927594 | X73: 1.518189466 | Y73: 0 | Z73: 0.1806193719 | AA73: 0.3467050991 | AB73: 0.1284136575 | AC73: 1.012772744 | AD73: 0.5827563037 | AE73: 0 | AF73: 0.058 | AG73: 0.2692855139 | AH73: 0.102730926
B74: =B135 -> Stor personbil, benzin | C74: Suzuki | D74: Grand vitara | E74: 2.4l m/t | F74: 2011 | G74: 0.1316045649 | I74: 0.1852980637 | J74: 5.132623302 | K74: 1.408770405 | L74: 0 | M74: 1.228835029 | N74: 1.943546964 | O74: 0.4230572468 | P74: 0.1284136575 | Q74: 2.588113898 | R74: 0.5407558494 | S74: 0 | T74: 0.4350760821 | U74: 1.50955104 | V74: 0.102730926 | W74: 2.047705181 | X74: 1.408770405 | Y74: 0 | Z74: 0.1638160188 | AA74: 0.3467050991 | AB74: 0.1284136575 | AC74: 0.9707722893 | AD74: 0.5407558494 | AE74: 0 | AF74: 0.058 | AG74: 0.2692855139 | AH74: 0.102730926
B75: Stor personbil, benzin | C75: Audi | D75: A6 | E75: 2,8 fsi aut. | F75: 2011 | G75: 0.1082081978 | I75: 0.1657319019 | J75: 6.105696638 | K75: 1.158322333 | L75: 0 | M75: 2.535100389 | N75: 1.943546964 | O75: 0.3403132942 | P75: 0.1284136575 | Q75: 2.867790986 | R75: 0.4446214762 | S75: 0 | T75: 0.8108875433 | U75: 1.50955104 | V75: 0.102730926 | W75: 1.814768111 | X75: 1.158322333 | Y75: 0 | Z75: 0.181327021 | AA75: 0.3467050991 | AB75: 0.1284136575 | AC75: 0.8746379161 | AD75: 0.4446214762 | AE75: 0 | AF75: 0.058 | AG75: 0.2692855139 | AH75: 0.102730926
B76: Stor personbil, benzin | C76: Mazda | D76: Mazda cx-9 | E76: 3,7 suv firehjulstræk aut. | F76: 2015 | G76: 0.1641360304 | I76: 0.02719451075 | J76: 7.025855691 | K76: 1.757005786 | L76: 0 | M76: 2.17990613 | N76: 2.249069152 | O76: 0.7114609655 | P76: 0.1284136575 | Q76: 3.283545014 | R76: 0.6744258347 | S76: 0 | T76: 0.7595384269 | U76: 1.746849827 | V76: 0.102730926 | W76: 2.863504895 | X76: 1.757005786 | Y76: 0 | Z76: 0.4620765382 | AA76: 0.5160089132 | AB76: 0.1284136575 | AC76: 1.338940383 | AD76: 0.6744258347 | AE76: 0 | AF76: 0.161 | AG76: 0.4007836219 | AH76: 0.102730926
B77: Stor personbil, benzin | C77: Mazda | D77: Mazda6 | E77: 2,5 skyactiv-g 192 hk stationcar aut. | F77: 2015 | G77: 0.09364170965 | I77: 0.01829775314 | J77: 4.570626404 | K77: 1.002394327 | L77: 0 | M77: 1.569038346 | N77: 1.653122391 | O77: 0.2176576832 | P77: 0.1284136575 | Q77: 2.343645583 | R77: 0.3847685852 | S77: 0 | T77: 0.5721675156 | U77: 1.283978556 | V77: 0.102730926 | W77: 1.951593133 | X77: 1.002394327 | Y77: 0 | Z77: 0.44150562 | AA77: 0.3792795288 | AB77: 0.1284136575 | AC77: 0.9430855529 | AD77: 0.3847685852 | AE77: 0 | AF77: 0.161 | AG77: 0.2945860418 | AH77: 0.102730926
B78: Stor personbil, benzin | C78: Bmw | D78: 4-serie | E78: 435i gran coupé steptronic | F78: 2015 | G78: 0.110667475 | I78: 0.01415074147 | J78: 8.148106716 | K78: 1.184647841 | L78: 0 | M78: 3.245993701 | N78: 3.289116528 | O78: 0.2999349886 | P78: 0.1284136575 | Q78: 4.218000358 | R78: 0.4547265097 | S78: 0 | T78: 1.105889308 | U78: 2.554653614 | V78: 0.102730926 | W78: 2.540256149 | X78: 1.184647841 | Y78: 0 | Z78: 0.4725653662 | AA78: 0.7546292844 | AB78: 0.1284136575 | AC78: 1.304577268 | AD78: 0.4547265097 | AE78: 0 | AF78: 0.161 | AG78: 0.5861198326 | AH78: 0.102730926
B79: Stor personbil, benzin | C79: VOLKSWAGEN | D79: PASSAT | E79: Gnsn variant | F79: 2019 | G79: 0.07519175126 | I79: 0.02968916311 | J79: 4.428680611 | K79: 0.8048954377 | L79: 0 | M79: 1.570308595 | N79: 1.654361613 | O79: 0.2707013081 | P79: 0.1284136575 | Q79: 2.332642854 | R79: 0.3089587307 | S79: 0 | T79: 0.6360121385 | U79: 1.284941058 | V79: 0.102730926 | W79: 2.011901374 | X79: 0.8048954377 | Y79: 0 | Z79: 0.4517368353 | AA79: 0.626855443 | AB79: 0.1284136575 | AC79: 1.081531778 | AD79: 0.3089587307 | AE79: 0 | AF79: 0.1829641075 | AG79: 0.486878014 | AH79: 0.102730926
B80: Stor personbil, benzin | C80: MAZDA | D80: CX-5 | E80: Gnsn variant | F80: 2019 | G80: 0.08340131299 | I80: 0.01535646368 | J80: 4.559691453 | K80: 0.8927752739 | L80: 0 | M80: 1.581331368 | N80: 1.665115144 | O80: 0.2920560098 | P80: 0.1284136575 | Q80: 2.365312097 | R80: 0.3426913639 | S80: 0 | T80: 0.6265964912 | U80: 1.293293315 | V80: 0.102730926 | W80: 2.113862544 | X80: 0.8927752739 | Y80: 0 | Z80: 0.4617435406 | AA80: 0.6309300718 | AB80: 0.1284136575 | AC80: 1.118429172 | AD80: 0.3426913639 | AE80: 0 | AF80: 0.1829641075 | AG80: 0.4900427742 | AH80: 0.102730926
B81: Stor personbil, benzin | C81: VOLKSWAGEN | D81: TOURAN | E81: Gnsn variant | F81: 2019 | G81: 0.07959093145 | I81: 0.01886651252 | J81: 4.046114481 | K81: 0.8519867742 | L81: 0 | M81: 1.368311277 | N81: 1.457298269 | O81: 0.2401045035 | P81: 0.1284136575 | Q81: 2.110399378 | R81: 0.3270347178 | S81: 0 | T81: 0.5487515832 | U81: 1.131882151 | V81: 0.102730926 | W81: 1.988807187 | X81: 0.8519867742 | Y81: 0 | Z81: 0.4562207367 | AA81: 0.5521860186 | AB81: 0.1284136575 | AC81: 1.041612096 | AD81: 0.3270347178 | AE81: 0 | AF81: 0.1829641075 | AG81: 0.4288823445 | AH81: 0.102730926
C82: Kilde:
C83: Note: De samlede kørselsomkostninger omfatter omkostninger til brændstof/el, motorolie/batteri, dæk, reparation og vedligehold samt afskrivninger.
C84: Note: Her er alle omkostningerne samlet og opgjort som gennemsnitlige og marginale omkostninger henholdsvis uden og med afgifter.
C85: Note:
C89: Niveu III - Grundforudsætninger og grunddata
C92: Forudsætninger og grunddata for konkrete køretøjer
G93: Grundforudsætninger | P93: Grunddata
B94: Kategori | C94: Mærke | D94: Model | E94: Variant | F94: Årgang | G94: Trafikarbejde, i alt for kategori [mio. km. per år] | H94: Det repræsentative køretøjs andel af det samlede trafikarbejde indenfor den relevante køretøjskategori [%] | I94: Trafikarbejde, gennemsnitligt for konkrete køretøjer - årgang, mærke og model [km. per år per bil] | J94: Levetid, kørsel i alt [km.] | K94: Levetid, alder [år] | L94: Pris ekskl. moms og afgifter [kr] | M94: Moms [kr.] | N94: Registreringsafgift 2016 [kr.] | O94: Ejerafgift, årligt [kr. per år] | P94: Brændstof-effektivitet [liter per km, realt forbrug] | Q94: Brændstofpris ekskl. moms og afgifter [kr per liter] | R94: Brændstofpris inkl. moms og afgifter [kr per liter] | S94: Brændstof-effektivitet [liter per km oplyst] | T94: Batteri levetid km | U94: Batteri pris | V94: Afskrivninger ekskl. moms og afgifter, gennemsnitlige [kr. per km.] | W94: Afskrivninger ekskl. moms og afgifter, marginale [kr. per km.] | X94: Ansvarsforsikrings-præmie [kr per år] | Y94: Forsikringsafgift [kr per år] | Z94: Reparationsomk. ekskl. moms og afgifter, gennemsnitlige [kr per km.] | AA94: Andel af reparationsomk. der er afgifter - før/ud over moms [Pct.] | AB94: Andel af reparationsomk. som er kørselsafhængig [Pct.] | AC94: Dækpris ekskl. moms [kr per stk] | AD94: Rabat for dæk [Pct] | AE94: Dæk [antal] | AF94: Dæk levetid [km] | AH94: Bilens ny-pris inkl. moms og afgifter (før 2016) [kr.] | AI94: Det repræsentative køretøjs andel af det samlede trafikarbejde indenfor den relevante køretøjskategori [%] | AJ94: Levetid, alder [år] | AK94: Beregnet sammenvægtet bilpris til brug for beregning af reparations-omkostning [kr.] | AL94: Gennemsnitlig reparationsomkostning inkl. moms, 10 års brug [kr. per km.] | AM94: Gennemsnitlig reparationsomkostning inkl. moms, 15 års brug [kr. per km.] | AN94: Gennemsnitlig reparationsomkostning inkl. moms, levetids brug [kr. per km.] | AO94: Gennemsnitlig reparationsomkostning ekskl. moms, levetids brug [kr. per km.] | AP94: Gennemsnitlig reparationsomkostning ekskl. moms, levetids brug [kr. per km.] - 2015-niveau | AR94: Realitetsfaktor | AS94: Sampling korrektion af brændstofforbrug
B95: Mini personbil, benzin | C95: Peugeot | D95: 107 | E95: 1,0i 5d man. | F95: 2007 | G95: 3297.146156 | H95: 0.008117362611 | I95: 10627.79728 | J95: 202240 | K95: 16.2 | L95: 46743.52846 | M95: 11685.88211 | N95: 46250.8811 | O95: =VLOOKUP(1/(S95*AS95),PB_B_2015!$G$5:$I$36,2) -> 1280 | P95: =S95*AR95*AS95 -> 0.06731846408 | Q95: ='Ark til TE inkl. brændstofpris'!C169 -> 4.108944471 | R95: ='Ark til TE inkl. brændstofpris'!D169 -> 10.70457097 | S95: 0.04608294931 | T95: 1 | U95: 0 | W95: 0.004 | Z95: =AP95 -> 0.3931392523 | AA95: 0.03 | AB95: 0.1712485682 | AC95: 454 | AD95: 0 | AE95: 4 | AF95: 35000 | AH95: =SUM(L95:N95) -> 104680.2917 | AI95: =H95 -> 0.008117362611 | AJ95: =K95 -> 16.2 | AK95: =SUMPRODUCT(AH101:AH106,AI101:AI106)*SUM(AI95:AI106)/SUM(AI101:AI106) -> 104033.4615 | AL95: =0.0000021891*AK95+0.11713 -> 0.3448696506 | AM95: =0.000003197*AK95+0.1147 -> 0.4472949765 | AN95: =AL95+(AJ95-10)*(AM95-AL95)/(15-10) -> 0.4718770547 | AO95: =AN95/(1+Moms) -> 0.3775016437 | AP95: =AO95*Opregn_rep -> 0.3931392523 | AR95: =' Fælles forudsætninger'!E54 -> 1.252 | AS95: =' Fælles forudsætninger'!J54 -> 1.166781686
B96: =B95 -> Mini personbil, benzin | C96: Citroën | D96: C 1 | E96: 1,0 i | F96: 2007 | H96: 0.007794679043 | I96: 11861.89486 | J96: 202240 | K96: 16.2 | L96: 49442.29268 | M96: 12360.57317 | N96: 49793.00915 | O96: =VLOOKUP(1/(S96*AS96),PB_B_2015!$G$5:$I$36,2) -> 1280 | P96: =S96*AR96*AS96 -> 0.06731846408 | Q96: =$Q$95 -> 4.108944471 | R96: =$R$95 -> 10.70457097 | S96: 0.04608294931 | T96: 1 | U96: 0 | W96: 0.004 | Z96: =AP96 -> 0.3931392523 | AA96: 0.03 | AB96: 0.1712485682 | AC96: 454 | AD96: 0 | AE96: 4 | AF96: 35000 | AH96: =SUM(L96:N96) -> 111595.875 | AI96: =H96 -> 0.007794679043 | AJ96: 16.2 | AK96: =SUMPRODUCT(AH101:AH106,AI101:AI106)*SUM(AI95:AI106)/SUM(AI101:AI106) -> 104033.4615 | AL96: =0.0000021891*AK96+0.11713 -> 0.3448696506 | AM96: =0.000003197*AK96+0.1147 -> 0.4472949765 | AN96: =AL96+(AJ96-10)*(AM96-AL96)/(15-10) -> 0.4718770547 | AO96: 0.3775016437 | AP96: 0.3931392523 | AR96: =AR95 -> 1.252 | AS96: =AS95 -> 1.166781686
B97: =B96 -> Mini personbil, benzin | C97: Toyota | D97: Aygo | E97: 1,0 5-dørs hb | F97: 2007 | H97: 0.005386088284 | I97: 8594.9835 | J97: 202240 | K97: 16.2 | L97: 52940.60488 | M97: 13235.15122 | N97: 54384.5439 | O97: =VLOOKUP(1/(S97*AS97),PB_B_2015!$G$5:$I$36,2) -> 1280 | P97: 0.06731846408 | Q97: =$Q$95 -> 4.108944471 | R97: =$R$95 -> 10.70457097 | S97: 0.04608294931 | T97: 1 | U97: 0 | W97: 0.004 | Z97: 0.3931392523 | AA97: 0.03 | AB97: 0.1712485682 | AC97: 454 | AD97: 0 | AE97: 4 | AF97: 35000 | AH97: 120560.3 | AI97: 0.005386088284 | AJ97: 16.2 | AK97: =SUMPRODUCT(AH101:AH106,AI101:AI106)*SUM(AI95:AI106)/SUM(AI101:AI106) -> 104033.4615 | AL97: 0.3448696506 | AM97: 0.4472949765 | AN97: 0.4718770547 | AO97: 0.3775016437 | AP97: 0.3931392523 | AR97: =AR96 -> 1.252 | AS97: =AS96 -> 1.166781686
B98: Mini personbil, benzin | C98: Toyota | D98: Aygo 3/5-dørs | E98: 1.0 hb 5-dørs | F98: 2011 | H98: 0.0677154121 | I98: 12688.44681 | J98: 202240 | K98: 16.2 | L98: 55547.12195 | M98: 13886.78049 | N98: 34297.09756 | O98: =VLOOKUP(1/(S98*AS98),PB_B_2015!$G$5:$I$36,2) -> 1280 | P98: 0.06580228246 | Q98: 4.108944471 | R98: 10.70457097 | S98: 0.04504504505 | T98: 1 | U98: 0 | W98: 0.015 | Z98: 0.3931392523 | AA98: 0.03 | AB98: 0.3117105345 | AC98: 454 | AD98: 0 | AE98: 4 | AF98: 35000 | AH98: 103731 | AI98: 0.0677154121 | AJ98: 16.2 | AK98: =SUMPRODUCT(AH101:AH106,AI101:AI106)*SUM(AI95:AI106)/SUM(AI101:AI106) -> 104033.4615 | AL98: 0.3448696506 | AM98: 0.4472949765 | AN98: 0.4718770547 | AO98: 0.3775016437 | AP98: 0.3931392523 | AR98: 1.252 | AS98: 1.166781686
B99: Mini personbil, benzin | C99: Peugeot | D99: 107 | E99: 1,0 5-d 68 hk | F99: 2011 | H99: 0.05548330036 | I99: 13145.4646 | J99: 202240 | K99: 16.2 | L99: 52721.36585 | M99: 13180.34146 | N99: 30588.29268 | O99: =VLOOKUP(1/(S99*AS99),PB_B_2015!$G$5:$I$36,2) -> 1280 | P99: 0.06580228246 | Q99: 4.108944471 | R99: 10.70457097 | S99: 0.04504504505 | T99: 1 | U99: 0 | W99: 0.015 | Z99: 0.3931392523 | AA99: 0.03 | AB99: 0.3117105345 | AC99: 454 | AD99: 0 | AE99: 4 | AF99: 35000 | AH99: 96490 | AI99: 0.05548330036 | AJ99: 16.2 | AK99: =SUMPRODUCT(AH101:AH106,AI101:AI106)*SUM(AI95:AI106)/SUM(AI101:AI106) -> 104033.4615 | AL99: 0.3448696506 | AM99: 0.4472949765 | AN99: 0.4718770547 | AO99: 0.3775016437 | AP99: 0.3931392523 | AR99: 1.252 | AS99: 1.166781686
B100: Mini personbil, benzin | C100: Citroën | D100: C 1 | E100: 1,0 i | F100: 2011 | H100: 0.04478789144 | I100: 13165.68529 | J100: 202240 | K100: 16.2 | L100: 48233.56098 | M100: 12058.39024 | N100: 24698.04878 | O100: =VLOOKUP(1/(S100*AS100),PB_B_2015!$G$5:$I$36,2) -> 1280 | P100: 0.06580228246 | Q100: 4.108944471 | R100: 10.70457097 | S100: 0.04504504505 | T100: 1 | U100: 0 | W100: 0.015 | Z100: 0.3931392523 | AA100: 0.03 | AB100: 0.3117105345 | AC100: 454 | AD100: 0 | AE100: 4 | AF100: 35000 | AH100: 84990 | AI100: 0.04478789144 | AJ100: 16.2 | AK100: =SUMPRODUCT(AH101:AH106,AI101:AI106)*SUM(AI95:AI106)/SUM(AI101:AI106) -> 104033.4615 | AL100: 0.3448696506 | AM100: 0.4472949765 | AN100: 0.4718770547 | AO100: 0.3775016437 | AP100: 0.3931392523 | AR100: 1.252 | AS100: 1.166781686
B101: Mini personbil, benzin | C101: Volkswagen | D101: Up! | E101: 1.0 mpi bmt 60 hk 5 dørs | F101: 2015 | H101: 0.1156420452 | I101: 14401.17603 | J101: 202240 | K101: 16.2 | L101: 57933.46341 | M101: 14483.36585 | N101: 27579.17073 | O101: =VLOOKUP(1/(S101*AS101),PB_B_2015!$G$5:$I$36,2) -> 660 | P101: 0.05986928978 | Q101: 4.108944471 | R101: 10.70457097 | S101: 0.04098360656 | T101: 1 | U101: 0 | W101: 0.04 | Z101: 0.3815716064 | AA101: 0.03 | AB101: 0.3962851049 | AC101: 454 | AD101: 0 | AE101: 4 | AF101: 35000 | AH101: 99996 | AI101: 0.1156420452 | AJ101: 16.2 | AK101: =AH101 -> 99996 | AL101: 0.3360312436 | AM101: 0.434387212 | AN101: 0.4579926444 | AO101: 0.3663941155 | AP101: 0.3815716064 | AR101: 1.252 | AS101: 1.166781686
B102: Mini personbil, benzin | C102: Peugeot | D102: 108 | E102: 1.0 e-vti 69 hk 5d | F102: 2015 | H102: 0.08251213662 | I102: 13898.59996 | J102: 202240 | K102: 16.2 | L102: 52472 | M102: 13118 | N102: 19400 | O102: =VLOOKUP(1/(S102*AS102),PB_B_2015!$G$5:$I$36,2) -> 660 | P102: 0.05554413196 | Q102: 4.108944471 | R102: 10.70457097 | S102: 0.03802281369 | T102: 1 | U102: 0 | W102: 0.04 | Z102: 0.3385782321 | AA102: 0.03 | AB102: 0.3962851049 | AC102: 454 | AD102: 0 | AE102: 4 | AF102: 35000 | AH102: 84990 | AI102: 0.08251213662 | AJ102: 16.2 | AK102: 84990 | AL102: 0.303181609 | AM102: 0.38641303 | AN102: 0.406388571 | AO102: 0.3251108568 | AP102: 0.3385782321 | AR102: 1.252 | AS102: 1.166781686
B103: Mini personbil, benzin | C103: Toyota | D103: Aygo | E103: 1.0 vvt-i | F103: 2015 | H103: 0.08167504337 | I103: 14079.33726 | J103: 202240 | K103: 16.2 | L103: 48468 | M103: 12117 | N103: 19400 | O103: =VLOOKUP(1/(S103*AS103),PB_B_2015!$G$5:$I$36,2) -> 660 | P103: 0.05554413196 | Q103: 4.108944471 | R103: 10.70457097 | S103: 0.03802281369 | T103: 1 | U103: 0 | W103: 0.04 | Z103: 0.3242385121 | AA103: 0.03 | AB103: 0.3962851049 | AC103: 454 | AD103: 0 | AE103: 4 | AF103: 35000 | AH103: 79985 | AI103: 0.08167504337 | AJ103: 16.2 | AK103: 79985 | AL103: 0.2922251635 | AM103: 0.370412045 | AN103: 0.3891768966 | AO103: 0.3113415172 | AP103: 0.3242385121 | AR103: 1.252 | AS103: 1.166781686
B104: Mini personbil, benzin | C104: CITROEN | D104: C1 | E104: Gnsn variant | F104: 2019 | H104: 0.2485938798 | I104: 15668.47952 | J104: 202240 | K104: 16.2 | L104: 49255.29121 | M104: 12018.8228 | N104: 43826.99691 | O104: =VLOOKUP(1/(S104*AS104),PB_B_2019!$G$5:$I$36,2) -> 1780 | P104: 0.05381370434 | Q104: 4.108944471 | R104: 10.70457097 | S104: 0.04901960784 | T104: 1 | U104: 0 | W104: 0.06573914704 | Z104: 0.3961981521 | AA104: 0.03 | AB104: 0.4614290793 | AC104: 454 | AD104: 0 | AE104: 4 | AF104: 35000 | AH104: 105101.1109 | AI104: 0.2485938798 | AJ104: 16.2 | AK104: 105101.1109 | AL104: 0.3472068419 | AM104: 0.4507082516 | AN104: 0.4755485899 | AO104: 0.3804388719 | AP104: 0.3961981521 | AR104: 1 | AS104: =' Fælles forudsætninger'!$P$54 -> 1.097799568
B105: Mini personbil, benzin | C105: SKODA | D105: CITIGO | E105: Gnsn variant | F105: 2019 | H105: 0.1546806363 | I105: 15121.67675 | J105: 202240 | K105: 16.2 | L105: 52170.97233 | M105: 12747.74308 | N105: 49100.90811 | O105: =VLOOKUP(1/(S105*AS105),PB_B_2019!$G$5:$I$36,2) -> 2380 | P105: 0.05682402469 | Q105: 4.108944471 | R105: 10.70457097 | S105: 0.05176174807 | T105: 1 | U105: 0 | W105: 0.06573914704 | Z105: 0.4217503945 | AA105: 0.03 | AB105: 0.4614290793 | AC105: 454 | AD105: 0 | AE105: 4 | AF105: 35000 | AH105: 114019.6235 | AI105: 0.1546806363 | AJ105: 16.2 | AK105: 114019.6235 | AL105: 0.3667303579 | AM105: 0.4792207364 | AN105: 0.5062184273 | AO105: 0.4049747418 | AP105: 0.4217503945 | AR105: 1 | AS105: 1.097799568
B106: Mini personbil, benzin | C106: TOYOTA | D106: AYGO | E106: Gnsn variant | F106: 2019 | H106: 0.1276115249 | I106: 15318.31894 | J106: 202240 | K106: 16.2 | L106: 56222.56761 | M106: 13760.6419 | N106: 51229.72808 | O106: =VLOOKUP(1/(S106*AS106),PB_B_2019!$G$5:$I$36,2) -> 1780 | P106: 0.05381370434 | Q106: 4.108944471 | R106: 10.70457097 | S106: 0.04901960784 | T106: 1 | U106: 0 | W106: 0.06573914704 | Z106: 0.442359807 | AA106: 0.03 | AB106: 0.4614290793 | AC106: 454 | AD106: 0 | AE106: 4 | AF106: 35000 | AH106: 121212.9376 | AI106: 0.1276115249 | AJ106: 16.2 | AK106: 121212.9376 | AL106: 0.3824772417 | AM106: 0.5022177615 | AN106: 0.5309554862 | AO106: 0.424764389 | AP106: 0.442359807 | AR106: 1 | AS106: 1.097799568
B107: Lille personbil, benzin | C107: Suzuki | D107: Swift | E107: 1,3 | F107: 2007 | G107: 9275.60546 | H107: 0.03740667008 | I107: 12245.80906 | J107: 211060 | K107: 16.6 | L107: 63724.05648 | M107: 15931.01412 | N107: 68537.82413 | O107: =VLOOKUP(1/(S107*AS107),PB_B_2015!$G$5:$I$36,2) -> 3740 | P107: 0.09073358202 | Q107: 4.108944471 | R107: 10.70457097 | S107: 0.06211180124 | T107: 1 | U107: 0 | W107: 0.007 | Z107: 0.5282391915 | AA107: 0.03 | AB107: 0.1475517535 | AC107: 558 | AD107: 0 | AE107: 4 | AF107: 35000 | AH107: 148192.8947 | AI107: 0.03740667008 | AJ107: 16.6 | AK107: =SUMPRODUCT(AH113:AH118,AI113:AI118)*SUM(AI107:AI118)/SUM(AI113:AI118) -> 147779.0107 | AL107: 0.4406330324 | AM107: 0.5871494973 | AN107: 0.6340347661 | AO107: 0.5072278128 | AP107: 0.5282391915 | AR107: =' Fælles forudsætninger'!E55 -> 1.252 | AS107: =' Fælles forudsætninger'!J55 -> 1.166781686
B108: =B107 -> Lille personbil, benzin | C108: Opel | D108: Corsa | E108: 1,2 | F108: 2007 | H108: 0.03517867232 | I108: 11550.30957 | J108: 211060 | K108: 16.6 | L108: 65352.28571 | M108: 16338.07143 | N108: 72017.64286 | O108: =VLOOKUP(1/(S108*AS108),PB_B_2015!$G$5:$I$36,2) -> 3140 | P108: 0.08493085294 | Q108: 4.108944471 | R108: 10.70457097 | S108: 0.05813953488 | T108: 1 | U108: 0 | W108: 0.007 | Z108: 0.5282391915 | AA108: 0.03 | AB108: 0.1475517535 | AC108: 558 | AD108: 0 | AE108: 4 | AF108: 35000 | AH108: 153708 | AI108: 0.03517867232 | AJ108: 16.6 | AK108: =SUMPRODUCT(AH113:AH118,AI113:AI118)*SUM(AI107:AI118)/SUM(AI113:AI118) -> 147779.0107 | AL108: 0.4406330324 | AM108: 0.5871494973 | AN108: 0.6340347661 | AO108: 0.5072278128 | AP108: 0.5282391915 | AR108: =AR107 -> 1.252 | AS108: =AS107 -> 1.166781686
B109: =B108 -> Lille personbil, benzin | C109: Skoda | D109: Fabia | E109: 1,4 combi | F109: 2007 | H109: 0.02869478405 | I109: 11335.66162 | J109: 211060 | K109: 16.6 | L109: 77533.40659 | M109: 19383.35165 | N109: 99425.16484 | O109: =VLOOKUP(1/(S109*AS109),PB_B_2015!$G$5:$I$36,2) -> 4360 | P109: 0.09610596517 | Q109: 4.108944471 | R109: 10.70457097 | S109: 0.06578947368 | T109: 1 | U109: 0 | W109: 0.007 | Z109: 0.5282391915 | AA109: 0.03 | AB109: 0.1475517535 | AC109: 558 | AD109: 0 | AE109: 4 | AF109: 35000 | AH109: 196341.9231 | AI109: 0.02869478405 | AJ109: 16.6 | AK109: =SUMPRODUCT(AH113:AH118,AI113:AI118)*SUM(AI107:AI118)/SUM(AI113:AI118) -> 147779.0107 | AL109: 0.4406330324 | AM109: 0.5871494973 | AN109: 0.6340347661 | AO109: 0.5072278128 | AP109: 0.5282391915 | AR109: 1.252 | AS109: 1.166781686
B110: Lille personbil, benzin | C110: Chevrolet | D110: Spark | E110: 1.0 esp 5d | F110: 2011 | H110: 0.09523958916 | I110: 13127.00117 | J110: 211060 | K110: 16.6 | L110: 54557.46341 | M110: 13639.36585 | N110: 41798.17073 | O110: =VLOOKUP(1/(S110*AS110),PB_B_2015!$G$5:$I$36,2) -> 1880 | P110: 0.07304053353 | Q110: 4.108944471 | R110: 10.70457097 | S110: 0.05 | T110: 1 | U110: 0 | W110: 0.027 | Z110: 0.5282391915 | AA110: 0.03 | AB110: 0.2027013844 | AC110: 558 | AD110: 0 | AE110: 4 | AF110: 35000 | AH110: 109995 | AI110: 0.09523958916 | AJ110: 16.6 | AK110: =SUMPRODUCT(AH113:AH118,AI113:AI118)*SUM(AI107:AI118)/SUM(AI113:AI118) -> 147779.0107 | AL110: 0.4406330324 | AM110: 0.5871494973 | AN110: 0.6340347661 | AO110: 0.5072278128 | AP110: 0.5282391915 | AR110: 1.252 | AS110: 1.166781686
B111: Lille personbil, benzin | C111: Suzuki | D111: Swift | E111: 1,2 eco+ | F111: 2011 | H111: 0.05970080529 | I111: 12449.27559 | J111: 211060 | K111: 16.6 | L111: 74350.28571 | M111: 18587.57143 | N111: 67052.14286 | O111: =VLOOKUP(1/(S111*AS111),PB_B_2015!$G$5:$I$36,2) -> 1880 | P111: 0.0716083662 | Q111: 4.108944471 | R111: 10.70457097 | S111: 0.04901960784 | T111: 1 | U111: 0 | W111: 0.027 | Z111: 0.5282391915 | AA111: 0.03 | AB111: 0.2027013844 | AC111: 558 | AD111: 0 | AE111: 4 | AF111: 35000 | AH111: 159990 | AI111: 0.05970080529 | AJ111: 16.6 | AK111: =SUMPRODUCT(AH113:AH118,AI113:AI118)*SUM(AI107:AI118)/SUM(AI113:AI118) -> 147779.0107 | AL111: 0.4406330324 | AM111: 0.5871494973 | AN111: 0.6340347661 | AO111: 0.5072278128 | AP111: 0.5282391915 | AR111: 1.252 | AS111: 1.166781686
B112: Lille personbil, benzin | C112: Opel | D112: Corsa | E112: 1 | F112: 2011 | H112: 0.04213845579 | I112: 13228.51551 | J112: 211060 | K112: 16.6 | L112: 60978.92683 | M112: 15244.73171 | N112: 50226.34146 | O112: =VLOOKUP(1/(S112*AS112),PB_B_2015!$G$5:$I$36,2) -> 1880 | P112: 0.07304053353 | Q112: 4.108944471 | R112: 10.70457097 | S112: 0.05 | T112: 1 | U112: 0 | W112: 0.027 | Z112: 0.5282391915 | AA112: 0.03 | AB112: 0.2027013844 | AC112: 558 | AD112: 0 | AE112: 4 | AF112: 35000 | AH112: 126450 | AI112: 0.04213845579 | AJ112: 16.6 | AK112: =SUMPRODUCT(AH113:AH118,AI113:AI118)*SUM(AI107:AI118)/SUM(AI113:AI118) -> 147779.0107 | AL112: 0.4406330324 | AM112: 0.5871494973 | AN112: 0.6340347661 | AO112: 0.5072278128 | AP112: 0.5282391915 | AR112: 1.252 | AS112: 1.166781686
B113: Lille personbil, benzin | C113: Peugeot | D113: 208 | E113: 1.2 vti 5d | F113: 2015 | H113: 0.116388945 | I113: 15300.19831 | J113: 211060 | K113: 16.6 | L113: 61131.12195 | M113: 15282.78049 | N113: 40576.09756 | O113: =VLOOKUP(1/(S113*AS113),PB_B_2015!$G$5:$I$36,2) -> 1280 | P113: 0.06580228246 | Q113: 4.108944471 | R113: 10.70457097 | S113: 0.04504504505 | T113: 1 | U113: 0 | W113: 0.049 | Z113: 0.4379579117 | AA113: 0.03 | AB113: 0.2644458705 | AC113: 558 | AD113: 0 | AE113: 4 | AF113: 35000 | AH113: 116990 | AI113: 0.116388945 | AJ113: 16.6 | AK113: =AH113 -> 116990 | AL113: 0.373232809 | AM113: 0.48871703 | AN113: 0.5256719807 | AO113: 0.4205375846 | AP113: 0.4379579117 | AR113: 1.252 | AS113: 1.166781686
B114: Lille personbil, benzin | C114: Kia | D114: Picanto | E114: 1.0 5-dørs man. 5 | F114: 2015 | H114: 0.1132875238 | I114: 16333.10343 | J114: 211060 | K114: 16.6 | L114: 57934.63415 | M114: 14483.65854 | N114: 27580.70732 | O114: =VLOOKUP(1/(S114*AS114),PB_B_2015!$G$5:$I$36,2) -> 660 | P114: 0.05986928978 | Q114: 4.108944471 | R114: 10.70457097 | S114: 0.04098360656 | T114: 1 | U114: 0 | W114: 0.049 | Z114: 0.3881359399 | AA114: 0.03 | AB114: 0.2644458705 | AC114: 558 | AD114: 0 | AE114: 4 | AF114: 35000 | AH114: 99999 | AI114: 0.1132875238 | AJ114: 16.6 | AK114: 99999 | AL114: 0.3360378109 | AM114: 0.434396803 | AN114: 0.4658716805 | AO114: 0.3726973444 | AP114: 0.3881359399 | AR114: 1.252 | AS114: 1.166781686
B115: Lille personbil, benzin | C115: Ford | D115: Fiesta | E115: 1.0 ecoboost (100 hk) hatchback, 5 dørs forhjulstræk manuel | F115: 2015 | H115: 0.07190826561 | I115: 13031.40672 | J115: 211060 | K115: 16.6 | L115: 74735.02439 | M115: 18683.7561 | N115: 54031.21951 | O115: =VLOOKUP(1/(S115*AS115),PB_B_2015!$G$5:$I$36,2) -> 1280 | P115: 0.06269573693 | Q115: 4.108944471 | R115: 10.70457097 | S115: 0.04291845494 | T115: 1 | U115: 0 | W115: 0.049 | Z115: 0.5272744476 | AA115: 0.03 | AB115: 0.2644458705 | AC115: 558 | AD115: 0 | AE115: 4 | AF115: 35000 | AH115: 147450 | AI115: 0.07190826561 | AJ115: 16.6 | AK115: 147450 | AL115: 0.439912795 | AM115: 0.58609765 | AN115: 0.6328768036 | AO115: 0.5063014429 | AP115: 0.5272744476 | AR115: 1.252 | AS115: 1.166781686
B116: Lille personbil, benzin | C116: CITROEN | D116: C3 | E116: Gnsn variant | F116: 2019 | H116: 0.1998454703 | I116: 16646.61576 | J116: 211060 | K116: 16.6 | L116: 55870.81085 | M116: 13672.70271 | N116: 63152.14741 | O116: =VLOOKUP(1/(S116*AS116),PB_B_2019!$G$5:$I$36,2) -> 3020 | P116: 0.06149917187 | Q116: 4.108944471 | R116: 10.70457097 | S116: 0.05602040085 | T116: 1 | U116: 0 | W116: 0.09126842553 | Z116: 0.4840109397 | AA116: 0.03 | AB116: 0.3286848583 | AC116: 558 | AD116: 0 | AE116: 4 | AF116: 35000 | AH116: 132695.661 | AI116: 0.1998454703 | AJ116: 16.6 | AK116: 132695.661 | AL116: 0.4076140714 | AM116: 0.5389280281 | AN116: 0.5809484943 | AO116: 0.4647587954 | AP116: 0.4840109397 | AR116: 1 | AS116: =' Fælles forudsætninger'!$P$54 -> 1.097799568
B117: Lille personbil, benzin | C117: PEUGEOT | D117: 208 | E117: Gnsn variant | F117: 2019 | H117: 0.1306119847 | I117: 17770.41654 | J117: 211060 | K117: 16.6 | L117: 80345.406 | M117: 19791.3515 | N117: 92720.38374 | O117: =VLOOKUP(1/(S117*AS117),PB_B_2019!$G$5:$I$36,2) -> 3020 | P117: 0.06454989239 | Q117: 4.108944471 | R117: 10.70457097 | S117: 0.05879934211 | T117: 1 | U117: 0 | W117: 0.09126842553 | Z117: 0.6604198371 | AA117: 0.03 | AB117: 0.3286848583 | AC117: 558 | AD117: 0 | AE117: 4 | AF117: 35000 | AH117: 192857.1412 | AI117: 0.1306119847 | AJ117: 16.6 | AK117: 192857.1412 | AL117: 0.5393135679 | AM117: 0.7312642805 | AN117: 0.7926885086 | AO117: 0.6341508069 | AP117: 0.6604198371 | AR117: 1 | AS117: 1.097799568
B118: Lille personbil, benzin | C118: VOLKSWAGEN | D118: POLO | E118: Gnsn variant | F118: 2019 | H118: 0.06959883382 | I118: 14178.17052 | J118: 211060 | K118: 16.6 | L118: 97953.72245 | M118: 24193.43061 | N118: 113947.0329 | O118: =VLOOKUP(1/(S118*AS118),PB_B_2019!$G$5:$I$36,2) -> 3640 | P118: 0.06681282316 | Q118: 4.108944471 | R118: 10.70457097 | S118: 0.06086067538 | T118: 1 | U118: 0 | W118: 0.09126842553 | Z118: 0.7872019466 | AA118: 0.03 | AB118: 0.3286848583 | AC118: 558 | AD118: 0 | AE118: 4 | AF118: 35000 | AH118: 236094.1859 | AI118: 0.06959883382 | AJ118: 16.6 | AK118: 236094.1859 | AL118: 0.6339637824 | AM118: 0.8694931124 | AN118: 0.944862498 | AO118: 0.7558899984 | AP118: 0.7872019466 | AR118: 1 | AS118: 1.097799568
B119: Mellem personbil, benzin | C119: Toyota | D119: Avensis | E119: 1,8 stw man. | F119: 2007 | G119: 8409.352709 | H119: 0.1371872858 | I119: 14219.65733 | J119: 256880 | K119: 17.2 | L119: 117815.3061 | M119: 29453.82653 | N119: 190059.4388 | O119: =VLOOKUP(1/(S119*AS119),PB_B_2015!$G$5:$I$36,2) -> 4960 | P119: 0.1050942928 | Q119: 4.108944471 | R119: 10.70457097 | S119: 0.07194244604 | T119: 1 | U119: 0 | W119: 0.01 | Z119: 1.022472222 | AA119: 0.03 | AB119: 0.1543024967 | AC119: 864 | AD119: 0 | AE119: 4 | AF119: 35000 | AH119: 337328.5714 | AI119: 0.1371872858 | AJ119: 17.2 | AK119: =SUMPRODUCT(AH125:AH130,AI125:AI130)*SUM(AI119:AI130)/SUM(AI125:AI130) -> 305900.0605 | AL119: 0.7867758225 | AM119: 1.092662493 | AN119: 1.227252629 | AO119: 0.981802103 | AP119: 1.022472222 | AR119: =' Fælles forudsætninger'!E55 -> 1.252 | AS119: =' Fælles forudsætninger'!J55 -> 1.166781686
B120: =B119 -> Mellem personbil, benzin | C120: Peugeot | D120: 307 | E120: 1,6 i st. car | F120: 2007 | H120: 0.09389673414 | I120: 16046.03295 | J120: 256880 | K120: 17.2 | L120: 88266.32653 | M120: 22066.58163 | N120: 123574.2347 | O120: =VLOOKUP(1/(S120*AS120),PB_B_2015!$G$5:$I$36,2) -> 5580 | P120: 0.1123700516 | Q120: 4.108944471 | R120: 10.70457097 | S120: 0.07692307692 | T120: 1 | U120: 0 | W120: 0.01 | Z120: 1.022472222 | AA120: 0.03 | AB120: 0.1543024967 | AC120: 864 | AD120: 0 | AE120: 4 | AF120: 35000 | AH120: 233907.1429 | AI120: 0.09389673414 | AJ120: 17.2 | AK120: =SUMPRODUCT(AH125:AH130,AI125:AI130)*SUM(AI119:AI130)/SUM(AI125:AI130) -> 305900.0605 | AL120: 0.7867758225 | AM120: 1.092662493 | AN120: 1.227252629 | AO120: 0.981802103 | AP120: 1.022472222 | AR120: =AR119 -> 1.252 | AS120: =AS119 -> 1.166781686
B121: =B120 -> Mellem personbil, benzin | C121: Citroën | D121: C 4 picasso | E121: 1,8 i | F121: 2007 | H121: 0.09377042017 | I121: 15718.33688 | J121: 256880 | K121: 17.2 | L121: 116173.4037 | M121: 29043.35093 | N121: 186365.1584 | O121: =VLOOKUP(1/(S121*AS121),PB_B_2015!$G$5:$I$36,2) -> 6200 | P121: 0.1168648536 | Q121: 4.108944471 | R121: 10.70457097 | S121: 0.08 | T121: 1 | U121: 0 | W121: 0.01 | Z121: 1.022472222 | AA121: 0.03 | AB121: 0.1543024967 | AC121: 864 | AD121: 0 | AE121: 4 | AF121: 35000 | AH121: 331581.913 | AI121: 0.09377042017 | AJ121: 17.2 | AK121: =SUMPRODUCT(AH125:AH130,AI125:AI130)*SUM(AI119:AI130)/SUM(AI125:AI130) -> 305900.0605 | AL121: 0.7867758225 | AM121: 1.092662493 | AN121: 1.227252629 | AO121: 0.981802103 | AP121: 1.022472222 | AR121: 1.252 | AS121: 1.166781686
B122: Mellem personbil, benzin | C122: Toyota | D122: Avensis stw | E122: 1.8 stw man.6 | F122: 2011 | H122: 0.1106032902 | I122: 16459.6734 | J122: 256880 | K122: 17.2 | L122: 116513.7143 | M122: 29128.42857 | N122: 180619.8571 | O122: =VLOOKUP(1/(S122*AS122),PB_B_2015!$G$5:$I$36,2) -> 4360 | P122: 0.0980409846 | Q122: 4.108944471 | R122: 10.70457097 | S122: 0.06711409396 | T122: 1 | U122: 0 | W122: 0.039 | Z122: 1.022472222 | AA122: 0.03 | AB122: 0.205121265 | AC122: 864 | AD122: 0 | AE122: 4 | AF122: 35000 | AH122: 326262 | AI122: 0.1106032902 | AJ122: 17.2 | AK122: =SUMPRODUCT(AH125:AH130,AI125:AI130)*SUM(AI119:AI130)/SUM(AI125:AI130) -> 305900.0605 | AL122: 0.7867758225 | AM122: 1.092662493 | AN122: 1.227252629 | AO122: 0.981802103 | AP122: 1.022472222 | AR122: 1.252 | AS122: 1.166781686
B123: Mellem personbil, benzin | C123: Suzuki | D123: Sx4 combiback | E123: 1,6 | F123: 2011 | H123: 0.107011908 | I123: 16635.13013 | J123: 256880 | K123: 17.2 | L123: 70711.60976 | M123: 17677.90244 | N123: 78600.4878 | O123: =VLOOKUP(1/(S123*AS123),PB_B_2015!$G$5:$I$36,2) -> 3740 | P123: 0.09073358202 | Q123: 4.108944471 | R123: 10.70457097 | S123: 0.06211180124 | T123: 1 | U123: 0 | W123: 0.039 | Z123: 1.022472222 | AA123: 0.03 | AB123: 0.205121265 | AC123: 864 | AD123: 0 | AE123: 4 | AF123: 35000 | AH123: 166990 | AI123: 0.107011908 | AJ123: 17.2 | AK123: =SUMPRODUCT(AH125:AH130,AI125:AI130)*SUM(AI119:AI130)/SUM(AI125:AI130) -> 305900.0605 | AL123: 0.7867758225 | AM123: 1.092662493 | AN123: 1.227252629 | AO123: 0.981802103 | AP123: 1.022472222 | AR123: 1.252 | AS123: 1.166781686
B124: Mellem personbil, benzin | C124: Toyota | D124: Avensis sedan | E124: 1.8 sd man.6 | F124: 2011 | H124: 0.06347167753 | I124: 15117.33227 | J124: 256880 | K124: 17.2 | L124: 110892 | M124: 27723 | N124: 167671 | O124: =VLOOKUP(1/(S124*AS124),PB_B_2015!$G$5:$I$36,2) -> 4360 | P124: 0.09610596517 | Q124: 4.108944471 | R124: 10.70457097 | S124: 0.06578947368 | T124: 1 | U124: 0 | W124: 0.039 | Z124: 1.022472222 | AA124: 0.03 | AB124: 0.205121265 | AC124: 864 | AD124: 0 | AE124: 4 | AF124: 35000 | AH124: 306286 | AI124: 0.06347167753 | AJ124: 17.2 | AK124: =SUMPRODUCT(AH125:AH130,AI125:AI130)*SUM(AI119:AI130)/SUM(AI125:AI130) -> 305900.0605 | AL124: 0.7867758225 | AM124: 1.092662493 | AN124: 1.227252629 | AO124: 0.981802103 | AP124: 1.022472222 | AR124: 1.252 | AS124: 1.166781686
B125: Mellem personbil, benzin | C125: Suzuki | D125: Vitara | E125: 1,6 5-dørs | F125: 2015 | H125: 0.06399311365 | I125: 17706.40108 | J125: 256880 | K125: 17.2 | L125: 99444.28279 | M125: 24861.0707 | N125: 116543.0302 | O125: =VLOOKUP(1/(S125*AS125),PB_B_2015!$G$5:$I$36,2) -> 2520 | P125: 0.07729156987 | Q125: 4.108944471 | R125: 10.70457097 | S125: 0.05291005291 | T125: 1 | U125: 0 | W125: 0.09 | Z125: 0.8251689833 | AA125: 0.03 | AB125: 0.2294850169 | AC125: 864 | AD125: 0 | AE125: 4 | AF125: 35000 | AH125: 240848.3837 | AI125: 0.06399311365 | AJ125: 17.2 | AK125: =AH125 -> 240848.3837 | AL125: 0.6443711968 | AM125: 0.8846922827 | AN125: 0.9904335605 | AO125: 0.7923468484 | AP125: 0.8251689833 | AR125: 1.252 | AS125: 1.166781686
B126: Mellem personbil, benzin | C126: Toyota | D126: Avensis | E126: 1.8 vvt-i touring sports | F126: 2015 | H126: 0.04301030224 | I126: 14359.92026 | J126: 256880 | K126: 17.2 | L126: 125668.5654 | M126: 31417.14134 | N126: 177913.56 | O126: =VLOOKUP(1/(S126*AS126),PB_B_2015!$G$5:$I$36,2) -> 4360 | P126: 0.09485783575 | Q126: 4.108944471 | R126: 10.70457097 | S126: 0.06493506494 | T126: 1 | U126: 0 | W126: 0.09 | Z126: 1.110730787 | AA126: 0.03 | AB126: 0.2294850169 | AC126: 864 | AD126: 0 | AE126: 4 | AF126: 35000 | AH126: 334999.2667 | AI126: 0.04301030224 | AJ126: 17.2 | AK126: 334999.2667 | AL126: 0.8504768948 | AM126: 1.185692656 | AN126: 1.333187591 | AO126: 1.066550072 | AP126: 1.110730787 | AR126: 1.252 | AS126: 1.166781686
B127: Mellem personbil, benzin | C127: Toyota | D127: Auris | E127: 1.8 hybrid touring sports | F127: 2015 | H127: 0.04557439455 | I127: 16514.51859 | J127: 256880 | K127: 17.2 | L127: 113965.4239 | M127: 28491.35598 | N127: 111770.1698 | O127: =VLOOKUP(1/(S127*AS127),PB_B_2015!$G$5:$I$36,2) -> 660 | P127: 0.05430522939 | Q127: 4.108944471 | R127: 10.70457097 | S127: 0.03717472119 | T127: 1 | U127: 0 | W127: 0.09 | Z127: 0.8657464831 | AA127: 0.03 | AB127: 0.2294850169 | AC127: 864 | AD127: 0 | AE127: 4 | AF127: 35000 | AH127: 254226.9497 | AI127: 0.04557439455 | AJ127: 17.2 | AK127: 254226.9497 | AL127: 0.6736582156 | AM127: 0.9274635582 | AN127: 1.039137909 | AO127: 0.8313103271 | AP127: 0.8657464831 | AR127: 1.252 | AS127: 1.166781686
B128: Mellem personbil, benzin | C128: VOLKSWAGEN | D128: GOLF | E128: Gnsn variant | F128: 2019 | H128: 0.08908724996 | I128: 19264.56437 | J128: 256880 | K128: 17.2 | L128: 131088.9139 | M128: 32477.22847 | N128: 146942.4236 | O128: =VLOOKUP(1/(S128*AS128),PB_B_2019!$G$5:$I$36,2) -> 3020 | P128: 0.06445575068 | Q128: 4.108944471 | R128: 10.70457097 | S128: 0.05871358719 | T128: 1 | U128: 0 | W128: 0.1671636204 | Z128: 1.036449926 | AA128: 0.03 | AB128: 0.424836277 | AC128: 864 | AD128: 0 | AE128: 4 | AF128: 35000 | AH128: 310508.5659 | AI128: 0.08908724996 | AJ128: 17.2 | AK128: 310508.5659 | AL128: 0.7968643016 | AM128: 1.107395885 | AN128: 1.244029782 | AO128: 0.9952238256 | AP128: 1.036449926 | AR128: 1 | AS128: =' Fælles forudsætninger'!$P$54 -> 1.097799568
B129: Mellem personbil, benzin | C129: NISSAN | D129: QASHQAI | E129: Gnsn variant | F129: 2019 | H129: 0.07447808678 | I129: 15623.59324 | J129: 256880 | K129: 17.2 | L129: 140255.0669 | M129: 34768.76672 | N129: 175845.0278 | O129: =VLOOKUP(1/(S129*AS129),PB_B_2019!$G$5:$I$36,2) -> 4860 | P129: 0.07859995809 | Q129: 4.108944471 | R129: 10.70457097 | S129: 0.0715977309 | T129: 1 | U129: 0 | W129: 0.1671636204 | Z129: 1.158863635 | AA129: 0.03 | AB129: 0.424836277 | AC129: 864 | AD129: 0 | AE129: 4 | AF129: 35000 | AH129: 350868.8614 | AI129: 0.07447808678 | AJ129: 17.2 | AK129: 350868.8614 | AL129: 0.8852170245 | AM129: 1.23642775 | AN129: 1.390960469 | AO129: 1.112768375 | AP129: 1.158863635 | AR129: 1 | AS129: 1.097799568
B130: Mellem personbil, benzin | C130: SKODA | D130: OCTAVIA | E130: Gnsn variant | F130: 2019 | H130: 0.07791553694 | I130: 17967.79623 | J130: 256880 | K130: 17.2 | L130: 133421.4245 | M130: 33060.35612 | N130: 158753.5135 | O130: =VLOOKUP(1/(S130*AS130),PB_B_2019!$G$5:$I$36,2) -> 4240 | P130: 0.07139306219 | Q130: 4.108944471 | R130: 10.70457097 | S130: 0.06503287507 | T130: 1 | U130: 0 | W130: 0.1671636204 | Z130: 1.081116433 | AA130: 0.03 | AB130: 0.424836277 | AC130: 864 | AD130: 0 | AE130: 4 | AF130: 35000 | AH130: 325235.2941 | AI130: 0.07791553694 | AJ130: 17.2 | AK130: 325235.2941 | AL130: 0.8291025824 | AM130: 1.154477235 | AN130: 1.297642083 | AO130: 1.038113666 | AP130: 1.081116433 | AR130: 1 | AS130: 1.097799568
B131: Stor personbil, benzin | C131: Volvo | D131: V 70 | E131: 2,4 | F131: 2007 | G131: 1112.130154 | H131: 0.2117103533 | I131: 17210.7957 | J131: 264470 | K131: 16.2 | L131: 193890.7143 | M131: 48472.67857 | N131: 361229.1071 | O131: =VLOOKUP(1/(S131*AS131),PB_B_2015!$G$5:$I$36,2) -> 8020 | P131: 0.1316045649 | Q131: 4.108944471 | R131: 10.70457097 | S131: 0.09009009009 | T131: 1 | U131: 0 | W131: 0.023 | Z131: 1.50955104 | AA131: 0.03 | AB131: 0.108760028 | AC131: 1036 | AD131: 0 | AE131: 4 | AF131: 35000 | AH131: 603592.5 | AI131: 0.2117103533 | AJ131: 16.2 | AK131: =SUMPRODUCT(AH137:AH142,AI137:AI142)*SUM(AI131:AI142)/SUM(AI137:AI142) -> 493695.2541 | AL131: 1.197878281 | AM131: 1.693043727 | AN131: 1.811883434 | AO131: 1.449506748 | AP131: 1.50955104 | AR131: =' Fælles forudsætninger'!E57 -> 1.252 | AS131: =' Fælles forudsætninger'!J57 -> 1.166781686
B132: =B131 -> Stor personbil, benzin | C132: Volvo | D132: V70 | E132: 2,5 t aut. | F132: 2007 | H132: 0.05967589715 | I132: 15004.99178 | J132: 264470 | K132: 16.2 | L132: 204177.2143 | M132: 51044.30357 | N132: 384373.7321 | O132: =VLOOKUP(1/(S132*AS132),PB_B_2015!$G$5:$I$36,2) -> 9300 | P132: 0.1490623133 | Q132: 4.108944471 | R132: 10.70457097 | S132: 0.1020408163 | T132: 1 | U132: 0 | W132: 0.023 | Z132: 1.50955104 | AA132: 0.03 | AB132: 0.108760028 | AC132: 1036 | AD132: 0 | AE132: 4 | AF132: 35000 | AH132: 639595.25 | AI132: 0.05967589715 | AJ132: 16.2 | AK132: =SUMPRODUCT(AH137:AH142,AI137:AI142)*SUM(AI131:AI142)/SUM(AI137:AI142) -> 493695.2541 | AL132: 1.197878281 | AM132: 1.693043727 | AN132: 1.811883434 | AO132: 1.449506748 | AP132: 1.50955104 | AR132: =AR131 -> 1.252 | AS132: =AS131 -> 1.166781686
B133: =B132 -> Stor personbil, benzin | C133: Volvo | D133: S 80 | E133: S80 2,5t aut. | F133: 2007 | H133: 0.04513451287 | I133: 14174.23689 | J133: 264470 | K133: 16.2 | L133: 198672.3492 | M133: 49668.0873 | N133: 371987.7857 | O133: =VLOOKUP(1/(S133*AS133),PB_B_2015!$G$5:$I$36,2) -> 9300 | P133: 0.1446347199 | Q133: 4.108944471 | R133: 10.70457097 | S133: 0.09900990099 | T133: 1 | U133: 0 | W133: 0.023 | Z133: 1.50955104 | AA133: 0.03 | AB133: 0.108760028 | AC133: 1036 | AD133: 0 | AE133: 4 | AF133: 35000 | AH133: 620328.2222 | AI133: 0.04513451287 | AJ133: 16.2 | AK133: =SUMPRODUCT(AH137:AH142,AI137:AI142)*SUM(AI131:AI142)/SUM(AI137:AI142) -> 493695.2541 | AL133: 1.197878281 | AM133: 1.693043727 | AN133: 1.811883434 | AO133: 1.449506748 | AP133: 1.50955104 | AR133: =AR132 -> 1.252 | AS133: =AS132 -> 1.166781686
B134: Stor personbil, benzin | C134: Volvo | D134: V70 | E134: 2,5 t aut. | F134: 2011 | H134: 0.2088941264 | I134: 17644.29487 | J134: 264470 | K134: 16.2 | L134: 199381.7143 | M134: 49845.42857 | N134: 371672.8571 | O134: =VLOOKUP(1/(S134*AS134),PB_B_2015!$G$5:$I$36,2) -> 9300 | P134: 0.1418262787 | Q134: 4.108944471 | R134: 10.70457097 | S134: 0.09708737864 | T134: 1 | U134: 0 | W134: 0.058 | Z134: 1.50955104 | AA134: 0.03 | AB134: 0.1783878165 | AC134: 1036 | AD134: 0 | AE134: 4 | AF134: 35000 | AH134: 620900 | AI134: 0.2088941264 | AJ134: 16.2 | AK134: =SUMPRODUCT(AH137:AH142,AI137:AI142)*SUM(AI131:AI142)/SUM(AI137:AI142) -> 493695.2541 | AL134: 1.197878281 | AM134: 1.693043727 | AN134: 1.811883434 | AO134: 1.449506748 | AP134: 1.50955104 | AR134: 1.252 | AS134: 1.166781686
B135: Stor personbil, benzin | C135: Suzuki | D135: Grand vitara | E135: 2.4l m/t | F135: 2011 | H135: 0.1852980637 | I135: 18957.24529 | J135: 264470 | K135: 16.2 | L135: 115064.5714 | M135: 28766.14286 | N135: 181159.2857 | O135: =VLOOKUP(1/(S135*AS135),PB_B_2015!$G$5:$I$36,2) -> 8020 | P135: 0.1316045649 | Q135: 4.108944471 | R135: 10.70457097 | S135: 0.09009009009 | T135: 1 | U135: 0 | W135: 0.058 | Z135: 1.50955104 | AA135: 0.03 | AB135: 0.1783878165 | AC135: 1036 | AD135: 0 | AE135: 4 | AF135: 35000 | AH135: 324990 | AI135: 0.1852980637 | AJ135: 16.2 | AK135: =SUMPRODUCT(AH137:AH142,AI137:AI142)*SUM(AI131:AI142)/SUM(AI137:AI142) -> 493695.2541 | AL135: 1.197878281 | AM135: 1.693043727 | AN135: 1.811883434 | AO135: 1.449506748 | AP135: 1.50955104 | AR135: 1.252 | AS135: 1.166781686
B136: Stor personbil, benzin | C136: Audi | D136: A6 | E136: 2,8 fsi aut. | F136: 2011 | H136: 0.1657319019 | I136: 16396.65595 | J136: 264470 | K136: 16.2 | L136: 214455.4286 | M136: 53613.85714 | N136: 402388.7143 | O136: =VLOOKUP(1/(S136*AS136),PB_B_2015!$G$5:$I$36,2) -> 5580 | P136: 0.1082081978 | Q136: 4.108944471 | R136: 10.70457097 | S136: 0.07407407407 | T136: 1 | U136: 0 | W136: 0.058 | Z136: 1.50955104 | AA136: 0.03 | AB136: 0.1783878165 | AC136: 1036 | AD136: 0 | AE136: 4 | AF136: 35000 | AH136: 670458 | AI136: 0.1657319019 | AJ136: 16.2 | AK136: =SUMPRODUCT(AH137:AH142,AI137:AI142)*SUM(AI131:AI142)/SUM(AI137:AI142) -> 493695.2541 | AL136: 1.197878281 | AM136: 1.693043727 | AN136: 1.811883434 | AO136: 1.449506748 | AP136: 1.50955104 | AR136: 1.252 | AS136: 1.166781686
B137: Stor personbil, benzin | C137: Mazda | D137: Mazda cx-9 | E137: 3,7 suv firehjulstræk aut. | F137: 2015 | H137: 0.02719451075 | I137: 16501.25667 | J137: 264470 | K137: 16.2 | L137: 200875.1278 | M137: 50218.78194 | N137: 325425.8645 | O137: =VLOOKUP(1/(S137*AS137),PB_B_2015!$G$5:$I$36,2) -> 11740 | P137: 0.1641360304 | Q137: 4.108944471 | R137: 10.70457097 | S137: 0.1123595506 | T137: 1 | U137: 0 | W137: 0.161 | Z137: 1.746849827 | AA137: 0.03 | AB137: 0.2294322132 | AC137: 1036 | AD137: 0 | AE137: 4 | AF137: 35000 | AH137: 576519.7742 | AI137: 0.02719451075 | AJ137: 16.2 | AK137: =AH137 -> 576519.7742 | AL137: 1.379189438 | AM137: 1.957833718 | AN137: 2.096708346 | AO137: 1.677366676 | AP137: 1.746849827 | AR137: 1.252 | AS137: 1.166781686
B138: Stor personbil, benzin | C138: Mazda | D138: Mazda6 | E138: 2,5 skyactiv-g 192 hk stationcar aut. | F138: 2015 | H138: 0.01829775314 | I138: 17182.945 | J138: 264470 | K138: 16.2 | L138: 151321.1429 | M138: 37830.28571 | N138: 225812.1429 | O138: =VLOOKUP(1/(S138*AS138),PB_B_2015!$G$5:$I$36,2) -> 3740 | P138: 0.09364170965 | Q138: 4.108944471 | R138: 10.70457097 | S138: 0.0641025641 | T138: 1 | U138: 0 | W138: 0.161 | Z138: 1.283978556 | AA138: 0.03 | AB138: 0.2294322132 | AC138: 1036 | AD138: 0 | AE138: 4 | AF138: 35000 | AH138: 414963.5714 | AI138: 0.01829775314 | AJ138: 16.2 | AK138: 414963.5714 | AL138: 1.025526754 | AM138: 1.441338538 | AN138: 1.541133366 | AO138: 1.232906693 | AP138: 1.283978556 | AR138: 1.252 | AS138: 1.166781686
B139: Stor personbil, benzin | C139: Bmw | D139: 4-serie | E139: 435i gran coupé steptronic | F139: 2015 | H139: 0.01415074147 | I139: 18604.03158 | J139: 264470 | K139: 16.2 | L139: 292474.5453 | M139: 73118.63633 | N139: 492874.7725 | O139: =VLOOKUP(1/(S139*AS139),PB_B_2015!$G$5:$I$36,2) -> 5580 | P139: 0.110667475 | Q139: 4.108944471 | R139: 10.70457097 | S139: 0.07575757576 | T139: 1 | U139: 0 | W139: 0.161 | Z139: 2.554653614 | AA139: 0.03 | AB139: 0.2294322132 | AC139: 1036 | AD139: 0 | AE139: 4 | AF139: 35000 | AH139: 858467.9542 | AI139: 0.01415074147 | AJ139: 16.2 | AK139: 858467.9542 | AL139: 1.996402199 | AM139: 2.85922205 | AN139: 3.066298814 | AO139: 2.453039051 | AP139: 2.554653614 | AR139: 1.252 | AS139: 1.166781686
B140: Stor personbil, benzin | C140: VOLKSWAGEN | D140: PASSAT | E140: Gnsn variant | F140: 2019 | H140: 0.02968916311 | I140: 17953.36725 | J140: 264470 | K140: 16.2 | L140: 168206.1303 | M140: 41756.53257 | N140: 205336.8514 | O140: =VLOOKUP(1/(S140*AS140),PB_B_2019!$G$5:$I$36,2) -> 4860 | P140: 0.07519175126 | Q140: 4.108944471 | R140: 10.70457097 | S140: 0.06849315068 | T140: 1 | U140: 0 | W140: 0.1829641075 | Z140: 1.284941058 | AA140: 0.03 | AB140: 0.3789107764 | AC140: 1036 | AD140: 0 | AE140: 4 | AF140: 35000 | AH140: 415299.5142 | AI140: 0.02968916311 | AJ140: 16.2 | AK140: 415299.5142 | AL140: 1.026262167 | AM140: 1.442412547 | AN140: 1.542288638 | AO140: 1.233830911 | AP140: 1.284941058 | AR140: 1 | AS140: =' Fælles forudsætninger'!$P$54 -> 1.097799568
B141: Stor personbil, benzin | C141: MAZDA | D141: CX-5 | E141: Gnsn variant | F141: 2019 | H141: 0.01535646368 | I141: 18695.04416 | J141: 264470 | K141: 16.2 | L141: 165715.974 | M141: 41133.99351 | N141: 211364.7394 | O141: =VLOOKUP(1/(S141*AS141),PB_B_2019!$G$5:$I$36,2) -> 5460 | P141: 0.08340131299 | Q141: 4.108944471 | R141: 10.70457097 | S141: 0.07597134795 | T141: 1 | U141: 0 | W141: 0.1829641075 | Z141: 1.293293315 | AA141: 0.03 | AB141: 0.3789107764 | AC141: 1036 | AD141: 0 | AE141: 4 | AF141: 35000 | AH141: 418214.7069 | AI141: 0.01535646368 | AJ141: 16.2 | AK141: 418214.7069 | AL141: 1.032643815 | AM141: 1.451732418 | AN141: 1.552313683 | AO141: 1.241850946 | AP141: 1.293293315 | AR141: 1 | AS141: 1.097799568
B142: Stor personbil, benzin | C142: VOLKSWAGEN | D142: TOURAN | E142: Gnsn variant | F142: 2019 | H142: 0.01886651252 | I142: 20241.18636 | J142: 264470 | K142: 16.2 | L142: 145128.3312 | M142: 35987.0828 | N142: 180761.8693 | O142: =VLOOKUP(1/(S142*AS142),PB_B_2019!$G$5:$I$36,2) -> 4860 | P142: 0.07959093145 | Q142: 4.108944471 | R142: 10.70457097 | S142: 0.07250042151 | T142: 1 | U142: 0 | W142: 0.1829641075 | Z142: 1.131882151 | AA142: 0.03 | AB142: 0.3789107764 | AC142: 1036 | AD142: 0 | AE142: 4 | AF142: 35000 | AH142: 361877.2834 | AI142: 0.01886651252 | AJ142: 16.2 | AK142: 361877.2834 | AL142: 0.909315561 | AM142: 1.271621675 | AN142: 1.358575142 | AO142: 1.086860114 | AP142: 1.131882151 | AR142: 1 | AS142: 1.097799568
C143: Kilde: Antal, kilometer og levetid er baseret op udtræk fra DST og egne beregninger | D143: do. | E143: do. | F143: do. | G143: do. | H143: do. | I143: do. | J143: do. | K143: do. | L143: Kilde: Bilpriser.dk | N143: Egne beregninger baseret på skats oplysninger | O143: Egne beregninger baseret på skats oplysninger | S143: Kilde: CRM | W143: Egne beregninger baseret opslag på Bilpriser.dk | AB143: Kilde: Egne beregninger baseret bilernes årskørsel | AC143: Kide: Opslag på internet | AE143: Kilde: egne antagelser | AF143: Kilde: egne antagelser | AH143: Kilde: Bilpriser.dk
C144: Note: Afskrivningsomkostningerne er opgjort ud fra bilernes samlede kilometer i hele levetiden
C145: Note: Afskrivningskomponenten er opdelt på en km-afhængig og en alder-afhængig del for at gøre det muligt at afspejle henholdsvis det marginale og det gennemsnitlige værditab pr. km for den danske bilpark.
C146: Note: Den gennemsnitlige afskrivningsomkostning beskriver de totale omkostninger per km fordelt på bilens levetid, mens den marginale afskrivningsomkostning beskriver omkostningen ved en ekstra kørt km.

Sheet Personbiler - Diesel
C1: Personbiler - Diesel
C5: Niveu I-A - Vægtede gennemsnitsomkostninger
C8: Gennemsnitlige og marginale kørselsomkostninger for sammenvægtet køretøjskategorier, inkl. og ekskl. afgifter [kr. per km.]
G9: Gennemsnitlige kørselsomkostninger [kr. per km.] - dog EKSKLUSIV brændstof | T9: Marginale kørselsomkostninger, [kr. per km.] - dog EKSKLUSIV brændstof
C10: Køretøjskategori | D10: Drivmiddel | E10: Brændstof-effektivitet [liter per km] | F10: Trafikarbejde, i alt | G10: Gennemsnitlige omkostninger inkl.. afgifter og moms, i alt | H10: Brændstof, inkl. afgifter og moms [kr. per km.] | I10: Batteri, inkl. afgifter og moms [kr. per km.] | J10: Afskrivninger, inkl. afgifter og moms [kr. per km.] | K10: Reparation og vedligeholdelse, inkl. afgifter og moms [kr. per km.] | L10: Ejerafgift [kr. per km.] | M10: Dæk, inkl. afgifter og moms [kr. per km.] | N10: Gennemsnitlige omkostninger ekskl.. afgifter og moms, i alt [kr. per km.] | O10: Brændstof, ekskl. afgifter og moms [kr. per km.] | P10: Batteri, ekskl. afgifter og moms [kr. per km.] | Q10: Afskrivninger, ekskl. afgifter og moms [kr. per km.] | R10: Reparation og vedligeholdelse, ekskl. afgifter og moms [kr. per km.] | S10: Dæk, ekskl. afgifter og moms [kr. per km.] | T10: Marginale omkostninger inkl.. afgifter og moms, i alt | U10: Brændstof, inkl. afgifter og moms [kr. per km.] | V10: Batteri, inkl. afgifter og moms [kr. per km.] | W10: Afskrivninger, inkl. afgifter og moms [kr. per km.] | X10: Reparation og vedligeholdelse, inkl. afgifter og moms [kr. per km.] | Y10: Dæk, inkl. afgifter og moms [kr. per km.] | Z10: Marginale omkostninger ekskl.. afgifter og moms, i alt [kr. per km.] | AA10: Brændstof, ekskl. afgifter og moms [kr. per km.] | AB10: Batteri, ekskl. afgifter og moms [kr. per km.] | AC10: Afskrivninger, ekskl. afgifter og moms [kr. per km.] | AD10: Reparation og vedligeholdelse, ekskl. afgifter og moms [kr. per km.] | AE10: Dæk, ekskl. afgifter og moms [kr. per km.]
C11: Personbil | D11: Diesel | E11: =SUMPRODUCT($G$21:$G$23,F21:F23)/SUM($G$21:$G$23) -> 0.05982134886 | F11: =SUM(G21:G23) -> 17291.69937 | G11: =SUM(H11:M11) -> 3.000815702 | H11: =SUMPRODUCT($G$21:$G$23,I21:I23)/SUM($G$21:$G$23) -> 0.5956356968 | I11: 0 | J11: 0.8192644223 | K11: 1.304019832 | L11: 0.1846909111 | M11: 0.09720483965 | N11: =SUM(O11:S11) -> 1.716026607 | O11: =SUMPRODUCT($G$21:$G$23,P21:P23)/SUM($G$21:$G$23) -> 0.2949078248 | P11: =SUMPRODUCT($G$21:$G$23,Q21:Q23)/SUM($G$21:$G$23) -> 0 | Q11: =SUMPRODUCT($G$21:$G$23,R21:R23)/SUM($G$21:$G$23) -> 0.3305239731 | R11: =SUMPRODUCT($G$21:$G$23,S21:S23)/SUM($G$21:$G$23) -> 1.012830937 | S11: =SUMPRODUCT($G$21:$G$23,T21:T23)/SUM($G$21:$G$23) -> 0.07776387172 | T11: =SUM(U11:Y11) -> 1.723958108 | U11: =SUMPRODUCT($G$21:$G$23,V21:V23)/SUM($G$21:$G$23) -> 0.5956356968 | V11: =SUMPRODUCT($G$21:$G$23,W21:W23)/SUM($G$21:$G$23) -> 0 | W11: =SUMPRODUCT($G$21:$G$23,X21:X23)/SUM($G$21:$G$23) -> 0.3278486011 | X11: =SUMPRODUCT($G$21:$G$23,Y21:Y23)/SUM($G$21:$G$23) -> 0.7032689703 | Y11: =SUMPRODUCT($G$21:$G$23,Z21:Z23)/SUM($G$21:$G$23) -> 0.09720483965 | Z11: =SUM(AA11:AE11) -> 1.057569307 | AA11: =SUMPRODUCT($G$21:$G$23,AB21:AB23)/SUM($G$21:$G$23) -> 0.2949078248 | AB11: =SUMPRODUCT($G$21:$G$23,AC21:AC23)/SUM($G$21:$G$23) -> 0 | AC11: =SUMPRODUCT($G$21:$G$23,AD21:AD23)/SUM($G$21:$G$23) -> 0.1386692841 | AD11: =SUMPRODUCT($G$21:$G$23,AE21:AE23)/SUM($G$21:$G$23) -> 0.5462283264 | AE11: =SUMPRODUCT($G$21:$G$23,AF21:AF23)/SUM($G$21:$G$23) -> 0.07776387172
C12: Kilde:
C15: Niveu II - Vægtede gennemsnitsomkostninger
C18: Gennemsnitlige og marginale kørselsomkostninger for sammenvægtede køretøjskategorier, inkl. og ekskl. afgifter [kr. per km.]
H19: Gennemsnitlige kørselsomkostninger [kr. per km.] - dog EKSKLUSIV brændstof | U19: Marginale kørselsomkostninger, [kr. per km.] - dog EKSKLUSIV brændstof
C20: Køretøjskategori | D20: Drivmiddel | E20: Størrelse | F20: Brændstof-effektivitet [liter per km] | G20: Trafikarbejde, i alt for kategori [km. per år] | H20: Gennemsnitlige omkostninger inkl.. afgifter og moms, i alt | I20: Brændstof, inkl. afgifter og moms [kr. per km.] | J20: Batteri, inkl. afgifter og moms [kr. per km.] | K20: Afskrivninger, inkl. afgifter og moms [kr. per km.] | L20: Reparation og vedligeholdelse, inkl. afgifter og moms [kr. per km.] | M20: Ejerafgift [kr. per km.] | N20: Dæk, inkl. afgifter og moms [kr. per km.] | O20: Gennemsnitlige omkostninger ekskl.. afgifter og moms, i alt [kr. per km.] | P20: Brændstof, ekskl. afgifter og moms [kr. per km.] | Q20: Batteri, ekskl. afgifter og moms [kr. per km.] | R20: Afskrivninger, ekskl. afgifter og moms [kr. per km.] | S20: Reparation og vedligeholdelse, ekskl. afgifter og moms [kr. per km.] | T20: Dæk, ekskl. afgifter og moms [kr. per km.] | U20: Marginale omkostninger inkl.. afgifter og moms, i alt | V20: Brændstof, inkl. afgifter og moms [kr. per km.] | W20: Batteri, inkl. afgifter og moms [kr. per km.] | X20: Afskrivninger, inkl. afgifter og moms [kr. per km.] | Y20: Reparation og vedligeholdelse, inkl. afgifter og moms [kr. per km.] | Z20: Dæk, inkl. afgifter og moms [kr. per km.] | AA20: Marginale omkostninger ekskl.. afgifter og moms, i alt [kr. per km.] | AB20: Brændstof, ekskl. afgifter og moms [kr. per km.] | AC20: Batteri, ekskl. afgifter og moms [kr. per km.] | AD20: Afskrivninger, ekskl. afgifter og moms [kr. per km.] | AE20: Reparation og vedligeholdelse, ekskl. afgifter og moms [kr. per km.] | AF20: Dæk, ekskl. afgifter og moms [kr. per km.]
B21: =B33 -> Lille personbil, diesel | C21: Personbil | D21: Diesel | E21: Lille | F21: =SUMPRODUCT($I$33:$I$44,G33:G44)/SUM($I$33:$I$44) -> 0.05267610686 | G21: =H33 -> 1818.875762 | H21: =SUM(I21:N21) -> 2.034552352 | I21: =SUMPRODUCT($I$33:$I$44,K33:K44)/SUM($I$33:$I$44) -> 0.524491176 | J21: 0 | K21: 0.5109161984 | L21: 0.7877763524 | M21: 0.1355805893 | N21: 0.07578803572 | O21: =SUM(P21:T21) -> 1.183438869 | P21: =SUMPRODUCT($I$33:$I$44,R33:R44)/SUM($I$33:$I$44) -> 0.2596831464 | Q21: =SUMPRODUCT($I$33:$I$44,S33:S44)/SUM($I$33:$I$44) -> 0 | R21: =SUMPRODUCT($I$33:$I$44,T33:T44)/SUM($I$33:$I$44) -> 0.2512601661 | S21: =SUMPRODUCT($I$33:$I$44,U33:U44)/SUM($I$33:$I$44) -> 0.6118651281 | T21: =SUMPRODUCT($I$33:$I$44,V33:V44)/SUM($I$33:$I$44) -> 0.06063042858 | U21: =SUM(V21:Z21) -> 1.199172555 | V21: =SUMPRODUCT($I$33:$I$44,X33:X44)/SUM($I$33:$I$44) -> 0.524491176 | W21: =SUMPRODUCT($I$33:$I$44,Y33:Y44)/SUM($I$33:$I$44) -> 0 | X21: =SUMPRODUCT($I$33:$I$44,Z33:Z44)/SUM($I$33:$I$44) -> 0.133035778 | Y21: =SUMPRODUCT($I$33:$I$44,AA33:AA44)/SUM($I$33:$I$44) -> 0.4658575649 | Z21: =SUMPRODUCT($I$33:$I$44,AB33:AB44)/SUM($I$33:$I$44) -> 0.07578803572 | AA21: =SUM(AB21:AF21) -> 0.7476572885 | AB21: =SUMPRODUCT($I$33:$I$44,AD33:AD44)/SUM($I$33:$I$44) -> 0.2596831464 | AC21: =SUMPRODUCT($I$33:$I$44,AE33:AE44)/SUM($I$33:$I$44) -> 0 | AD21: =SUMPRODUCT($I$33:$I$44,AF33:AF44)/SUM($I$33:$I$44) -> 0.06551259518 | AE21: =SUMPRODUCT($I$33:$I$44,AG33:AG44)/SUM($I$33:$I$44) -> 0.3618311184 | AF21: =SUMPRODUCT($I$33:$I$44,AH33:AH44)/SUM($I$33:$I$44) -> 0.06063042858
B22: =B47 -> Mellem personbil, diesel | C22: Personbil | D22: Diesel | E22: Mellem | F22: =SUMPRODUCT($I$45:$I$56,G45:G56)/SUM($I$45:$I$56) -> 0.05896869762 | G22: =H45 -> 12994.92285 | H22: =SUM(I22:N22) -> 2.915032516 | I22: =SUMPRODUCT($I$45:$I$56,K45:K56)/SUM($I$45:$I$56) -> 0.5871459264 | J22: 0 | K22: 0.7751183759 | L22: 1.267102052 | M22: 0.190242823 | N22: 0.09542333837 | O22: =SUM(P22:T22) -> 1.667767609 | P22: =SUMPRODUCT($I$45:$I$56,R45:R56)/SUM($I$45:$I$56) -> 0.290704417 | Q22: =SUMPRODUCT($I$45:$I$56,S45:S56)/SUM($I$45:$I$56) -> 0 | R22: =SUMPRODUCT($I$45:$I$56,T45:T56)/SUM($I$45:$I$56) -> 0.3165675879 | S22: =SUMPRODUCT($I$45:$I$56,U45:U56)/SUM($I$45:$I$56) -> 0.9841569336 | T22: =SUMPRODUCT($I$45:$I$56,V45:V56)/SUM($I$45:$I$56) -> 0.07633867069 | U22: =SUM(V22:Z22) -> 1.701253195 | V22: =SUMPRODUCT($I$45:$I$56,X45:X56)/SUM($I$45:$I$56) -> 0.5871459264 | W22: =SUMPRODUCT($I$45:$I$56,Y45:Y56)/SUM($I$45:$I$56) -> 0 | X22: =SUMPRODUCT($I$45:$I$56,Z45:Z56)/SUM($I$45:$I$56) -> 0.3208783789 | Y22: =SUMPRODUCT($I$45:$I$56,AA45:AA56)/SUM($I$45:$I$56) -> 0.6978055515 | Z22: =SUMPRODUCT($I$45:$I$56,AB45:AB56)/SUM($I$45:$I$56) -> 0.09542333837 | AA22: =SUM(AB22:AF22) -> 1.047660489 | AB22: =SUMPRODUCT($I$45:$I$56,AD45:AD56)/SUM($I$45:$I$56) -> 0.290704417 | AC22: =SUMPRODUCT($I$45:$I$56,AE45:AE56)/SUM($I$45:$I$56) -> 0 | AD22: =SUMPRODUCT($I$45:$I$56,AF45:AF56)/SUM($I$45:$I$56) -> 0.1386325073 | AE22: =SUMPRODUCT($I$45:$I$56,AG45:AG56)/SUM($I$45:$I$56) -> 0.5419848943 | AF22: =SUMPRODUCT($I$45:$I$56,AH45:AH56)/SUM($I$45:$I$56) -> 0.07633867069
B23: =B57 -> Stor personbil, diesel | C23: Personbil | D23: Diesel | E23: Stor | F23: =SUMPRODUCT($I$57:$I$68,G57:G68)/SUM($I$57:$I$68) -> 0.06953781734 | G23: =H57 -> 2477.900759 | H23: =SUM(I23:N23) -> 4.159965786 | I23: =SUMPRODUCT($I$57:$I$68,K57:K68)/SUM($I$57:$I$68) -> 0.6923816844 | J23: 0 | K23: 1.277120361 | L23: 1.876571598 | M23: 0.1916237579 | N23: 0.1222683847 | O23: =SUM(P23:T23) -> 2.360052756 | P23: =SUMPRODUCT($I$57:$I$68,R57:R68)/SUM($I$57:$I$68) -> 0.3428081587 | Q23: =SUMPRODUCT($I$57:$I$68,S57:S68)/SUM($I$57:$I$68) -> 0 | R23: =SUMPRODUCT($I$57:$I$68,T57:T68)/SUM($I$57:$I$68) -> 0.4618985514 | S23: =SUMPRODUCT($I$57:$I$68,U57:U68)/SUM($I$57:$I$68) -> 1.457531338 | T23: =SUMPRODUCT($I$57:$I$68,V57:V68)/SUM($I$57:$I$68) -> 0.09781470777 | U23: =SUM(V23:Z23) -> 2.22824316 | V23: =SUMPRODUCT($I$57:$I$68,X57:X68)/SUM($I$57:$I$68) -> 0.6923816844 | W23: =SUMPRODUCT($I$57:$I$68,Y57:Y68)/SUM($I$57:$I$68) -> 0 | X23: =SUMPRODUCT($I$57:$I$68,Z57:Z68)/SUM($I$57:$I$68) -> 0.5074029361 | Y23: =SUMPRODUCT($I$57:$I$68,AA57:AA68)/SUM($I$57:$I$68) -> 0.9061901547 | Z23: =SUMPRODUCT($I$57:$I$68,AB57:AB68)/SUM($I$57:$I$68) -> 0.1222683847 | AA23: =SUM(AB23:AF23) -> 1.337021896 | AB23: =SUMPRODUCT($I$57:$I$68,AD57:AD68)/SUM($I$57:$I$68) -> 0.3428081587 | AC23: =SUMPRODUCT($I$57:$I$68,AE57:AE68)/SUM($I$57:$I$68) -> 0 | AD23: =SUMPRODUCT($I$57:$I$68,AF57:AF68)/SUM($I$57:$I$68) -> 0.1925620159 | AE23: =SUMPRODUCT($I$57:$I$68,AG57:AG68)/SUM($I$57:$I$68) -> 0.7038370134 | AF23: =SUMPRODUCT($I$57:$I$68,AH57:AH68)/SUM($I$57:$I$68) -> 0.09781470777
C24: Kilde:
C27: Niveu III - Omkostninger
C30: Gennemsnitlige og marginale kørselsomkostninger for konkrete køretøjer, inkl. og ekskl. afgifter [kr. per km.]
J31: Gennemsnitlige kørselsomkostninger [kr. per km.] - dog EKSKLUSIV brændstof | W31: Marginale kørselsomkostninger, [kr. per km.] - dog EKSKLUSIV brændstof
B32: Kategori | C32: Mærke | D32: Model | E32: Variant | F32: Årgang | G32: Brændstof-effektivitet [liter per km] | H32: Trafikarbejde, i alt for kategori [km. per år] | I32: Det repræsentative køretøjs andel af det samlede trafikarbejde indenfor den relevante køretøjskategori [%] | J32: Gennemsnitlige omkostninger inkl.. afgifter og moms, i alt | K32: Brændstof, inkl. afgifter og moms [kr. per km.] | L32: Batteri, inkl. afgifter og moms [kr. per km.] | M32: Afskrivninger, inkl. afgifter og moms [kr. per km.] | N32: Reparation og vedligeholdelse, inkl. afgifter og moms [kr. per km.] | O32: Ejerafgift [kr. per km.] | P32: Dæk, inkl. afgifter og moms [kr. per km.] | Q32: Gennemsnitlige omkostninger ekskl.. afgifter og moms, i alt [kr. per km.] | R32: Brændstof, ekskl. afgifter og moms [kr. per km.] | S32: Batteri, ekskl. afgifter og moms [kr. per km.] | T32: Afskrivninger, ekskl. afgifter og moms [kr. per km.] | U32: Reparation og vedligeholdelse, ekskl. afgifter og moms [kr. per km.] | V32: Dæk, ekskl. afgifter og moms [kr. per km.] | W32: Marginale omkostninger inkl.. afgifter og moms, i alt | X32: Brændstof, inkl. afgifter og moms [kr. per km.] | Y32: Batteri, inkl. afgifter og moms [kr. per km.] | Z32: Afskrivninger, inkl. afgifter og moms [kr. per km.] | AA32: Reparation og vedligeholdelse, inkl. afgifter og moms [kr. per km.] | AB32: Dæk, inkl. afgifter og moms [kr. per km.] | AC32: Marginale omkostninger ekskl.. afgifter og moms, i alt [kr. per km.] | AD32: Brændstof, ekskl. afgifter og moms [kr. per km.] | AE32: Batteri, ekskl. afgifter og moms [kr. per km.] | AF32: Afskrivninger, ekskl. afgifter og moms [kr. per km.] | AG32: Reparation og vedligeholdelse, ekskl. afgifter og moms [kr. per km.] | AH32: Dæk, ekskl. afgifter og moms [kr. per km.]
B33: =B82 -> Lille personbil, diesel | C33: =C82 -> Peugeot | D33: =D82 -> 206 | E33: =E82 -> 1,4 hdi-5 dørs | F33: =F82 -> 2007 | G33: =P82 -> 0.06146800236 | H33: =G82 -> 1818.875762 | I33: =H82 -> 0.02573115423 | J33: =SUM(K33:P33) -> 2.132628708 | K33: =$P82*R82 -> 0.612031275 | L33: =(1+Moms)*U82/T82 -> 0 | M33: =(L82/J82)*(SUM(L82:N82)/L82) -> 0.4508820444 | N33: =Z82*(1+AA82)*(1+Moms) -> 0.7877763524 | O33: =O82/I82 -> 0.2061510008 | P33: =(1+Moms)*(AC82*(1-AD82)*AE82*(J82-AF82)/AF82)/J82 -> 0.07578803572 | Q33: =SUM(R33:V33) -> 1.169468765 | R33: =$P82*Q82 -> 0.3030255121 | S33: =U82/T82 -> 0 | T33: =L82/J82 -> 0.1939476968 | U33: =Z82 -> 0.6118651281 | V33: =(AC82*(1-AD82)*AE82*(J82-AF82)/AF82)/J82 -> 0.06063042858 | W33: =SUM(X33:AB33) -> 1.128335868 | X33: =$P82*R82 -> 0.612031275 | Y33: =L33 -> 0 | Z33: =IF(L82=0,0,W82*SUM(L82:N82)/L82) -> 0.0464952203 | AA33: =N33*AB82 -> 0.3940213365 | AB33: =P33 -> 0.07578803572 | AC33: =SUM(AD33:AH33) -> 0.6896919301 | AD33: =$P82*Q82 -> 0.3030255121 | AE33: =S33 -> 0 | AF33: =W82 -> 0.02 | AG33: =U33*AB82 -> 0.3060359895 | AH33: =V33 -> 0.06063042858
B34: =B83 -> Lille personbil, diesel | C34: Toyota | D34: Yaris | E34: 1,4 d - 4d 5 dørs | F34: 2007 | G34: =P83 -> 0.06451371419 | I34: =H83 -> 0.02242311816 | J34: 2.324723524 | K34: =$P83*R83 -> 0.642357149 | L34: 0 | M34: =(L83/J83)*(SUM(L83:N83)/L83) -> 0.6160498389 | N34: 0.7877763524 | O34: =O83/I83 -> 0.2027521477 | P34: 0.07578803572 | Q34: =SUM(R34:V34) -> 1.232005571 | R34: =P83*Q83 -> 0.3180402897 | S34: =U83/T83 -> 0 | T34: =L83/J83 -> 0.2414697243 | U34: =Z83 -> 0.6118651281 | V34: =(AC83*(1-AD83)*AE83*(J83-AF83)/AF83)/J83 -> 0.06063042858 | W34: =SUM(X34:AB34) -> 1.163191538 | X34: =$P83*R83 -> 0.642357149 | Y34: 0 | Z34: =W83*SUM(L83:N83)/L83 -> 0.05102501695 | AA34: 0.3940213365 | AB34: =P34 -> 0.07578803572 | AC34: =SUM(AD34:AH34) -> 0.7047067078 | AD34: =$P83*Q83 -> 0.3180402897 | AE34: =S34 -> 0 | AF34: =W83 -> 0.02 | AG34: 0.3060359895 | AH34: =V34 -> 0.06063042858
B35: Lille personbil, diesel | C35: Fiat | D35: Punto | E35: 1,3 jtd | F35: 2007 | G35: 0.06451371419 | I35: 0.0204120926 | J35: 2.201777602 | K35: =$P84*R84 -> 0.642357149 | L35: 0 | M35: 0.474063147 | N35: 0.7877763524 | O35: 0.2217929183 | P35: 0.07578803572 | Q35: 1.191437944 | R35: 0.3180402897 | S35: 0 | T35: 0.2009020981 | U35: 0.6118651281 | V35: 0.06063042858 | W35: 1.15935997 | X35: =$P84*R84 -> 0.642357149 | Y35: 0 | Z35: 0.0471934491 | AA35: 0.3940213365 | AB35: 0.07578803572 | AC35: 0.7047067078 | AD35: 0.3180402897 | AE35: 0 | AF35: 0.02 | AG35: 0.3060359895 | AH35: 0.06063042858
B36: Lille personbil, diesel | C36: Peugeot | D36: 206 + | E36: 1,4 hdi 68 hk 5-d | F36: 2011 | G36: 0.0572881782 | I36: 0.155347502 | J36: 2.025231875 | K36: 0.5704131483 | L36: 0 | M36: 0.4320498212 | N36: 0.7877763524 | O36: 0.1592045174 | P36: 0.07578803572 | Q36: 1.173340724 | R36: 0.2824197772 | S36: 0 | T36: 0.2184253901 | U36: 0.6118651281 | V36: 0.06063042858 | W36: 1.141543715 | X36: 0.5704131483 | Y36: 0 | Z36: 0.06725268483 | AA36: 0.4280898459 | AB36: 0.07578803572 | AC36: 0.7095471735 | AD36: 0.2824197772 | AE36: 0 | AF36: 0.034 | AG36: 0.3324969677 | AH36: 0.06063042858
B37: Lille personbil, diesel | C37: Opel | D37: Corsa | E37: 1,3 cdti ecoflex | F37: 2011 | G37: 0.05151814586 | I37: 0.1352757244 | J37: 2.017828536 | K37: 0.5129614643 | L37: 0 | M37: 0.5299473211 | N37: 0.7877763524 | O37: 0.1113553621 | P37: 0.07578803572 | Q37: 1.184179391 | R37: 0.2539746198 | S37: 0 | T37: 0.2577092141 | U37: 0.6118651281 | V37: 0.06063042858 | W37: 1.086756167 | X37: 0.5129614643 | Y37: 0 | Z37: 0.0699168207 | AA37: 0.4280898459 | AB37: 0.07578803572 | AC37: 0.6811020161 | AD37: 0.2539746198 | AE37: 0 | AF37: 0.034 | AG37: 0.3324969677 | AH37: 0.06063042858
B38: Lille personbil, diesel | C38: Citroën | D38: C3 | E38: Hdi 70 | F38: 2011 | G38: 0.0572881782 | I38: 0.1255255075 | J38: 2.050657797 | K38: 0.5704131483 | L38: 0 | M38: 0.4647230354 | N38: 0.7877763524 | O38: 0.1519572248 | P38: 0.07578803572 | Q38: 1.184217609 | R38: 0.2824197772 | S38: 0 | T38: 0.2293022754 | U38: 0.6118651281 | V38: 0.06063042858 | W38: 1.143198254 | X38: 0.5704131483 | Y38: 0 | Z38: 0.06890722379 | AA38: 0.4280898459 | AB38: 0.07578803572 | AC38: 0.7095471735 | AD38: 0.2824197772 | AE38: 0 | AF38: 0.034 | AG38: 0.3324969677 | AH38: 0.06063042858
B39: Lille personbil, diesel | C39: Hyundai | D39: I20 | E39: 1.1 crdi 5 dørs hatchback | F39: 2015 | G39: 0.04888069812 | I39: 0.1740783661 | J39: 1.823077209 | K39: 0.4867006385 | L39: 0 | M39: 0.4654493414 | N39: 0.6938805474 | O39: 0.1012586459 | P39: 0.07578803572 | Q39: 1.090632014 | R39: 0.2409725062 | S39: 0 | T39: 0.250092732 | U39: 0.5389363475 | V39: 0.06063042858 | W39: 1.154376169 | X39: 0.4867006385 | Y39: 0 | Z39: 0.1563329904 | AA39: 0.4355545041 | AB39: 0.07578803572 | AC39: 0.7238976952 | AD39: 0.2409725062 | AE39: 0 | AF39: 0.084 | AG39: 0.3382947605 | AH39: 0.06063042858
B40: Lille personbil, diesel | C40: Opel | D40: Corsa | E40: 1,3cdti 5-dørs | F40: 2015 | G40: 0.0477401485 | I40: 0.1438382864 | J40: 2.111349656 | K40: 0.4753442902 | L40: 0 | M40: 0.6032935615 | N40: 0.865577441 | O40: 0.09134632722 | P40: 0.07578803572 | Q40: 1.265212283 | R40: 0.2353498144 | S40: 0 | T40: 0.2969388825 | U40: 0.6722931581 | V40: 0.06063042858 | W40: 1.265125978 | X40: 0.4753442902 | Y40: 0 | Z40: 0.1706636017 | AA40: 0.5433300508 | AB40: 0.07578803572 | AC40: 0.8019841659 | AD40: 0.2353498144 | AE40: 0 | AF40: 0.084 | AG40: 0.4220039229 | AH40: 0.06063042858
B41: Lille personbil, diesel | C41: Kia | D41: Rio | E41: 1.1 crdi 5-dørs man. 6 | F41: 2015 | G41: 0.05151814586 | I41: 0.09753540123 | J41: 1.92294596 | K41: 0.5129614643 | L41: 0 | M41: 0.4946872956 | N41: 0.7302989472 | O41: 0.1092102166 | P41: 0.07578803572 | Q41: 1.135413552 | R41: 0.2539746198 | S41: 0 | T41: 0.2535860203 | U41: 0.5672224833 | V41: 0.06063042858 | W41: 1.211028578 | X41: 0.5129614643 | Y41: 0 | Z41: 0.1638644464 | AA41: 0.458414632 | AB41: 0.07578803572 | AC41: 0.754655248 | AD41: 0.2539746198 | AE41: 0 | AF41: 0.084 | AG41: 0.3560501996 | AH41: 0.06063042858
B42: Lille personbil, diesel | C42: PEUGEOT | D42: 208 | E42: Gnsn variant | F42: 2019 | G42: 0.04576466431 | I42: 0.0510045201 | J42: 2.23821329 | K42: 0.4556745749 | L42: 0 | M42: 0.6259516577 | N42: 0.8938000588 | O42: 0.1869989632 | P42: 0.07578803572 | Q42: 1.26804116 | R42: 0.2256110546 | S42: 0 | T42: 0.2875860392 | U42: 0.6942136379 | V42: 0.06063042858 | W42: 1.480445651 | X42: 0.4556745749 | Y42: 0 | Z42: 0.3290870115 | AA42: 0.6198960293 | AB42: 0.07578803572 | AC42: 0.918909238 | AD42: 0.2256110546 | AE42: 0 | AF42: 0.1511951107 | AG42: 0.4814726441 | AH42: 0.06063042858
B43: Lille personbil, diesel | C43: CITROEN | D43: C3 | E43: Gnsn variant | F43: 2019 | G43: 0.05019350279 | I43: 0.02883455536 | J43: 2.021595827 | K43: 0.4997721144 | L43: 0 | M43: 0.5038087657 | N43: 0.7416605269 | O43: 0.2005663843 | P43: 0.07578803572 | Q43: 1.11360746 | R43: 0.2474443825 | S43: 0 | T43: 0.2294856381 | U43: 0.5760470112 | V43: 0.06063042858 | W43: 1.421870745 | X43: 0.4997721144 | Y43: 0 | Z43: 0.3319311081 | AA43: 0.5143794869 | AB43: 0.07578803572 | AC43: 0.8587879699 | AD43: 0.2474443825 | AE43: 0 | AF43: 0.1511951107 | AG43: 0.3995180481 | AH43: 0.06063042858
B44: Lille personbil, diesel | C44: PEUGEOT | D44: 2008 | E44: Gnsn variant | F44: 2019 | G44: 0.05445995052 | I44: 0.01999377188 | J44: 2.828970421 | K44: 0.5422527441 | L44: 0 | M44: 0.8091658924 | N44: 1.122009228 | O44: 0.2797545208 | P44: 0.07578803572 | Q44: 1.546257465 | R44: 0.268477155 | S44: 0 | T44: 0.3456864033 | U44: 0.871463478 | V44: 0.06063042858 | W44: 1.750121683 | X44: 0.5422527441 | Y44: 0 | Z44: 0.3539101496 | AA44: 0.7781707535 | AB44: 0.07578803572 | AC44: 1.084707163 | AD44: 0.268477155 | AE44: 0 | AF44: 0.1511951107 | AG44: 0.6044044687 | AH44: 0.06063042858
B45: =B94 -> Mellem personbil, diesel | C45: Volkswagen | D45: Passat variant | E45: 2,0 tdi | F45: 2007 | G45: 0.08786530398 | H45: =G94 -> 12994.92285 | I45: =H94 -> 0.05869625631 | J45: 3.73120635 | K45: 0.8748667919 | L45: 0 | M45: =(L94/J94)*(SUM(L94:N94)/L94) -> 1.130184427 | N45: 1.267102052 | O45: 0.3636297407 | P45: 0.09542333837 | Q45: 1.870905152 | R45: 0.4331591676 | S45: =U94/T94 -> 0 | T45: =L94/J94 -> 0.3772503801 | U45: =Z94 -> 0.9841569336 | V45: =(AC94*(1-AD94)*AE94*(J94-AF94)/AF94)/J94 -> 0.07633867069 | W45: 1.483263389 | X45: 0.8748667919 | Y45: 0 | Z45: =W94*SUM(L94:N94)/L94 -> 0.04493770531 | AA45: 0.4680355532 | AB45: 0.09542333837 | AC45: 0.888020598 | AD45: 0.4331591676 | AE45: 0 | AF45: =W94 -> 0.015 | AG45: 0.3635227598 | AH45: 0.07633867069
B46: Mellem personbil, diesel | C46: Volkswagen | D46: Touran | E46: 1,9 tdi | F46: 2007 | G46: 0.08525026517 | I46: =H95 -> 0.05294427202 | J46: 3.546392504 | K46: 0.8488290897 | L46: 0 | M46: 0.9475185058 | N46: 1.267102052 | O46: 0.3875195183 | P46: 0.09542333837 | Q46: 1.805823247 | R46: 0.4202675257 | S46: 0 | T46: 0.3250601168 | U46: 0.9841569336 | V46: 0.07633867069 | W46: 1.456011517 | X46: 0.8488290897 | Y46: 0 | Z46: 0.04372353559 | AA46: 0.4680355532 | AB46: 0.09542333837 | AC46: 0.8751289561 | AD46: 0.4202675257 | AE46: 0 | AF46: 0.015 | AG46: 0.3635227598 | AH46: 0.07633867069
B47: Mellem personbil, diesel | C47: Peugeot | D47: 307 | E47: 1,6 hdi stc | F47: 2007 | G47: 0.07161022275 | I47: 0.04114500399 | J47: 2.916221328 | K47: 0.7130164354 | L47: 0 | M47: 0.6240246407 | N47: 1.267102052 | O47: 0.2166548614 | P47: 0.09542333837 | Q47: 1.646153624 | R47: 0.3530247216 | S47: 0 | T47: 0.2326332982 | U47: 0.9841569336 | V47: 0.07633867069 | W47: 1.316711913 | X47: 0.7130164354 | Y47: 0 | Z47: 0.04023658557 | AA47: 0.4680355532 | AB47: 0.09542333837 | AC47: 0.807886152 | AD47: 0.3530247216 | AE47: 0 | AF47: 0.015 | AG47: 0.3635227598 | AH47: 0.07633867069
B48: Mellem personbil, diesel | C48: Volkswagen | D48: Passat variant | E48: 2,0 tdi | F48: 2011 | G48: 0.0663057618 | I48: 0.08303353754 | J48: 3.382179077 | K48: 0.6602004031 | L48: 0 | M48: 1.157241362 | N48: 1.267102052 | O48: 0.2022119219 | P48: 0.09542333837 | Q48: 1.788293828 | R48: 0.3268747422 | S48: 0 | T48: 0.4009234814 | U48: 0.9841569336 | V48: 0.07633867069 | W48: 1.481166207 | X48: 0.6602004031 | Y48: 0 | Z48: 0.1731863683 | AA48: 0.5523560971 | AB48: 0.09542333837 | AC48: 0.8922278572 | AD48: 0.3268747422 | AE48: 0 | AF48: 0.06 | AG48: 0.4290144443 | AH48: 0.07633867069
B49: Mellem personbil, diesel | C49: Hyundai | D49: I30 | E49: 1,6 crdi 90 eco | F49: 2011 | G49: 0.05594548652 | I49: 0.07198165641 | J49: 2.621816424 | K49: 0.5570440901 | L49: 0 | M49: 0.5703729054 | N49: 1.267102052 | O49: 0.1318740381 | P49: 0.09542333837 | Q49: 1.581131734 | R49: 0.2758005637 | S49: 0 | T49: 0.244835566 | U49: 0.9841569336 | V49: 0.07633867069 | W49: 1.344600499 | X49: 0.5570440901 | Y49: 0 | Z49: 0.1397769731 | AA49: 0.5523560971 | AB49: 0.09542333837 | AC49: 0.8411536787 | AD49: 0.2758005637 | AE49: 0 | AF49: 0.06 | AG49: 0.4290144443 | AH49: 0.07633867069
B50: Mellem personbil, diesel | C50: Peugeot | D50: 207 | E50: 1,6 hdi 92 hk st.car | F50: 2011 | G50: 0.06094487042 | I50: 0.06356667141 | J50: 2.591918538 | K50: 0.6068224982 | L50: 0 | M50: 0.448677973 | N50: 1.267102052 | O50: 0.1738926765 | P50: 0.09542333837 | Q50: 1.564923648 | R50: 0.3004465715 | S50: 0 | T50: 0.2039814724 | U50: 0.9841569336 | V50: 0.07633867069 | W50: 1.38657803 | X50: 0.6068224982 | Y50: 0 | Z50: 0.131976096 | AA50: 0.5523560971 | AB50: 0.09542333837 | AC50: 0.8657996866 | AD50: 0.3004465715 | AE50: 0 | AF50: 0.06 | AG50: 0.4290144443 | AH50: 0.07633867069
B51: Mellem personbil, diesel | C51: Peugeot | D51: 308 | E51: 1.6 blue e-hdi 120 hk sw | F51: 2015 | G51: 0.04590398894 | I51: 0.1471955122 | J51: 2.424526138 | K51: 0.4570618175 | L51: 0 | M51: 0.6740558761 | N51: 1.159615486 | O51: 0.03836962044 | P51: 0.09542333837 | Q51: 1.509144832 | R51: 0.2262978984 | S51: 0 | T51: 0.3058360404 | U51: 0.9006722221 | V51: 0.07633867069 | W51: 1.436503713 | X51: 0.4570618175 | Y51: 0 | Z51: 0.2887211058 | AA51: 0.5952974517 | AB51: 0.09542333837 | AC51: 0.8960035219 | AD51: 0.2262978984 | AE51: 0 | AF51: 0.131 | AG51: 0.4623669528 | AH51: 0.07633867069
B52: Mellem personbil, diesel | C52: Bmw | D52: 3-serie | E52: 320d touring steptronic | F52: 2015 | G52: 0.06692544182 | I52: 0.04016912938 | J52: 3.904582123 | K52: 0.6663705003 | L52: 0 | M52: 1.102272768 | N52: 1.824180253 | O52: 0.2163352637 | P52: 0.09542333837 | Q52: 2.234173164 | R52: 0.3299296463 | S52: 0 | T52: 0.4110658159 | U52: 1.416839031 | V52: 0.07633867069 | W52: 2.049527111 | X52: 0.6663705003 | Y52: 0 | Z52: 0.3512764307 | AA52: 0.936456842 | AB52: 0.09542333837 | AC52: 1.264613437 | AD52: 0.3299296463 | AE52: 0 | AF52: 0.131 | AG52: 0.72734512 | AH52: 0.07633867069
B53: Mellem personbil, diesel | C53: Renault | D53: Ny clio | E53: Dci 75 sport tourer | F53: 2015 | G53: 0.05096813007 | I53: 0.03710779514 | J53: 1.877643235 | K53: 0.5074850074 | L53: 0 | M53: 0.4146617161 | N53: 0.7570526196 | O53: 0.1030205535 | P53: 0.09542333837 | Q53: 1.128374695 | R53: 0.251263147 | S53: 0 | T53: 0.2127708426 | U53: 0.5880020346 | V53: 0.07633867069 | W53: 1.246848437 | X53: 0.5074850074 | Y53: 0 | Z53: 0.2553013568 | AA53: 0.3886387347 | AB53: 0.09542333837 | AC53: 0.7604571456 | AD53: 0.251263147 | AE53: 0 | AF53: 0.131 | AG53: 0.3018553279 | AH53: 0.07633867069
B54: =B103 -> Mellem personbil, diesel | C54: PEUGEOT | D54: 308 | E54: Gnsn variant | F54: 2019 | G54: 0.05019350279 | I54: 0.2173093064 | J54: 2.76725405 | K54: 0.4997721144 | L54: 0 | M54: 0.7472327393 | N54: 1.273181219 | O54: 0.1516446396 | P54: 0.09542333837 | Q54: 1.645438141 | R54: 0.2474443825 | S54: 0 | T54: 0.3327764711 | U54: 0.9888786165 | V54: 0.07633867069 | W54: 2.004660605 | X54: 0.4997721144 | Y54: 0 | Z54: 0.5212485332 | AA54: 0.8882166192 | AB54: 0.09542333837 | AC54: 1.245795541 | AD54: 0.2474443825 | AE54: 0 | AF54: 0.2321355025 | AG54: 0.6898769858 | AH54: 0.07633867069
B55: Mellem personbil, diesel | C55: VOLKSWAGEN | D55: GOLF | E55: Gnsn variant | F55: 2019 | G55: 0.05610649283 | I55: 0.1165621347 | J55: 2.95885094 | K55: 0.5586472152 | L55: 0 | M55: 0.7580084938 | N55: 1.289904489 | O55: 0.256867404 | P55: 0.09542333837 | Q55: 1.679081947 | R55: 0.2765942941 | S55: 0 | T55: 0.3242814182 | U55: 1.001867564 | V55: 0.07633867069 | W55: 2.096571145 | X55: 0.5586472152 | Y55: 0 | Z55: 0.542617223 | AA55: 0.8998833688 | AB55: 0.09542333837 | AC55: 1.284007006 | AD55: 0.2765942941 | AE55: 0 | AF55: 0.2321355025 | AG55: 0.6989385389 | AH55: 0.07633867069
B56: Mellem personbil, diesel | C56: NISSAN | D56: QASHQAI | E56: Gnsn variant | F56: 2019 | G56: 0.0591955984 | I56: 0.07028872445 | J56: 3.191417643 | K56: 0.5894051567 | L56: 0 | M56: 0.8202478559 | N56: 1.386495931 | O56: 0.2998453609 | P56: 0.09542333837 | Q56: 1.789670026 | R56: 0.2918229945 | S56: 0 | T56: 0.3446183177 | U56: 1.076890044 | V56: 0.07633867069 | W56: 2.204617891 | X56: 0.5894051567 | Y56: 0 | Z56: 0.5525203927 | AA56: 0.9672690033 | AB56: 0.09542333837 | AC56: 1.351574064 | AD56: 0.2918229945 | AE56: 0 | AF56: 0.2321355025 | AG56: 0.7512768958 | AH56: 0.07633867069
B57: Stor personbil, diesel | C57: Mercedes-benz | D57: E | E57: 320 cdi aut. | F57: 2007 | G57: 0.1085003375 | H57: =G106 -> 2477.900759 | I57: 0.05246239996 | J57: 6.210985348 | K57: 1.080327932 | L57: 0 | M57: 2.6467466 | N57: 1.876571598 | O57: 0.4850708324 | P57: 0.1222683847 | Q57: 2.898870743 | R57: 0.5348859418 | S57: 0 | T57: 0.8086387553 | U57: 1.457531338 | V57: 0.09781470777 | W57: 1.771151447 | X57: 1.080327932 | Y57: 0 | Z57: 0.1407428262 | AA57: 0.4278123042 | AB57: 0.1222683847 | AC57: 1.007982051 | AD57: 0.5348859418 | AE57: 0 | AF57: 0.043 | AG57: 0.3322814013 | AH57: 0.09781470777
B58: Stor personbil, diesel | C58: Toyota | D58: Corolla verso | E58: 2,2 d-4d | F58: 2007 | G58: 0.09007575188 | I58: 0.02828802578 | J58: 4.126897516 | K58: 0.8968760193 | L58: 0 | M58: 0.8859747692 | N58: 1.876571598 | O58: 0.3452067449 | P58: 0.1222683847 | Q58: 2.304963389 | R58: 0.4440562535 | S58: 0 | T58: 0.3055610893 | U58: 1.457531338 | V58: 0.09781470777 | W58: 1.571635263 | X58: 0.8968760193 | Y58: 0 | Z58: 0.124678555 | AA58: 0.4278123042 | AB58: 0.1222683847 | AC58: 0.9171523626 | AD58: 0.4440562535 | AE58: 0 | AF58: 0.043 | AG58: 0.3322814013 | AH58: 0.09781470777
B59: Stor personbil, diesel | C59: Toyota | D59: Avensis | E59: 2,2 stw d-4d | F59: 2007 | G59: 0.0857607458 | I59: 0.02796547355 | J59: 4.192573418 | K59: 0.8539118986 | L59: 0 | M59: 1.025616318 | N59: 1.876571598 | O59: 0.3142052193 | P59: 0.1222683847 | Q59: 2.323588818 | R59: 0.4227840977 | S59: 0 | T59: 0.3454586746 | U59: 1.457531338 | V59: 0.09781470777 | W59: 1.531653303 | X59: 0.8539118986 | Y59: 0 | Z59: 0.1276607158 | AA59: 0.4278123042 | AB59: 0.1222683847 | AC59: 0.8958802068 | AD59: 0.4227840977 | AE59: 0 | AF59: 0.043 | AG59: 0.3322814013 | AH59: 0.09781470777
B60: Stor personbil, diesel | C60: Mercedes-benz | D60: E | E60: 200t cdi be aut. | F60: 2011 | G60: 0.08424732088 | I60: 0.09280070869 | J60: 4.839961913 | K60: 0.8388428651 | L60: 0 | M60: 1.703678341 | N60: 1.876571598 | O60: 0.2986007243 | P60: 0.1222683847 | Q60: 2.514479517 | R60: 0.4153232018 | S60: 0 | T60: 0.5438102692 | U60: 1.457531338 | V60: 0.09781470777 | W60: 1.924334123 | X60: 0.8388428651 | Y60: 0 | Z60: 0.3383482645 | AA60: 0.6248746081 | AB60: 0.1222683847 | AC60: 1.106477411 | AD60: 0.4153232018 | AE60: 0 | AF60: 0.108 | AG60: 0.4853395015 | AH60: 0.09781470777
B61: Stor personbil, diesel | C61: Mercedes-benz | D61: C | E61: 200t cdi be aut. | F61: 2011 | G61: 0.07783719864 | I61: 0.05674842277 | J61: 4.300588942 | K61: 0.7750178645 | L61: 0 | M61: 1.229700646 | N61: 1.876571598 | O61: 0.2970304494 | P61: 0.1222683847 | Q61: 2.34927345 | R61: 0.3837225234 | S61: 0 | T61: 0.4102048802 | U61: 1.457531338 | V61: 0.09781470777 | W61: 1.845920218 | X61: 0.7750178645 | Y61: 0 | Z61: 0.3237593606 | AA61: 0.6248746081 | AB61: 0.1222683847 | AC61: 1.074876733 | AD61: 0.3837225234 | AE61: 0 | AF61: 0.108 | AG61: 0.4853395015 | AH61: 0.09781470777
B62: Stor personbil, diesel | C62: Mazda | D62: Mazda6 | E62: 2.2 de low stationsc | F62: 2011 | G62: 0.07459398203 | I62: 0.01556537406 | J62: 3.927201054 | K62: 0.7427254535 | L62: 0 | M62: 0.9359689885 | N62: 1.876571598 | O62: 0.2496666295 | P62: 0.1222683847 | Q62: 2.251597754 | R62: 0.367734085 | S62: 0 | T62: 0.3285176231 | U62: 1.457531338 | V62: 0.09781470777 | W62: 1.797567771 | X62: 0.7427254535 | Y62: 0 | Z62: 0.3076993247 | AA62: 0.6248746081 | AB62: 0.1222683847 | AC62: 1.058888294 | AD62: 0.367734085 | AE62: 0 | AF62: 0.108 | AG62: 0.4853395015 | AH62: 0.09781470777
B63: Stor personbil, diesel | C63: Mercedes-benz | D63: C-klasse | E63: 220 bluetec st.car 7g-tronic plus | F63: 2015 | G63: 0.06365353133 | I63: 0.2448906758 | J63: 4.329095198 | K63: 0.633792387 | L63: 0 | M63: 1.34074484 | N63: 2.151826367 | O63: 0.08046321962 | P63: 0.1222683847 | Q63: 2.57170034 | R63: 0.3137997525 | S63: 0 | T63: 0.4887644297 | U63: 1.67132145 | V63: 0.09781470777 | W63: 2.324389059 | X63: 0.633792387 | Y63: 0 | Z63: 0.5019929658 | AA63: 1.066335321 | AB63: 0.1222683847 | AC63: 1.422836069 | AD63: 0.3137997525 | AE63: 0 | AF63: 0.183 | AG63: 0.8282216087 | AH63: 0.09781470777
B64: Stor personbil, diesel | C64: Mazda | D64: Mazda6 | E64: 2,2 skyactiv-d 150 hk stationcar | F64: 2015 | G64: 0.06017665777 | I64: 0.09418954681 | J64: 2.788040936 | K64: 0.5991734751 | L64: 0 | M64: 0.7285301585 | N64: 1.221546798 | O64: 0.1165221198 | P64: 0.1222683847 | Q64: 1.640173735 | R64: 0.2966594299 | S64: 0 | T64: 0.2969253854 | U64: 0.9487742124 | V64: 0.09781470777 | W64: 1.775783229 | X64: 0.5991734751 | Y64: 0 | Z64: 0.4490051223 | AA64: 0.6053362473 | AB64: 0.1222683847 | AC64: 1.047638213 | AD64: 0.2966594299 | AE64: 0 | AF64: 0.183 | AG64: 0.4701640756 | AH64: 0.09781470777
B65: Stor personbil, diesel | C65: Mercedes-benz | D65: Cla | E65: 200 cdi shooting brake stationscar 7g-dct | F65: 2015 | G65: 0.05869690389 | I65: 0.05006622746 | J65: 3.957901809 | K65: 0.5844397011 | L65: 0 | M65: 1.19812518 | N65: 1.935111284 | O65: 0.1179572591 | P65: 0.1222683847 | Q65: 2.339252383 | R65: 0.2893645259 | S65: 0 | T65: 0.449074094 | U65: 1.502999055 | V65: 0.09781470777 | W65: 2.153892638 | X65: 0.5844397011 | Y65: 0 | Z65: 0.4882421651 | AA65: 0.9589423869 | AB65: 0.1222683847 | AC65: 1.314988855 | AD65: 0.2893645259 | AE65: 0 | AF65: 0.183 | AG65: 0.7448096209 | AH65: 0.09781470777
B66: Stor personbil, diesel | C66: VOLKSWAGEN | D66: TIGUAN | E66: Gnsn variant | F66: 2019 | G66: 0.0652551383 | I66: 0.1557872293 | J66: 3.738386654 | K66: 0.6497394411 | L66: 0 | M66: 1.073041158 | N66: 1.745042157 | O66: 0.1482955133 | P66: 0.1222683847 | Q66: 2.20373621 | R66: 0.321695369 | S66: 0 | T66: 0.4288535848 | U66: 1.355372549 | V66: 0.09781470777 | W66: 2.597766081 | X66: 0.6497394411 | Y66: 0 | Z66: 0.7338123654 | AA66: 1.09194589 | AB66: 0.1222683847 | AC66: 1.560900176 | AD66: 0.321695369 | AE66: 0 | AF66: 0.2932767874 | AG66: 0.8481133123 | AH66: 0.09781470777
B67: Stor personbil, diesel | C67: MERCEDES-BENZ | D67: C-KLASSE | E67: Gnsn variant | F67: 2019 | G67: 0.06189144108 | I67: 0.09422892016 | J67: 4.861175205 | K67: 0.6162474156 | L67: 0 | M67: 1.515110864 | N67: 2.416781054 | O67: 0.190767487 | P67: 0.1222683847 | Q67: 2.855258153 | R67: 0.3051129841 | S67: 0 | T67: 0.575218963 | U67: 1.877111499 | V67: 0.09781470777 | W67: 3.023279783 | X67: 0.6162474156 | Y67: 0 | Z67: 0.772482959 | AA67: 1.512281023 | AB67: 0.1222683847 | AC67: 1.870791682 | AD67: 0.3051129841 | AE67: 0 | AF67: 0.2932767874 | AG67: 1.174587203 | AH67: 0.09781470777
B68: Stor personbil, diesel | C68: VOLKSWAGEN | D68: TOURAN | E68: Gnsn variant | F68: 2019 | G68: 0.06102968787 | I68: 0.08700699563 | J68: 3.269034305 | K68: 0.6076670178 | L68: 0 | M68: 0.8642030342 | N68: 1.427706024 | O68: 0.2471898444 | P68: 0.1222683847 | Q68: 1.865664478 | R68: 0.3008647054 | S68: 0 | T68: 0.3580871825 | U68: 1.108897882 | V68: 0.09781470777 | W68: 2.33110125 | X68: 0.6076670178 | Y68: 0 | Z68: 0.7077904541 | AA68: 0.8933753939 | AB68: 0.1222683847 | AC68: 1.385840002 | AD68: 0.3008647054 | AE68: 0 | AF68: 0.2932767874 | AG68: 0.6938838011 | AH68: 0.09781470777
C69: Kilde:
C70: Note: De samlede kørselsomkostninger omfatter omkostninger til brændstof/el, motorolie/batteri, dæk, reparation og vedligehold samt afskrivninger.
C71: Note: Her er alle omkostningerne samlet og opgjort som gennemsnitlige og marginale omkostninger henholdsvis uden og med afgifter.
C72: Note:
C76: Niveu III - Grundforudsætninger og grunddata
C79: Forudsætninger og grunddata for konkrete køretøjer
G80: Grundforudsætninger | P80: Grunddata
B81: Kategori | C81: Mærke | D81: Model | E81: Variant | F81: Årgang | G81: Trafikarbejde, i alt for kategori [mio. km. per år] | H81: Det repræsentative køretøjs andel af det samlede trafikarbejde indenfor den relevante køretøjskategori [%] | I81: Trafikarbejde, gennemsnitligt for konkrete køretøjer - årgang, mærke og model [km. per år per bil] | J81: Levetid, kørsel i alt [km.] | K81: Levetid, alder [år] | L81: Pris ekskl. moms og afgifter [kr] | M81: Moms [kr.] | N81: Registreringsafgift 2016 [kr.] | O81: Ejerafgift, årligt [kr. per år] | P81: Brændstof-effektivitet [liter per km, realt forbrug] | Q81: Brændstofpris ekskl. moms og afgifter [kr per liter] | R81: Brændstofpris inkl. moms og afgifter [kr per liter] | S81: Brændstof-effektivitet [liter per km oplyst] | T81: Batteri levetid km | U81: Batteri pris | V81: Afskrivninger ekskl. moms og afgifter, gennemsnitlige [kr. per km.] | W81: Afskrivninger ekskl. moms og afgifter, marginale [kr. per km.] | X81: Ansvarsforsikrings-præmie [kr per år] | Y81: Forsikringsafgift [kr per år] | Z81: Reparationsomk. ekskl. moms og afgifter, gennemsnitlige [kr per km.] | AA81: Andel af reparationsomk. der er afgifter - før/ud over moms [Pct.] | AB81: Andel af reparationsomk. som er kørselsafhængig [Pct.] | AC81: Dækpris ekskl. moms [kr per stk] | AD81: Rabat for dæk [Pct] | AE81: Dæk [antal] | AF81: Dæk levetid [km] | AH81: Bilens ny-pris inkl. moms og afgifter (før 2016) [kr.] | AI81: Det repræsentative køretøjs andel af det samlede trafikarbejde indenfor den relevante køretøjskategori [%] | AJ81: Levetid, alder [år] | AK81: Beregnet sammenvægtet bilpris til brug for beregning af reparations-omkostning [kr.] | AL81: Gennemsnitlig reparationsomkostning inkl. moms, 10 års brug [kr. per km.] | AM81: Gennemsnitlig reparationsomkostning inkl. moms, 15 års brug [kr. per km.] | AN81: Gennemsnitlig reparationsomkostning inkl. moms, levetids brug [kr. per km.] | AO81: Gennemsnitlig reparationsomkostning ekskl. moms, levetids brug [kr. per km.] | AP81: Gennemsnitlig reparationsomkostning ekskl. moms, levetids brug [kr. per km.] - 2015-niveau | AR81: Realitetsfaktor | AS81: Sampling korrektion af brændstofforbrug
B82: Lille personbil, diesel | C82: Peugeot | D82: 206 | E82: 1,4 hdi-5 dørs | F82: 2007 | G82: 1818.875762 | H82: 0.02573115423 | I82: 18627.12276 | J82: 327485.3803 | K82: 16.6 | L82: 63515.03523 | M82: 15878.75881 | N82: 68263.48374 | O82: =VLOOKUP(1/(S82*AS82),PB_D_2015!$G$5:$J$36,4) -> 3840 | P82: =S82*AR82*AS82 -> 0.06146800236 | Q82: ='Ark til TE inkl. brændstofpris'!C59 -> 4.929809014 | R82: ='Ark til TE inkl. brændstofpris'!D59 -> 9.956908497 | S82: 0.04291845494 | T82: 1 | U82: 0 | W82: 0.02 | Z82: =AP82 -> 0.6118651281 | AA82: 0.03 | AB82: 0.5001690331 | AC82: 594 | AD82: 0 | AE82: 4 | AF82: 35000 | AH82: =SUM(L82:N82) -> 147657.2778 | AI82: =H82 -> 0.02573115423 | AJ82: =K82 -> 16.6 | AK82: =SUMPRODUCT(AH88:AH93,AI88:AI93)*SUM(AI82:AI93)/SUM(AI88:AI93) -> 177114.6222 | AL82: =0.0000022051*AK82+0.11253 -> 0.5030854534 | AM82: =0.0000032208*AK82+0.10788 -> 0.6783307752 | AN82: =AL82+(AJ82-10)*(AM82-AL82)/(15-10) -> 0.7344092782 | AO82: =AN82/(1+Moms) -> 0.5875274225 | AP82: =AO82*Opregn_rep -> 0.6118651281 | AR82: =' Fælles forudsætninger'!F54 -> 1.299 | AS82: =' Fælles forudsætninger'!K54 -> 1.102543845
B83: =B82 -> Lille personbil, diesel | C83: Toyota | D83: Yaris | E83: 1,4 d - 4d 5 dørs | F83: 2007 | H83: 0.02242311816 | I83: 18939.38014 | J83: 327485.3803 | K83: 16.6 | L83: 79077.80451 | M83: 19769.45113 | N83: 102900.0602 | O83: =VLOOKUP(1/(S83*AS83),PB_D_2015!$G$5:$J$36,4) -> 3840 | P83: =S83*AR83*AS83 -> 0.06451371419 | Q83: =$Q$82 -> 4.929809014 | R83: =$R$82 -> 9.956908497 | S83: 0.04504504505 | T83: 1 | U83: 0 | W83: 0.02 | Z83: =AP83 -> 0.6118651281 | AA83: 0.03 | AB83: 0.5001690331 | AC83: 594 | AD83: 0 | AE83: 4 | AF83: 35000 | AH83: =SUM(L83:N83) -> 201747.3158 | AI83: =H83 -> 0.02242311816 | AJ83: 16.6 | AK83: =SUMPRODUCT(AH88:AH93,AI88:AI93)*SUM(AI82:AI93)/SUM(AI88:AI93) -> 177114.6222 | AL83: =0.0000022051*AK83+0.11253 -> 0.5030854534 | AM83: =0.0000032208*AK83+0.10788 -> 0.6783307752 | AN83: =AL83+(AJ83-10)*(AM83-AL83)/(15-10) -> 0.7344092782 | AO83: 0.5875274225 | AP83: 0.6118651281 | AR83: =AR82 -> 1.299 | AS83: =AS82 -> 1.102543845
B84: =B83 -> Lille personbil, diesel | C84: Fiat | D84: Punto | E84: 1,3 jtd | F84: 2007 | H84: 0.0204120926 | I84: 17313.44729 | J84: 327485.3803 | K84: 16.6 | L84: 65792.5 | M84: 16448.125 | N84: 73008.125 | O84: =VLOOKUP(1/(S84*AS84),PB_D_2015!$G$5:$J$36,4) -> 3840 | P84: 0.06451371419 | Q84: =$Q$82 -> 4.929809014 | R84: =$R$82 -> 9.956908497 | S84: 0.04504504505 | T84: 1 | U84: 0 | W84: 0.02 | Z84: 0.6118651281 | AA84: 0.03 | AB84: 0.5001690331 | AC84: 594 | AD84: 0 | AE84: 4 | AF84: 35000 | AH84: 155248.75 | AI84: 0.0204120926 | AJ84: 16.6 | AK84: =SUMPRODUCT(AH88:AH93,AI88:AI93)*SUM(AI82:AI93)/SUM(AI88:AI93) -> 177114.6222 | AL84: 0.5030854534 | AM84: 0.6783307752 | AN84: 0.7344092782 | AO84: 0.5875274225 | AP84: 0.6118651281 | AR84: =AR83 -> 1.299 | AS84: =AS83 -> 1.102543845
B85: Lille personbil, diesel | C85: Peugeot | D85: 206 + | E85: 1,4 hdi 68 hk 5-d | F85: 2011 | H85: 0.155347502 | I85: 18843.6864 | J85: 327485.3803 | K85: 16.6 | L85: 71531.12195 | M85: 17882.78049 | N85: 52076.09756 | O85: =VLOOKUP(1/(S85*AS85),PB_D_2015!$G$5:$J$36,4) -> 3000 | P85: 0.0572881782 | Q85: 4.929809014 | R85: 9.956908497 | S85: 0.04 | T85: 1 | U85: 0 | W85: 0.034 | Z85: 0.6118651281 | AA85: 0.03 | AB85: 0.5434154562 | AC85: 594 | AD85: 0 | AE85: 4 | AF85: 35000 | AH85: 141490 | AI85: 0.155347502 | AJ85: 16.6 | AK85: =SUMPRODUCT(AH88:AH93,AI88:AI93)*SUM(AI82:AI93)/SUM(AI88:AI93) -> 177114.6222 | AL85: 0.5030854534 | AM85: 0.6783307752 | AN85: 0.7344092782 | AO85: 0.5875274225 | AP85: 0.6118651281 | AR85: 1.299 | AS85: 1.102543845
B86: Lille personbil, diesel | C86: Opel | D86: Corsa | E86: 1,3 cdti ecoflex | F86: 2011 | H86: 0.1352757244 | I86: 19397.35957 | J86: 327485.3803 | K86: 16.6 | L86: 84396 | M86: 21099 | N86: 68055 | O86: =VLOOKUP(1/(S86*AS86),PB_D_2015!$G$5:$J$36,4) -> 2160 | P86: 0.05151814586 | Q86: 4.929809014 | R86: 9.956908497 | S86: 0.03597122302 | T86: 1 | U86: 0 | W86: 0.034 | Z86: 0.6118651281 | AA86: 0.03 | AB86: 0.5434154562 | AC86: 594 | AD86: 0 | AE86: 4 | AF86: 35000 | AH86: 173550 | AI86: 0.1352757244 | AJ86: 16.6 | AK86: =SUMPRODUCT(AH88:AH93,AI88:AI93)*SUM(AI82:AI93)/SUM(AI88:AI93) -> 177114.6222 | AL86: 0.5030854534 | AM86: 0.6783307752 | AN86: 0.7344092782 | AO86: 0.5875274225 | AP86: 0.6118651281 | AR86: 1.299 | AS86: 1.102543845
B87: Lille personbil, diesel | C87: Citroën | D87: C3 | E87: Hdi 70 | F87: 2011 | H87: 0.1255255075 | I87: 19742.39793 | J87: 327485.3803 | K87: 16.6 | L87: 75093.14286 | M87: 18773.28571 | N87: 58323.57143 | O87: =VLOOKUP(1/(S87*AS87),PB_D_2015!$G$5:$J$36,4) -> 3000 | P87: 0.0572881782 | Q87: 4.929809014 | R87: 9.956908497 | S87: 0.04 | T87: 1 | U87: 0 | W87: 0.034 | Z87: 0.6118651281 | AA87: 0.03 | AB87: 0.5434154562 | AC87: 594 | AD87: 0 | AE87: 4 | AF87: 35000 | AH87: 152190 | AI87: 0.1255255075 | AJ87: 16.6 | AK87: =SUMPRODUCT(AH88:AH93,AI88:AI93)*SUM(AI82:AI93)/SUM(AI88:AI93) -> 177114.6222 | AL87: 0.5030854534 | AM87: 0.6783307752 | AN87: 0.7344092782 | AO87: 0.5875274225 | AP87: 0.6118651281 | AR87: 1.299 | AS87: 1.102543845
B88: Lille personbil, diesel | C88: Hyundai | D88: I20 | E88: 1.1 crdi 5 dørs hatchback | F88: 2015 | H88: 0.1740783661 | I88: 21331.51179 | J88: 327485.3803 | K88: 16.6 | L88: 81901.71346 | M88: 20475.42837 | N88: 50050.71275 | O88: =VLOOKUP(1/(S88*AS88),PB_D_2015!$G$5:$J$36,4) -> 2160 | P88: 0.04888069812 | Q88: 4.929809014 | R88: 9.956908497 | S88: 0.03412969283 | T88: 1 | U88: 0 | W88: 0.084 | Z88: 0.5389363475 | AA88: 0.03 | AB88: 0.6277081923 | AC88: 594 | AD88: 0 | AE88: 4 | AF88: 35000 | AH88: 152427.8546 | AI88: 0.1740783661 | AJ88: 16.6 | AK88: =AH88 -> 152427.8546 | AL88: 0.4486486621 | AM88: 0.598819634 | AN88: 0.646874345 | AO88: 0.517499476 | AP88: 0.5389363475 | AR88: 1.299 | AS88: 1.102543845
B89: Lille personbil, diesel | C89: Opel | D89: Corsa | E89: 1,3cdti 5-dørs | F89: 2015 | H89: 0.1438382864 | I89: 23646.27091 | J89: 327485.3803 | K89: 16.6 | L89: 97243.14286 | M89: 24310.78571 | N89: 76015.89286 | O89: =VLOOKUP(1/(S89*AS89),PB_D_2015!$G$5:$J$36,4) -> 2160 | P89: 0.0477401485 | Q89: 4.929809014 | R89: 9.956908497 | S89: 0.03333333333 | T89: 1 | U89: 0 | W89: 0.084 | Z89: 0.6722931581 | AA89: 0.03 | AB89: 0.6277081923 | AC89: 594 | AD89: 0 | AE89: 4 | AF89: 35000 | AH89: 197569.8214 | AI89: 0.1438382864 | AJ89: 16.6 | AK89: 197569.8214 | AL89: 0.5481912132 | AM89: 0.7442128809 | AN89: 0.8069398145 | AO89: 0.6455518516 | AP89: 0.6722931581 | AR89: 1.299 | AS89: 1.102543845
B90: Lille personbil, diesel | C90: Kia | D90: Rio | E90: 1.1 crdi 5-dørs man. 6 | F90: 2015 | H90: 0.09753540123 | I90: 19778.36934 | J90: 327485.3803 | K90: 16.6 | L90: 83045.71429 | M90: 20761.42857 | N90: 58195.71429 | O90: =VLOOKUP(1/(S90*AS90),PB_D_2015!$G$5:$J$36,4) -> 2160 | P90: 0.05151814586 | Q90: 4.929809014 | R90: 9.956908497 | S90: 0.03597122302 | T90: 1 | U90: 0 | W90: 0.084 | Z90: 0.5672224833 | AA90: 0.03 | AB90: 0.6277081923 | AC90: 594 | AD90: 0 | AE90: 4 | AF90: 35000 | AH90: 162002.8571 | AI90: 0.09753540123 | AJ90: 16.6 | AK90: 162002.8571 | AL90: 0.4697625003 | AM90: 0.6296588023 | AN90: 0.6808256189 | AO90: 0.5446604951 | AP90: 0.5672224833 | AR90: 1.299 | AS90: 1.102543845
B91: Lille personbil, diesel | C91: PEUGEOT | D91: 208 | E91: Gnsn variant | F91: 2019 | H91: 0.0510045201 | I91: 23208.68483 | J91: 327485.3803 | K91: 16.6 | L91: 94180.22343 | M91: 23250.05586 | N91: 87559.7374 | O91: =VLOOKUP(1/(S91*AS91),PB_D_2019!$G$5:$J$36,4) -> 4340 | P91: 0.04576466431 | Q91: 4.929809014 | R91: 9.956908497 | S91: 0.04201680672 | T91: 1 | U91: 0 | W91: 0.1511951107 | Z91: 0.6942136379 | AA91: 0.03 | AB91: 0.6935511171 | AC91: 594 | AD91: 0 | AE91: 4 | AF91: 35000 | AH91: 204990.0167 | AI91: 0.0510045201 | AJ91: 16.6 | AK91: 204990.0167 | AL91: 0.5645534858 | AM91: 0.7681118458 | AN91: 0.8332505209 | AO91: 0.6666004168 | AP91: 0.6942136379 | AR91: 1 | AS91: =' Fælles forudsætninger'!$Q$54 -> 1.08919901
B92: Lille personbil, diesel | C92: CITROEN | D92: C3 | E92: Gnsn variant | F92: 2019 | H92: 0.02883455536 | I92: 25727.14275 | J92: 327485.3803 | K92: 16.6 | L92: 75153.19146 | M92: 18493.29786 | N92: 71343.51593 | O92: =VLOOKUP(1/(S92*AS92),PB_D_2019!$G$5:$J$36,4) -> 5160 | P92: 0.05019350279 | Q92: 4.929809014 | R92: 9.956908497 | S92: 0.04608294931 | T92: 1 | U92: 0 | W92: 0.1511951107 | Z92: 0.5760470112 | AA92: 0.03 | AB92: 0.6935511171 | AC92: 594 | AD92: 0 | AE92: 4 | AF92: 35000 | AH92: 164990.0053 | AI92: 0.02883455536 | AJ92: 16.6 | AK92: 164990.0053 | AL92: 0.4763494606 | AM92: 0.6392798089 | AN92: 0.6914175204 | AO92: 0.5531340163 | AP92: 0.5760470112 | AR92: 1 | AS92: 1.08919901
B93: Lille personbil, diesel | C93: PEUGEOT | D93: 2008 | E93: Gnsn variant | F93: 2019 | H93: 0.01999377188 | I93: 21518.86584 | J93: 327485.3803 | K93: 16.6 | L93: 113207.2432 | M93: 28006.81081 | N93: 123775.9459 | O93: =VLOOKUP(1/(S93*AS93),PB_D_2019!$G$5:$J$36,4) -> 6020 | P93: 0.05445995052 | Q93: 4.929809014 | R93: 9.956908497 | S93: 0.05 | T93: 1 | U93: 0 | W93: 0.1511951107 | Z93: 0.871463478 | AA93: 0.03 | AB93: 0.6935511171 | AC93: 594 | AD93: 0 | AE93: 4 | AF93: 35000 | AH93: 264990 | AI93: 0.01999377188 | AJ93: 16.6 | AK93: 264990 | AL93: 0.696859449 | AM93: 0.961359792 | AN93: 1.045999902 | AO93: 0.8367999214 | AP93: 0.871463478 | AR93: 1 | AS93: 1.08919901
B94: Mellem personbil, diesel | C94: Volkswagen | D94: Passat variant | E94: 2,0 tdi | F94: 2007 | G94: 12994.92285 | H94: 0.05869625631 | I94: 22165.4037 | J94: 394470 | K94: 17.2 | L94: 148813.9574 | M94: 37203.48936 | N94: 259806.4043 | O94: =VLOOKUP(1/(S94*AS94),PB_D_2015!$G$5:$J$36,4) -> 8060 | P94: 0.08786530398 | Q94: 4.929809014 | R94: 9.956908497 | S94: 0.06134969325 | T94: 1 | U94: 0 | W94: 0.015 | Z94: 0.9841569336 | AA94: 0.03 | AB94: 0.3693747891 | AC94: 733 | AD94: 0 | AE94: 4 | AF94: 35000 | AH94: 445823.8511 | AI94: 0.05869625631 | AJ94: 17.2 | AK94: =SUMPRODUCT(AH100:AH105,AI100:AI105)*SUM(AI94:AI105)/SUM(AI100:AI105) -> 293215.6993 | AL94: 0.7590999386 | AM94: 1.052269124 | AN94: 1.181263566 | AO94: 0.945010853 | AP94: 0.9841569336 | AR94: =' Fælles forudsætninger'!F55 -> 1.299 | AS94: =' Fælles forudsætninger'!K55 -> 1.102543845
B95: =B94 -> Mellem personbil, diesel | C95: Volkswagen | D95: Touran | E95: 1,9 tdi | F95: 2007 | H95: 0.05294427202 | I95: 18579.7093 | J95: 394470 | K95: 17.2 | L95: 128226.4643 | M95: 32056.61607 | N95: 213484.5446 | O95: =VLOOKUP(1/(S95*AS95),PB_D_2015!$G$5:$J$36,4) -> 7200 | P95: 0.08525026517 | Q95: 4.929809014 | R95: 9.956908497 | S95: 0.05952380952 | T95: 1 | U95: 0 | W95: 0.015 | Z95: 0.9841569336 | AA95: 0.03 | AB95: 0.3693747891 | AC95: 733 | AD95: 0 | AE95: 4 | AF95: 35000 | AH95: 373767.625 | AI95: 0.05294427202 | AJ95: 17.2 | AK95: =SUMPRODUCT(AH100:AH105,AI100:AI105)*SUM(AI94:AI105)/SUM(AI100:AI105) -> 293215.6993 | AL95: 0.7590999386 | AM95: 1.052269124 | AN95: 1.181263566 | AO95: 0.945010853 | AP95: 0.9841569336 | AR95: =AR94 -> 1.299 | AS95: =AS94 -> 1.102543845
B96: =B95 -> Mellem personbil, diesel | C96: Peugeot | D96: 307 | E96: 1,6 hdi stc | F96: 2007 | H96: 0.04114500399 | I96: 21508.86424 | J96: 394470 | K96: 17.2 | L96: 91766.85714 | M96: 22941.71429 | N96: 131450.4286 | O96: =VLOOKUP(1/(S96*AS96),PB_D_2015!$G$5:$J$36,4) -> 4660 | P96: 0.07161022275 | Q96: 4.929809014 | R96: 9.956908497 | S96: 0.05 | T96: 1 | U96: 0 | W96: 0.015 | Z96: 0.9841569336 | AA96: 0.03 | AB96: 0.3693747891 | AC96: 733 | AD96: 0 | AE96: 4 | AF96: 35000 | AH96: 246159 | AI96: 0.04114500399 | AJ96: 17.2 | AK96: =SUMPRODUCT(AH100:AH105,AI100:AI105)*SUM(AI94:AI105)/SUM(AI100:AI105) -> 293215.6993 | AL96: 0.7590999386 | AM96: 1.052269124 | AN96: 1.181263566 | AO96: 0.945010853 | AP96: 0.9841569336 | AR96: 1.299 | AS96: 1.102543845
B97: Mellem personbil, diesel | C97: Volkswagen | D97: Passat variant | E97: 2,0 tdi | F97: 2011 | H97: 0.08303353754 | I97: 23045.12987 | J97: 394470 | K97: 17.2 | L97: 158152.2857 | M97: 39538.07143 | N97: 258806.6429 | O97: =VLOOKUP(1/(S97*AS97),PB_D_2015!$G$5:$J$36,4) -> 4660 | P97: 0.0663057618 | Q97: 4.929809014 | R97: 9.956908497 | S97: 0.0462962963 | T97: 1 | U97: 0 | W97: 0.06 | Z97: 0.9841569336 | AA97: 0.03 | AB97: 0.435920766 | AC97: 733 | AD97: 0 | AE97: 4 | AF97: 35000 | AH97: 456497 | AI97: 0.08303353754 | AJ97: 17.2 | AK97: =SUMPRODUCT(AH100:AH105,AI100:AI105)*SUM(AI94:AI105)/SUM(AI100:AI105) -> 293215.6993 | AL97: 0.7590999386 | AM97: 1.052269124 | AN97: 1.181263566 | AO97: 0.945010853 | AP97: 0.9841569336 | AR97: 1.299 | AS97: 1.102543845
B98: Mellem personbil, diesel | C98: Hyundai | D98: I30 | E98: 1,6 crdi 90 eco | F98: 2011 | H98: 0.07198165641 | I98: 22748.9811 | J98: 394470 | K98: 17.2 | L98: 96580.28571 | M98: 24145.07143 | N98: 104269.6429 | O98: =VLOOKUP(1/(S98*AS98),PB_D_2015!$G$5:$J$36,4) -> 3000 | P98: 0.05594548652 | Q98: 4.929809014 | R98: 9.956908497 | S98: 0.0390625 | T98: 1 | U98: 0 | W98: 0.06 | Z98: 0.9841569336 | AA98: 0.03 | AB98: 0.435920766 | AC98: 733 | AD98: 0 | AE98: 4 | AF98: 35000 | AH98: 224995 | AI98: 0.07198165641 | AJ98: 17.2 | AK98: =SUMPRODUCT(AH100:AH105,AI100:AI105)*SUM(AI94:AI105)/SUM(AI100:AI105) -> 293215.6993 | AL98: 0.7590999386 | AM98: 1.052269124 | AN98: 1.181263566 | AO98: 0.945010853 | AP98: 0.9841569336 | AR98: 1.299 | AS98: 1.102543845
B99: Mellem personbil, diesel | C99: Peugeot | D99: 207 | E99: 1,6 hdi 92 hk st.car | F99: 2011 | H99: 0.06356667141 | I99: 22082.58609 | J99: 394470 | K99: 17.2 | L99: 80464.57143 | M99: 20116.14286 | N99: 76409.28571 | O99: =VLOOKUP(1/(S99*AS99),PB_D_2015!$G$5:$J$36,4) -> 3840 | P99: 0.06094487042 | Q99: 4.929809014 | R99: 9.956908497 | S99: 0.04255319149 | T99: 1 | U99: 0 | W99: 0.06 | Z99: 0.9841569336 | AA99: 0.03 | AB99: 0.435920766 | AC99: 733 | AD99: 0 | AE99: 4 | AF99: 35000 | AH99: 176990 | AI99: 0.06356667141 | AJ99: 17.2 | AK99: =SUMPRODUCT(AH100:AH105,AI100:AI105)*SUM(AI94:AI105)/SUM(AI100:AI105) -> 293215.6993 | AL99: 0.7590999386 | AM99: 1.052269124 | AN99: 1.181263566 | AO99: 0.945010853 | AP99: 0.9841569336 | AR99: 1.299 | AS99: 1.102543845
B100: Mellem personbil, diesel | C100: Peugeot | D100: 308 | E100: 1.6 blue e-hdi 120 hk sw | F100: 2015 | H100: 0.1471955122 | I100: 31274.74252 | J100: 394470 | K100: 17.2 | L100: 120643.1429 | M100: 30160.78571 | N100: 115090.8929 | O100: =VLOOKUP(1/(S100*AS100),PB_D_2015!$G$5:$J$36,4) -> 1200 | P100: 0.04590398894 | Q100: 4.929809014 | R100: 9.956908497 | S100: 0.03205128205 | T100: 1 | U100: 0 | W100: 0.131 | Z100: 0.9006722221 | AA100: 0.03 | AB100: 0.5133576249 | AC100: 733 | AD100: 0 | AE100: 4 | AF100: 35000 | AH100: 265894.8214 | AI100: 0.1471955122 | AJ100: 17.2 | AK100: =AH100 -> 265894.8214 | AL100: 0.6988546707 | AM100: 0.9642740409 | AN100: 1.081058564 | AO100: 0.864846851 | AP100: 0.9006722221 | AR100: 1.299 | AS100: 1.102543845
B101: Mellem personbil, diesel | C101: Bmw | D101: 3-serie | E101: 320d touring steptronic | F101: 2015 | H101: 0.04016912938 | I101: 21540.63984 | J101: 394470 | K101: 17.2 | L101: 162153.1324 | M101: 40538.2831 | N101: 232122.1233 | O101: =VLOOKUP(1/(S101*AS101),PB_D_2015!$G$5:$J$36,4) -> 4660 | P101: 0.06692544182 | Q101: 4.929809014 | R101: 9.956908497 | S101: 0.04672897196 | T101: 1 | U101: 0 | W101: 0.131 | Z101: 1.416839031 | AA101: 0.03 | AB101: 0.5133576249 | AC101: 733 | AD101: 0 | AE101: 4 | AF101: 35000 | AH101: 434813.5388 | AI101: 0.04016912938 | AJ101: 17.2 | AK101: 434813.5388 | AL101: 1.071337334 | AM101: 1.508327446 | AN101: 1.700603095 | AO101: 1.360482476 | AP101: 1.416839031 | AR101: 1.299 | AS101: 1.102543845
B102: Mellem personbil, diesel | C102: Renault | D102: Ny clio | E102: Dci 75 sport tourer | F102: 2015 | H102: 0.03710779514 | I102: 20966.68992 | J102: 394470 | K102: 17.2 | L102: 83931.71429 | M102: 20982.92857 | N102: 58656.96429 | O102: =VLOOKUP(1/(S102*AS102),PB_D_2015!$G$5:$J$36,4) -> 2160 | P102: 0.05096813007 | Q102: 4.929809014 | R102: 9.956908497 | S102: 0.03558718861 | T102: 1 | U102: 0 | W102: 0.131 | Z102: 0.5880020346 | AA102: 0.03 | AB102: 0.5133576249 | AC102: 733 | AD102: 0 | AE102: 4 | AF102: 35000 | AH102: 163571.6071 | AI102: 0.03710779514 | AJ102: 17.2 | AK102: 163571.6071 | AL102: 0.4732217509 | AM102: 0.6347114323 | AN102: 0.7057668921 | AO102: 0.5646135137 | AP102: 0.5880020346 | AR102: 1.299 | AS102: 1.102543845
B103: Mellem personbil, diesel | C103: PEUGEOT | D103: 308 | E103: Gnsn variant | F103: 2019 | H103: 0.2173093064 | I103: 34026.91986 | J103: 394470 | K103: 17.2 | L103: 131270.3346 | M103: 32522.58364 | N103: 130967.9805 | O103: =VLOOKUP(1/(S103*AS103),PB_D_2019!$G$5:$J$36,4) -> 5160 | P103: 0.05019350279 | Q103: 4.929809014 | R103: 9.956908497 | S103: 0.04608294931 | T103: 1 | U103: 0 | W103: 0.2321355025 | Z103: 0.9888786165 | AA103: 0.03 | AB103: 0.6976356595 | AC103: 733 | AD103: 0 | AE103: 4 | AF103: 35000 | AH103: 294760.8987 | AI103: 0.2173093064 | AJ103: 17.2 | AK103: 294760.8987 | AL103: 0.7625072577 | AM103: 1.057245902 | AN103: 1.186930906 | AO103: 0.9495447249 | AP103: 0.9888786165 | AR103: 1 | AS103: =' Fælles forudsætninger'!$Q$54 -> 1.08919901
B104: Mellem personbil, diesel | C104: VOLKSWAGEN | D104: GOLF | E104: Gnsn variant | F104: 2019 | H104: 0.1165621347 | I104: 23436.21615 | J104: 394470 | K104: 17.2 | L104: 127919.291 | M104: 31684.82276 | N104: 139407.4967 | O104: =VLOOKUP(1/(S104*AS104),PB_D_2019!$G$5:$J$36,4) -> 6020 | P104: 0.05610649283 | Q104: 4.929809014 | R104: 9.956908497 | S104: 0.05151170014 | T104: 1 | U104: 0 | W104: 0.2321355025 | Z104: 1.001867564 | AA104: 0.03 | AB104: 0.6976356595 | AC104: 733 | AD104: 0 | AE104: 4 | AF104: 35000 | AH104: 299011.6105 | AI104: 0.1165621347 | AJ104: 17.2 | AK104: 299011.6105 | AL104: 0.7718805024 | AM104: 1.070936595 | AN104: 1.202521276 | AO104: 0.9620170209 | AP104: 1.001867564 | AR104: 1 | AS104: 1.08919901
B105: Mellem personbil, diesel | C105: NISSAN | D105: QASHQAI | E105: Gnsn variant | F105: 2019 | H105: 0.07028872445 | I105: 22811.75863 | J105: 394470 | K105: 17.2 | L105: 135941.5878 | M105: 33690.39694 | N105: 153931.187 | O105: =VLOOKUP(1/(S105*AS105),PB_D_2019!$G$5:$J$36,4) -> 6840 | P105: 0.0591955984 | Q105: 4.929809014 | R105: 9.956908497 | S105: 0.05434782609 | T105: 1 | U105: 0 | W105: 0.2321355025 | Z105: 1.076890044 | AA105: 0.03 | AB105: 0.6976356595 | AC105: 733 | AD105: 0 | AE105: 4 | AF105: 35000 | AH105: 323563.1717 | AI105: 0.07028872445 | AJ105: 17.2 | AK105: 323563.1717 | AL105: 0.8260191499 | AM105: 1.150012263 | AN105: 1.292569233 | AO105: 1.034055387 | AP105: 1.076890044 | AR105: 1 | AS105: 1.08919901
B106: Stor personbil, diesel | C106: Mercedes-benz | D106: E | E106: 320 cdi aut. | F106: 2007 | G106: 2477.900759 | H106: 0.05246239996 | I106: 21852.47863 | J106: 408880 | K106: 16.2 | L106: 330636.2143 | M106: 82659.05357 | N106: 668906.4821 | O106: =VLOOKUP(1/(S106*AS106),PB_D_2015!$G$5:$J$36,4) -> 10600 | P106: 0.1085003375 | Q106: 4.929809014 | R106: 9.956908497 | S106: 0.07575757576 | T106: 1 | U106: 0 | W106: 0.043 | Z106: 1.457531338 | AA106: 0.03 | AB106: 0.2279754765 | AC106: 936 | AD106: 0 | AE106: 4 | AF106: 35000 | AH106: 1082201.75 | AI106: 0.05246239996 | AJ106: 16.2 | AK106: =SUMPRODUCT(AH112:AH117,AI112:AI117)*SUM(AI106:AI117)/SUM(AI112:AI117) -> 474137.3942 | AL106: 1.158050368 | AM106: 1.634981719 | AN106: 1.749445244 | AO106: 1.399556195 | AP106: 1.457531338 | AR106: =' Fælles forudsætninger'!F56 -> 1.299 | AS106: =' Fælles forudsætninger'!K56 -> 1.102543845
B107: =B106 -> Stor personbil, diesel | C107: Toyota | D107: Corolla verso | E107: 2,2 d-4d | F107: 2007 | H107: 0.02828802578 | I107: 23348.32711 | J107: 408880 | K107: 16.2 | L107: 124937.8182 | M107: 31234.45455 | N107: 206085.0909 | O107: =VLOOKUP(1/(S107*AS107),PB_D_2015!$G$5:$J$36,4) -> 8060 | P107: 0.09007575188 | Q107: 4.929809014 | R107: 9.956908497 | S107: 0.06289308176 | T107: 1 | U107: 0 | W107: 0.043 | Z107: 1.457531338 | AA107: 0.03 | AB107: 0.2279754765 | AC107: 936 | AD107: 0 | AE107: 4 | AF107: 35000 | AH107: 362257.3636 | AI107: 0.02828802578 | AJ107: 16.2 | AK107: =SUMPRODUCT(AH112:AH117,AI112:AI117)*SUM(AI106:AI117)/SUM(AI112:AI117) -> 474137.3942 | AL107: 1.158050368 | AM107: 1.634981719 | AN107: 1.749445244 | AO107: 1.399556195 | AP107: 1.457531338 | AR107: =AR106 -> 1.299 | AS107: =AS106 -> 1.102543845
B108: =B107 -> Stor personbil, diesel | C108: Toyota | D108: Avensis | E108: 2,2 stw d-4d | F108: 2007 | H108: 0.02796547355 | I108: 22914.9599 | J108: 408880 | K108: 16.2 | L108: 141251.1429 | M108: 35312.78571 | N108: 242790.0714 | O108: =VLOOKUP(1/(S108*AS108),PB_D_2015!$G$5:$J$36,4) -> 7200 | P108: 0.0857607458 | Q108: 4.929809014 | R108: 9.956908497 | S108: 0.05988023952 | T108: 1 | U108: 0 | W108: 0.043 | Z108: 1.457531338 | AA108: 0.03 | AB108: 0.2279754765 | AC108: 936 | AD108: 0 | AE108: 4 | AF108: 35000 | AH108: 419354 | AI108: 0.02796547355 | AJ108: 16.2 | AK108: =SUMPRODUCT(AH112:AH117,AI112:AI117)*SUM(AI106:AI117)/SUM(AI112:AI117) -> 474137.3942 | AL108: 1.158050368 | AM108: 1.634981719 | AN108: 1.749445244 | AO108: 1.399556195 | AP108: 1.457531338 | AR108: 1.299 | AS108: 1.102543845
B109: Stor personbil, diesel | C109: Mercedes-benz | D109: E | E109: 200t cdi be aut. | F109: 2011 | H109: 0.09280070869 | I109: 24112.46663 | J109: 408880 | K109: 16.2 | L109: 222353.1429 | M109: 55588.28571 | N109: 418658.5714 | O109: =VLOOKUP(1/(S109*AS109),PB_D_2015!$G$5:$J$36,4) -> 7200 | P109: 0.08424732088 | Q109: 4.929809014 | R109: 9.956908497 | S109: 0.05882352941 | T109: 1 | U109: 0 | W109: 0.108 | Z109: 1.457531338 | AA109: 0.03 | AB109: 0.3329873525 | AC109: 936 | AD109: 0 | AE109: 4 | AF109: 35000 | AH109: 696600 | AI109: 0.09280070869 | AJ109: 16.2 | AK109: =SUMPRODUCT(AH112:AH117,AI112:AI117)*SUM(AI106:AI117)/SUM(AI112:AI117) -> 474137.3942 | AL109: 1.158050368 | AM109: 1.634981719 | AN109: 1.749445244 | AO109: 1.399556195 | AP109: 1.457531338 | AR109: 1.299 | AS109: 1.102543845
B110: Stor personbil, diesel | C110: Mercedes-benz | D110: C | E110: 200t cdi be aut. | F110: 2011 | H110: 0.05674842277 | I110: 21344.61303 | J110: 408880 | K110: 16.2 | L110: 167724.5714 | M110: 41931.14286 | N110: 293144.2857 | O110: =VLOOKUP(1/(S110*AS110),PB_D_2015!$G$5:$J$36,4) -> 6340 | P110: 0.07783719864 | Q110: 4.929809014 | R110: 9.956908497 | S110: 0.05434782609 | T110: 1 | U110: 0 | W110: 0.108 | Z110: 1.457531338 | AA110: 0.03 | AB110: 0.3329873525 | AC110: 936 | AD110: 0 | AE110: 4 | AF110: 35000 | AH110: 502800 | AI110: 0.05674842277 | AJ110: 16.2 | AK110: =SUMPRODUCT(AH112:AH117,AI112:AI117)*SUM(AI106:AI117)/SUM(AI112:AI117) -> 474137.3942 | AL110: 1.158050368 | AM110: 1.634981719 | AN110: 1.749445244 | AO110: 1.399556195 | AP110: 1.457531338 | AR110: 1.299 | AS110: 1.102543845
B111: Stor personbil, diesel | C111: Mazda | D111: Mazda6 | E111: 2.2 de low stationsc | F111: 2011 | H111: 0.01556537406 | I111: 22109.48259 | J111: 408880 | K111: 16.2 | L111: 134324.2857 | M111: 33581.07143 | N111: 214793.6429 | O111: =VLOOKUP(1/(S111*AS111),PB_D_2015!$G$5:$J$36,4) -> 5520 | P111: 0.07459398203 | Q111: 4.929809014 | R111: 9.956908497 | S111: 0.05208333333 | T111: 1 | U111: 0 | W111: 0.108 | Z111: 1.457531338 | AA111: 0.03 | AB111: 0.3329873525 | AC111: 936 | AD111: 0 | AE111: 4 | AF111: 35000 | AH111: 382699 | AI111: 0.01556537406 | AJ111: 16.2 | AK111: =SUMPRODUCT(AH112:AH117,AI112:AI117)*SUM(AI106:AI117)/SUM(AI112:AI117) -> 474137.3942 | AL111: 1.158050368 | AM111: 1.634981719 | AN111: 1.749445244 | AO111: 1.399556195 | AP111: 1.457531338 | AR111: 1.299 | AS111: 1.102543845
B112: Stor personbil, diesel | C112: Mercedes-benz | D112: C-klasse | E112: 220 bluetec st.car 7g-tronic plus | F112: 2015 | H112: 0.2448906758 | I112: 47723.66825 | J112: 408880 | K112: 16.2 | L112: 199846 | M112: 49961.5 | N112: 298396.25 | O112: =VLOOKUP(1/(S112*AS112),PB_D_2015!$G$5:$J$36,4) -> 3840 | P112: 0.06365353133 | Q112: 4.929809014 | R112: 9.956908497 | S112: 0.04444444444 | T112: 1 | U112: 0 | W112: 0.183 | Z112: 1.67132145 | AA112: 0.03 | AB112: 0.4955489614 | AC112: 936 | AD112: 0 | AE112: 4 | AF112: 35000 | AH112: 548203.75 | AI112: 0.2448906758 | AJ112: 16.2 | AK112: =AH112 -> 548203.75 | AL112: 1.321374089 | AM112: 1.873534638 | AN112: 2.00605317 | AO112: 1.604842536 | AP112: 1.67132145 | AR112: 1.299 | AS112: 1.102543845
B113: Stor personbil, diesel | C113: Mazda | D113: Mazda6 | E113: 2,2 skyactiv-d 150 hk stationcar | F113: 2015 | H113: 0.09418954681 | I113: 32955.11622 | J113: 408880 | K113: 16.2 | L113: 121406.8516 | M113: 30351.7129 | N113: 146122.8467 | O113: =VLOOKUP(1/(S113*AS113),PB_D_2015!$G$5:$J$36,4) -> 3840 | P113: 0.06017665777 | Q113: 4.929809014 | R113: 9.956908497 | S113: 0.04201680672 | T113: 1 | U113: 0 | W113: 0.183 | Z113: 0.9487742124 | AA113: 0.03 | AB113: 0.4955489614 | AC113: 936 | AD113: 0 | AE113: 4 | AF113: 35000 | AH113: 297881.4112 | AI113: 0.09418954681 | AJ113: 16.2 | AK113: 297881.4112 | AL113: 0.7693882998 | AM113: 1.067296449 | AN113: 1.138794405 | AO113: 0.911035524 | AP113: 0.9487742124 | AR113: 1.299 | AS113: 1.102543845
B114: Stor personbil, diesel | C114: Mercedes-benz | D114: Cla | E114: 200 cdi shooting brake stationscar 7g-dct | F114: 2015 | H114: 0.05006622746 | I114: 25432.94091 | J114: 408880 | K114: 16.2 | L114: 183617.4155 | M114: 45904.35389 | N114: 260367.6541 | O114: =VLOOKUP(1/(S114*AS114),PB_D_2015!$G$5:$J$36,4) -> 3000 | P114: 0.05869690389 | Q114: 4.929809014 | R114: 9.956908497 | S114: 0.04098360656 | T114: 1 | U114: 0 | W114: 0.183 | Z114: 1.502999055 | AA114: 0.03 | AB114: 0.4955489614 | AC114: 936 | AD114: 0 | AE114: 4 | AF114: 35000 | AH114: 489889.4236 | AI114: 0.05006622746 | AJ114: 16.2 | AK114: 489889.4236 | AL114: 1.192785168 | AM114: 1.685715855 | AN114: 1.80401922 | AO114: 1.443215376 | AP114: 1.502999055 | AR114: 1.299 | AS114: 1.102543845
B115: Stor personbil, diesel | C115: VOLKSWAGEN | D115: TIGUAN | E115: Gnsn variant | F115: 2019 | H115: 0.1557872293 | I115: 51923.35106 | J115: 408880 | K115: 16.2 | L115: 175349.6538 | M115: 43542.41344 | N115: 219853.0014 | O115: =VLOOKUP(1/(S115*AS115),PB_D_2019!$G$5:$J$36,4) -> 7700 | P115: 0.0652551383 | Q115: 4.929809014 | R115: 9.956908497 | S115: 0.05991112522 | T115: 1 | U115: 0 | W115: 0.2932767874 | Z115: 1.355372549 | AA115: 0.03 | AB115: 0.6257418398 | AC115: 936 | AD115: 0 | AE115: 4 | AF115: 35000 | AH115: 438745.0686 | AI115: 0.1557872293 | AJ115: 16.2 | AK115: 438745.0686 | AL115: 1.080006751 | AM115: 1.520990117 | AN115: 1.626826125 | AO115: 1.3014609 | AP115: 1.355372549 | AR115: 1 | AS115: =' Fælles forudsætninger'!$Q$54 -> 1.08919901
B116: Stor personbil, diesel | C116: MERCEDES-BENZ | D116: C-KLASSE | E116: Gnsn variant | F116: 2019 | H116: 0.09422892016 | I116: 35855.16645 | J116: 408880 | K116: 16.2 | L116: 235195.5296 | M116: 58503.88239 | N116: 325799.118 | O116: =VLOOKUP(1/(S116*AS116),PB_D_2019!$G$5:$J$36,4) -> 6840 | P116: 0.06189144108 | Q116: 4.929809014 | R116: 9.956908497 | S116: 0.05682289506 | T116: 1 | U116: 0 | W116: 0.2932767874 | Z116: 1.877111499 | AA116: 0.03 | AB116: 0.6257418398 | AC116: 936 | AD116: 0 | AE116: 4 | AF116: 35000 | AH116: 619498.5299 | AI116: 0.09422892016 | AJ116: 16.2 | AK116: 619498.5299 | AL116: 1.478586208 | AM116: 2.103160865 | AN116: 2.253058783 | AO116: 1.802447026 | AP116: 1.877111499 | AR116: 1 | AS116: 1.08919901
B117: Stor personbil, diesel | C117: VOLKSWAGEN | D117: TOURAN | E117: Gnsn variant | F117: 2019 | H117: 0.08700699563 | I117: 27671.03971 | J117: 408880 | K117: 16.2 | L117: 146414.6872 | M117: 36308.6718 | N117: 170631.9777 | O117: =VLOOKUP(1/(S117*AS117),PB_D_2019!$G$5:$J$36,4) -> 6840 | P117: 0.06102968787 | Q117: 4.929809014 | R117: 9.956908497 | S117: 0.05603171439 | T117: 1 | U117: 0 | W117: 0.2932767874 | Z117: 1.108897882 | AA117: 0.03 | AB117: 0.6257418398 | AC117: 936 | AD117: 0 | AE117: 4 | AF117: 35000 | AH117: 353355.3366 | AI117: 0.08700699563 | AJ117: 16.2 | AK117: 353355.3366 | AL117: 0.8917138528 | AM117: 1.245966868 | AN117: 1.330987592 | AO117: 1.064790074 | AP117: 1.108897882 | AR117: 1 | AS117: 1.08919901
C118: Kilde: Antal, kilometer og levetid er baseret op udtræk fra DST og egne beregninger | D118: do. | E118: do. | F118: do. | G118: do. | H118: do. | I118: do. | J118: do. | K118: do. | L118: Kilde: Bilpriser.dk | N118: Egne beregninger baseret på skats oplysninger | O118: Egne beregninger baseret på skats oplysninger | S118: Kilde: CRM | W118: Egne beregninger baseret opslag på Bilpriser.dk | AB118: Kilde: Egne beregninger baseret bilernes årskørsel | AC118: Kide: Opslag på internet | AE118: Kilde: egne antagelser | AF118: Kilde: egne antagelser | AH118: Kilde: Bilpriser.dk
C119: Note: Afskrivningsomkostningerne er opgjort ud fra bilernes samlede kilometer i hele levetiden
C120: Note: Afskrivningskomponenten er opdelt på en km-afhængig og en alder-afhængig del for at gøre det muligt at afspejle henholdsvis det marginale og det gennemsnitlige værditab pr. km for den danske bilpark.
C121: Note: Den gennemsnitlige afskrivningsomkostning beskriver de totale omkostninger per km fordelt på bilens levetid, mens den marginale afskrivningsomkostning beskriver omkostningen ved en ekstra kørt km.

Sheet Personbiler - Hybrid
C1: Personbiler - Hybrid, plug-in
C5: Niveu I-A - Vægtede gennemsnitsomkostninger
C8: Gennemsnitlige og marginale kørselsomkostninger for sammenvægtet køretøjskategorier, inkl. og ekskl. afgifter [kr. per km.]
G9: Gennemsnitlige kørselsomkostninger [kr. per km.] - dog EKSKLUSIV brændstof | T9: Marginale kørselsomkostninger, [kr. per km.] - dog EKSKLUSIV brændstof
C10: Køretøjskategori | D10: Drivmiddel | E10: Brændstof-effektivitet [liter per km] | F10: Trafikarbejde, i alt | G10: Gennemsnitlige omkostninger inkl.. afgifter og moms, i alt | H10: Brændstof, inkl. afgifter og moms [kr. per km.] | I10: Batteri, inkl. afgifter og moms [kr. per km.] | J10: Afskrivninger, inkl. afgifter og moms [kr. per km.] | K10: Reparation og vedligeholdelse, inkl. afgifter og moms [kr. per km.] | L10: Ejerafgift [kr. per km.] | M10: Dæk, inkl. afgifter og moms [kr. per km.] | N10: Gennemsnitlige omkostninger ekskl.. afgifter og moms, i alt [kr. per km.] | O10: Brændstof, ekskl. afgifter og moms [kr. per km.] | P10: Batteri, ekskl. afgifter og moms [kr. per km.] | Q10: Afskrivninger, ekskl. afgifter og moms [kr. per km.] | R10: Reparation og vedligeholdelse, ekskl. afgifter og moms [kr. per km.] | S10: Dæk, ekskl. afgifter og moms [kr. per km.] | T10: Marginale omkostninger inkl.. afgifter og moms, i alt | U10: Brændstof, inkl. afgifter og moms [kr. per km.] | V10: Batteri, inkl. afgifter og moms [kr. per km.] | W10: Afskrivninger, inkl. afgifter og moms [kr. per km.] | X10: Reparation og vedligeholdelse, inkl. afgifter og moms [kr. per km.] | Y10: Dæk, inkl. afgifter og moms [kr. per km.] | Z10: Marginale omkostninger ekskl.. afgifter og moms, i alt [kr. per km.] | AA10: Brændstof, ekskl. afgifter og moms [kr. per km.] | AB10: Batteri, ekskl. afgifter og moms [kr. per km.] | AC10: Afskrivninger, ekskl. afgifter og moms [kr. per km.] | AD10: Reparation og vedligeholdelse, ekskl. afgifter og moms [kr. per km.] | AE10: Dæk, ekskl. afgifter og moms [kr. per km.]
C11: Personbil | D11: Hybrid | E11: =SUMPRODUCT($G$21:$G$21,F21:F21)/SUM($G$21:$G$21) -> 0.05019968551 | F11: =SUM(G21:G21) -> 39.84838 | G11: =SUM(H11:M11) -> 3.363362105 | H11: =SUMPRODUCT($G$21:$G$21,I21:I21)/SUM($G$21:$G$21) -> 0.5582624439 | I11: 0.08971506495 | J11: 1.390149063 | K11: 1.126162561 | L11: 0.1038583811 | M11: 0.0952145903 | N11: =SUM(O11:S11) -> 1.838059798 | O11: =SUMPRODUCT($G$21:$G$21,P21:P21)/SUM($G$21:$G$21) -> 0.2229847984 | P11: =SUMPRODUCT($G$21:$G$21,Q21:Q21)/SUM($G$21:$G$21) -> 0.07177205196 | Q11: =SUMPRODUCT($G$21:$G$21,R21:R21)/SUM($G$21:$G$21) -> 0.5924419072 | R11: =SUMPRODUCT($G$21:$G$21,S21:S21)/SUM($G$21:$G$21) -> 0.8746893678 | S11: =SUMPRODUCT($G$21:$G$21,T21:T21)/SUM($G$21:$G$21) -> 0.07617167224 | T11: =SUM(U11:Y11) -> 1.265636848 | U11: =SUMPRODUCT($G$21:$G$21,V21:V21)/SUM($G$21:$G$21) -> 0.5582624439 | V11: =SUMPRODUCT($G$21:$G$21,W21:W21)/SUM($G$21:$G$21) -> 0.02948798341 | W11: =SUMPRODUCT($G$21:$G$21,X21:X21)/SUM($G$21:$G$21) -> 0.2125192487 | X11: =SUMPRODUCT($G$21:$G$21,Y21:Y21)/SUM($G$21:$G$21) -> 0.3701525818 | Y11: =SUMPRODUCT($G$21:$G$21,Z21:Z21)/SUM($G$21:$G$21) -> 0.0952145903 | Z11: =SUM(AA11:AE11) -> 0.7015124338 | AA11: =SUMPRODUCT($G$21:$G$21,AB21:AB21)/SUM($G$21:$G$21) -> 0.2229847984 | AB11: =SUMPRODUCT($G$21:$G$21,AC21:AC21)/SUM($G$21:$G$21) -> 0.02359038673 | AC11: =SUMPRODUCT($G$21:$G$21,AD21:AD21)/SUM($G$21:$G$21) -> 0.09126842553 | AD11: =SUMPRODUCT($G$21:$G$21,AE21:AE21)/SUM($G$21:$G$21) -> 0.2874971509 | AE11: =SUMPRODUCT($G$21:$G$21,AF21:AF21)/SUM($G$21:$G$21) -> 0.07617167224
